Workbook

Sheet Changes (hidden)
B2: No. | C2: Portfolio / Executive Authority | D2: Current Department | E2: New Department | F2: Comments on Affected Departments | G2: Function shift Indi | H2: Component shift Indi
B3: 1 | C3: Agriculture, Land Reform and Rural Development | D3: 1.Agriculture, Forestry and Fisheries | E3: 1. Agriculture, Land Reform and Rural Development (DALRRD) | F3: 1.Merger | G3: 0 | H3: 0
C4: 2 DMs | D4: 2.Rural Development and Land Reform | F4: 2.Transfer of Forestry and Fisheries functions from the Department of Agriculture, Forestry and Fisheries to the Department of the Environment, Forestry and Fisheries | G4: 1 | H4: 0
B5: 2 | C5: Basic Education | D5: 3. Basic Education | E5: 2. Basic Education (DBE) | F5: Transfer early childhood function from the Department of Social Development to the Department of Basic Education (Announced President’s SONA, 7 February 2019) | G5: 1 | H5: 0
C6: DM | G6: 0 | H6: 0
B7: 3 | C7: Communications | D7: 4. Communications | E7: 3. Communications and Digital Technologies (DOC) | F7: 1.Merger | G7: 0 | H7: 0
C8: DM | D8: 5. Telecommunications and Postal Services | F8: 2.Transfer GCIS and the following entities to the Minister in the Presidency | G8: 1 | H8: 0
D9: 6. Government Communication and Information System (GCIS) | F9: ·Media Diversity Development Agency (MDDA) | G9: 0 | H9: 1
F10: ·Brand SA | G10: 0 | H10: 1
B11: 4 | C11: Cooperative Governance and Traditional Affairs | D11: 7. Cooperative Governance | E11: 4. Cooperative Governance (DCoG) | F11: Not affected | G11: 0 | H11: 0
C12: 2 DMs | D12: 8. Traditional Affairs | E12: 5. Traditional Affairs (DTA) | G12: 0 | H12: 0
D13: •GC - Municipal Infrastructure Support Agent (MISA) | E13: •GC- MISA | G13: 0 | H13: 0
B14: 5 | C14: Defence and Military Veterans | D14: 9. Defence | E14: 6. Defence (DoD) | F14: Not affected | G14: 0 | H14: 0
C15: DM | D15: 10. Military Veterans | E15: 7. Military Veterans (DMV) | G15: 0 | H15: 0
B16: 6 | C16: Environment, Forestry and Fisheries | D16: 11. Environmental Affairs | E16: 8. Environment, Forestry and Fisheries (DEFF) | F16: 1.Name change | G16: 0 | H16: 0
C17: DM | F17: 2.Transfer of forestry and fisheries functions from the Department of Agriculture, Forestry and Fisheries to the Department of Environment, Forestry and Fisheries | G17: 1 | H17: 0
B18: 7 | C18: Employment and Labour | D18: 12. Labour | E18: 9. Employment and Labour (DEL) | F18: Name change | G18: 0 | H18: 0
C19: DM | G19: 0 | H19: 0
B20: 8 | C20: Finance | D20: 13. National Treasury | E20: 10. National Treasury (NT) | F20: Transfer the infrastructure development management system (IDMS) function to the Department of Public Works and Infrastructure | G20: 1 | H20: 0
C21: DM | D21: •GC - Government Pensions Administration Agency(GPAA) | E21: •GC - GPAA | G21: 0 | H21: 0
D22: •GC - Government Technical Advisory Centre (GTAC) | E22: •GC - GTAC | G22: 0 | H22: 0
B23: 9 | C23: Health | D23: 14. Health | E23: 11. Health (DoH) | F23: Not affected | G23: 0 | H23: 0
C24: DM | G24: 0 | H24: 0
B25: 10 | C25: Higher Education, Science and Technology | D25: 15. Higher Education and Training | E25: 12. Higher Education and Training (DHET) | F25: 1.Not affected | G25: 0 | H25: 0
C26: DM | D26: 16. Science and Technology | E26: 13. Science and Technology (DST) | F26: 2.Remodel operating model of departments in the portfolio | G26: 0 | H26: 0
B27: 11 | C27: Home Affairs | D27: 17. Home Affairs | E27: 14. Home Affairs (DHA) | F27: Not affected | G27: 0 | H27: 0
C28: DM | D28: •GC - Government Printing Works | E28: •GC- Government Printing Works (GPW) | G28: 0 | H28: 0
B29: 12 | C29: Human Settlements, Water and Sanitation | D29: 18. Human Settlements | E29: 15. Human Settlements (DHS) | F29: 1.Not affected | G29: 0 | H29: 0
C30: 2 DMs | D30: 19. Water and Sanitation | E30: 16. Water and Sanitation (DWS) | F30: 2.Remodel operating model of departments in the portfolio | G30: 0 | H30: 0
B31: 13 | C31: International Relations and Cooperation | D31: 20. International Relations and Cooperation | E31: 17. International Relations and Cooperation (DIRCO) | F31: Not affected | G31: 0 | H31: 0
C32: 2 DMs | D32: •GC - South African Development Partnership Agency (SADPA) | E32: •GC - SADPA | G32: 0 | H32: 0
B33: 14 | C33: Justice and Correctional Services | D33: 21. Justice and Constitutional Development | E33: 18. Justice and Constitutional Development (DoJ&CD) | F33: Not affected | G33: 0 | H33: 0
C34: 2 DMs | D34: 22. Correctional Services | E34: 19. Correctional Services (DCS) | G34: 0 | H34: 0
D35: 23. Office of the Chief Justice | E35: 20. Office of the Chief Justice | G35: 0 | H35: 0
B36: 15 | C36: Mineral Resources and Energy | D36: 24. Mineral Resources | E36: 21. Mineral Resources and Energy (DMRE) | F36: Merger | G36: 0 | H36: 0
C37: DM | D37: 25. Energy | G37: 0 | H37: 0
B38: 16 | C38: Police | D38: 26. South African Police Service | E38: 22. South African Police Service (SAPS) | F38: Not affected | G38: 0 | H38: 0
C39: DM | D39: 27. Civilian Secretariat for the Police | E39: 23. Civilian Secretariat for the Police (CSPS) | G39: 0 | H39: 0
D40: 28. Independent Police Investigative Directorate | E40: 24. Independent Police Investigative Directorate (IPID) | G40: 0 | H40: 0
B41: 17 | C41: President | D41: 29. The Presidency | E41: 25. The Presidency | F41: 1.Transfer socio-economic impact assessment functions from the DPME to The Presidency | G41: 1 | H41: 0
F42: 2.Create Policy and Research Services capacity in The Presidency | G42: 0 | H42: 0
B43: 18 | C43: Presidency | D43: 30. Planning, Monitoring and Evaluation | E43: 26. Planning, Monitoring and Evaluation (DPME), including the National Planning Secretariat | F43: 1.Transfer socio-economic impact assessment functions from the DPME to The Presidency | G43: 1 | H43: 0
C44: DM | D44: 31. Statistics South Africa | E44: 27. Statistics South Africa (Stats SA) | F44: 2.Transfer GCIS and the following entities from the Minister of Communications to the Minister in the Presidency | G44: 1 | H44: 0
E45: 28. Government Communication and Information System (GCIS) | G45: 0 | H45: 0
E46: •Entity – Media Diversity Development Agency (MDDA) | F46: •Entity – MDDA | G46: 0 | H46: 1
E47: •Entity – Brand SA | F47: • Entity – Brand SA | G47: 0 | H47: 1
B48: 19 | C48: Presidency: Women, Youth and Persons with Disabilities | D48: 32. Women | E48: 29. Women, Youth and Persons with Disabilities (DWYPD) | F48: 1.Transfer youth development functions and NYDA from the DPME | G48: 1 | H48: 0
C49: DM | E49: •Entity - National Youth Development Agency (NYDA) | F49: 2.Transfer persons with disabilities functions from the Department of Social Development | G49: 1 | H49: 0
B50: 20 | C50: Public Enterprises | D50: 33. Public Enterprises | E50: 30. Public Enterprises (DPE) | F50: Not affected | G50: 0 | H50: 0
C51: DM | G51: 0 | H51: 0
B52: 21 | C52: Public Service and Administration | D52: 34. Public Service and Administration | E52: 31. Public Service and Administration (DPSA) | F52: Not affected | G52: 0 | H52: 0
C53: DM | D53: 35. National School of Government | E53: 32. National School of Government (NSG) | G53: 0 | H53: 0
D54: 36. Office of the Public Service Commission | E54: 33. Office of the Public Service Commission | G54: 0 | H54: 0
D55: •GC -Centre for Public Service Innovation (CPSI) | E55: •GC - CPSI | G55: 0 | H55: 0
B56: 22 | C56: Public Works and Infrastructure | D56: 37. Public Works | E56: 34. Public Works and Infrastructure (DPWI) | F56: 1.Name change | G56: 0 | H56: 0
C57: DM | F57: 2.Transfer the infrastructure development management system (IDMS) function from NT to the Department of Public Works and Infrastructure | G57: 1 | H57: 0
F58: 3.Transfer the Presidential Infrastructure Coordinating Committee (PICC) from the Economic Development Department to the Department of Public Works and Infrastructure | G58: 1 | H58: 0
B59: 23 | C59: Small Business Development | D59: 38. Small Business Development | E59: 35. Small Business Development (DSBD) | F59: Not affected | G59: 0 | H59: 0
C60: DM | G60: 0 | H60: 0
B61: 24 | C61: Social Development | D61: 39. Social Development | E61: 36. Social Development (DSD) | F61: 1.Transfer the persons with disability function to the Department of Women, Youth and Persons with Disabilities | G61: 1 | H61: 0
C62: DM | F62: 2.Transfer early childhood function from the DSD to the Department of Basic Education (Announced President’s SONA, 7 February 2019) | G62: 1 | H62: 0
B63: 25 | C63: Sports, Arts and Culture | D63: 40. Sport and Recreation South Africa | E63: 37. Sports, Arts and Culture (DSAC) | F63: Merge | G63: 0 | H63: 0
C64: DM | D64: 41. Arts and Culture | G64: 0 | H64: 0
B65: 26 | C65: State Security | D65: 42. State Security Agency | E65: 38. State Security Agency (SSA) | F65: Portfolio agencies to be aligned to White Paper on Intelligence and Panel Report | G65: 0 | H65: 0
C66: DM | G66: 0 | H66: 0
B67: 27 | C67: Tourism | D67: 43. Tourism | E67: 39. Tourism (DT) | F67: Not affected | G67: 0 | H67: 0
B68: 28 | C68: Trade and Industry | D68: 44. Trade and Industry | E68: 40. Trade, Industry and Competition (DTI) | F68: 1.Merger | G68: 0 | H68: 0
D69: 45. Economic Development | F69: 2.Transfer the Presidential Infrastructure Coordinating Committee (PICC) from the Economic Development Department to the Department of Public Works and Infrastructure | G69: 1 | H69: 0
F70: 3.Transfer economic development functions from the EDD to the DTI | G70: 1 | H70: 0
B71: 29 | C71: Transport | D71: 46. Transport | E71: 41.Transport (DoT) | F71: Not Affected | G71: 0 | H71: 0
C76: Current Departments That Merge | F76: New Merged Department
B77: 1 | C77: Agriculture | E77: Rural Development and Land Reform | F77: Agriculture, Land Reform and Rural Development
B78: 2 | C78: Communications | E78: Telecommunications and Postal Services | F78: Communications and New Technologies
B79: 3 | C79: Mineral Resources | E79: Energy | F79: Mineral Resources and Energy
B80: 4 | C80: Sport and Recreation South Africa | E80: Arts and Culture | F80: Sports, Arts and Culture
B81: 5 | C81: Trade and Industry | E81: Economic Development | F81: Trade and Industry

Sheet Cover
BS1: =COUNTA(BS3:BS5) -> 3 | BT1: 3 | BU1: 3 | BV1: 3 | BW1: 3 | BX1: 3 | BY1: 3 | BZ1: 3 | CA1: 3 | CB1: 3 | CC1: 3 | CD1: 3 | CE1: 3 | CF1: 3 | CH1: =16-COUNTBLANK(CI3:CI22) -> 3
AA2: 72 | AY2: SIP Category | AZ2: Econ Class for ODA | BA2: Year | BB2: CurCap | BC2: EconClass | BD2: Outcomes - fixed | BE2: InfraList1 | BF2: InfraList2 | BG2: InfraList3 | BH2: InfraList4 | BI2: ODAList1 | BJ2: ListedProgs | BL2: =MAX(BL3:BL18) -> 4 | BM2: ProgList | BO2: InfraS dropdown list | BQ2: DoR Cat | BS2: Outputs-1 | BT2: Outputs-2 | BU2: Outputs-3 | BV2: Outputs-4 | BW2: Outputs-5 | BX2: Outputs-6 | BY2: Outputs-7 | BZ2: Outputs-8 | CA2: Outputs-9 | CB2: Outputs-1 | CC2: Outputs-11 | CD2: Outputs-12 | CE2: Outputs-13 | CF2: Outputs-14 | CI2: Array Range to lock
AY3: Not related to SIPs | AZ3: Compensation of employees | BA3: 2016/17 | BB3: Current | BC3: Provincial Revenue Funds | BD3: OUTCOME 1: QUALITY BASIC EDUCATION | BE3: Programme | BF3: New infrastructure assets | BG3: Site identification | BH3: Mega | BI3: Long term technical assistance | BJ3: Administration | BK3: 1 | BL3: =IF(BM3<>"",BK3,) -> 1 | BM3: =IF(BJ3="","",BK3) -> 1 | BN3: 1 | BO3: =IF(ISERROR(INDEX(($BM$3:$BM$18),MATCH(BN3,$BL$3:$BL$18,))),"",INDEX(($BM$3:$BM$18),MATCH(BN3,$BL$3:$BL$18,))) -> 1 | BQ3: National | BS3: Improved quality of teaching and learning through development, supply and effective utilisation of teachers | BT3: Average male and female life expectancy at birth increased to 70 years | BU3: Reduced levels of contact crime | BV3: Productive investment is effectively crowded in through the infrastructure build programme | BW3: Establish a credible institutional mechanism for skills planning | BX3: Regulation, funding and investment improved | BY3: Improved land administration and spatial planning for integrated development in rural areas | BZ3: Adequate housing and improved quality living environments | CA3: Members of society have sustainable and reliable access to basic services. | CB3: Ecosystems are sustained and natural resources are used efficiently | CC3: SA’s national priorities advanced in bilateral engagements | CD3: A stable political-administrative interface | CE3: Current social welfare system reformed to deliver better results for vulnerable groups | CF3: Fostering Constitutional values | CH3: 1 | CI3: V177:W246,V248:W261
AY4: SIP 1: Unlocking the northern mineral belt with Waterberg as Catalyst | AZ4: Goods and services | BA4: 2017/18 | BB4: Capital | BC4: Provincial agencies and funds | BD4: OUTCOME 2: A LONG AND HEALTHY LIFE FOR ALL SOUTH AFRICANS | BE4: Project | BF4: Upgrading and additions | BG4: Pre-feasibility | BH4: Large | BI4: Short term technical assistance | BJ4: Executive Support | BK4: 2 | BL4: =IF(BM4<>"",BK4,) -> 2 | BM4: =IF(BJ4="","",BK4) -> 2 | BN4: 2 | BO4: 2 | BQ4: Provincial equitable share | BR4: Provincial Revenue Funds | BS4: Improve the quality of teaching and learning through provision of Infrastructure and learning materials | BT4: Tuberculosis (TB) prevention and cure progressively improved | BU4: An efficient and effective criminal Justice system | BV4: The productive sectors account for a growing share of production and employment, exports are diversified, African regional development is accelerated, the carbon intensity of growth is reduced, knowledge and technology support increasingly inclusive and dynamic growth, and the organs of the state improve their alignment in support of employment-creating growth | BW4: Increase access to programmes leading to intermediate and high level learning | BX4: Reliable generation, transmission and distribution of energy ensured | BY4: Sustainable Land Reform (agrarian transformation) | BZ4: A functionally equitable residential property market | CA4: Intergovernmental and democratic governance arrangements for a functional system of cooperative governance strengthened. | CB4: An effective climate change mitigation and adaptation response | CC4: An economically integrated Southern Africa | CD4: A public service that is a career of choice | CE4: Improved monitoring, evaluation, accountability and quality assurance | CF4: Equal opportunities, inclusion and redress | CH4: 2 | CI4: AE177:AF246,AE248:AF261
AY5: SIP 2: Durban-Free State Gauteng Logistics and Industrial Corridor | AZ5: Provinces and municipalities | BA5: 2018/19 | BC5: Municipal bank accounts | BD5: OUTCOME 3: ALL PEOPLE IN SOUTH AFRICA ARE AND FEEL SAFE | BF5: Rehabilitation and refurbishment | BG5: Feasibility | BH5: Small | BI5: Conferences / workshops | BJ5: Direct_charges | BK5: 3 | BL5: =IF(BM5<>"",BK5,) -> 3 | BM5: 3 | BN5: 3 | BO5: 3 | BQ5: Provincial conditional grants (Direct) | BR5: Provincial Revenue Funds | BS5: Regular annual national assessments to track improvements in the quality of teaching and learning (ANA) | BT5: Maternal, Infant and Child Mortality reduced | BU5: South Africa’s borders effectively defended, protected, secured and well-managed | BV5: The elimination of unnecessary regulatory burdens and lower price increases for key inputs and wage goods fosters investment and economic growth | BW5: Increase access to occupationally-directed programmes in needed areas and thereby expand the availability of intermediate level skills (with special focus on artisan skills) | BX5: Maintenance, strategic expansion, operational efficiency, capacity and competitiveness of our logistics and transport infrastructure ensured | BY5: Improved food security | BZ5: Enhanced institutional capabilities for effective coordination of spatial investment decisions | CA5: Sound financial and administrative management. | CB5: An environmentally sustainable, low-carbon economy resulting from a well-managed just transition | CC5: Political cohesion within Southern Africa to ensure a peaceful, secure and stable Southern African region | CD5: Sufficient technical and specialist professional skills | CE5: Development of more sustainable model of funding social development | CF5: Using sport and recreation to promote social cohesion | CH5: 3 | CI5: AN177:AO246,AN248:AO261
B6: Department | AY6: Sip 3: South eastern note and corridor development | AZ6: Departmental agencies and accounts | BA6: 2019/20 | BC6: Municipal agencies and funds | BD6: OUTCOME 4: DECENT EMPLOYMENT THROUGH INCLUSIVE GROWTH | BF6: Maintenance and repair | BG6: Design | BI6: Study tours | BK6: 4 | BL6: 0 | BN6: 4 | BO6: Multiple programmes | BQ6: Local government equitable share | BR6: Municipal bank accounts | BS6: Improved Grade R and planning for extension of ECD | BT6: Prevalence of Non-Communicable Diseases reduced by 28% | BU6: Secure cyber space | BV6: Workers’ education and skills increasingly meet economic needs | BW6: Increase access to high-level occupationally directed programmes in needed areas | BX6: Maintenance and supply availability of our bulk water resources infrastructure ensured | BY6: Smallholder producers' development and support (technical, financial, infrastructure) for agrarian transformation | CA6: Promotion of social and economic development. | CB6: Enhanced governance systems and capacity | CC6: A Peaceful, secure and stable Africa | CD6: Efficient and effective management and operations systems | CE6: Increased human resource capacity in the social development sector | CF6: Promoting active citizenry and leadership | CH6: 4 | CI6: V269:W281,AE269:AF281,AN269:AO281
A7: =INDEX((T_DeptOld[Vote No.]),MATCH(Cover!B7,T_DeptOld[Department],0)) ->  | AY7: SIP 4: Unlocking the economic opportunities in the Both West Province | AZ7: Higher education institutions | BA7: 2020/21 | BC7: Social security funds | BD7: OUTCOME 5: A SKILLED AND CAPABLE WORKFORCE TO SUPPORT AN INCLUSIVE GROWTH PATH | BG7: Tender | BI7: Training | BK7: 5 | BL7: 0 | BN7: 5 | BQ7: Local government conditional grants (Direct) | BR7: Municipal bank accounts | BS7: A credible, outcomes-focused planning and accountability system (building the capacity of the state to intervene and support quality education) | BT7: Injury, accidents and violence reduced by 50% from 2010 levels | BU7: Ensure Domestic Stability | BV7: Macroeconomic conditions support employment-creating growth | BW7: Strengthen the governance, management and student support in post school education and training institutions | BX7: Expansion, modernisation, access and affordability of our Information and communications infrastructure ensured | BY7: Increased access to quality infrastructure and services, particularly in education, healthcare and public transport in rural areas | CA7: Local public employment programmes expanded through the Community Work Programme. | CB7: Sustainable human communities | CC7: A sustainable developed and economically integrated Africa | CD7: Procurement systems that deliver value for money | CE7: Deepening social assistance and expanding access to social security | CH7: 5 | CI7: V326:W335,V34:W341,V343:W38,V382:W383,V41:W411,V413:W419
AY8: SIP 5: Saldanha-Northern Cape Development Corridor | AZ8: Foreign governments and international organisations | BA8: 2021/22 | BC8: Departmental agencies (non-business entities) | BD8: OUTCOME 6: AN EFFICIENT, COMPETITIVE AND RESPONSIVE ECONOMIC INFRASTRUCTURE NETWORK | BE8: InfraList5 | BG8: Construction | BI8: Equipment | BK8: 6 | BL8: 0 | BN8: 6 | BQ8: General Fuel Levy sharing with Metropolitan Municipalities | BR8: Municipal bank accounts | BS8: Partnerships for a Strong Education System | BT8: Health Systems Reforms Completed | BU8: Identity of all persons in South Africa known and secured | BV8: Reduced workplace conflict and improved collaboration between government, organised business and organised labour | BX8: Coordination, planning, integration and monitoring implementation of strategic integrated projects in the National Infrastructure Plan | BY8: Growth of sustainable rural enterprises and industries, characterised by strong rural-urban linkages, increased investment in agro-processing, trade development and access to local markets and financial services – resulting in rural job creation | CC8: An equitable and just System of Global Governance | CD8: Strengthened accountability to citizens | CE8: Early childhood development provision | CH8: 6 | CI8: AE326:AF335,AE34:AF341,AE343:AF38,AE382:AF383,AE41:AF411,AE413:AF419
B9: Enquires: | E9: Department Contact Details: | AY9: SIP 6: Integrated municipal infrastructure project | AZ9: Public corporations and private enterprises | BA9: 2022/23 | BC9: Higher education institutions | BD9: OUTCOME 7: COMPREHENSIVE RURAL DEVELOPMENT AND LAND REFORM | BE9: Provinces and municipalities | BF9: InfraList6 | BG9: Handed over | BI9: Other | BK9: 7 | BL9: 0 | BN9: 7 | BT9: Primary health care teams deployed to provide care to families and communities | BU9: Corruption in the public and private sectors reduced | BV9: Expanded economic opportunities for historically excluded and vulnerable groups | CC9: Strong, mutually beneficial South-South cooperation | CD9: Improved inter-departmental coordination and institutionalisation of long-term planning | CE9: Improve household food and nutrition security | CH9: 7 | CI9: AN326:AO335,AN34:AO341,AN343:AO38,AN382:AO383,AN41:AO411,AN413:AO419
B10: =AF23 ->  | E10: Name: | AY10: SIP 7: Integrated urban space and public transport programme | AZ10: Non-profit institutions | BC10: Foreign governments and international organisations | BD10: OUTCOME 8: SUSTAINABLE HUMAN SETTLEMENTS AND IMPROVED QUALITY OF HOUSEHOLD LIFE | BE10: Departmental agencies and accounts | BF10: Residential buildings | BG10: On hold | BK10: 8 | BL10: 0 | BN10: 8 | BO10: =IF(ISERROR(INDEX(($BM$3:$BM$18),MATCH(BN1,$BL$3:$BL$18,))),"",INDEX(($BM$3:$BM$18),MATCH(BN1,$BL$3:$BL$18,))) ->  | BT10: Universal health coverage achieved | BV10: Public employment schemes provide short-term relief for the unemployed and build community solidarity and agency | CC10: Beneficial relations with strategic formations of the North | CD10: Improved mechanisms to prevent corruption in the public service (refer to the chapter on Outcome 3 for further elements of fighting corruption effectively) | CE10: Strengthening of community development interventions to strengthen coordination, integration, planning, monitoring and evaluation of services | CH10: 8
B11: =AG23 ->  | E11: Email: | AY11: SIP 8: Green energy in support of the South African economy | AZ11: Households | BC11: Subsidies on products and production (pc) | BD11: OUTCOME 9: RESPONSIVE, ACCOUNTABLE, EFFECTIVE AND EFFICIENT DEVELOPMENTAL LOCAL GOVERNMENT | BE11: Higher education institutions | BF11: Non-residential buildings | BG11: Complete | BK11: 9 | BL11: 0 | BN11: 9 | BO11: =IF(ISERROR(INDEX(($BM$3:$BM$18),MATCH(BN11,$BL$3:$BL$18,))),"",INDEX(($BM$3:$BM$18),MATCH(BN11,$BL$3:$BL$18,))) ->  | BT11: Posts filled with skilled, committed and competent individuals | CH11: 9
B12: =AH23 ->  | E12: Telephone number: | AJ12: =AA13 -> Data file MTEC 2019 | AY12: SIP 9: Electricity generations to support socio-economic development | AZ12: Buildings and other fixed structures | BA12: Donation | BC12: Other transfers to public corporations | BD12: OUTCOME 10: PROTECT AND ENHANCE OUR ENVIRONMENTAL ASSETS AND NATURAL RESOURCES | BE12: Foreign governments and international organisations | BF12: Investment property | BG12: On-going | BK12: 1 | BL12: 0 | BN12: 1 | BO12: 1 | CH12: 1
B13: =IF(B14="","","OR") ->  | E13: Mobile (optional): | AA13: Data file MTEC 2019 | AY13: SIP 10: Electricity transmission and distribution for all | AZ13: Machinery and equipment | BA13: Foreign | BC13: Subsidies on products and production (pe) | BD13: OUTCOME 11: CREATE A BETTER SOUTH AFRICA, A BETTER AFRICA AND A BETTER WORLD | BE13: Public corporations and private enterprises | BF13: Heritage assets | BK13: 11 | BL13: 0 | BN13: 11 | CH13: 11
B14: =AI23 ->  | AY14: SIP 11: Agri-logistics and rural infrastructure | AZ14: Heritage assets | BA14: Local | BC14: Other transfers to private enterprises | BD14: OUTCOME 12: AN EFFICIENT, EFFECTIVE AND DEVELOPMENT ORIENTED PUBLIC SERVICE | BE14: Non-profit institutions | BF14: Other fixed structures | BK14: 12 | BL14: 0 | BN14: 12 | CH14: 12
B15: =AJ23 ->  | AY15: SIP 12: Revitalisation of public hospitals and other health facilities | AZ15: Specialised military assets | BC15: Non-profit institutions | BD15: OUTCOME 13: AN INCLUSIVE AND RESPONSIVE SOCIAL PROTECTION SYSTEM | BE15: Households | BK15: 13 | BL15: 0 | BN15: 13 | CH15: 13
B16: =AK23 ->  | AY16: SIP 13: National school build programme | AZ16: Biological assets | BC16: Social benefits | BD16: OUTCOME 14: NATION BUILDING AND SOCIAL COHESION | BK16: 14 | BL16: 0 | BN16: 14 | CH16: 14
AY17: SIP 14: Higher education infrastructure | AZ17: Land and sub-soil assets | BC17: Other transfers to households | BD17: Departmental mandate | BK17: 15 | BL17: 0 | BN17: 15 | CH17: 15
AY18: SIP 15: Expanding access to communication technology | AZ18: Software and other intangible assets | BA18: Currency | BL18: =IF(BM18<>"",MAX(BL$3:BL17)+1,) -> 4 | BM18: Multiple programmes | BN18: 16 | CH18: 16
B19: Data file to be submitted to: | AY19: SIP 16: SKA and Meerkat | BA19: In Cash | CH19: 17
B20: DatafileNAT@treasury.gov.za | AY20: SIP 17: Regional integration for African Cooperation and development | BA20: In Kind | CH20: 18
AY21: SIP 18. Water and sanitation master plan | CH21: 19
AA22: 27 | AB22: =+MATCH(AC22,$AB$25:$AB$71,) -> 14 | AC22: 16 | CH22: 2
Z23: =IF(AI23="",1,2) ->  | AA23: =MATCH(DeptName,AC25:AC71,0) ->  | AB23: =INDEX(($AB$25:$AB$71),MATCH(DeptName,$AC$25:$AC$71,0)) ->  | AC23: =+B7 -> 0 | AD23: =INDEX((AD$25:AD$71),MATCH($AA$23,$AA$25:$AA$71,1)) ->  | AR23: =INDEX((AR$25:AR$71),MATCH($AA$23,$AA$25:$AA$71,1)) ->  | AT23: Revised Baseline | AV23: =IFERROR(INDEX((AV$25:AV$71),MATCH($AB$23,$AT$25:$AT$71,)),) -> 0 | AW23: =IFERROR(INDEX((AW$25:AW$71),MATCH($AB$23,$AT$25:$AT$71,)),) -> 0 | AX23: =IFERROR(INDEX((AX$25:AX$71),MATCH($AB$23,$AT$25:$AT$71,)),) -> 0
AA24: Dept Index No. | AB24: Vote No. | AC24: Department | AD24: Category | AE24: ID1 | AF24: Contact Person | AG24: Tel | AH24: email | AI24: Contact Person | AJ24: Tel | AK24: email | AL24: ID2 | AM24: Contact Person | AN24: Tel | AO24: email | AP24: =MyYearP1 -> 2020/21 | AQ24: =MyYearP2 -> 2021/22 | AR24: =MyYearP3 -> 2022/23 | AT24: Vote No. | AU24: Dept | AV24: =+AP24 -> 2020/21 | AW24: =+AQ24 -> 2021/22 | AX24: =+AR24 -> 2022/23 | BC24: Payments for Financial Assets
Y25: 1 | AA25: 1 | AB25: 24 | AC25: Agriculture, Forestry and Fisheries | AF25: Bothwell Deka | AG25: (012) 395 6784 | AH25: Bothwell.Deka@treasury.gov.za | AI25: Humbelani Ramuedzisi | AJ25: (012) 315 5585 | AK25: Humbelani.Ramuedzisi@treasury.gov.za | AO25: DataFileNAT@treasury.gov.za | AP25: 7738566 | AQ25: 8230629 | AR25: 8426880 | AT25: 24 | AU25: Agriculture, Forestry and Fisheries | AV25: 7738566 | AW25: 8230629 | AX25: 8426880 | BC25: Forex losses
Y26: 2 | AA26: 2 | AB26: 37 | AC26: Arts and Culture | AF26: Judy Naidoo | AG26: (012) 315 5269 | AH26: Judy.Naidoo@treasury.gov.za | AI26: Pindi Masiso | AJ26: (012) 315 5722 | AK26: Pindi.Masiso@treasury.gov.za | AO26: DataFileNAT@treasury.gov.za | AP26: 4857723 | AQ26: 5138667 | AR26: 5338349 | AT26: 37 | AU26: Arts and Culture | AV26: 4857723 | AW26: 5138667 | AX26: 5338349 | BC26: Thefts and losses
Y27: 3 | AA27: 3 | AB27: 14 | AC27: Basic Education | AF27: Spencer Janari | AG27: (012) 315 5436 | AH27: Spencer.Janari@treasury.gov.za | AI27: Pindi Masiso | AJ27: (012) 315 5722 | AK27: Pindi.Masiso@treasury.gov.za | AO27: DataFileNAT@treasury.gov.za | AP27: 25910910 | AQ27: 28101474 | AR27: 29551073 | AT27: 14 | AU27: Basic Education | AV27: 25910910 | AW27: 28101474 | AX27: 29551073 | BC27: Extension of loans for policy purposes
Y28: 4 | AA28: 4 | AB28: 47 | AC28: Centre for Public Service Innovation | AF28: George Tembo | AG28: (012) 315 5514 | AH28: George.Tembo@treasury.gov.za | AI28: Viwe Sobudula | AJ28: (012) 315 5015 | AK28: Viwe.Sobudula@treasury.gov.za | AO28: DataFileNAT@treasury.gov.za | AP28: 40416 | AQ28: 42797 | AR28: 44409 | AT28: 47 | AU28: Centre for Public Service Innovation | AV28: 40416 | AW28: 42797 | AX28: 44409 | BC28: Purchase of equity | CI28: Array Range to print
Y29: 5 | AA29: 5 | AB29: 41 | AC29: Civilian Secretariat for the Police Service | AF29: Nompumelelo Radebe | AG29: (012) 315 5957 | AH29: Nompumelelo.Radebe@treasury.gov.za | AI29: Mmathapelo Maphangela | AJ29: (012) 406 9013 | AK29: mmathapelo.maphangela@treasury.gov.za | AO29: DataFileNAT@treasury.gov.za | AP29: 156988 | AQ29: 167050 | AR29: 173321 | AT29: 41 | AU29: Civilian Secretariat for the Police Service | AV29: 156988 | AW29: 167050 | AX29: 173321 | BC29: Debt take overs | CH29: 1 | CI29: F26:J143,L26:L143,R26:R143,AB26:AB143,AK26:AK143,AT26:AT143
Y30: 6 | AA30: 6 | AB30: 3 | AC30: Communications | AF30: Mokgatla Tema | AG30: (012) 315 5948 | AH30: Mokgatla.Tema@treasury.gov.za | AI30: Deeviya Patel | AJ30: (012) 395 6562 | AK30: deeviya.patel@treasury.gov.za | AO30: DataFileNAT@treasury.gov.za | AP30: 1662549 | AQ30: 1730230 | AR30: 1794590 | AT30: 3 | AU30: Communications | AV30: 1662549 | AW30: 1730230 | AX30: 1794590 | BC30: Losses on GFECRA | CH30: 2
Y31: 7 | AA31: 7 | AB31: 4 | AC31: Cooperative Governance and Traditional Affairs | AF31: Misaveni Ngobeni | AG31: (012) 315 5305 | AH31: misaveni.ngobeni@treasury.gov.za | AI31: Millicent Mulaudzi | AJ31: (012) 395 6576 | AK31: Millicent.Mulaudzi@treasury.gov.za | AO31: DataFileNAT@treasury.gov.za | AP31: 98342675 | AQ31: 106416159 | AR31: 113827524 | AT31: 4 | AU31: Cooperative Governance And Traditional Affairs | AV31: 98342675 | AW31: 106416159 | AX31: 113827524 | BC31: Premiums on loan transactions | CH31: 3
Y32: 8 | AA32: 8 | AB32: 18 | AC32: Correctional Services | AF32: Elvis Ramafamba | AG32: (012) 315 5204 | AH32: elvis.ramafamba@treasury.gov.za | AI32: Keabetswe Matlwa | AJ32: (012) 315 6678 | AK32: Keabetswe.Matlwa@treasury.gov.za | AO32: DataFileNAT@treasury.gov.za | AP32: 26427967 | AQ32: 28178163 | AR32: 29241426 | AT32: 18 | AU32: Correctional Services | AV32: 26427967 | AW32: 28178163 | AX32: 29241426 | BC32: Other | CH32: 4
Y33: 9 | AA33: 9 | AB33: 19 | AC33: Defence and Military Veterans | AF33: Mashudu Bidzha | AG33: (012) 315 5344 | AH33: mashudu.bidzha@treasury.gov.za | AI33: Lesiba Ledwaba | AJ33: (012) 315 6660 | AK33: Lesiba.Ledwaba@treasury.gov.za | AO33: DataFileNAT@treasury.gov.za | AP33: 52515726 | AQ33: 50882584 | AR33: 52802757 | AT33: 19 | AU33: Defence And Military Veterans | AV33: 52515726 | AW33: 50882584 | AX33: 52802757 | CH33: 5
Y34: 1 | AA34: 10 | AB34: 25 | AC34: Economic Development | AF34: Isaac Kurasha | AG34: (012) 315 5213 | AH34: isaac.kurasha@treasury.gov.za | AI34: Millicent Movare | AJ34: (012) 315 5279 | AK34: millicent.movare@treasury.gov.za | AO34: DataFileNAT@treasury.gov.za | AP34: 1093565 | AQ34: 1184582 | AR34: 1228864 | AT34: 25 | AU34: Economic Development | AV34: 1093565 | AW34: 1184582 | AX34: 1228864 | AY34: Funding Pressures | AZ34: Type of request | BA34: Compensation of employees
Y35: 11 | AA35: 11 | AB35: 26 | AC35: Energy | AF35: Rezah Atcha | AG35: (012) 315 5287 | AH35: Rezah.Atcha@treasury.gov.za | AI35: Nomagugu Madikane | AJ35: (012) 315 5312 | AK35: Nomagugu.Madikane@treasury.gov.za | AO35: DataFileNAT@treasury.gov.za | AP35: 7363452 | AQ35: 8396840 | AR35: 8761766 | AT35: 26 | AU35: Energy | AV35: 7363452 | AW35: 8396840 | AX35: 8761766 | AY35: Current payments - Compensation of employees | AZ35: New project | BA35: Goods and services
Y36: 12 | AA36: 12 | AB36: 27 | AC36: Environmental Affairs | AF36: Gcobisa Magazi | AG36: (012) 315 5320 | AH36: gcobia.magazi@treasury.gov.za | AI36: Ashley Ramasimu | AJ36: (012) 315 5166 | AK36: Ashley.Ramasimu@treasury.gov.za | AO36: DataFileNAT@treasury.gov.za | AP36: 7797759 | AQ36: 8059230 | AR36: 8360980 | AT36: 27 | AU36: Environmental Affairs | AV36: 7797759 | AW36: 8059230 | AX36: 8360980 | AY36: Current payments - Goods and services | AZ36: Urgent cost pressure | BA36: Interest and rent on land | CI36: Array Range to lock (Cond Grants sheet)
Y37: 13 | AA37: 13 | AB37: 46 | AC37: Government Communication and Information System | AF37: Mokgatla Tema | AG37: (012) 315 5948 | AH37: Mokgatla.Tema@treasury.gov.za | AI37: Deeviya Patel | AJ37: (012) 395 6562 | AK37: deeviya.patel@treasury.gov.za | AO37: DataFileNAT@treasury.gov.za | AP37: 466019 | AQ37: 493966 | AR37: 512348 | AT37: 46 | AU37: Government Communication and Information System | AV37: 466019 | AW37: 493966 | AX37: 512348 | AY37: Current payments - Interest and rent on land | AZ37: Expansion of existing project | BA37: Provinces and municipalities | CH37: 1 | CI37: V57:W66,AE57:AF66,AN57:AO66,V79:W88,AE79:AF88,AN79:AO88,V11:W11,AE11:AF11,AN11:AO11
Y38: 14 | AA38: 14 | AB38: 16 | AC38: Health | AF38: Refiloe Thokoa | AG38: (012) 395 6559 | AH38: Refiloe.Thokoa@treasury.gov.za | AI38: Shaneel Ragoo | AJ38: (012) 315 5323 | AK38: Shaneel.Ragoo@treasury.gov.za | AO38: DataFileNAT@treasury.gov.za | AP38: 56574750 | AQ38: 61809217 | AR38: 64771606 | AT38: 16 | AU38: Health | AV38: 56574750 | AW38: 61809217 | AX38: 64771606 | AY38: Current Transfers and subsidies - Provinces and municipalities | BA38: Departmental agencies and accounts | BC38: Transfer Type | CH38: 2 | CI38: V123:W132,AE123:AF132,AN123:AO132,V145:W154,AE145:AF154,AN145:AO154,V167:W176,AE167:AF176,AN167:AO176
Y39: 15 | AA39: 15 | AB39: 15 | AC39: Higher Education and Training | AF39: Letsepa Pakkies | AG39: (012) 395 6656 | AH39: Letsepa.Pakkies@treasury.gov.za | AI39: Barileng Sape | AJ39: (012) 406 9069 | AK39: barileng.sape@treasury.gov.za | AO39: DataFileNAT@treasury.gov.za | AP39: 118249225 | AQ39: 125276512 | AR39: 131409583 | AT39: 15 | AU39: Higher Education and Training | AV39: 118249225 | AW39: 125276512 | AX39: 131409583 | AY39: Current Transfers and subsidies - Departmental agencies and accounts | BA39: Higher education institutions | BC39: Indirect Grant | CH39: 3 | CI39: V189:W198,AE189:AF198,AN189:AO198,V211:W22,AE211:AF22,AN211:AO22,V233:W242,AE233:AF242,AN233:AO242
Y40: 16 | AA40: 16 | AB40: 5 | AC40: Home Affairs | AF40: Timothy Murwa | AG40: (012) 315 5002 | AH40: Timothy.Murwa@treasury.gov.za | AI40: Isaac Mabena | AJ40: (012) 315 5582 | AK40: Isaac.Mabena@treasury.gov.za | AO40: DataFileNAT@treasury.gov.za | AP40: 8526478 | AQ40: 9378595 | AR40: 9728553 | AT40: 5 | AU40: Home Affairs | AV40: 8526478 | AW40: 9378595 | AX40: 9728553 | AY40: Current Transfers and subsidies - Higher education institutions | BA40: Foreign governments and international organisations | BC40: Budgetary allocation to entities | CH40: 4 | CI40: V255:W264,AE255:AF264,AN255:AO264,V277:W286,AE277:AF286,AN277:AO286,V299:W38,AE299:AF38,AN299:AO38
Y41: 17 | AA41: 17 | AB41: 38 | AC41: Human Settlements | AF41: James Archer | AG41: (012) 395 6736 | AH41: James.Archer@treasury.gov.za | AI41: Lindiwe Ngcongwane | AJ41: (012) 315 5357 | AK41: Lindiwe.Ngcongwane@treasury.gov.za | AO41: DataFileNAT@treasury.gov.za | AP41: 35111534 | AQ41: 36648183 | AR41: 38704558 | AT41: 38 | AU41: Human Settlements | AV41: 35111534 | AW41: 36648183 | AX41: 38704558 | AY41: Current Transfers and subsidies - Foreign governments and international organisations | BA41: Public corporations and private enterprises | BC41: Other | CH41: 5 | CI41: V321:W33,AE321:AF33,AN321:AO33,V343:W352,AE343:AF352,AN343:AO352,V365:W374,AE365:AF374,AN365:AO374
Y42: 18 | AA42: 18 | AB42: 20 | AC42: Independent Police Investigative Directorate | AF42: Nompumelelo Radebe | AG42: (012) 315 5957 | AH42: Nompumelelo.Radebe@treasury.gov.za | AI42: Mmathapelo Maphangela | AJ42: (012) 406 9013 | AK42: mmathapelo.maphangela@treasury.gov.za | AO42: DataFileNAT@treasury.gov.za | AP42: 354300 | AQ42: 376308 | AR42: 390317 | AT42: 20 | AU42: Independent Police Investigative Directorate | AV42: 354300 | AW42: 376308 | AX42: 390317 | AY42: Current Transfers and subsidies - Public corporations and private enterprises | BA42: Non-profit institutions
Y43: 19 | AA43: 19 | AB43: 6 | AC43: International Relations and Cooperation | AF43: Timothy Murwa | AG43: (012) 315 5002 | AH43: Timothy.Murwa@treasury.gov.za | AI43: Busisiwe Phillip | AJ43: (012) 406 9068 | AK43: Busisiwe.Phillip@treasury.gov.za | AO43: DataFileNAT@treasury.gov.za | AP43: 6775438 | AQ43: 6955558 | AR43: 7221484 | AT43: 6 | AU43: International Relations and Cooperation | AV43: 6775438 | AW43: 6955558 | AX43: 7221484 | AY43: Current Transfers and subsidies - Non-profit institutions | BA43: Households
Y44: 2 | AA44: 20 | AB44: 21 | AC44: Justice and Constitutional Development | AF44: Werner Krause | AG44: (012) 315 5211 | AH44: werner.krause@treasury.gov.za | AI44: Maggy Mokoka | AJ44: (012) 315 5468 | AK44: maggy.mokoka@treasury.gov.za | AO44: DataFileNAT@treasury.gov.za | AP44: 21707055 | AQ44: 23098275 | AR44: 23979052 | AT44: 21 | AU44: Justice and Constitutional Development | AV44: 21707055 | AW44: 23098275 | AX44: 23979052 | AY44: Current Transfers and subsidies - Households | BA44: Buildings and other fixed structures
Y45: 21 | AA45: 21 | AB45: 28 | AC45: Labour | AF45: Judy Naidoo | AG45: (012) 315 5269 | AH45: Judy.Naidoo@treasury.gov.za | AI45: Kismore Mangondo | AJ45: (012) 315-5773 | AK45: Kismore.Mangondo@treasury.gov.za | AO45: DataFileNAT@treasury.gov.za | AP45: 3555949 | AQ45: 3771567 | AR45: 3911905 | AT45: 28 | AU45: Labour | AV45: 3555949 | AW45: 3771567 | AX45: 3911905 | AY45: Capital Transfers and subsidies - Provinces and municipalities | BA45: Machinery and equipment
Y46: 22 | AA46: 22 | AB46: 42 | AC46: Military Veterans | AF46: Mashudu Bidzha | AG46: (012) 315 5344 | AH46: mashudu.bidzha@treasury.gov.za | AI46: Lesiba Ledwaba | AJ46: (012) 315 6660 | AK46: Lesiba.Ledwaba@treasury.gov.za | AO46: DataFileNAT@treasury.gov.za | AP46: 693020 | AQ46: 733228 | AR46: 761287 | AT46: 42 | AU46: Military Veterans | AV46: 693020 | AW46: 733228 | AX46: 761287 | AY46: Capital Transfers and subsidies - Departmental agencies and accounts | BA46: Heritage assets
Y47: 23 | AA47: 23 | AB47: 29 | AC47: Mineral Resources | AF47: Bothwell Deka | AG47: (012) 395 6784 | AH47: Bothwell.Deka@treasury.gov.za | AI47: Nico Likhethe | AJ47: (012) 315 5558 | AK47: Nico.Likhethe@treasury.gov.za | AO47: DataFileNAT@treasury.gov.za | AP47: 2106689 | AQ47: 2025985 | AR47: 2102000 | AT47: 29 | AU47: Mineral Resources | AV47: 2106689 | AW47: 2025985 | AX47: 2102000 | AY47: Capital Transfers and subsidies - Higher education institutions | BA47: Specialised military assets
Y48: 24 | AA48: 24 | AB48: 44 | AC48: National School of Government | AF48: George Tembo | AG48: (012) 315 5514 | AH48: George.Tembo@treasury.gov.za | AI48: Viwe Sobudula | AJ48: (012) 315 5015 | AK48: Viwe.Sobudula@treasury.gov.za | AO48: DataFileNAT@treasury.gov.za | AP48: 207334 | AQ48: 228090 | AR48: 236674 | AT48: 44 | AU48: National School of Government | AV48: 207334 | AW48: 228090 | AX48: 236674 | AY48: Capital Transfers and subsidies - Foreign governments and international organisations | BA48: Biological assets
Y49: 25 | AA49: 25 | AB49: 7 | AC49: National Treasury | AF49: Mokgatla Tema | AG49: (012) 315 5948 | AH49: Mokgatla.Tema@treasury.gov.za | AI49: Rhoda Marais | AJ49: (012) 315 5906 | AK49: rhoda.marais@treasury.gov.za | AO49: DataFileNAT@treasury.gov.za | AP49: 810193514 | AQ49: 875201247 | AR49: 938120700 | AT49: 7 | AU49: National Treasury | AV49: 810193514 | AW49: 875201247 | AX49: 938120700 | AY49: Capital Transfers and subsidies - Public corporations and private enterprises | BA49: Land and sub-soil assets
Y50: 26 | AA50: 26 | AB50: 22 | AC50: Office of the Chief Justice and Judicial Administration | AF50: Elvis Ramafamba | AG50: (012) 315 5204 | AH50: elvis.ramafamba@treasury.gov.za | AI50: Keabetswe Matlwa | AJ50: (012) 315 6657 | AK50: Keabetswe.Matlwa@treasury.gov.za | AO50: DataFileNAT@treasury.gov.za | AP50: 2433465 | AQ50: 2587854 | AR50: 2685751 | AT50: 22 | AU50: Office of the Chief Justice and Judicial Administration | AV50: 2433465 | AW50: 2587854 | AX50: 2685751 | AY50: Capital Transfers and subsidies - Non-profit institutions | BA50: Software and other intangible assets
Y51: 27 | AA51: 27 | AB51: 2 | AC51: Parliament | AF51: Timothy Murwa | AG51: (012) 315 5002 | AH51: Timothy.Murwa@treasury.gov.za | AI51: Isaac Mabena | AJ51: (012) 315 5582 | AK51: Isaac.Mabena@treasury.gov.za | AO51: DataFileNAT@treasury.gov.za | AP51: 2694106 | AQ51: 2879328 | AR51: 2987509 | AT51: 2 | AU51: Parliament | AV51: 2694106 | AW51: 2879328 | AX51: 2987509 | AY51: Capital Transfers and subsidies - Households | BA51: Capitalised compensation of employees
Y52: 28 | AA52: 28 | AB52: 8 | AC52: Planning, Monitoring and Evaluation | AF52: Timothy Murwa | AG52: (012) 315 5002 | AH52: Timothy.Murwa@treasury.gov.za | AI52: Busisiwe Phillip | AJ52: (012) 406 9068 | AK52: Busisiwe.Phillip@treasury.gov.za | AO52: DataFileNAT@treasury.gov.za | AP52: 1008746 | AQ52: 1062855 | AR52: 1102481 | AT52: 8 | AU52: Planning, Monitoring and Evaluation | AV52: 1008746 | AW52: 1062855 | AX52: 1102481 | AY52: Payments for capital assets - Buildings and other fixed structures | BA52: Capitalised goods and services
Y53: 29 | AA53: 29 | AB53: 23 | AC53: Police | AF53: Nompumelelo Radebe | AG53: (012) 315 5957 | AH53: Nompumelelo.Radebe@treasury.gov.za | AI53: Mmathapelo Maphangela | AJ53: (012) 406 9013 | AK53: mmathapelo.maphangela@treasury.gov.za | AO53: DataFileNAT@treasury.gov.za | AP53: 101238658 | AQ53: 107978886 | AR53: 112008087 | AT53: 23 | AU53: Police | AV53: 101238658 | AW53: 107978886 | AX53: 112008087 | AY53: Payments for capital assets - Machinery and equipment | BA53: Payments for financial assets
Y54: 3 | AA54: 30 | AB54: 9 | AC54: Public Enterprises | AF54: Isaac Kurasha | AG54: (012) 315 5213 | AH54: isaac.kurasha@treasury.gov.za | AI54: Millicent Movare | AJ54: (012) 315 5279 | AK54: millicent.movare@treasury.gov.za | AO54: DataFileNAT@treasury.gov.za | AP54: 308745 | AQ54: 327686 | AR54: 339919 | AT54: 9 | AU54: Public Enterprises | AV54: 308745 | AW54: 327686 | AX54: 339919 | AY54: Payments for capital assets - Heritage assets
Y55: 31 | AA55: 31 | AB55: 10 | AC55: Public Service and Administration | AF55: George Tembo | AG55: (012) 315 5514 | AH55: George.Tembo@treasury.gov.za | AI55: Viwe Sobudula | AJ55: (012) 315 5015 | AK55: Viwe.Sobudula@treasury.gov.za | AO55: DataFileNAT@treasury.gov.za | AP55: 1064763 | AQ55: 1143963 | AR55: 1186791 | AT55: 10 | AU55: Public Service and Administration | AV55: 1064763 | AW55: 1143963 | AX55: 1186791 | AY55: Payments for capital assets - Specialised military assets
Y56: 32 | AA56: 32 | AB56: 45 | AC56: Public Service Commission | AF56: George Tembo | AG56: (012) 315 5514 | AH56: George.Tembo@treasury.gov.za | AI56: Viwe Sobudula | AJ56: (012) 315 5015 | AK56: Viwe.Sobudula@treasury.gov.za | AO56: DataFileNAT@treasury.gov.za | AP56: 295677 | AQ56: 314048 | AR56: 325812 | AT56: 45 | AU56: Public Service Commission | AV56: 295677 | AW56: 314048 | AX56: 325812 | AY56: Payments for capital assets - Biological assets
Y57: 33 | AA57: 33 | AB57: 11 | AC57: Public Works | AF57: George Tembo | AG57: (012) 315 5514 | AH57: George.Tembo@treasury.gov.za | AI57: Mercy Mhlophe | AJ57: (012) 315 5598 | AK57: mercy.mhlope@treasury.gov.za | AO57: DataFileNAT@treasury.gov.za | AP57: 8218174 | AQ57: 8896561 | AR57: 9228806 | AT57: 11 | AU57: Public Works | AV57: 8218174 | AW57: 8896561 | AX57: 9228806 | AY57: Payments for capital assets - Land and sub-soil assets
Y58: 34 | AA58: 34 | AB58: 39 | AC58: Rural Development and Land Reform | AF58: Bothwell Deka | AG58: (012) 395 6784 | AH58: Bothwell.Deka@treasury.gov.za | AI58: Nico Likhethe | AJ58: (012) 315 5558 | AK58: Nico.Likhethe@treasury.gov.za | AO58: DataFileNAT@treasury.gov.za | AP58: 10556487 | AQ58: 11231355 | AR58: 11663630 | AT58: 39 | AU58: Rural Development and Land Reform | AV58: 10556487 | AW58: 11231355 | AX58: 11663630 | AY58: Payments for capital assets - Software and other intangible assets
Y59: 35 | AA59: 35 | AB59: 30 | AC59: Science and Technology | AF59: Gcobisa Magazi | AG59: (012) 315 5320 | AH59: gcobia.magazi@treasury.gov.za | AI59: Thabiso Molewa | AJ59: (012) 395 6780 | AK59: Thabiso.Molewa@treasury.gov.za | AO59: DataFileNAT@treasury.gov.za | AP59: 8615464 | AQ59: 8895215 | AR59: 9225742 | AT59: 30 | AU59: Science and Technology | AV59: 8615464 | AW59: 8895215 | AX59: 9225742 | AY59: Payments for financial assets
Y60: 36 | AA60: 36 | AB60: 31 | AC60: Small Business Development | AF60: Isaac Kurasha | AG60: (012) 315 5213 | AH60: isaac.kurasha@treasury.gov.za | AI60: Rudzani Sikhwari | AJ60: (012) 315 5823 | AK60: rudzani.sikhwari@treasury.gov.za | AO60: DataFileNAT@treasury.gov.za | AP60: 2708940 | AQ60: 2858743 | AR60: 2965144 | AT60: 31 | AU60: Small Business Development | AV60: 2708940 | AW60: 2858743 | AX60: 2965144
Y61: 37 | AA61: 37 | AB61: 17 | AC61: Social Development | AF61: Pebetse Maleka | AG61: (012) 315 5566 | AH61: pebetse.maleka@treasury.gov.za | AI61: Lindi Mzankomo | AJ61: (012) 315 5256 | AK61: Lindi.Mzankomo@treasury.gov.za | AO61: DataFileNAT@treasury.gov.za | AP61: 199446975 | AQ61: 213666270 | AR61: 228479790 | AT61: 17 | AU61: Social Development | AV61: 199446975 | AW61: 213666270 | AX61: 228479790
Y62: 38 | AA62: 38 | AB62: 40 | AC62: Sport and Recreation South Africa | AF62: Spencer Janari | AG62: (012) 315 5436 | AH62: Spencer.Janari@treasury.gov.za | AI62: Mabele Mdhluli | AJ62: (012) 395 6775 | AK62: Mabele.Mdhluli@treasury.gov.za | AO62: DataFileNAT@treasury.gov.za | AP62: 1210204 | AQ62: 1281478 | AR62: 1329128 | AT62: 40 | AU62: Sport and Recreation South Africa | AV62: 1210204 | AW62: 1281478 | AX62: 1329128
Y63: 39 | AA63: 39 | AB63: 12 | AC63: Statistics South Africa | AF63: Mokgatla Tema | AG63: (012) 315 5948 | AH63: Mokgatla.Tema@treasury.gov.za | AI63: Deeviya Patel | AJ63: (012) 395 6562 | AK63: deeviya.patel@treasury.gov.za | AO63: DataFileNAT@treasury.gov.za | AP63: 3240167 | AQ63: 4795436 | AR63: 2688855 | AT63: 12 | AU63: Statistics South Africa | AV63: 3240167 | AW63: 4795436 | AX63: 2688855
Y64: 4 | AA64: 40 | AB64: 32 | AC64: Telecommunications and Postal Services | AF64: Rezah Atcha | AG64: (012) 315 5287 | AH64: Rezah.Atcha@treasury.gov.za | AI64: Keitumetse Motshegwe | AJ64: (012) 395 6750 | AK64: keitumetse.motshegwe@treasury.gov.za | AO64: DataFileNAT@treasury.gov.za | AP64: 1768727 | AQ64: 1657705 | AR64: 1719763 | AT64: 32 | AU64: Telecommunications and Postal Services | AV64: 1768727 | AW64: 1657705 | AX64: 1719763
Y65: 41 | AA65: 41 | AB65: 1 | AC65: The Presidency | AF65: Timothy Murwa | AG65: (012) 315 5002 | AH65: Timothy.Murwa@treasury.gov.za | AI65: Busisiwe Phillip | AJ65: (012) 406 9068 | AK65: Busisiwe.Phillip@treasury.gov.za | AO65: DataFileNAT@treasury.gov.za | AP65: 607211 | AQ65: 644134 | AR65: 668308 | AT65: 1 | AU65: The Presidency | AV65: 607211 | AW65: 644134 | AX65: 668308
Y66: 42 | AA66: 42 | AB66: 33 | AC66: Tourism | AF66: Gcobisa Magazi | AG66: (012) 315 5320 | AH66: gcobia.magazi@treasury.gov.za | AI66: Thabiso Molewa | AJ66: (012) 395 6780 | AK66: Thabiso.Molewa@treasury.gov.za | AO66: DataFileNAT@treasury.gov.za | AP66: 2520581 | AQ66: 2631164 | AR66: 2731987 | AT66: 33 | AU66: Tourism | AV66: 2520581 | AW66: 2631164 | AX66: 2731987
Y67: 43 | AA67: 43 | AB67: 34 | AC67: Trade and Industry | AF67: Isaac Kurasha | AG67: (012) 315 5213 | AH67: isaac.kurasha@treasury.gov.za | AI67: Ntandokazi Makaula | AJ67: (012) 395 6667 | AK67: Ntandokazi.Makaula@treasury.gov.za | AO67: DataFileNAT@treasury.gov.za | AP67: 10593907 | AQ67: 9469464 | AR67: 9828193 | AT67: 34 | AU67: Trade and Industry | AV67: 10593907 | AW67: 9469464 | AX67: 9828193
Y68: 44 | AA68: 44 | AB68: 43 | AC68: Traditional Affairs | AF68: Misaveni Ngobeni | AG68: (012) 315 5305 | AH68: misaveni.ngobeni@treasury.gov.za | AI68: Millicent Mulaudzi | AJ68: (012) 395 6576 | AK68: Millicent.Mulaudzi@treasury.gov.za | AO68: DataFileNAT@treasury.gov.za | AP68: 172740 | AQ68: 183882 | AR68: 190827 | AT68: 43 | AU68: Traditional Affairs | AV68: 172740 | AW68: 183882 | AX68: 190827
Y69: 45 | AA69: 45 | AB69: 35 | AC69: Transport | AF69: Luyolo Ntlangula | AG69: (012) 315-5571 | AH69: luyolo.ntangula@treasury.gov.za | AI69: Sivuyise Dlova | AJ69: (012) 406 9101 | AK69: Sivuyise.Dlova@treasury.gov.za | AO69: DataFileNAT@treasury.gov.za | AP69: 68062414 | AQ69: 74472918 | AR69: 78251360 | AT69: 35 | AU69: Transport | AV69: 68062414 | AW69: 74472918 | AX69: 78251360
Y70: 46 | AA70: 46 | AB70: 36 | AC70: Water and Sanitation | AF70: Misaveni Ngobeni | AG70: (012) 315 5305 | AH70: misaveni.ngobeni@treasury.gov.za | AI70: Iqbal Mahomed Alli | AJ70: (012) 315 5809 | AK70: Iqbal.Mahomed-Alli@treasury.gov.za | AO70: DataFileNAT@treasury.gov.za | AP70: 17241660 | AQ70: 18401673 | AR70: 19364564 | AT70: 36 | AU70: Water and Sanitation | AV70: 17241660 | AW70: 18401673 | AX70: 19364564
Y71: 47 | AA71: 47 | AB71: 13 | AC71: Women | AF71: Pebetse Maleka | AG71: (012) 315 5566 | AH71: pebetse.maleka@treasury.gov.za | AI71: Lindi Mzankomo | AJ71: (012) 315 5256 | AK71: Lindi.Mzankomo@treasury.gov.za | AO71: DataFileNAT@treasury.gov.za | AP71: 257239 | AQ71: 272321 | AR71: 282489 | AT71: 13 | AU71: Women | AV71: 257239 | AW71: 272321 | AX71: 282489
AT72: Grand Total | AV72: 0 | AW72: 0 | AX72: 0
Z104: =IF(AI14="",1,2) -> 1 | AA104: =+AA23 ->  | AB104: =+AB23 ->  | AT104: Personnel Revised Baseline | AV104: =IFERROR(INDEX((AV$106:AV$152),MATCH($AB$23,$AT$106:$AT$152,)),) -> 0 | AW104: =IFERROR(INDEX((AW$106:AW$152),MATCH($AB$23,$AT$106:$AT$152,)),) -> 0 | AX104: =IFERROR(INDEX((AX$106:AX$152),MATCH($AB$23,$AT$106:$AT$152,)),) -> 0
AA105: Dept Index No. | AB105: Vote No. | AC105: Department | AD105: Category | AE105: ID1 | AF105: Contact Person | AG105: Tel | AH105: email | AI105: Contact Person | AJ105: Tel | AK105: email | AL105: ID2 | AM105: Contact Person | AN105: Tel | AO105: email | AP105: =MyYearP1 -> 2020/21 | AQ105: =MyYearP2 -> 2021/22 | AR105: =MyYearP3 -> 2022/23 | AT105: Vote No. | AU105: Dept | AV105: =+AP105 -> 2020/21 | AW105: =+AQ105 -> 2021/22 | AX105: =+AR105 -> 2022/23
Y106: 1 | AA106: 1 | AB106: 24 | AC106: Agriculture, Forestry and Fisheries | AF106: Bothwell Deka | AG106: (012) 395 6784 | AH106: Bothwell.Deka@treasury.gov.za | AI106: Humbelani Ramuedzisi | AJ106: (012) 315 5585 | AK106: Humbelani.Ramuedzisi@treasury.gov.za | AO106: DataFileNAT@treasury.gov.za | AP106: 2353487 | AQ106: 2506722 | AR106: 2598175 | AT106: 24 | AU106: Agriculture, Forestry and Fisheries | AV106: 2353487 | AW106: 2506722 | AX106: 2598175
Y107: 2 | AA107: 2 | AB107: 37 | AC107: Arts and Culture | AF107: Judy Naidoo | AG107: (012) 315 5269 | AH107: Judy.Naidoo@treasury.gov.za | AI107: Pindi Masiso | AJ107: (012) 315 5722 | AK107: Pindi.Masiso@treasury.gov.za | AO107: DataFileNAT@treasury.gov.za | AP107: 281865 | AQ107: 298639 | AR107: 309617 | AT107: 37 | AU107: Arts and Culture | AV107: 281865 | AW107: 298639 | AX107: 309617
Y108: 3 | AA108: 3 | AB108: 14 | AC108: Basic Education | AF108: Spencer Janari | AG108: (012) 315 5436 | AH108: Spencer.Janari@treasury.gov.za | AI108: Pindi Masiso | AJ108: (012) 315 5722 | AK108: Pindi.Masiso@treasury.gov.za | AO108: DataFileNAT@treasury.gov.za | AP108: 548677 | AQ108: 575047 | AR108: 595929 | AT108: 14 | AU108: Basic Education | AV108: 548677 | AW108: 575047 | AX108: 595929
Y109: 4 | AA109: 4 | AB109: 47 | AC109: Centre for Public Service Innovation | AF109: George Tembo | AG109: (012) 315 5514 | AH109: George.Tembo@treasury.gov.za | AI109: Mokgatla Tema | AJ109: (012) 315 5948 | AK109: Mokgatla.Tema@treasury.gov.za | AO109: DataFileNAT@treasury.gov.za | AP109: 22249 | AQ109: 23603 | AR109: 24481 | AT109: 47 | AU109: Centre for Public Service Innovation | AV109: 22249 | AW109: 23603 | AX109: 24481
Y110: 5 | AA110: 5 | AB110: 41 | AC110: Civilian Secretariat for the Police Service | AF110: Nompumelelo Radebe | AG110: (012) 315 5957 | AH110: Nompumelelo.Radebe@treasury.gov.za | AI110: Sithabiso Buthelezi | AJ110: (012) 406 9025 | AK110: sithabiso.buthelezi@treasury.gov.za | AO110: DataFileNAT@treasury.gov.za | AP110: 112723 | AQ110: 120049 | AR110: 124510 | AT110: 41 | AU110: Civilian Secretariat for the Police Service | AV110: 112723 | AW110: 120049 | AX110: 124510
Y111: 6 | AA111: 6 | AB111: 3 | AC111: Communications | AF111: Japie Jacobs | AG111: (012) 315 5546 | AH111: Japie.Jacobs@treasury.gov.za | AI111: Rhoda Marais | AJ111: (012) 315-5906 | AK111: Rhoda.Marais@treasury.gov.za | AO111: DataFileNAT@treasury.gov.za | AP111: 93216 | AQ111: 99646 | AR111: 103358 | AT111: 3 | AU111: Communications | AV111: 93216 | AW111: 99646 | AX111: 103358
Y112: 7 | AA112: 7 | AB112: 4 | AC112: Cooperative Governance And Traditional Affairs | AF112: Misaveni Ngobeni | AG112: (012) 315 5305 | AH112: misaveni.ngobeni@treasury.gov.za | AI112: Millicent Mulaudzi | AJ112: (012) 395 6576 | AK112: Millicent.Mulaudzi@treasury.gov.za | AO112: DataFileNAT@treasury.gov.za | AP112: 329372 | AQ112: 328115 | AR112: 339400 | AT112: 4 | AU112: Cooperative Governance And Traditional Affairs | AV112: 329372 | AW112: 328115 | AX112: 339400
Y113: 8 | AA113: 8 | AB113: 18 | AC113: Correctional Services | AF113: Elvis Ramafamba | AG113: (012) 315 5204 | AH113: elvis.ramafamba@treasury.gov.za | AI113: Keabetswe Matlwa | AJ113: (012) 315 6678 | AK113: Keabetswe.Matlwa@treasury.gov.za | AO113: DataFileNAT@treasury.gov.za | AP113: 18970690 | AQ113: 20285245 | AR113: 21033838 | AT113: 18 | AU113: Correctional Services | AV113: 18970690 | AW113: 20285245 | AX113: 21033838
Y114: 9 | AA114: 9 | AB114: 19 | AC114: Defence And Military Veterans | AF114: Mashudu Bidzha | AG114: (012) 315 5344 | AH114: mashudu.bidzha@treasury.gov.za | AI114: Lesiba Ledwaba | AJ114: (012) 315 6660 | AK114: Lesiba.Ledwaba@treasury.gov.za | AO114: DataFileNAT@treasury.gov.za | AP114: 30319586 | AQ114: 32274301 | AR114: 33464264 | AT114: 19 | AU114: Defence And Military Veterans | AV114: 30319586 | AW114: 32274301 | AX114: 33464264
Y115: 1 | AA115: 10 | AB115: 25 | AC115: Economic Development | AF115: Isaac Kurasha | AG115: (012) 315 5213 | AH115: isaac.kurasha@treasury.gov.za | AI115: Millicent Movare | AJ115: (012) 315 5279 | AK115: millicent.movare@treasury.gov.za | AO115: DataFileNAT@treasury.gov.za | AP115: 104088 | AQ115: 110816 | AR115: 114929 | AT115: 25 | AU115: Economic Development | AV115: 104088 | AW115: 110816 | AX115: 114929
Y116: 11 | AA116: 11 | AB116: 26 | AC116: Energy | AF116: Rezah Atcha | AG116: (012) 315 5287 | AH116: Rezah.Atcha@treasury.gov.za | AI116: Nomagugu Madikane | AJ116: (012) 315 5312 | AK116: Nomagugu.Madikane@treasury.gov.za | AO116: DataFileNAT@treasury.gov.za | AP116: 403721 | AQ116: 429366 | AR116: 445289 | AT116: 26 | AU116: Energy | AV116: 403721 | AW116: 429366 | AX116: 445289
Y117: 12 | AA117: 12 | AB117: 27 | AC117: Environmental Affairs | AF117: Ashley Ramasimu | AG117: (012) 315 5166 | AH117: Ashley.Ramasimu@treasury.gov.za | AI117: Thabiso Molewa | AJ117: (012) 395 6780 | AK117: Thabiso.Molewa@treasury.gov.za | AO117: DataFileNAT@treasury.gov.za | AP117: 1260350 | AQ117: 1322294 | AR117: 1370507 | AT117: 27 | AU117: Environmental Affairs | AV117: 1260350 | AW117: 1322294 | AX117: 1370507
Y118: 13 | AA118: 13 | AB118: 46 | AC118: Government Communication and Information System | AF118: Japie Jacobs | AG118: (012) 315 5546 | AH118: Japie.Jacobs@treasury.gov.za | AI118: Rhoda Marais | AJ118: (012) 315-5906 | AK118: Rhoda.Marais@treasury.gov.za | AO118: DataFileNAT@treasury.gov.za | AP118: 291628 | AQ118: 309725 | AR118: 321227 | AT118: 46 | AU118: Government Communication and Information System | AV118: 291628 | AW118: 309725 | AX118: 321227
Y119: 14 | AA119: 14 | AB119: 16 | AC119: Health | AF119: Refiloe Thokoa | AG119: (012) 395 6559 | AH119: Refiloe.thokoa@treasury.gov.za | AI119: Shaneel Ragoo | AJ119: (012) 315 5323 | AK119: shaneel.ragoo@treasury.gov.za | AO119: DataFileNAT@treasury.gov.za | AP119: 898835 | AQ119: 940994 | AR119: 975372 | AT119: 16 | AU119: Health | AV119: 898835 | AW119: 940994 | AX119: 975372
Y120: 15 | AA120: 15 | AB120: 15 | AC120: Higher Education and Training | AF120: Nokwazi Makanya | AG120: (012) 406 9057 | AH120: Nokwazi.Makanya@treasury.gov.za | AI120: Barileng Sape | AJ120: (012) 406 9069 | AK120: barileng.sape@treasury.gov.za | AO120: DataFileNAT@treasury.gov.za | AP120: 10299878 | AQ120: 10985123 | AR120: 11393536 | AT120: 15 | AU120: Higher Education and Training | AV120: 10299878 | AW120: 10985123 | AX120: 11393536
Y121: 16 | AA121: 16 | AB121: 5 | AC121: Home Affairs | AF121: Timothy Murwa | AG121: (012) 315 5002 | AH121: Timothy.Murwa@treasury.gov.za | AI121: Isaac Mabena | AJ121: (012) 315 5582 | AK121: Isaac.Mabena@treasury.gov.za | AO121: DataFileNAT@treasury.gov.za | AP121: 3659879 | AQ121: 3890692 | AR121: 4034215 | AT121: 5 | AU121: Home Affairs | AV121: 3659879 | AW121: 3890692 | AX121: 4034215
Y122: 17 | AA122: 17 | AB122: 38 | AC122: Human Settlements | AF122: James Archer | AG122: (012) 395 6736 | AH122: James.Archer@treasury.gov.za | AI122: Lindiwe Ngcongwane | AJ122: (012) 315 5357 | AK122: Lindiwe.Ngcongwane@treasury.gov.za | AO122: DataFileNAT@treasury.gov.za | AP122: 425080 | AQ122: 451024 | AR122: 467667 | AT122: 38 | AU122: Human Settlements | AV122: 425080 | AW122: 451024 | AX122: 467667
Y123: 18 | AA123: 18 | AB123: 20 | AC123: Independent Police Investigative Directorate | AF123: Nompumelelo Radebe | AG123: (012) 315 5957 | AH123: Nompumelelo.Radebe@treasury.gov.za | AI123: Sithabiso Buthelezi | AJ123: (012) 406 9025 | AK123: sithabiso.buthelezi@treasury.gov.za | AO123: DataFileNAT@treasury.gov.za | AP123: 243436 | AQ123: 259193 | AR123: 268806 | AT123: 20 | AU123: Independent Police Investigative Directorate | AV123: 243436 | AW123: 259193 | AX123: 268806
Y124: 19 | AA124: 19 | AB124: 6 | AC124: International Relations and Cooperation | AF124: Timothy Murwa | AG124: (012) 315 5002 | AH124: Timothy.Murwa@treasury.gov.za | AI124: Thulasizwe Motha | AJ124: (012) 406 9019 | AK124: thulasizwe.motha@treasury.gov.za | AO124: DataFileNAT@treasury.gov.za | AP124: 2984151 | AQ124: 3171907 | AR124: 3288736 | AT124: 6 | AU124: International Relations and Cooperation | AV124: 2984151 | AW124: 3171907 | AX124: 3288736
Y125: 2 | AA125: 20 | AB125: 21 | AC125: Justice and Constitutional Development | AF125: Werner Krause | AG125: (012) 315 5211 | AH125: werner.krause@treasury.gov.za | AI125: Tshegofatso Mentor | AJ125: (012) 315 5468 | AK125: Tshegofatso.mentor@treasury.gov.za | AO125: DataFileNAT@treasury.gov.za | AP125: 12341774 | AQ125: 13141416 | AR125: 13625971 | AT125: 21 | AU125: Justice and Constitutional Development | AV125: 12341774 | AW125: 13141416 | AX125: 13625971
Y126: 21 | AA126: 21 | AB126: 28 | AC126: Labour | AF126: Judy Naidoo | AG126: (012) 315 5269 | AH126: Judy.Naidoo@treasury.gov.za | AI126: Kismore Mangondo | AJ126: (012) 315 5558 | AK126: kismore.mangondo@treasury.gov.za | AO126: DataFileNAT@treasury.gov.za | AP126: 1398017 | AQ126: 1489581 | AR126: 1543916 | AT126: 28 | AU126: Labour | AV126: 1398017 | AW126: 1489581 | AX126: 1543916
Y127: 22 | AA127: 22 | AB127: 42 | AC127: Military Veterans | AF127: Mashudu Bidzha | AG127: (012) 315 5344 | AH127: mashudu.bidzha@treasury.gov.za | AI127: Lesiba Ledwaba | AJ127: (012) 315 6660 | AK127: Lesiba.Ledwaba@treasury.gov.za | AO127: DataFileNAT@treasury.gov.za | AP127: 137913 | AQ127: 145364 | AR127: 150721 | AT127: 42 | AU127: Military Veterans | AV127: 137913 | AW127: 145364 | AX127: 150721
Y128: 23 | AA128: 23 | AB128: 29 | AC128: Mineral Resources | AF128: Bothwell Deka | AG128: (012) 395 6784 | AH128: Bothwell.Deka@treasury.gov.za | AI128: Nico Lekhethe | AJ128: (012) 315 5773 | AK128: Nico.Likhethe@treasury.gov.za | AO128: DataFileNAT@treasury.gov.za | AP128: 704145 | AQ128: 749966 | AR128: 777756 | AT128: 29 | AU128: Mineral Resources | AV128: 704145 | AW128: 749966 | AX128: 777756
Y129: 24 | AA129: 24 | AB129: 44 | AC129: National School of Government | AF129: George Tembo | AG129: (012) 315 5514 | AH129: George.Tembo@treasury.gov.za | AI129: Mokgatla Tema | AJ129: (012) 315 5948 | AK129: Mokgatla.Tema@treasury.gov.za | AO129: DataFileNAT@treasury.gov.za | AP129: 62192 | AQ129: 65994 | AR129: 68444 | AT129: 44 | AU129: National School of Government | AV129: 62192 | AW129: 65994 | AX129: 68444
Y130: 25 | AA130: 25 | AB130: 7 | AC130: National Treasury | AF130: Japie Jacobs | AG130: (012) 315 5546 | AH130: Japie.Jacobs@treasury.gov.za | AI130: Rhoda Marais | AJ130: (012) 315 5906 | AK130: Rhoda.Marais@treasury.gov.za | AO130: DataFileNAT@treasury.gov.za | AP130: 902275 | AQ130: 954227 | AR130: 989333 | AT130: 7 | AU130: National Treasury | AV130: 902275 | AW130: 954227 | AX130: 989333
Y131: 26 | AA131: 26 | AB131: 22 | AC131: Office of the Chief Justice and Judicial Administration | AF131: Elvis Ramafamba | AG131: (012) 315 5204 | AH131: elvis.ramafamba@treasury.gov.za | AI131: Keabetswe Matlwa | AJ131: (012) 315 6657 | AK131: Keabetswe.Matlwa@treasury.gov.za | AO131: DataFileNAT@treasury.gov.za | AP131: 1843029 | AQ131: 1964649 | AR131: 2037536 | AT131: 22 | AU131: Office of the Chief Justice and Judicial Administration | AV131: 1843029 | AW131: 1964649 | AX131: 2037536
Y132: 27 | AA132: 27 | AB132: 2 | AC132: Parliament | AF132: Timothy Murwa | AG132: (012) 315 5002 | AH132: Timothy.Murwa@treasury.gov.za | AI132: Isaac Mabena | AJ132: (012) 315 5582 | AK132: Isaac.Mabena@treasury.gov.za | AO132: DataFileNAT@treasury.gov.za | AP132: 1499694 | AQ132: 1597127 | AR132: 1656416 | AT132: 2 | AU132: Parliament | AV132: 1499694 | AW132: 1597127 | AX132: 1656416
Y133: 28 | AA133: 28 | AB133: 8 | AC133: Planning, Monitoring and Evaluation | AF133: Timothy Murwa | AG133: (012) 315 5002 | AH133: Timothy.Murwa@treasury.gov.za | AI133: Gcobisa Magazi | AJ133: (012) 315 5320 | AK133: Gcobisa.Magazi@treasury.gov.za | AO133: DataFileNAT@treasury.gov.za | AP133: 352924 | AQ133: 372240 | AR133: 386047 | AT133: 8 | AU133: Planning, Monitoring and Evaluation | AV133: 352924 | AW133: 372240 | AX133: 386047
Y134: 29 | AA134: 29 | AB134: 23 | AC134: Police | AF134: Nompumelelo Radebe | AG134: (012) 315 5957 | AH134: Nompumelelo.Radebe@treasury.gov.za | AI134: Sithabiso Buthelezi | AJ134: (012) 406 9025 | AK134: sithabiso.buthelezi@treasury.gov.za | AO134: DataFileNAT@treasury.gov.za | AP134: 79125590 | AQ134: 84327663 | AR134: 87436653 | AT134: 23 | AU134: Police | AV134: 79125590 | AW134: 84327663 | AX134: 87436653
Y135: 3 | AA135: 30 | AB135: 9 | AC135: Public Enterprises | AF135: Isaac Kurasha | AG135: (012) 315 5213 | AH135: isaac.kurasha@treasury.gov.za | AI135: Millicent Movare | AJ135: (012) 315 5279 | AK135: Millicent.Movare@treasury.gov.za | AO135: DataFileNAT@treasury.gov.za | AP135: 196282 | AQ135: 208868 | AR135: 216622 | AT135: 9 | AU135: Public Enterprises | AV135: 196282 | AW135: 208868 | AX135: 216622
Y136: 31 | AA136: 31 | AB136: 10 | AC136: Public Service and Administration | AF136: George Tembo | AG136: (012) 315 5514 | AH136: George.Tembo@treasury.gov.za | AI136: Mokgatla Tema | AJ136: (012) 315 5948 | AK136: Mokgatla.Tema@treasury.gov.za | AO136: DataFileNAT@treasury.gov.za | AP136: 326710 | AQ136: 352953 | AR136: 366051 | AT136: 10 | AU136: Public Service and Administration | AV136: 326710 | AW136: 352953 | AX136: 366051
Y137: 32 | AA137: 32 | AB137: 45 | AC137: Public Service Commission | AF137: George Tembo | AG137: (012) 315 5514 | AH137: George.Tembo@treasury.gov.za | AI137: Viwe Sobudula | AJ137: (0)12 315 5015 | AK137: Viwe.Sobudula@treasury.gov.za | AO137: DataFileNAT@treasury.gov.za | AP137: 228093 | AQ137: 242606 | AR137: 251637 | AT137: 45 | AU137: Public Service Commission | AV137: 228093 | AW137: 242606 | AX137: 251637
Y138: 33 | AA138: 33 | AB138: 11 | AC138: Public Works | AF138: George Tembo | AG138: (012) 315 5514 | AH138: George.Tembo@treasury.gov.za | AI138: Mercy Mhlophe | AJ138: (012) 315 5598 | AK138: mercy.mhlope@treasury.gov.za | AO138: DataFileNAT@treasury.gov.za | AP138: 588877 | AQ138: 625344 | AR138: 648520 | AT138: 11 | AU138: Public Works | AV138: 588877 | AW138: 625344 | AX138: 648520
Y139: 34 | AA139: 34 | AB139: 39 | AC139: Rural Development and Land Reform | AF139: Bothwell Deka | AG139: (012) 395 6784 | AH139: Bothwell.Deka@treasury.gov.za | AI139: Nico Lekhethe | AJ139: (012) 315 5773 | AK139: nico.likhethe@treasury.gov.za | AO139: DataFileNAT@treasury.gov.za | AP139: 2620071 | AQ139: 2773717 | AR139: 2876078 | AT139: 39 | AU139: Rural Development and Land Reform | AV139: 2620071 | AW139: 2773717 | AX139: 2876078
Y140: 35 | AA140: 35 | AB140: 30 | AC140: Science and Technology | AF140: Thabiso Molewa | AG140: (012) 395 6780 | AH140: Thabiso.Molewa@treasury.gov.za | AI140: Ashley Ramasimu | AJ140: (012) 315 5166 | AK140: Ashley.Ramasimu@treasury.gov.za | AO140: DataFileNAT@treasury.gov.za | AP140: 404522 | AQ140: 430645 | AR140: 446629 | AT140: 30 | AU140: Science and Technology | AV140: 404522 | AW140: 430645 | AX140: 446629
Y141: 36 | AA141: 36 | AB141: 31 | AC141: Small Business Development | AF141: Isaac Kurasha | AG141: (012) 315 5213 | AH141: isaac.kurasha@treasury.gov.za | AI141: Rudzani Sikhwari | AJ141: (012) 315 5823 | AK141: rudzani.sikhwari@treasury.gov.za | AO141: DataFileNAT@treasury.gov.za | AP141: 160652 | AQ141: 170955 | AR141: 177297 | AT141: 31 | AU141: Small Business Development | AV141: 160652 | AW141: 170955 | AX141: 177297
Y142: 37 | AA142: 37 | AB142: 17 | AC142: Social Development | AF142: Pebetse Maleka | AG142: (012) 315 5566 | AH142: Pebetse.Maleka@treasury.gov.za | AI142: Lindi Mzankomo | AJ142: (012) 315 5256 | AK142: Lindi.Mzankomo@treasury.gov.za | AO142: DataFileNAT@treasury.gov.za | AP142: 550579 | AQ142: 585094 | AR142: 606680 | AT142: 17 | AU142: Social Development | AV142: 550579 | AW142: 585094 | AX142: 606680
Y143: 38 | AA143: 38 | AB143: 40 | AC143: Sport and Recreation South Africa | AF143: Spencer Janari | AG143: (012) 315 5436 | AH143: Spencer.Janari@treasury.gov.za | AO143: DataFileNAT@treasury.gov.za | AP143: 123398 | AQ143: 130678 | AR143: 135470 | AT143: 40 | AU143: Sport and Recreation South Africa | AV143: 123398 | AW143: 130678 | AX143: 135470
Y144: 39 | AA144: 39 | AB144: 12 | AC144: Statistics South Africa | AF144: Japie Jacobs | AG144: (012) 315 5546 | AH144: Japie.Jacobs@treasury.gov.za | AI144: Rhoda Marais | AJ144: (012) 315-5906 | AK144: Rhoda.Marais@treasury.gov.za | AO144: DataFileNAT@treasury.gov.za | AP144: 1538219 | AQ144: 1632405 | AR144: 1667437 | AT144: 12 | AU144: Statistics South Africa | AV144: 1538219 | AW144: 1632405 | AX144: 1667437
Y145: 4 | AA145: 40 | AB145: 32 | AC145: Telecommunications and Postal Services | AF145: Rezah Atcha | AG145: (012) 315 5287 | AH145: Rezah.Atcha@treasury.gov.za | AI145: Keitumetse Motshegwe | AJ145: (012) 395 6750 | AK145: keitumetse.motshegwe@treasury.gov.za | AO145: DataFileNAT@treasury.gov.za | AP145: 252710 | AQ145: 267608 | AR145: 277476 | AT145: 32 | AU145: Telecommunications and Postal Services | AV145: 252710 | AW145: 267608 | AX145: 277476
Y146: 41 | AA146: 41 | AB146: 1 | AC146: The Presidency | AF146: Timothy Murwa | AG146: (012) 315 5002 | AH146: Timothy.Murwa@treasury.gov.za | AI146: Thulasizwe Motha | AJ146: (012) 406 9019 | AK146: thulasizwe.motha@treasury.gov.za | AO146: DataFileNAT@treasury.gov.za | AP146: 382438 | AQ146: 409493 | AR146: 424669 | AT146: 1 | AU146: The Presidency | AV146: 382438 | AW146: 409493 | AX146: 424669
Y147: 42 | AA147: 42 | AB147: 33 | AC147: Tourism | AF147: Ashley Ramasimu | AG147: (012) 315 5166 | AH147: Ashley.Ramasimu@treasury.gov.za | AI147: Thabiso Molewa | AJ147: (012) 395 6780 | AK147: Thabiso.Molewa@treasury.gov.za | AO147: DataFileNAT@treasury.gov.za | AP147: 351759 | AQ147: 373327 | AR147: 387102 | AT147: 33 | AU147: Tourism | AV147: 351759 | AW147: 373327 | AX147: 387102
Y148: 43 | AA148: 43 | AB148: 34 | AC148: Trade and Industry | AF148: Isaac Kurasha | AG148: (012) 315 5213 | AH148: isaac.kurasha@treasury.gov.za | AI148: Ntandokazi Makaula | AJ148: (012) 395 6667 | AK148: Ntandokazi.Makaula@treasury.gov.za | AO148: DataFileNAT@treasury.gov.za | AP148: 1052259 | AQ148: 1119272 | AR148: 1160707 | AT148: 34 | AU148: Trade and Industry | AV148: 1052259 | AW148: 1119272 | AX148: 1160707
Y149: 44 | AA149: 44 | AB149: 43 | AC149: Traditional Affairs | AF149: Misaveni Ngobeni | AG149: (012) 315 5305 | AH149: misaveni.ngobeni@treasury.gov.za | AI149: Millicent Mulaudzi | AJ149: (012) 395 6576 | AK149: Millicent.Mulaudzi@treasury.gov.za | AO149: DataFileNAT@treasury.gov.za | AP149: 84956 | AQ149: 90275 | AR149: 93630 | AT149: 43 | AU149: Traditional Affairs | AV149: 84956 | AW149: 90275 | AX149: 93630
Y150: 45 | AA150: 45 | AB150: 35 | AC150: Transport | AF150: James Archer | AG150: (012) 395 6736 | AH150: James.Archer@treasury.gov.za | AI150: Luyolo Ntlangula | AJ150: (012) 315-5571 | AK150: luyolo.ntangula@treasury.gov.za | AO150: DataFileNAT@treasury.gov.za | AP150: 554993 | AQ150: 587783 | AR150: 609410 | AT150: 35 | AU150: Transport | AV150: 554993 | AW150: 587783 | AX150: 609410
Y151: 46 | AA151: 46 | AB151: 36 | AC151: Water and Sanitation | AF151: Misaveni Ngobeni | AG151: (012) 315 5305 | AH151: misaveni.ngobeni@treasury.gov.za | AI151: Iqbal Mahomed Alli | AJ151: (012) 315 5809 | AK151: Iqbal.Mahomed-Alli@treasury.gov.za | AO151: DataFileNAT@treasury.gov.za | AP151: 1882193 | AQ151: 1999890 | AR151: 2073093 | AT151: 36 | AU151: Water and Sanitation | AV151: 1882193 | AW151: 1999890 | AX151: 2073093
Y152: 47 | AA152: 47 | AB152: 13 | AC152: Women | AF152: George Tembo | AG152: (012) 315 5514 | AH152: George.Tembo@treasury.gov.za | AI152: Viwe Sobudula | AJ152: (0)12 315 5015 | AK152: Viwe.Sobudula@treasury.gov.za | AO152: DataFileNAT@treasury.gov.za | AP152: 97122 | AQ152: 103291 | AR152: 107126 | AT152: 13 | AU152: Women | AV152: 97122 | AW152: 103291 | AX152: 107126
AP153: 0 | AQ153: 0 | AR153: 0 | AT153: Grand Total | AV153: =SUM(AV106:AV152) -> 183366297 | AW153: =SUM(AW106:AW152) -> 195294932 | AX153: =SUM(AX106:AX152) -> 202472283

Sheet Notes
B32: Steps to complete

Sheet Sign-off (Summary page)
A1: … Slicers for Programme & Economic | D1: … Slicers for Personnel | I1: … Slicers for Infrastructure
C16: Department: From | D16: _Not applicable
C17: Department: To | D17: (All)
C18: Type of change | D18: (blank)
A20: 1 | C20: Programme/ Subprogramme | D20: 2016/17 Actual (Shift) | E20: 2017/18 Actual (Shift) | F20: 2018/19 Pre-audited outcome (Shift) | G20: 2019/20 (Shift) | H20: 2020/21 (Shift) | I20: 2021/22 (Shift) | J20: 2022/23 (Shift)
A21: =IF(C21="",0,1) -> 1 | C21: _Not applicable | D21: 0 | E21: 0 | F21: 0 | G21: 0 | H21: 0 | I21: 0 | J21: 0
A22: 1 | C22: _Not applicable | D22: 0 | E22: 0 | F22: 0 | G22: 0 | H22: 0 | I22: 0 | J22: 0
A23: 1 | C23: Grand Total | D23: 0 | E23: 0 | F23: 0 | G23: 0 | H23: 0 | I23: 0 | J23: 0
A24: 0
A25: 0
A26: 0
A27: 0
A28: 0
A29: 0
A30: 0
A31: 0
A32: 0
A33: 0
A34: 0
A35: 0
A36: 0
A37: 0
A38: 0
A39: 0
A40: 0
A41: 0
A42: 0
A43: 0
A44: 0
A45: 0
A46: 0
A47: 0
A48: 0
A49: 0
A50: 0
A51: 0
A52: 0
A53: =IF(C53="",0,1) -> 0
A54: 0
A55: 0
A56: 0
A57: 0
A58: 0
A59: 0
A60: 0
A61: 0
A62: 0
A63: 0
A64: 0
A65: 0
A66: 0
A67: 0
A68: 0
A69: 0
A70: 0
A71: 0
A72: 0
A73: 0
A74: =IF(C74="",0,1) -> 0
A75: 0
A76: 0
A77: 0
A78: 0
A79: 0
A80: 0
A81: =IF(C81="",0,1) -> 0
A82: 0
A83: 0
A84: 0
A85: 0
A86: 0
A87: 0
A88: 0
A89: 0
A90: 0
A91: 0
A92: 0
A93: 0
A94: 0
A95: 0
A96: 0
A97: 0
A98: 0
A99: 0
A100: 0
A101: 0
A102: 0
A103: 0
A104: 0
A105: 0
A106: 0
A107: 0
A108: 0
A109: 0
A110: 0
A111: 0
A112: 0
A113: 0
A114: 0
A115: 0
A116: 0
A117: 0
A118: 0
A119: 0
A120: 0
A121: 0
A122: 0
A123: 0
A124: 0
A125: 0
A126: 1
A127: 1
A128: 1
A129: 1
A130: =IF(C130="",0,1) -> 1 | C130: Economic classification | D130: 2016/17 Actual (Shift) | E130: 2017/18 Actual (Shift) | F130: 2018/19 Pre-audited outcome (Shift) | G130: 2019/20 (Shift) | H130: 2020/21 (Shift) | I130: 2021/22 (Shift) | J130: 2022/23 (Shift)
A131: 1 | C131: _Not applicable | D131: 0 | E131: 0 | F131: 0 | G131: 0 | H131: 0 | I131: 0 | J131: 0
A132: 1 | C132: _Not applicable | D132: 0 | E132: 0 | F132: 0 | G132: 0 | H132: 0 | I132: 0 | J132: 0
A133: 1 | C133: Grand Total | D133: 0 | E133: 0 | F133: 0 | G133: 0 | H133: 0 | I133: 0 | J133: 0
A134: 0
A135: 0
A136: 0
A137: 0
A138: 0
A139: 0
A140: 0
A141: 0
A142: 0
A143: 0
A144: 0
A145: 0
A146: 0
A147: 0
A148: 0
A149: 0
A150: 0
A151: 0
A152: 0
A153: 0
A154: 0
A155: 0
A156: 0
A157: 0
A158: 0
A159: =IF(C159="",0,1) -> 0
A160: 0
A161: 0
A162: 0
A163: 0
A164: 0
A165: 0
A166: 0
A167: 0
A168: 0
A169: 0
A170: 0
A171: 1
A172: 1
A173: 1
A174: 1
A175: 1
A176: 1 | C176: Department: From | D176: _Not applicable
A177: 1 | C177: Department: To | D177: (All)
A178: 1
A179: =IF(C179="",0,1) -> 1 | C179: Personnel | D179: 2017/18 - Number of posts (Shift) | E179: 2017/18 - Expenditure (Shift) | F179: 2018/19 - Number of posts Pre-audited (Shift) | G179: 2018/19 - Expenditure Pre-audited (Shift) | H179: 2019/20 - Number of all posts to be filled (Shift) | I179: 2019/20 - Expenditure estimate (Shift) | J179: 2020/21 - Number of all posts to be filled (Shift) | K179: 2020/21 - Expenditure estimate (Shift) | L179: 2021/22 - Number of all posts to be filled (Shift) | M179: 2021/22 - Expenditure estimate (Shift)
A180: 1 | C180: _Not applicable | D180: 0 | E180: 0 | F180: 0 | G180: 0 | H180: 0 | I180: 0 | J180: 0 | K180: 0 | L180: 0 | M180: 0
A181: 1 | C181: Grand Total | D181: 0 | E181: 0 | F181: 0 | G181: 0 | H181: 0 | I181: 0 | J181: 0 | K181: 0 | L181: 0 | M181: 0
A182: 0
A183: 0
A184: 0
A185: 0
A186: 0
A187: 0
A188: 0
A189: 0
A190: 0
A191: 0
A192: 0
A193: 0
A194: 0
A195: 0
A196: 0
A197: 0
A198: 0
A199: 0
A200: 0
A201: 0
A202: 0
A203: 0
A204: 0
A205: 0
A206: 0
A207: 0
A208: 0
A209: 0
A210: 0
A211: 0
A212: 0
A213: 0
A214: 0
A215: 0
... 197 more rows

Sheet Programmes (Piv)
B12: Economic Level 2 | C12: (All)
B13: Department: From | C13: _Not applicable
B14: Department: To | C14: (All)
B16: Department/programme | C16: 2016/17 Actual (Final) | D16: 2017/18 Actual (Final) | E16: 2018/19 Pre-audited outcome (Final) | F16: 2019/20 (Final) | G16: 2020/21 (Final) | H16: 2021/22 (Final) | I16: 2022/23 (Final)
B17: _Not applicable | C17: 0 | D17: 0 | E17: 0 | F17: 0 | G17: 0 | H17: 0 | I17: 0
B18: _Not applicable | C18: 0 | D18: 0 | E18: 0 | F18: 0 | G18: 0 | H18: 0 | I18: 0
B19: Grand Total | C19: 0 | D19: 0 | E19: 0 | F19: 0 | G19: 0 | H19: 0 | I19: 0

Sheet Economic class (Piv)
B11: Department: From | C11: _Not applicable
B12: Programme | C12: (All)
B13: Subprogramme | C13: (All)
B14: Department: To | C14: (All)
B16: Economic classification | C16: 2016/17 Actual (Final) | D16: 2017/18 Actual (Final) | E16: 2018/19 Pre-audited outcome (Final) | F16: 2019/20 (Final) | G16: 2020/21 (Final) | H16: 2021/22 (Final) | I16: 2022/23 (Final)
B17: _Not applicable | C17: 0 | D17: 0 | E17: 0 | F17: 0 | G17: 0 | H17: 0 | I17: 0
B18: _Not applicable | C18: 0 | D18: 0 | E18: 0 | F18: 0 | G18: 0 | H18: 0 | I18: 0
B19: Grand Total | C19: 0 | D19: 0 | E19: 0 | F19: 0 | G19: 0 | H19: 0 | I19: 0

Sheet Personnel (Piv)
B11: Department: From | C11: _Not applicable
B12: Department: To | C12: (All)
B13: Type of change | C13: (blank)
B14: Salary Level | C14: (All)
B16: Row Labels | C16: 2017/18 - Number of posts (Final) | D16: 2017/18 - Expenditure (Final) | E16: 2018/19 - Number of posts Pre-audited (Final) | F16: 2018/19 - Expenditure Pre-audited (Final) | G16: 2019/20 - Number of all posts to be filled (Final) | H16: 2019/20 - Expenditure estimate (Final) | I16: 2020/21 - Number of all posts to be filled (Final) | J16: 2020/21 - Expenditure estimate (Final) | K16: 2021/22 - Number of all posts to be filled (Final) | L16: 2021/22 - Expenditure estimate (Final)
B17: _Not applicable | C17: 0 | D17: 0 | E17: 0 | F17: 0 | G17: 0 | H17: 0 | I17: 0 | J17: 0 | K17: 0 | L17: 0
B18: Grand Total | C18: 0 | D18: 0 | E18: 0 | F18: 0 | G18: 0 | H18: 0 | I18: 0 | J18: 0 | K18: 0 | L18: 0

Sheet Infrastructure (Piv)
B13: Department: From | C13: _Not applicable
B14: Department: To | C14: (All)
B16: Infrastructure (Programme, Projects) | C16: 2016/17 Outcome (Final) | D16: 2017/18 Outcome (Final) | E16: 2018/19 Pre-audited outcome (Final) | F16: 2019/20 Budget (Final) | G16: 2020/21 (Final) | H16: 2021/22 (Final)
B17: _Not applicable | C17: 0 | D17: 0 | E17: 0 | F17: 0 | G17: 0 | H17: 0
B18: Grand Total | C18: 0 | D18: 0 | E18: 0 | F18: 0 | G18: 0 | H18: 0

Sheet S&E (Piv)
B13: Department: From | C13: _Not applicable
B14: Department: To | C14: (All)
B16: Infrastructure (Programme, Projects) | C16: 2019/20 Budget | D16: 2019/20 Budget (Shift) | E16: 2019/20 Budget (Final)
B17: _Not applicable | C17: 0 | D17: 0 | E17: 0
B18: _Not applicable | C18: 0 | D18: 0 | E18: 0
B19: Grand Total | C19: 0 | D19: 0 | E19: 0

Sheet Econ
AC10: Legend
AB11: 1 | AC11: Function shift
AB12: 2 | AC12: Merger | AE12: =IF(COUNTIF($AE$13:$AO$13,"Check")<>0,"You are shifting more than what is available. Please check your input","") -> 
AB13: 3 | AC13: Name change | AE13: =IF(SUMPRODUCT(--(BA$16:BA$23220<0),$AB$16:$AB$23220)=0,"","Check") ->  | AL13: =IF(SUMPRODUCT(--(BH$16:BH$23220<0),$AB$16:$AB$23220)=0,"","Check") ->  | AM13: =IF(SUMPRODUCT(--(BI$16:BI$23220<0),$AB$16:$AB$23220)=0,"","Check") ->  | AN13: =IF(SUMPRODUCT(--(BJ$16:BJ$23220<0),$AB$16:$AB$23220)=0,"","Check") ->  | AO13: =IF(SUMPRODUCT(--(BK$16:BK$23220<0),$AB$16:$AB$23220)=0,"","Check") -> 
A15: Combo_DoR | B15: Combo_Econ | C15: Vote No. | D15: Votes | E15: Department: From | F15: Programme No. | G15: Programme | H15: Subprogramme No. | I15: Subprogramme | J15: Economic Level 1 | K15: Economic Level 2 | L15: Economic Level 3 | M15: Economic Level 4 | N15: DOR abbrv | O15: Transfers and subsidies / Payments for financial assets detail | P15: 2016/17 Actual | Q15: 2017/18 Adjusted appropriation | R15: 2017/18 Actual | S15: 2018/19 Main appropriation | T15: 2018/19 Adjusted appropriation | U15: 2018/19 Revised estimate | V15: 2018/19 Pre-audited outcome | W15: 2019/20 | X15: 2020/21 | Y15: 2021/22 | Z15: 2022/23 | AA15: Index No. | AB15: NMOG Indi | AC15: Type of change | AD15: Department: To | AE15: 2016/17 Actual (Man Adj) | AF15: 2017/18 Adjusted appropriation (Man Adj) | AG15: 2017/18 Actual (Man Adj) | AH15: 2018/19 Main appropriation (Man Adj) | AI15: 2018/19 Adjusted appropriation (Man Adj) | AJ15: 2018/19 Revised estimate (Man Adj) | AK15: 2018/19 Pre-audited outcome (Man Adj) | AL15: 2019/20 (Man Adj) | AM15: 2020/21 (Man Adj) | AN15: 2021/22 (Man Adj) | AO15: 2022/23 (Man Adj) | AP15: 2016/17 Actual (Shift) | AQ15: 2017/18 Adjusted appropriation (Shift) | AR15: 2017/18 Actual (Shift) | AS15: 2018/19 Main appropriation (Shift) | AT15: 2018/19 Adjusted appropriation (Shift) | AU15: 2018/19 Revised estimate (Shift) | AV15: 2018/19 Pre-audited outcome (Shift) | AW15: 2019/20 (Shift) | AX15: 2020/21 (Shift) | AY15: 2021/22 (Shift) | AZ15: 2022/23 (Shift) | BA15: 2016/17 Actual (Final) | BB15: 2017/18 Adjusted appropriation (Final) | BC15: 2017/18 Actual (Final) | BD15: 2018/19 Main appropriation (Final) | BE15: 2018/19 Adjusted appropriation (Final) | BF15: 2018/19 Revised estimate (Final) | BG15: 2018/19 Pre-audited outcome (Final) | BH15: 2019/20 (Final) | BI15: 2020/21 (Final) | BJ15: 2021/22 (Final) | BK15: 2022/23 (Final)
A16: NAT|Empty | B16: 1|Salaries and wages | C16: 1 | D16: Vote | E16: The Presidency | F16: 1 | G16: Administration | H16: 1 | I16: Management | J16: Current payments | K16: Compensation of employees | L16: Salaries and wages | M16: Salaries and wages | N16: NAT | O16: Non-transfer | P16: 184864 | Q16: 196661 | R16: 188711 | S16: 199253 | T16: 198410 | U16: 200466 | V16: 185127 | W16: 214494 | X16: 227649 | Y16: 245018 | Z16: 254123 | AA16: 1 | AB16: =IFERROR(MATCH(ENE[[#This Row],[Type of change]],ChangeType,0),0) -> 0 | AP16: =IF(AE16<>0,AE16,IF(ENE[[#This Row],[NMOG Indi]]>0,P16,AE16)) -> 0 | AQ16: =IF(AF16<>0,AF16,IF(ENE[[#This Row],[NMOG Indi]]>0,Q16,AF16)) -> 0 | AR16: =IF(AG16<>0,AG16,IF(ENE[[#This Row],[NMOG Indi]]>0,R16,AG16)) -> 0 | AS16: =IF(AH16<>0,AH16,IF(ENE[[#This Row],[NMOG Indi]]>0,S16,AH16)) -> 0 | AT16: =IF(AI16<>0,AI16,IF(ENE[[#This Row],[NMOG Indi]]>0,T16,AI16)) -> 0 | AU16: =IF(AJ16<>0,AJ16,IF(ENE[[#This Row],[NMOG Indi]]>0,U16,AJ16)) -> 0 | AV16: =IF(AK16<>0,AK16,IF(ENE[[#This Row],[NMOG Indi]]>0,V16,AK16)) -> 0 | AW16: =IF(AL16<>0,AL16,IF(ENE[[#This Row],[NMOG Indi]]>0,W16,AL16)) -> 0 | AX16: =IF(AM16<>0,AM16,IF(ENE[[#This Row],[NMOG Indi]]>0,X16,AM16)) -> 0 | AY16: =IF(AN16<>0,AN16,IF(ENE[[#This Row],[NMOG Indi]]>0,Y16,AN16)) -> 0 | AZ16: =IF(AO16<>0,AO16,IF(ENE[[#This Row],[NMOG Indi]]>0,Z16,AO16)) -> 0 | BA16: =P16-AP16 -> 184864 | BB16: =Q16-AQ16 -> 196661 | BC16: =R16-AR16 -> 188711 | BD16: =S16-AS16 -> 199253 | BE16: =T16-AT16 -> 198410 | BF16: =U16-AU16 -> 200466 | BG16: 185127 | BH16: =W16-AW16 -> 214494 | BI16: 227649 | BJ16: 245018 | BK16: 254123
A17: NAT|Empty | B17: 1|Social contributions | C17: 1 | D17: Vote | E17: The Presidency | F17: 1 | G17: Administration | H17: 1 | I17: Management | J17: Current payments | K17: Compensation of employees | L17: Social contributions | M17: Social contributions | N17: NAT | O17: Non-transfer | P17: 25011 | Q17: 23632 | R17: 25284 | S17: 25870 | T17: 25870 | U17: 25870 | V17: 25735.9 | W17: 28039 | X17: 30142 | Y17: 32101 | Z17: 33296 | AA17: 2 | AB17: =IFERROR(MATCH(ENE[[#This Row],[Type of change]],ChangeType,0),0) -> 0 | AP17: =IF(AE17<>0,AE17,IF(ENE[[#This Row],[NMOG Indi]]>0,P17,AE17)) -> 0 | AQ17: =IF(AF17<>0,AF17,IF(ENE[[#This Row],[NMOG Indi]]>0,Q17,AF17)) -> 0 | AR17: =IF(AG17<>0,AG17,IF(ENE[[#This Row],[NMOG Indi]]>0,R17,AG17)) -> 0 | AS17: =IF(AH17<>0,AH17,IF(ENE[[#This Row],[NMOG Indi]]>0,S17,AH17)) -> 0 | AT17: =IF(AI17<>0,AI17,IF(ENE[[#This Row],[NMOG Indi]]>0,T17,AI17)) -> 0 | AU17: =IF(AJ17<>0,AJ17,IF(ENE[[#This Row],[NMOG Indi]]>0,U17,AJ17)) -> 0 | AV17: =IF(AK17<>0,AK17,IF(ENE[[#This Row],[NMOG Indi]]>0,V17,AK17)) -> 0 | AW17: =IF(AL17<>0,AL17,IF(ENE[[#This Row],[NMOG Indi]]>0,W17,AL17)) -> 0 | AX17: =IF(AM17<>0,AM17,IF(ENE[[#This Row],[NMOG Indi]]>0,X17,AM17)) -> 0 | AY17: =IF(AN17<>0,AN17,IF(ENE[[#This Row],[NMOG Indi]]>0,Y17,AN17)) -> 0 | AZ17: =IF(AO17<>0,AO17,IF(ENE[[#This Row],[NMOG Indi]]>0,Z17,AO17)) -> 0 | BA17: 25011 | BB17: 23632 | BC17: 25284 | BD17: 25870 | BE17: 25870 | BF17: 25870 | BG17: 25735.9 | BH17: 28039 | BI17: 30142 | BJ17: 32101 | BK17: 33296
A18: NAT|Empty | B18: 1|Administrative fees | C18: 1 | D18: Vote | E18: The Presidency | F18: 1 | G18: Administration | H18: 1 | I18: Management | J18: Current payments | K18: Goods and services | L18: Administrative fees | M18: Administrative fees | N18: NAT | O18: Non-transfer | P18: 1837 | Q18: 366 | R18: 1999 | S18: 1334 | T18: 1410 | U18: 1410 | V18: 1153 | W18: 6311 | X18: 1352 | Y18: 1418 | Z18: 1471 | AA18: 3 | AB18: =IFERROR(MATCH(ENE[[#This Row],[Type of change]],ChangeType,0),0) -> 0 | AP18: =IF(AE18<>0,AE18,IF(ENE[[#This Row],[NMOG Indi]]>0,P18,AE18)) -> 0 | AQ18: =IF(AF18<>0,AF18,IF(ENE[[#This Row],[NMOG Indi]]>0,Q18,AF18)) -> 0 | AR18: =IF(AG18<>0,AG18,IF(ENE[[#This Row],[NMOG Indi]]>0,R18,AG18)) -> 0 | AS18: =IF(AH18<>0,AH18,IF(ENE[[#This Row],[NMOG Indi]]>0,S18,AH18)) -> 0 | AT18: =IF(AI18<>0,AI18,IF(ENE[[#This Row],[NMOG Indi]]>0,T18,AI18)) -> 0 | AU18: =IF(AJ18<>0,AJ18,IF(ENE[[#This Row],[NMOG Indi]]>0,U18,AJ18)) -> 0 | AV18: =IF(AK18<>0,AK18,IF(ENE[[#This Row],[NMOG Indi]]>0,V18,AK18)) -> 0 | AW18: =IF(AL18<>0,AL18,IF(ENE[[#This Row],[NMOG Indi]]>0,W18,AL18)) -> 0 | AX18: =IF(AM18<>0,AM18,IF(ENE[[#This Row],[NMOG Indi]]>0,X18,AM18)) -> 0 | AY18: =IF(AN18<>0,AN18,IF(ENE[[#This Row],[NMOG Indi]]>0,Y18,AN18)) -> 0 | AZ18: =IF(AO18<>0,AO18,IF(ENE[[#This Row],[NMOG Indi]]>0,Z18,AO18)) -> 0 | BA18: 1837 | BB18: 366 | BC18: 1999 | BD18: 1334 | BE18: 1410 | BF18: 1410 | BG18: 1153 | BH18: 6311 | BI18: 1352 | BJ18: 1418 | BK18: 1471
A19: NAT|Empty | B19: 1|Advertising | C19: 1 | D19: Vote | E19: The Presidency | F19: 1 | G19: Administration | H19: 1 | I19: Management | J19: Current payments | K19: Goods and services | L19: Advertising | M19: Advertising | N19: NAT | O19: Non-transfer | P19: 421 | Q19: 953 | R19: 401 | S19: 515 | T19: 515 | U19: 515 | V19: 594 | W19: 3832 | X19: 878 | Y19: 933 | Z19: 969 | AA19: 4 | AB19: =IFERROR(MATCH(ENE[[#This Row],[Type of change]],ChangeType,0),0) -> 0 | AP19: =IF(AE19<>0,AE19,IF(ENE[[#This Row],[NMOG Indi]]>0,P19,AE19)) -> 0 | AQ19: =IF(AF19<>0,AF19,IF(ENE[[#This Row],[NMOG Indi]]>0,Q19,AF19)) -> 0 | AR19: =IF(AG19<>0,AG19,IF(ENE[[#This Row],[NMOG Indi]]>0,R19,AG19)) -> 0 | AS19: =IF(AH19<>0,AH19,IF(ENE[[#This Row],[NMOG Indi]]>0,S19,AH19)) -> 0 | AT19: =IF(AI19<>0,AI19,IF(ENE[[#This Row],[NMOG Indi]]>0,T19,AI19)) -> 0 | AU19: =IF(AJ19<>0,AJ19,IF(ENE[[#This Row],[NMOG Indi]]>0,U19,AJ19)) -> 0 | AV19: =IF(AK19<>0,AK19,IF(ENE[[#This Row],[NMOG Indi]]>0,V19,AK19)) -> 0 | AW19: =IF(AL19<>0,AL19,IF(ENE[[#This Row],[NMOG Indi]]>0,W19,AL19)) -> 0 | AX19: =IF(AM19<>0,AM19,IF(ENE[[#This Row],[NMOG Indi]]>0,X19,AM19)) -> 0 | AY19: =IF(AN19<>0,AN19,IF(ENE[[#This Row],[NMOG Indi]]>0,Y19,AN19)) -> 0 | AZ19: =IF(AO19<>0,AO19,IF(ENE[[#This Row],[NMOG Indi]]>0,Z19,AO19)) -> 0 | BA19: 421 | BB19: 953 | BC19: 401 | BD19: 515 | BE19: 515 | BF19: 515 | BG19: 594 | BH19: 3832 | BI19: 878 | BJ19: 933 | BK19: 969
A20: NAT|Empty | B20: 1|Agency and support/outsourced services | C20: 1 | D20: Vote | E20: The Presidency | F20: 1 | G20: Administration | H20: 1 | I20: Management | J20: Current payments | K20: Goods and services | L20: Agency and support/outsourced services | M20: Agency and support/outsourced services | N20: NAT | O20: Non-transfer | P20: 3489 | Q20: 3980 | R20: 5618 | S20: 4179 | T20: 4179 | U20: 4179 | V20: 4572 | W20: 5348 | X20: 5628 | Y20: 5873 | Z20: 6091 | AA20: 5 | AB20: =IFERROR(MATCH(ENE[[#This Row],[Type of change]],ChangeType,0),0) -> 0 | AP20: =IF(AE20<>0,AE20,IF(ENE[[#This Row],[NMOG Indi]]>0,P20,AE20)) -> 0 | AQ20: =IF(AF20<>0,AF20,IF(ENE[[#This Row],[NMOG Indi]]>0,Q20,AF20)) -> 0 | AR20: =IF(AG20<>0,AG20,IF(ENE[[#This Row],[NMOG Indi]]>0,R20,AG20)) -> 0 | AS20: =IF(AH20<>0,AH20,IF(ENE[[#This Row],[NMOG Indi]]>0,S20,AH20)) -> 0 | AT20: =IF(AI20<>0,AI20,IF(ENE[[#This Row],[NMOG Indi]]>0,T20,AI20)) -> 0 | AU20: =IF(AJ20<>0,AJ20,IF(ENE[[#This Row],[NMOG Indi]]>0,U20,AJ20)) -> 0 | AV20: =IF(AK20<>0,AK20,IF(ENE[[#This Row],[NMOG Indi]]>0,V20,AK20)) -> 0 | AW20: =IF(AL20<>0,AL20,IF(ENE[[#This Row],[NMOG Indi]]>0,W20,AL20)) -> 0 | AX20: =IF(AM20<>0,AM20,IF(ENE[[#This Row],[NMOG Indi]]>0,X20,AM20)) -> 0 | AY20: =IF(AN20<>0,AN20,IF(ENE[[#This Row],[NMOG Indi]]>0,Y20,AN20)) -> 0 | AZ20: =IF(AO20<>0,AO20,IF(ENE[[#This Row],[NMOG Indi]]>0,Z20,AO20)) -> 0 | BA20: 3489 | BB20: 3980 | BC20: 5618 | BD20: 4179 | BE20: 4179 | BF20: 4179 | BG20: 4572 | BH20: 5348 | BI20: 5628 | BJ20: 5873 | BK20: 6091
A21: NAT|Empty | B21: 1|Audit costs: External | C21: 1 | D21: Vote | E21: The Presidency | F21: 1 | G21: Administration | H21: 1 | I21: Management | J21: Current payments | K21: Goods and services | L21: Audit costs: External | M21: Audit costs: External | N21: NAT | O21: Non-transfer | P21: 4618 | Q21: 6013 | R21: 5606 | S21: 5368 | T21: 5368 | U21: 5368 | V21: 5776 | W21: 5653 | X21: 5997 | Y21: 6327 | Z21: 6561 | AA21: 6 | AB21: =IFERROR(MATCH(ENE[[#This Row],[Type of change]],ChangeType,0),0) -> 0 | AP21: =IF(AE21<>0,AE21,IF(ENE[[#This Row],[NMOG Indi]]>0,P21,AE21)) -> 0 | AQ21: =IF(AF21<>0,AF21,IF(ENE[[#This Row],[NMOG Indi]]>0,Q21,AF21)) -> 0 | AR21: =IF(AG21<>0,AG21,IF(ENE[[#This Row],[NMOG Indi]]>0,R21,AG21)) -> 0 | AS21: =IF(AH21<>0,AH21,IF(ENE[[#This Row],[NMOG Indi]]>0,S21,AH21)) -> 0 | AT21: =IF(AI21<>0,AI21,IF(ENE[[#This Row],[NMOG Indi]]>0,T21,AI21)) -> 0 | AU21: =IF(AJ21<>0,AJ21,IF(ENE[[#This Row],[NMOG Indi]]>0,U21,AJ21)) -> 0 | AV21: =IF(AK21<>0,AK21,IF(ENE[[#This Row],[NMOG Indi]]>0,V21,AK21)) -> 0 | AW21: =IF(AL21<>0,AL21,IF(ENE[[#This Row],[NMOG Indi]]>0,W21,AL21)) -> 0 | AX21: =IF(AM21<>0,AM21,IF(ENE[[#This Row],[NMOG Indi]]>0,X21,AM21)) -> 0 | AY21: =IF(AN21<>0,AN21,IF(ENE[[#This Row],[NMOG Indi]]>0,Y21,AN21)) -> 0 | AZ21: =IF(AO21<>0,AO21,IF(ENE[[#This Row],[NMOG Indi]]>0,Z21,AO21)) -> 0 | BA21: 4618 | BB21: 6013 | BC21: 5606 | BD21: 5368 | BE21: 5368 | BF21: 5368 | BG21: 5776 | BH21: 5653 | BI21: 5997 | BJ21: 6327 | BK21: 6561
A22: NAT|Empty | B22: 1|Bursaries: Employees | C22: 1 | D22: Vote | E22: The Presidency | F22: 1 | G22: Administration | H22: 1 | I22: Management | J22: Current payments | K22: Goods and services | L22: Bursaries: Employees | M22: Bursaries: Employees | N22: NAT | O22: Non-transfer | P22: 1421 | Q22: 1446 | R22: 1302 | S22: 1203 | T22: 1203 | U22: 1203 | V22: 1704 | W22: 1267 | X22: 1337 | Y22: 1411 | Z22: 1463 | AA22: 7 | AB22: =IFERROR(MATCH(ENE[[#This Row],[Type of change]],ChangeType,0),0) -> 0 | AP22: =IF(AE22<>0,AE22,IF(ENE[[#This Row],[NMOG Indi]]>0,P22,AE22)) -> 0 | AQ22: =IF(AF22<>0,AF22,IF(ENE[[#This Row],[NMOG Indi]]>0,Q22,AF22)) -> 0 | AR22: =IF(AG22<>0,AG22,IF(ENE[[#This Row],[NMOG Indi]]>0,R22,AG22)) -> 0 | AS22: =IF(AH22<>0,AH22,IF(ENE[[#This Row],[NMOG Indi]]>0,S22,AH22)) -> 0 | AT22: =IF(AI22<>0,AI22,IF(ENE[[#This Row],[NMOG Indi]]>0,T22,AI22)) -> 0 | AU22: =IF(AJ22<>0,AJ22,IF(ENE[[#This Row],[NMOG Indi]]>0,U22,AJ22)) -> 0 | AV22: =IF(AK22<>0,AK22,IF(ENE[[#This Row],[NMOG Indi]]>0,V22,AK22)) -> 0 | AW22: =IF(AL22<>0,AL22,IF(ENE[[#This Row],[NMOG Indi]]>0,W22,AL22)) -> 0 | AX22: =IF(AM22<>0,AM22,IF(ENE[[#This Row],[NMOG Indi]]>0,X22,AM22)) -> 0 | AY22: =IF(AN22<>0,AN22,IF(ENE[[#This Row],[NMOG Indi]]>0,Y22,AN22)) -> 0 | AZ22: =IF(AO22<>0,AO22,IF(ENE[[#This Row],[NMOG Indi]]>0,Z22,AO22)) -> 0 | BA22: 1421 | BB22: 1446 | BC22: 1302 | BD22: 1203 | BE22: 1203 | BF22: 1203 | BG22: 1704 | BH22: 1267 | BI22: 1337 | BJ22: 1411 | BK22: 1463
A23: NAT|Empty | B23: 1|Catering: Departmental activities | C23: 1 | D23: Vote | E23: The Presidency | F23: 1 | G23: Administration | H23: 1 | I23: Management | J23: Current payments | K23: Goods and services | L23: Catering: Departmental activities | M23: Catering: Departmental activities | N23: NAT | O23: Non-transfer | P23: 606 | Q23: 1212 | R23: 781 | S23: 1236 | T23: 1236 | U23: 1236 | V23: 2973 | W23: 21303 | X23: 1386 | Y23: 1481 | Z23: 1537 | AA23: 8 | AB23: =IFERROR(MATCH(ENE[[#This Row],[Type of change]],ChangeType,0),0) -> 0 | AP23: =IF(AE23<>0,AE23,IF(ENE[[#This Row],[NMOG Indi]]>0,P23,AE23)) -> 0 | AQ23: =IF(AF23<>0,AF23,IF(ENE[[#This Row],[NMOG Indi]]>0,Q23,AF23)) -> 0 | AR23: =IF(AG23<>0,AG23,IF(ENE[[#This Row],[NMOG Indi]]>0,R23,AG23)) -> 0 | AS23: =IF(AH23<>0,AH23,IF(ENE[[#This Row],[NMOG Indi]]>0,S23,AH23)) -> 0 | AT23: =IF(AI23<>0,AI23,IF(ENE[[#This Row],[NMOG Indi]]>0,T23,AI23)) -> 0 | AU23: =IF(AJ23<>0,AJ23,IF(ENE[[#This Row],[NMOG Indi]]>0,U23,AJ23)) -> 0 | AV23: =IF(AK23<>0,AK23,IF(ENE[[#This Row],[NMOG Indi]]>0,V23,AK23)) -> 0 | AW23: =IF(AL23<>0,AL23,IF(ENE[[#This Row],[NMOG Indi]]>0,W23,AL23)) -> 0 | AX23: =IF(AM23<>0,AM23,IF(ENE[[#This Row],[NMOG Indi]]>0,X23,AM23)) -> 0 | AY23: =IF(AN23<>0,AN23,IF(ENE[[#This Row],[NMOG Indi]]>0,Y23,AN23)) -> 0 | AZ23: =IF(AO23<>0,AO23,IF(ENE[[#This Row],[NMOG Indi]]>0,Z23,AO23)) -> 0 | BA23: 606 | BB23: 1212 | BC23: 781 | BD23: 1236 | BE23: 1236 | BF23: 1236 | BG23: 2973 | BH23: 21303 | BI23: 1386 | BJ23: 1481 | BK23: 1537
A24: NAT|Empty | B24: 1|Communication (G&S) | C24: 1 | D24: Vote | E24: The Presidency | F24: 1 | G24: Administration | H24: 1 | I24: Management | J24: Current payments | K24: Goods and services | L24: Communication (G&S) | M24: Communication (G&S) | N24: NAT | O24: Non-transfer | P24: 9788 | Q24: 11944 | R24: 6987 | S24: 10614 | T24: 10614 | U24: 10614 | V24: 4134 | W24: 20712 | X24: 10876 | Y24: 11415 | Z24: 11839 | AA24: 9 | AB24: =IFERROR(MATCH(ENE[[#This Row],[Type of change]],ChangeType,0),0) -> 0 | AP24: =IF(AE24<>0,AE24,IF(ENE[[#This Row],[NMOG Indi]]>0,P24,AE24)) -> 0 | AQ24: =IF(AF24<>0,AF24,IF(ENE[[#This Row],[NMOG Indi]]>0,Q24,AF24)) -> 0 | AR24: =IF(AG24<>0,AG24,IF(ENE[[#This Row],[NMOG Indi]]>0,R24,AG24)) -> 0 | AS24: =IF(AH24<>0,AH24,IF(ENE[[#This Row],[NMOG Indi]]>0,S24,AH24)) -> 0 | AT24: =IF(AI24<>0,AI24,IF(ENE[[#This Row],[NMOG Indi]]>0,T24,AI24)) -> 0 | AU24: =IF(AJ24<>0,AJ24,IF(ENE[[#This Row],[NMOG Indi]]>0,U24,AJ24)) -> 0 | AV24: =IF(AK24<>0,AK24,IF(ENE[[#This Row],[NMOG Indi]]>0,V24,AK24)) -> 0 | AW24: =IF(AL24<>0,AL24,IF(ENE[[#This Row],[NMOG Indi]]>0,W24,AL24)) -> 0 | AX24: =IF(AM24<>0,AM24,IF(ENE[[#This Row],[NMOG Indi]]>0,X24,AM24)) -> 0 | AY24: =IF(AN24<>0,AN24,IF(ENE[[#This Row],[NMOG Indi]]>0,Y24,AN24)) -> 0 | AZ24: =IF(AO24<>0,AO24,IF(ENE[[#This Row],[NMOG Indi]]>0,Z24,AO24)) -> 0 | BA24: 9788 | BB24: 11944 | BC24: 6987 | BD24: 10614 | BE24: 10614 | BF24: 10614 | BG24: 4134 | BH24: 20712 | BI24: 10876 | BJ24: 11415 | BK24: 11839
A25: NAT|Empty | B25: 1|Computer services | C25: 1 | D25: Vote | E25: The Presidency | F25: 1 | G25: Administration | H25: 1 | I25: Management | J25: Current payments | K25: Goods and services | L25: Computer services | M25: Computer services | N25: NAT | O25: Non-transfer | P25: 15345 | Q25: 22407 | R25: 10944 | S25: 16173 | T25: 16173 | U25: 16173 | V25: 18687 | W25: 15483 | X25: 14708 | Y25: 15691 | Z25: 16275 | AA25: 10 | AB25: =IFERROR(MATCH(ENE[[#This Row],[Type of change]],ChangeType,0),0) -> 0 | AP25: =IF(AE25<>0,AE25,IF(ENE[[#This Row],[NMOG Indi]]>0,P25,AE25)) -> 0 | AQ25: =IF(AF25<>0,AF25,IF(ENE[[#This Row],[NMOG Indi]]>0,Q25,AF25)) -> 0 | AR25: =IF(AG25<>0,AG25,IF(ENE[[#This Row],[NMOG Indi]]>0,R25,AG25)) -> 0 | AS25: =IF(AH25<>0,AH25,IF(ENE[[#This Row],[NMOG Indi]]>0,S25,AH25)) -> 0 | AT25: =IF(AI25<>0,AI25,IF(ENE[[#This Row],[NMOG Indi]]>0,T25,AI25)) -> 0 | AU25: =IF(AJ25<>0,AJ25,IF(ENE[[#This Row],[NMOG Indi]]>0,U25,AJ25)) -> 0 | AV25: =IF(AK25<>0,AK25,IF(ENE[[#This Row],[NMOG Indi]]>0,V25,AK25)) -> 0 | AW25: =IF(AL25<>0,AL25,IF(ENE[[#This Row],[NMOG Indi]]>0,W25,AL25)) -> 0 | AX25: =IF(AM25<>0,AM25,IF(ENE[[#This Row],[NMOG Indi]]>0,X25,AM25)) -> 0 | AY25: =IF(AN25<>0,AN25,IF(ENE[[#This Row],[NMOG Indi]]>0,Y25,AN25)) -> 0 | AZ25: =IF(AO25<>0,AO25,IF(ENE[[#This Row],[NMOG Indi]]>0,Z25,AO25)) -> 0 | BA25: 15345 | BB25: 22407 | BC25: 10944 | BD25: 16173 | BE25: 16173 | BF25: 16173 | BG25: 18687 | BH25: 15483 | BI25: 14708 | BJ25: 15691 | BK25: 16275
A26: NAT|Empty | B26: 1|Consultants: Business and advisory services | C26: 1 | D26: Vote | E26: The Presidency | F26: 1 | G26: Administration | H26: 1 | I26: Management | J26: Current payments | K26: Goods and services | L26: Consultants: Business and advisory services | M26: Consultants: Business and advisory services | N26: NAT | O26: Non-transfer | P26: 3397 | Q26: 8558 | R26: 2648 | S26: 4056 | T26: 4056 | U26: 4056 | V26: 5746 | W26: 8273 | X26: 8281 | Y26: 8805 | Z26: 9134 | AA26: 11 | AB26: =IFERROR(MATCH(ENE[[#This Row],[Type of change]],ChangeType,0),0) -> 0 | AP26: =IF(AE26<>0,AE26,IF(ENE[[#This Row],[NMOG Indi]]>0,P26,AE26)) -> 0 | AQ26: =IF(AF26<>0,AF26,IF(ENE[[#This Row],[NMOG Indi]]>0,Q26,AF26)) -> 0 | AR26: =IF(AG26<>0,AG26,IF(ENE[[#This Row],[NMOG Indi]]>0,R26,AG26)) -> 0 | AS26: =IF(AH26<>0,AH26,IF(ENE[[#This Row],[NMOG Indi]]>0,S26,AH26)) -> 0 | AT26: =IF(AI26<>0,AI26,IF(ENE[[#This Row],[NMOG Indi]]>0,T26,AI26)) -> 0 | AU26: =IF(AJ26<>0,AJ26,IF(ENE[[#This Row],[NMOG Indi]]>0,U26,AJ26)) -> 0 | AV26: =IF(AK26<>0,AK26,IF(ENE[[#This Row],[NMOG Indi]]>0,V26,AK26)) -> 0 | AW26: =IF(AL26<>0,AL26,IF(ENE[[#This Row],[NMOG Indi]]>0,W26,AL26)) -> 0 | AX26: =IF(AM26<>0,AM26,IF(ENE[[#This Row],[NMOG Indi]]>0,X26,AM26)) -> 0 | AY26: =IF(AN26<>0,AN26,IF(ENE[[#This Row],[NMOG Indi]]>0,Y26,AN26)) -> 0 | AZ26: =IF(AO26<>0,AO26,IF(ENE[[#This Row],[NMOG Indi]]>0,Z26,AO26)) -> 0 | BA26: 3397 | BB26: 8558 | BC26: 2648 | BD26: 4056 | BE26: 4056 | BF26: 4056 | BG26: 5746 | BH26: 8273 | BI26: 8281 | BJ26: 8805 | BK26: 9134
A27: NAT|Empty | B27: 1|Consumable supplies | C27: 1 | D27: Vote | E27: The Presidency | F27: 1 | G27: Administration | H27: 1 | I27: Management | J27: Current payments | K27: Goods and services | L27: Consumable supplies | M27: Consumable supplies | N27: NAT | O27: Non-transfer | P27: 3828 | Q27: 4167 | R27: 2901 | S27: 4630 | T27: 4630 | U27: 4630 | V27: 2260 | W27: 4619 | X27: 5007 | Y27: 5211 | Z27: 5403 | AA27: 12 | AB27: =IFERROR(MATCH(ENE[[#This Row],[Type of change]],ChangeType,0),0) -> 0 | AP27: =IF(AE27<>0,AE27,IF(ENE[[#This Row],[NMOG Indi]]>0,P27,AE27)) -> 0 | AQ27: =IF(AF27<>0,AF27,IF(ENE[[#This Row],[NMOG Indi]]>0,Q27,AF27)) -> 0 | AR27: =IF(AG27<>0,AG27,IF(ENE[[#This Row],[NMOG Indi]]>0,R27,AG27)) -> 0 | AS27: =IF(AH27<>0,AH27,IF(ENE[[#This Row],[NMOG Indi]]>0,S27,AH27)) -> 0 | AT27: =IF(AI27<>0,AI27,IF(ENE[[#This Row],[NMOG Indi]]>0,T27,AI27)) -> 0 | AU27: =IF(AJ27<>0,AJ27,IF(ENE[[#This Row],[NMOG Indi]]>0,U27,AJ27)) -> 0 | AV27: =IF(AK27<>0,AK27,IF(ENE[[#This Row],[NMOG Indi]]>0,V27,AK27)) -> 0 | AW27: =IF(AL27<>0,AL27,IF(ENE[[#This Row],[NMOG Indi]]>0,W27,AL27)) -> 0 | AX27: =IF(AM27<>0,AM27,IF(ENE[[#This Row],[NMOG Indi]]>0,X27,AM27)) -> 0 | AY27: =IF(AN27<>0,AN27,IF(ENE[[#This Row],[NMOG Indi]]>0,Y27,AN27)) -> 0 | AZ27: =IF(AO27<>0,AO27,IF(ENE[[#This Row],[NMOG Indi]]>0,Z27,AO27)) -> 0 | BA27: 3828 | BB27: 4167 | BC27: 2901 | BD27: 4630 | BE27: 4630 | BF27: 4630 | BG27: 2260 | BH27: 4619 | BI27: 5007 | BJ27: 5211 | BK27: 5403
A28: NAT|Empty | B28: 1|Consumables: Stationery, printing and office supplies | C28: 1 | D28: Vote | E28: The Presidency | F28: 1 | G28: Administration | H28: 1 | I28: Management | J28: Current payments | K28: Goods and services | L28: Consumables: Stationery, printing and office supplies | M28: Consumables: Stationery, printing and office supplies | N28: NAT | O28: Non-transfer | P28: 4270 | Q28: 3222 | R28: 3337 | S28: 3379 | T28: 3379 | U28: 3379 | V28: 1701 | W28: 4812 | X28: 3768 | Y28: 3813 | Z28: 3955 | AA28: 13 | AB28: =IFERROR(MATCH(ENE[[#This Row],[Type of change]],ChangeType,0),0) -> 0 | AP28: =IF(AE28<>0,AE28,IF(ENE[[#This Row],[NMOG Indi]]>0,P28,AE28)) -> 0 | AQ28: =IF(AF28<>0,AF28,IF(ENE[[#This Row],[NMOG Indi]]>0,Q28,AF28)) -> 0 | AR28: =IF(AG28<>0,AG28,IF(ENE[[#This Row],[NMOG Indi]]>0,R28,AG28)) -> 0 | AS28: =IF(AH28<>0,AH28,IF(ENE[[#This Row],[NMOG Indi]]>0,S28,AH28)) -> 0 | AT28: =IF(AI28<>0,AI28,IF(ENE[[#This Row],[NMOG Indi]]>0,T28,AI28)) -> 0 | AU28: =IF(AJ28<>0,AJ28,IF(ENE[[#This Row],[NMOG Indi]]>0,U28,AJ28)) -> 0 | AV28: =IF(AK28<>0,AK28,IF(ENE[[#This Row],[NMOG Indi]]>0,V28,AK28)) -> 0 | AW28: =IF(AL28<>0,AL28,IF(ENE[[#This Row],[NMOG Indi]]>0,W28,AL28)) -> 0 | AX28: =IF(AM28<>0,AM28,IF(ENE[[#This Row],[NMOG Indi]]>0,X28,AM28)) -> 0 | AY28: =IF(AN28<>0,AN28,IF(ENE[[#This Row],[NMOG Indi]]>0,Y28,AN28)) -> 0 | AZ28: =IF(AO28<>0,AO28,IF(ENE[[#This Row],[NMOG Indi]]>0,Z28,AO28)) -> 0 | BA28: 4270 | BB28: 3222 | BC28: 3337 | BD28: 3379 | BE28: 3379 | BF28: 3379 | BG28: 1701 | BH28: 4812 | BI28: 3768 | BJ28: 3813 | BK28: 3955
A29: NAT|Empty | B29: 1|Contractors | C29: 1 | D29: Vote | E29: The Presidency | F29: 1 | G29: Administration | H29: 1 | I29: Management | J29: Current payments | K29: Goods and services | L29: Contractors | M29: Contractors | N29: NAT | O29: Non-transfer | P29: 3953 | Q29: 4620 | R29: 3129 | S29: 4425 | T29: 5566 | U29: 5566 | V29: 5228 | W29: 17293 | X29: 5596 | Y29: 5926 | Z29: 6145 | AA29: 14 | AB29: =IFERROR(MATCH(ENE[[#This Row],[Type of change]],ChangeType,0),0) -> 0 | AP29: =IF(AE29<>0,AE29,IF(ENE[[#This Row],[NMOG Indi]]>0,P29,AE29)) -> 0 | AQ29: =IF(AF29<>0,AF29,IF(ENE[[#This Row],[NMOG Indi]]>0,Q29,AF29)) -> 0 | AR29: =IF(AG29<>0,AG29,IF(ENE[[#This Row],[NMOG Indi]]>0,R29,AG29)) -> 0 | AS29: =IF(AH29<>0,AH29,IF(ENE[[#This Row],[NMOG Indi]]>0,S29,AH29)) -> 0 | AT29: =IF(AI29<>0,AI29,IF(ENE[[#This Row],[NMOG Indi]]>0,T29,AI29)) -> 0 | AU29: =IF(AJ29<>0,AJ29,IF(ENE[[#This Row],[NMOG Indi]]>0,U29,AJ29)) -> 0 | AV29: =IF(AK29<>0,AK29,IF(ENE[[#This Row],[NMOG Indi]]>0,V29,AK29)) -> 0 | AW29: =IF(AL29<>0,AL29,IF(ENE[[#This Row],[NMOG Indi]]>0,W29,AL29)) -> 0 | AX29: =IF(AM29<>0,AM29,IF(ENE[[#This Row],[NMOG Indi]]>0,X29,AM29)) -> 0 | AY29: =IF(AN29<>0,AN29,IF(ENE[[#This Row],[NMOG Indi]]>0,Y29,AN29)) -> 0 | AZ29: =IF(AO29<>0,AO29,IF(ENE[[#This Row],[NMOG Indi]]>0,Z29,AO29)) -> 0 | BA29: 3953 | BB29: 4620 | BC29: 3129 | BD29: 4425 | BE29: 5566 | BF29: 5566 | BG29: 5228 | BH29: 17293 | BI29: 5596 | BJ29: 5926 | BK29: 6145
A30: NAT|Empty | B30: 1|Entertainment | C30: 1 | D30: Vote | E30: The Presidency | F30: 1 | G30: Administration | H30: 1 | I30: Management | J30: Current payments | K30: Goods and services | L30: Entertainment | M30: Entertainment | N30: NAT | O30: Non-transfer | P30: 1 | Q30: 75 | R30: 0 | S30: 15 | T30: 15 | U30: 15 | V30: 0 | W30: 5009 | X30: 9 | Y30: 9 | Z30: 9 | AA30: 15 | AB30: =IFERROR(MATCH(ENE[[#This Row],[Type of change]],ChangeType,0),0) -> 0 | AP30: =IF(AE30<>0,AE30,IF(ENE[[#This Row],[NMOG Indi]]>0,P30,AE30)) -> 0 | AQ30: =IF(AF30<>0,AF30,IF(ENE[[#This Row],[NMOG Indi]]>0,Q30,AF30)) -> 0 | AR30: =IF(AG30<>0,AG30,IF(ENE[[#This Row],[NMOG Indi]]>0,R30,AG30)) -> 0 | AS30: =IF(AH30<>0,AH30,IF(ENE[[#This Row],[NMOG Indi]]>0,S30,AH30)) -> 0 | AT30: =IF(AI30<>0,AI30,IF(ENE[[#This Row],[NMOG Indi]]>0,T30,AI30)) -> 0 | AU30: =IF(AJ30<>0,AJ30,IF(ENE[[#This Row],[NMOG Indi]]>0,U30,AJ30)) -> 0 | AV30: =IF(AK30<>0,AK30,IF(ENE[[#This Row],[NMOG Indi]]>0,V30,AK30)) -> 0 | AW30: =IF(AL30<>0,AL30,IF(ENE[[#This Row],[NMOG Indi]]>0,W30,AL30)) -> 0 | AX30: =IF(AM30<>0,AM30,IF(ENE[[#This Row],[NMOG Indi]]>0,X30,AM30)) -> 0 | AY30: =IF(AN30<>0,AN30,IF(ENE[[#This Row],[NMOG Indi]]>0,Y30,AN30)) -> 0 | AZ30: =IF(AO30<>0,AO30,IF(ENE[[#This Row],[NMOG Indi]]>0,Z30,AO30)) -> 0 | BA30: 1 | BB30: 75 | BC30: 0 | BD30: 15 | BE30: 15 | BF30: 15 | BG30: 0 | BH30: 5009 | BI30: 9 | BJ30: 9 | BK30: 9
A31: NAT|Empty | B31: 1|Fleet services (including government motor transport) | C31: 1 | D31: Vote | E31: The Presidency | F31: 1 | G31: Administration | H31: 1 | I31: Management | J31: Current payments | K31: Goods and services | L31: Fleet services (including government motor transport) | M31: Fleet services (including government motor transport) | N31: NAT | O31: Non-transfer | P31: 2445 | Q31: 555 | R31: 2269 | S31: 1391 | T31: 1391 | U31: 1391 | V31: 1991 | W31: 4472 | X31: 1380 | Y31: 1512 | Z31: 1568 | AA31: 16 | AB31: =IFERROR(MATCH(ENE[[#This Row],[Type of change]],ChangeType,0),0) -> 0 | AP31: =IF(AE31<>0,AE31,IF(ENE[[#This Row],[NMOG Indi]]>0,P31,AE31)) -> 0 | AQ31: =IF(AF31<>0,AF31,IF(ENE[[#This Row],[NMOG Indi]]>0,Q31,AF31)) -> 0 | AR31: =IF(AG31<>0,AG31,IF(ENE[[#This Row],[NMOG Indi]]>0,R31,AG31)) -> 0 | AS31: =IF(AH31<>0,AH31,IF(ENE[[#This Row],[NMOG Indi]]>0,S31,AH31)) -> 0 | AT31: =IF(AI31<>0,AI31,IF(ENE[[#This Row],[NMOG Indi]]>0,T31,AI31)) -> 0 | AU31: =IF(AJ31<>0,AJ31,IF(ENE[[#This Row],[NMOG Indi]]>0,U31,AJ31)) -> 0 | AV31: =IF(AK31<>0,AK31,IF(ENE[[#This Row],[NMOG Indi]]>0,V31,AK31)) -> 0 | AW31: =IF(AL31<>0,AL31,IF(ENE[[#This Row],[NMOG Indi]]>0,W31,AL31)) -> 0 | AX31: =IF(AM31<>0,AM31,IF(ENE[[#This Row],[NMOG Indi]]>0,X31,AM31)) -> 0 | AY31: =IF(AN31<>0,AN31,IF(ENE[[#This Row],[NMOG Indi]]>0,Y31,AN31)) -> 0 | AZ31: =IF(AO31<>0,AO31,IF(ENE[[#This Row],[NMOG Indi]]>0,Z31,AO31)) -> 0 | BA31: 2445 | BB31: 555 | BC31: 2269 | BD31: 1391 | BE31: 1391 | BF31: 1391 | BG31: 1991 | BH31: 4472 | BI31: 1380 | BJ31: 1512 | BK31: 1568
A32: NAT|Empty | B32: 1|Legal services (G&S) | C32: 1 | D32: Vote | E32: The Presidency | F32: 1 | G32: Administration | H32: 1 | I32: Management | J32: Current payments | K32: Goods and services | L32: Legal services (G&S) | M32: Legal services (G&S) | N32: NAT | O32: Non-transfer | P32: 12259 | Q32: 5277 | R32: 18914 | S32: 7055 | T32: 7055 | U32: 7055 | V32: 0 | W32: 7429 | X32: 7836 | Y32: 8267 | Z32: 8574 | AA32: 17 | AB32: =IFERROR(MATCH(ENE[[#This Row],[Type of change]],ChangeType,0),0) -> 0 | AP32: =IF(AE32<>0,AE32,IF(ENE[[#This Row],[NMOG Indi]]>0,P32,AE32)) -> 0 | AQ32: =IF(AF32<>0,AF32,IF(ENE[[#This Row],[NMOG Indi]]>0,Q32,AF32)) -> 0 | AR32: =IF(AG32<>0,AG32,IF(ENE[[#This Row],[NMOG Indi]]>0,R32,AG32)) -> 0 | AS32: =IF(AH32<>0,AH32,IF(ENE[[#This Row],[NMOG Indi]]>0,S32,AH32)) -> 0 | AT32: =IF(AI32<>0,AI32,IF(ENE[[#This Row],[NMOG Indi]]>0,T32,AI32)) -> 0 | AU32: =IF(AJ32<>0,AJ32,IF(ENE[[#This Row],[NMOG Indi]]>0,U32,AJ32)) -> 0 | AV32: =IF(AK32<>0,AK32,IF(ENE[[#This Row],[NMOG Indi]]>0,V32,AK32)) -> 0 | AW32: =IF(AL32<>0,AL32,IF(ENE[[#This Row],[NMOG Indi]]>0,W32,AL32)) -> 0 | AX32: =IF(AM32<>0,AM32,IF(ENE[[#This Row],[NMOG Indi]]>0,X32,AM32)) -> 0 | AY32: =IF(AN32<>0,AN32,IF(ENE[[#This Row],[NMOG Indi]]>0,Y32,AN32)) -> 0 | AZ32: =IF(AO32<>0,AO32,IF(ENE[[#This Row],[NMOG Indi]]>0,Z32,AO32)) -> 0 | BA32: 12259 | BB32: 5277 | BC32: 18914 | BD32: 7055 | BE32: 7055 | BF32: 7055 | BG32: 0 | BH32: 7429 | BI32: 7836 | BJ32: 8267 | BK32: 8574
A33: NAT|Empty | B33: 1|Minor Assets | C33: 1 | D33: Vote | E33: The Presidency | F33: 1 | G33: Administration | H33: 1 | I33: Management | J33: Current payments | K33: Goods and services | L33: Minor Assets | M33: Minor Assets | N33: NAT | O33: Non-transfer | P33: 731 | Q33: 2862 | R33: 542 | S33: 1574 | T33: 1574 | U33: 1574 | V33: 959 | W33: 1908 | X33: 1461 | Y33: 1613 | Z33: 1674 | AA33: 18 | AB33: =IFERROR(MATCH(ENE[[#This Row],[Type of change]],ChangeType,0),0) -> 0 | AP33: =IF(AE33<>0,AE33,IF(ENE[[#This Row],[NMOG Indi]]>0,P33,AE33)) -> 0 | AQ33: =IF(AF33<>0,AF33,IF(ENE[[#This Row],[NMOG Indi]]>0,Q33,AF33)) -> 0 | AR33: =IF(AG33<>0,AG33,IF(ENE[[#This Row],[NMOG Indi]]>0,R33,AG33)) -> 0 | AS33: =IF(AH33<>0,AH33,IF(ENE[[#This Row],[NMOG Indi]]>0,S33,AH33)) -> 0 | AT33: =IF(AI33<>0,AI33,IF(ENE[[#This Row],[NMOG Indi]]>0,T33,AI33)) -> 0 | AU33: =IF(AJ33<>0,AJ33,IF(ENE[[#This Row],[NMOG Indi]]>0,U33,AJ33)) -> 0 | AV33: =IF(AK33<>0,AK33,IF(ENE[[#This Row],[NMOG Indi]]>0,V33,AK33)) -> 0 | AW33: =IF(AL33<>0,AL33,IF(ENE[[#This Row],[NMOG Indi]]>0,W33,AL33)) -> 0 | AX33: =IF(AM33<>0,AM33,IF(ENE[[#This Row],[NMOG Indi]]>0,X33,AM33)) -> 0 | AY33: =IF(AN33<>0,AN33,IF(ENE[[#This Row],[NMOG Indi]]>0,Y33,AN33)) -> 0 | AZ33: =IF(AO33<>0,AO33,IF(ENE[[#This Row],[NMOG Indi]]>0,Z33,AO33)) -> 0 | BA33: 731 | BB33: 2862 | BC33: 542 | BD33: 1574 | BE33: 1574 | BF33: 1574 | BG33: 959 | BH33: 1908 | BI33: 1461 | BJ33: 1613 | BK33: 1674
A34: NAT|Empty | B34: 1|Operating leases | C34: 1 | D34: Vote | E34: The Presidency | F34: 1 | G34: Administration | H34: 1 | I34: Management | J34: Current payments | K34: Goods and services | L34: Operating leases | M34: Operating leases | N34: NAT | O34: Non-transfer | P34: 4494 | Q34: 1750 | R34: 4016 | S34: 1946 | T34: 1946 | U34: 1946 | V34: 4829 | W34: 2003 | X34: 2431 | Y34: 2566 | Z34: 2662 | AA34: 19 | AB34: =IFERROR(MATCH(ENE[[#This Row],[Type of change]],ChangeType,0),0) -> 0 | AP34: =IF(AE34<>0,AE34,IF(ENE[[#This Row],[NMOG Indi]]>0,P34,AE34)) -> 0 | AQ34: =IF(AF34<>0,AF34,IF(ENE[[#This Row],[NMOG Indi]]>0,Q34,AF34)) -> 0 | AR34: =IF(AG34<>0,AG34,IF(ENE[[#This Row],[NMOG Indi]]>0,R34,AG34)) -> 0 | AS34: =IF(AH34<>0,AH34,IF(ENE[[#This Row],[NMOG Indi]]>0,S34,AH34)) -> 0 | AT34: =IF(AI34<>0,AI34,IF(ENE[[#This Row],[NMOG Indi]]>0,T34,AI34)) -> 0 | AU34: =IF(AJ34<>0,AJ34,IF(ENE[[#This Row],[NMOG Indi]]>0,U34,AJ34)) -> 0 | AV34: =IF(AK34<>0,AK34,IF(ENE[[#This Row],[NMOG Indi]]>0,V34,AK34)) -> 0 | AW34: =IF(AL34<>0,AL34,IF(ENE[[#This Row],[NMOG Indi]]>0,W34,AL34)) -> 0 | AX34: =IF(AM34<>0,AM34,IF(ENE[[#This Row],[NMOG Indi]]>0,X34,AM34)) -> 0 | AY34: =IF(AN34<>0,AN34,IF(ENE[[#This Row],[NMOG Indi]]>0,Y34,AN34)) -> 0 | AZ34: =IF(AO34<>0,AO34,IF(ENE[[#This Row],[NMOG Indi]]>0,Z34,AO34)) -> 0 | BA34: 4494 | BB34: 1750 | BC34: 4016 | BD34: 1946 | BE34: 1946 | BF34: 1946 | BG34: 4829 | BH34: 2003 | BI34: 2431 | BJ34: 2566 | BK34: 2662
A35: NAT|Empty | B35: 1|Operating payments | C35: 1 | D35: Vote | E35: The Presidency | F35: 1 | G35: Administration | H35: 1 | I35: Management | J35: Current payments | K35: Goods and services | L35: Operating payments | M35: Operating payments | N35: NAT | O35: Non-transfer | P35: 1562 | Q35: 2204 | R35: 1740 | S35: 1610 | T35: 1610 | U35: 1610 | V35: 2482 | W35: 24043 | X35: 2170 | Y35: 2270 | Z35: 2355 | AA35: 20 | AB35: =IFERROR(MATCH(ENE[[#This Row],[Type of change]],ChangeType,0),0) -> 0 | AP35: =IF(AE35<>0,AE35,IF(ENE[[#This Row],[NMOG Indi]]>0,P35,AE35)) -> 0 | AQ35: =IF(AF35<>0,AF35,IF(ENE[[#This Row],[NMOG Indi]]>0,Q35,AF35)) -> 0 | AR35: =IF(AG35<>0,AG35,IF(ENE[[#This Row],[NMOG Indi]]>0,R35,AG35)) -> 0 | AS35: =IF(AH35<>0,AH35,IF(ENE[[#This Row],[NMOG Indi]]>0,S35,AH35)) -> 0 | AT35: =IF(AI35<>0,AI35,IF(ENE[[#This Row],[NMOG Indi]]>0,T35,AI35)) -> 0 | AU35: =IF(AJ35<>0,AJ35,IF(ENE[[#This Row],[NMOG Indi]]>0,U35,AJ35)) -> 0 | AV35: =IF(AK35<>0,AK35,IF(ENE[[#This Row],[NMOG Indi]]>0,V35,AK35)) -> 0 | AW35: =IF(AL35<>0,AL35,IF(ENE[[#This Row],[NMOG Indi]]>0,W35,AL35)) -> 0 | AX35: =IF(AM35<>0,AM35,IF(ENE[[#This Row],[NMOG Indi]]>0,X35,AM35)) -> 0 | AY35: =IF(AN35<>0,AN35,IF(ENE[[#This Row],[NMOG Indi]]>0,Y35,AN35)) -> 0 | AZ35: =IF(AO35<>0,AO35,IF(ENE[[#This Row],[NMOG Indi]]>0,Z35,AO35)) -> 0 | BA35: 1562 | BB35: 2204 | BC35: 1740 | BD35: 1610 | BE35: 1610 | BF35: 1610 | BG35: 2482 | BH35: 24043 | BI35: 2170 | BJ35: 2270 | BK35: 2355
A36: NAT|Empty | B36: 1|Property payments | C36: 1 | D36: Vote | E36: The Presidency | F36: 1 | G36: Administration | H36: 1 | I36: Management | J36: Current payments | K36: Goods and services | L36: Property payments | M36: Property payments | N36: NAT | O36: Non-transfer | P36: 823 | Q36: 92 | R36: 389 | S36: 214 | T36: 214 | U36: 214 | V36: 31 | W36: 214 | X36: 226 | Y36: 226 | Z36: 237 | AA36: 21 | AB36: =IFERROR(MATCH(ENE[[#This Row],[Type of change]],ChangeType,0),0) -> 0 | AP36: =IF(AE36<>0,AE36,IF(ENE[[#This Row],[NMOG Indi]]>0,P36,AE36)) -> 0 | AQ36: =IF(AF36<>0,AF36,IF(ENE[[#This Row],[NMOG Indi]]>0,Q36,AF36)) -> 0 | AR36: =IF(AG36<>0,AG36,IF(ENE[[#This Row],[NMOG Indi]]>0,R36,AG36)) -> 0 | AS36: =IF(AH36<>0,AH36,IF(ENE[[#This Row],[NMOG Indi]]>0,S36,AH36)) -> 0 | AT36: =IF(AI36<>0,AI36,IF(ENE[[#This Row],[NMOG Indi]]>0,T36,AI36)) -> 0 | AU36: =IF(AJ36<>0,AJ36,IF(ENE[[#This Row],[NMOG Indi]]>0,U36,AJ36)) -> 0 | AV36: =IF(AK36<>0,AK36,IF(ENE[[#This Row],[NMOG Indi]]>0,V36,AK36)) -> 0 | AW36: =IF(AL36<>0,AL36,IF(ENE[[#This Row],[NMOG Indi]]>0,W36,AL36)) -> 0 | AX36: =IF(AM36<>0,AM36,IF(ENE[[#This Row],[NMOG Indi]]>0,X36,AM36)) -> 0 | AY36: =IF(AN36<>0,AN36,IF(ENE[[#This Row],[NMOG Indi]]>0,Y36,AN36)) -> 0 | AZ36: =IF(AO36<>0,AO36,IF(ENE[[#This Row],[NMOG Indi]]>0,Z36,AO36)) -> 0 | BA36: 823 | BB36: 92 | BC36: 389 | BD36: 214 | BE36: 214 | BF36: 214 | BG36: 31 | BH36: 214 | BI36: 226 | BJ36: 226 | BK36: 237
A37: NAT|Empty | B37: 1|Rental and hiring | C37: 1 | D37: Vote | E37: The Presidency | F37: 1 | G37: Administration | H37: 1 | I37: Management | J37: Current payments | K37: Goods and services | L37: Rental and hiring | M37: Rental and hiring | N37: NAT | O37: Non-transfer | P37: 36 | Q37: 44 | R37: 83 | S37: 83 | T37: 83 | U37: 83 | V37: 380 | W37: 68 | X37: 91 | Y37: 104 | Z37: 109 | AA37: 22 | AB37: =IFERROR(MATCH(ENE[[#This Row],[Type of change]],ChangeType,0),0) -> 0 | AP37: =IF(AE37<>0,AE37,IF(ENE[[#This Row],[NMOG Indi]]>0,P37,AE37)) -> 0 | AQ37: =IF(AF37<>0,AF37,IF(ENE[[#This Row],[NMOG Indi]]>0,Q37,AF37)) -> 0 | AR37: =IF(AG37<>0,AG37,IF(ENE[[#This Row],[NMOG Indi]]>0,R37,AG37)) -> 0 | AS37: =IF(AH37<>0,AH37,IF(ENE[[#This Row],[NMOG Indi]]>0,S37,AH37)) -> 0 | AT37: =IF(AI37<>0,AI37,IF(ENE[[#This Row],[NMOG Indi]]>0,T37,AI37)) -> 0 | AU37: =IF(AJ37<>0,AJ37,IF(ENE[[#This Row],[NMOG Indi]]>0,U37,AJ37)) -> 0 | AV37: =IF(AK37<>0,AK37,IF(ENE[[#This Row],[NMOG Indi]]>0,V37,AK37)) -> 0 | AW37: =IF(AL37<>0,AL37,IF(ENE[[#This Row],[NMOG Indi]]>0,W37,AL37)) -> 0 | AX37: =IF(AM37<>0,AM37,IF(ENE[[#This Row],[NMOG Indi]]>0,X37,AM37)) -> 0 | AY37: =IF(AN37<>0,AN37,IF(ENE[[#This Row],[NMOG Indi]]>0,Y37,AN37)) -> 0 | AZ37: =IF(AO37<>0,AO37,IF(ENE[[#This Row],[NMOG Indi]]>0,Z37,AO37)) -> 0 | BA37: 36 | BB37: 44 | BC37: 83 | BD37: 83 | BE37: 83 | BF37: 83 | BG37: 380 | BH37: 68 | BI37: 91 | BJ37: 104 | BK37: 109
A38: NAT|Empty | B38: 1|Training and development | C38: 1 | D38: Vote | E38: The Presidency | F38: 1 | G38: Administration | H38: 1 | I38: Management | J38: Current payments | K38: Goods and services | L38: Training and development | M38: Training and development | N38: NAT | O38: Non-transfer | P38: 3501 | Q38: 3156 | R38: 1036 | S38: 3250 | T38: 3250 | U38: 3250 | V38: 24859 | W38: 3422 | X38: 3761 | Y38: 3970 | Z38: 4118 | AA38: 23 | AB38: =IFERROR(MATCH(ENE[[#This Row],[Type of change]],ChangeType,0),0) -> 0 | AP38: =IF(AE38<>0,AE38,IF(ENE[[#This Row],[NMOG Indi]]>0,P38,AE38)) -> 0 | AQ38: =IF(AF38<>0,AF38,IF(ENE[[#This Row],[NMOG Indi]]>0,Q38,AF38)) -> 0 | AR38: =IF(AG38<>0,AG38,IF(ENE[[#This Row],[NMOG Indi]]>0,R38,AG38)) -> 0 | AS38: =IF(AH38<>0,AH38,IF(ENE[[#This Row],[NMOG Indi]]>0,S38,AH38)) -> 0 | AT38: =IF(AI38<>0,AI38,IF(ENE[[#This Row],[NMOG Indi]]>0,T38,AI38)) -> 0 | AU38: =IF(AJ38<>0,AJ38,IF(ENE[[#This Row],[NMOG Indi]]>0,U38,AJ38)) -> 0 | AV38: =IF(AK38<>0,AK38,IF(ENE[[#This Row],[NMOG Indi]]>0,V38,AK38)) -> 0 | AW38: =IF(AL38<>0,AL38,IF(ENE[[#This Row],[NMOG Indi]]>0,W38,AL38)) -> 0 | AX38: =IF(AM38<>0,AM38,IF(ENE[[#This Row],[NMOG Indi]]>0,X38,AM38)) -> 0 | AY38: =IF(AN38<>0,AN38,IF(ENE[[#This Row],[NMOG Indi]]>0,Y38,AN38)) -> 0 | AZ38: =IF(AO38<>0,AO38,IF(ENE[[#This Row],[NMOG Indi]]>0,Z38,AO38)) -> 0 | BA38: 3501 | BB38: 3156 | BC38: 1036 | BD38: 3250 | BE38: 3250 | BF38: 3250 | BG38: 24859 | BH38: 3422 | BI38: 3761 | BJ38: 3970 | BK38: 4118
A39: NAT|Empty | B39: 1|Travel and subsistence | C39: 1 | D39: Vote | E39: The Presidency | F39: 1 | G39: Administration | H39: 1 | I39: Management | J39: Current payments | K39: Goods and services | L39: Travel and subsistence | M39: Travel and subsistence | N39: NAT | O39: Non-transfer | P39: 33631 | Q39: 19265 | R39: 27142 | S39: 25882 | T39: 25882 | U39: 25882 | V39: 0 | W39: 77327 | X39: 40038 | Y39: 48810 | Z39: 50657 | AA39: 24 | AB39: =IFERROR(MATCH(ENE[[#This Row],[Type of change]],ChangeType,0),0) -> 0 | AP39: =IF(AE39<>0,AE39,IF(ENE[[#This Row],[NMOG Indi]]>0,P39,AE39)) -> 0 | AQ39: =IF(AF39<>0,AF39,IF(ENE[[#This Row],[NMOG Indi]]>0,Q39,AF39)) -> 0 | AR39: =IF(AG39<>0,AG39,IF(ENE[[#This Row],[NMOG Indi]]>0,R39,AG39)) -> 0 | AS39: =IF(AH39<>0,AH39,IF(ENE[[#This Row],[NMOG Indi]]>0,S39,AH39)) -> 0 | AT39: =IF(AI39<>0,AI39,IF(ENE[[#This Row],[NMOG Indi]]>0,T39,AI39)) -> 0 | AU39: =IF(AJ39<>0,AJ39,IF(ENE[[#This Row],[NMOG Indi]]>0,U39,AJ39)) -> 0 | AV39: =IF(AK39<>0,AK39,IF(ENE[[#This Row],[NMOG Indi]]>0,V39,AK39)) -> 0 | AW39: =IF(AL39<>0,AL39,IF(ENE[[#This Row],[NMOG Indi]]>0,W39,AL39)) -> 0 | AX39: =IF(AM39<>0,AM39,IF(ENE[[#This Row],[NMOG Indi]]>0,X39,AM39)) -> 0 | AY39: =IF(AN39<>0,AN39,IF(ENE[[#This Row],[NMOG Indi]]>0,Y39,AN39)) -> 0 | AZ39: =IF(AO39<>0,AO39,IF(ENE[[#This Row],[NMOG Indi]]>0,Z39,AO39)) -> 0 | BA39: 33631 | BB39: 19265 | BC39: 27142 | BD39: 25882 | BE39: 25882 | BF39: 25882 | BG39: 0 | BH39: 77327 | BI39: 40038 | BJ39: 48810 | BK39: 50657
A40: NAT|Empty | B40: 1|Venues and facilities | C40: 1 | D40: Vote | E40: The Presidency | F40: 1 | G40: Administration | H40: 1 | I40: Management | J40: Current payments | K40: Goods and services | L40: Venues and facilities | M40: Venues and facilities | N40: NAT | O40: Non-transfer | P40: 900 | Q40: 542 | R40: 329 | S40: 453 | T40: 453 | U40: 453 | V40: 1257 | W40: 324 | X40: 0 | Y40: 0 | Z40: 0 | AA40: 25 | AB40: =IFERROR(MATCH(ENE[[#This Row],[Type of change]],ChangeType,0),0) -> 0 | AP40: =IF(AE40<>0,AE40,IF(ENE[[#This Row],[NMOG Indi]]>0,P40,AE40)) -> 0 | AQ40: =IF(AF40<>0,AF40,IF(ENE[[#This Row],[NMOG Indi]]>0,Q40,AF40)) -> 0 | AR40: =IF(AG40<>0,AG40,IF(ENE[[#This Row],[NMOG Indi]]>0,R40,AG40)) -> 0 | AS40: =IF(AH40<>0,AH40,IF(ENE[[#This Row],[NMOG Indi]]>0,S40,AH40)) -> 0 | AT40: =IF(AI40<>0,AI40,IF(ENE[[#This Row],[NMOG Indi]]>0,T40,AI40)) -> 0 | AU40: =IF(AJ40<>0,AJ40,IF(ENE[[#This Row],[NMOG Indi]]>0,U40,AJ40)) -> 0 | AV40: =IF(AK40<>0,AK40,IF(ENE[[#This Row],[NMOG Indi]]>0,V40,AK40)) -> 0 | AW40: =IF(AL40<>0,AL40,IF(ENE[[#This Row],[NMOG Indi]]>0,W40,AL40)) -> 0 | AX40: =IF(AM40<>0,AM40,IF(ENE[[#This Row],[NMOG Indi]]>0,X40,AM40)) -> 0 | AY40: =IF(AN40<>0,AN40,IF(ENE[[#This Row],[NMOG Indi]]>0,Y40,AN40)) -> 0 | AZ40: =IF(AO40<>0,AO40,IF(ENE[[#This Row],[NMOG Indi]]>0,Z40,AO40)) -> 0 | BA40: 900 | BB40: 542 | BC40: 329 | BD40: 453 | BE40: 453 | BF40: 453 | BG40: 1257 | BH40: 324 | BI40: 0 | BJ40: 0 | BK40: 0
A41: NAT|Empty | B41: 1|Interest (Incl. interest on unitary payments (PPP)) | C41: 1 | D41: Vote | E41: The Presidency | F41: 1 | G41: Administration | H41: 1 | I41: Management | J41: Current payments | K41: Interest and rent on land | L41: Interest (Incl. interest on unitary payments (PPP)) | M41: Interest (Incl. interest on unitary payments (PPP)) | N41: NAT | O41: Non-transfer | P41: 46 | Q41: 0 | R41: 0 | S41: 0 | T41: 0 | U41: 0 | V41: 0 | W41: 0 | X41: 0 | Y41: 0 | Z41: 0 | AA41: 26 | AB41: =IFERROR(MATCH(ENE[[#This Row],[Type of change]],ChangeType,0),0) -> 0 | AP41: =IF(AE41<>0,AE41,IF(ENE[[#This Row],[NMOG Indi]]>0,P41,AE41)) -> 0 | AQ41: =IF(AF41<>0,AF41,IF(ENE[[#This Row],[NMOG Indi]]>0,Q41,AF41)) -> 0 | AR41: =IF(AG41<>0,AG41,IF(ENE[[#This Row],[NMOG Indi]]>0,R41,AG41)) -> 0 | AS41: =IF(AH41<>0,AH41,IF(ENE[[#This Row],[NMOG Indi]]>0,S41,AH41)) -> 0 | AT41: =IF(AI41<>0,AI41,IF(ENE[[#This Row],[NMOG Indi]]>0,T41,AI41)) -> 0 | AU41: =IF(AJ41<>0,AJ41,IF(ENE[[#This Row],[NMOG Indi]]>0,U41,AJ41)) -> 0 | AV41: =IF(AK41<>0,AK41,IF(ENE[[#This Row],[NMOG Indi]]>0,V41,AK41)) -> 0 | AW41: =IF(AL41<>0,AL41,IF(ENE[[#This Row],[NMOG Indi]]>0,W41,AL41)) -> 0 | AX41: =IF(AM41<>0,AM41,IF(ENE[[#This Row],[NMOG Indi]]>0,X41,AM41)) -> 0 | AY41: =IF(AN41<>0,AN41,IF(ENE[[#This Row],[NMOG Indi]]>0,Y41,AN41)) -> 0 | AZ41: =IF(AO41<>0,AO41,IF(ENE[[#This Row],[NMOG Indi]]>0,Z41,AO41)) -> 0 | BA41: 46 | BB41: 0 | BC41: 0 | BD41: 0 | BE41: 0 | BF41: 0 | BG41: 0 | BH41: 0 | BI41: 0 | BJ41: 0 | BK41: 0
A42: NAT|Empty | B42: 1|Other machinery and equipment | C42: 1 | D42: Vote | E42: The Presidency | F42: 1 | G42: Administration | H42: 1 | I42: Management | J42: Payments for capital assets | K42: Machinery and equipment | L42: Other machinery and equipment | M42: Other machinery and equipment | N42: NAT | O42: Non-transfer | P42: 9366 | Q42: 10331 | R42: 16066 | S42: 8440 | T42: 8440 | U42: 8440 | V42: 12276 | W42: 8964 | X42: 9390 | Y42: 9864 | Z42: 10426 | AA42: 27 | AB42: =IFERROR(MATCH(ENE[[#This Row],[Type of change]],ChangeType,0),0) -> 0 | AP42: =IF(AE42<>0,AE42,IF(ENE[[#This Row],[NMOG Indi]]>0,P42,AE42)) -> 0 | AQ42: =IF(AF42<>0,AF42,IF(ENE[[#This Row],[NMOG Indi]]>0,Q42,AF42)) -> 0 | AR42: =IF(AG42<>0,AG42,IF(ENE[[#This Row],[NMOG Indi]]>0,R42,AG42)) -> 0 | AS42: =IF(AH42<>0,AH42,IF(ENE[[#This Row],[NMOG Indi]]>0,S42,AH42)) -> 0 | AT42: =IF(AI42<>0,AI42,IF(ENE[[#This Row],[NMOG Indi]]>0,T42,AI42)) -> 0 | AU42: =IF(AJ42<>0,AJ42,IF(ENE[[#This Row],[NMOG Indi]]>0,U42,AJ42)) -> 0 | AV42: =IF(AK42<>0,AK42,IF(ENE[[#This Row],[NMOG Indi]]>0,V42,AK42)) -> 0 | AW42: =IF(AL42<>0,AL42,IF(ENE[[#This Row],[NMOG Indi]]>0,W42,AL42)) -> 0 | AX42: =IF(AM42<>0,AM42,IF(ENE[[#This Row],[NMOG Indi]]>0,X42,AM42)) -> 0 | AY42: =IF(AN42<>0,AN42,IF(ENE[[#This Row],[NMOG Indi]]>0,Y42,AN42)) -> 0 | AZ42: =IF(AO42<>0,AO42,IF(ENE[[#This Row],[NMOG Indi]]>0,Z42,AO42)) -> 0 | BA42: 9366 | BB42: 10331 | BC42: 16066 | BD42: 8440 | BE42: 8440 | BF42: 8440 | BG42: 12276 | BH42: 8964 | BI42: 9390 | BJ42: 9864 | BK42: 10426
A43: NAT|Empty | B43: 1|Transport equipment | C43: 1 | D43: Vote | E43: The Presidency | F43: 1 | G43: Administration | H43: 1 | I43: Management | J43: Payments for capital assets | K43: Machinery and equipment | L43: Transport equipment | M43: Transport equipment | N43: NAT | O43: Non-transfer | P43: 821 | Q43: 1185 | R43: 0 | S43: 1254 | T43: 1254 | U43: 1254 | V43: 741 | W43: 1228 | X43: 1255 | Y43: 1367 | Z43: 1418 | AA43: 28 | AB43: =IFERROR(MATCH(ENE[[#This Row],[Type of change]],ChangeType,0),0) -> 0 | AP43: =IF(AE43<>0,AE43,IF(ENE[[#This Row],[NMOG Indi]]>0,P43,AE43)) -> 0 | AQ43: =IF(AF43<>0,AF43,IF(ENE[[#This Row],[NMOG Indi]]>0,Q43,AF43)) -> 0 | AR43: =IF(AG43<>0,AG43,IF(ENE[[#This Row],[NMOG Indi]]>0,R43,AG43)) -> 0 | AS43: =IF(AH43<>0,AH43,IF(ENE[[#This Row],[NMOG Indi]]>0,S43,AH43)) -> 0 | AT43: =IF(AI43<>0,AI43,IF(ENE[[#This Row],[NMOG Indi]]>0,T43,AI43)) -> 0 | AU43: =IF(AJ43<>0,AJ43,IF(ENE[[#This Row],[NMOG Indi]]>0,U43,AJ43)) -> 0 | AV43: =IF(AK43<>0,AK43,IF(ENE[[#This Row],[NMOG Indi]]>0,V43,AK43)) -> 0 | AW43: =IF(AL43<>0,AL43,IF(ENE[[#This Row],[NMOG Indi]]>0,W43,AL43)) -> 0 | AX43: =IF(AM43<>0,AM43,IF(ENE[[#This Row],[NMOG Indi]]>0,X43,AM43)) -> 0 | AY43: =IF(AN43<>0,AN43,IF(ENE[[#This Row],[NMOG Indi]]>0,Y43,AN43)) -> 0 | AZ43: =IF(AO43<>0,AO43,IF(ENE[[#This Row],[NMOG Indi]]>0,Z43,AO43)) -> 0 | BA43: 821 | BB43: 1185 | BC43: 0 | BD43: 1254 | BE43: 1254 | BF43: 1254 | BG43: 741 | BH43: 1228 | BI43: 1255 | BJ43: 1367 | BK43: 1418
A44: NAT|Empty | B44: 1|Software and other intangible assets | C44: 1 | D44: Vote | E44: The Presidency | F44: 1 | G44: Administration | H44: 1 | I44: Management | J44: Payments for capital assets | K44: Software and other intangible assets | L44: Software and other intangible assets | M44: Software and other intangible assets | N44: NAT | O44: Non-transfer | P44: 0 | Q44: 0 | R44: 144 | S44: 0 | T44: 0 | U44: 0 | V44: 265 | W44: 0 | X44: 0 | Y44: 0 | Z44: 0 | AA44: 29 | AB44: =IFERROR(MATCH(ENE[[#This Row],[Type of change]],ChangeType,0),0) -> 0 | AP44: =IF(AE44<>0,AE44,IF(ENE[[#This Row],[NMOG Indi]]>0,P44,AE44)) -> 0 | AQ44: =IF(AF44<>0,AF44,IF(ENE[[#This Row],[NMOG Indi]]>0,Q44,AF44)) -> 0 | AR44: =IF(AG44<>0,AG44,IF(ENE[[#This Row],[NMOG Indi]]>0,R44,AG44)) -> 0 | AS44: =IF(AH44<>0,AH44,IF(ENE[[#This Row],[NMOG Indi]]>0,S44,AH44)) -> 0 | AT44: =IF(AI44<>0,AI44,IF(ENE[[#This Row],[NMOG Indi]]>0,T44,AI44)) -> 0 | AU44: =IF(AJ44<>0,AJ44,IF(ENE[[#This Row],[NMOG Indi]]>0,U44,AJ44)) -> 0 | AV44: =IF(AK44<>0,AK44,IF(ENE[[#This Row],[NMOG Indi]]>0,V44,AK44)) -> 0 | AW44: =IF(AL44<>0,AL44,IF(ENE[[#This Row],[NMOG Indi]]>0,W44,AL44)) -> 0 | AX44: =IF(AM44<>0,AM44,IF(ENE[[#This Row],[NMOG Indi]]>0,X44,AM44)) -> 0 | AY44: =IF(AN44<>0,AN44,IF(ENE[[#This Row],[NMOG Indi]]>0,Y44,AN44)) -> 0 | AZ44: =IF(AO44<>0,AO44,IF(ENE[[#This Row],[NMOG Indi]]>0,Z44,AO44)) -> 0 | BA44: 0 | BB44: 0 | BC44: 144 | BD44: 0 | BE44: 0 | BF44: 0 | BG44: 265 | BH44: 0 | BI44: 0 | BJ44: 0 | BK44: 0
A45: NAT|Municipal services | B45: 1|Municipal bank accounts | C45: 1 | D45: Vote | E45: The Presidency | F45: 1 | G45: Administration | H45: 1 | I45: Management | J45: Transfers and subsidies | K45: Provinces and municipalities | L45: Municipalities | M45: Municipal bank accounts | N45: NAT | O45: Municipal services | P45: 3 | Q45: 5 | R45: 10 | S45: 0 | T45: 0 | U45: 0 | V45: 6 | W45: 0 | X45: 0 | Y45: 0 | Z45: 0 | AA45: 30 | AB45: =IFERROR(MATCH(ENE[[#This Row],[Type of change]],ChangeType,0),0) -> 0 | AP45: =IF(AE45<>0,AE45,IF(ENE[[#This Row],[NMOG Indi]]>0,P45,AE45)) -> 0 | AQ45: =IF(AF45<>0,AF45,IF(ENE[[#This Row],[NMOG Indi]]>0,Q45,AF45)) -> 0 | AR45: =IF(AG45<>0,AG45,IF(ENE[[#This Row],[NMOG Indi]]>0,R45,AG45)) -> 0 | AS45: =IF(AH45<>0,AH45,IF(ENE[[#This Row],[NMOG Indi]]>0,S45,AH45)) -> 0 | AT45: =IF(AI45<>0,AI45,IF(ENE[[#This Row],[NMOG Indi]]>0,T45,AI45)) -> 0 | AU45: =IF(AJ45<>0,AJ45,IF(ENE[[#This Row],[NMOG Indi]]>0,U45,AJ45)) -> 0 | AV45: =IF(AK45<>0,AK45,IF(ENE[[#This Row],[NMOG Indi]]>0,V45,AK45)) -> 0 | AW45: =IF(AL45<>0,AL45,IF(ENE[[#This Row],[NMOG Indi]]>0,W45,AL45)) -> 0 | AX45: =IF(AM45<>0,AM45,IF(ENE[[#This Row],[NMOG Indi]]>0,X45,AM45)) -> 0 | AY45: =IF(AN45<>0,AN45,IF(ENE[[#This Row],[NMOG Indi]]>0,Y45,AN45)) -> 0 | AZ45: =IF(AO45<>0,AO45,IF(ENE[[#This Row],[NMOG Indi]]>0,Z45,AO45)) -> 0 | BA45: 3 | BB45: 5 | BC45: 10 | BD45: 0 | BE45: 0 | BF45: 0 | BG45: 6 | BH45: 0 | BI45: 0 | BJ45: 0 | BK45: 0
A46: NAT|Employee social benefits | B46: 1|Other transfers to households | C46: 1 | D46: Vote | E46: The Presidency | F46: 1 | G46: Administration | H46: 1 | I46: Management | J46: Transfers and subsidies | K46: Households | L46: Other transfers to households | M46: Other transfers to households | N46: NAT | O46: Employee social benefits | P46: 204 | Q46: 0 | R46: 40 | S46: 0 | T46: 31 | U46: 31 | V46: 40 | W46: 0 | X46: 0 | Y46: 0 | Z46: 0 | AA46: 31 | AB46: =IFERROR(MATCH(ENE[[#This Row],[Type of change]],ChangeType,0),0) -> 0 | AP46: =IF(AE46<>0,AE46,IF(ENE[[#This Row],[NMOG Indi]]>0,P46,AE46)) -> 0 | AQ46: =IF(AF46<>0,AF46,IF(ENE[[#This Row],[NMOG Indi]]>0,Q46,AF46)) -> 0 | AR46: =IF(AG46<>0,AG46,IF(ENE[[#This Row],[NMOG Indi]]>0,R46,AG46)) -> 0 | AS46: =IF(AH46<>0,AH46,IF(ENE[[#This Row],[NMOG Indi]]>0,S46,AH46)) -> 0 | AT46: =IF(AI46<>0,AI46,IF(ENE[[#This Row],[NMOG Indi]]>0,T46,AI46)) -> 0 | AU46: =IF(AJ46<>0,AJ46,IF(ENE[[#This Row],[NMOG Indi]]>0,U46,AJ46)) -> 0 | AV46: =IF(AK46<>0,AK46,IF(ENE[[#This Row],[NMOG Indi]]>0,V46,AK46)) -> 0 | AW46: =IF(AL46<>0,AL46,IF(ENE[[#This Row],[NMOG Indi]]>0,W46,AL46)) -> 0 | AX46: =IF(AM46<>0,AM46,IF(ENE[[#This Row],[NMOG Indi]]>0,X46,AM46)) -> 0 | AY46: =IF(AN46<>0,AN46,IF(ENE[[#This Row],[NMOG Indi]]>0,Y46,AN46)) -> 0 | AZ46: =IF(AO46<>0,AO46,IF(ENE[[#This Row],[NMOG Indi]]>0,Z46,AO46)) -> 0 | BA46: 204 | BB46: 0 | BC46: 40 | BD46: 0 | BE46: 31 | BF46: 31 | BG46: 40 | BH46: 0 | BI46: 0 | BJ46: 0 | BK46: 0
A47: NAT|Employee social benefits | B47: 1|Social benefits | C47: 1 | D47: Vote | E47: The Presidency | F47: 1 | G47: Administration | H47: 1 | I47: Management | J47: Transfers and subsidies | K47: Households | L47: Social benefits | M47: Social benefits | N47: NAT | O47: Employee social benefits | P47: 2240 | Q47: 3155 | R47: 3430 | S47: 0 | T47: 812 | U47: 812 | V47: 984 | W47: 0 | X47: 0 | Y47: 0 | Z47: 0 | AA47: 32 | AB47: =IFERROR(MATCH(ENE[[#This Row],[Type of change]],ChangeType,0),0) -> 0 | AP47: =IF(AE47<>0,AE47,IF(ENE[[#This Row],[NMOG Indi]]>0,P47,AE47)) -> 0 | AQ47: =IF(AF47<>0,AF47,IF(ENE[[#This Row],[NMOG Indi]]>0,Q47,AF47)) -> 0 | AR47: =IF(AG47<>0,AG47,IF(ENE[[#This Row],[NMOG Indi]]>0,R47,AG47)) -> 0 | AS47: =IF(AH47<>0,AH47,IF(ENE[[#This Row],[NMOG Indi]]>0,S47,AH47)) -> 0 | AT47: =IF(AI47<>0,AI47,IF(ENE[[#This Row],[NMOG Indi]]>0,T47,AI47)) -> 0 | AU47: =IF(AJ47<>0,AJ47,IF(ENE[[#This Row],[NMOG Indi]]>0,U47,AJ47)) -> 0 | AV47: =IF(AK47<>0,AK47,IF(ENE[[#This Row],[NMOG Indi]]>0,V47,AK47)) -> 0 | AW47: =IF(AL47<>0,AL47,IF(ENE[[#This Row],[NMOG Indi]]>0,W47,AL47)) -> 0 | AX47: =IF(AM47<>0,AM47,IF(ENE[[#This Row],[NMOG Indi]]>0,X47,AM47)) -> 0 | AY47: =IF(AN47<>0,AN47,IF(ENE[[#This Row],[NMOG Indi]]>0,Y47,AN47)) -> 0 | AZ47: =IF(AO47<>0,AO47,IF(ENE[[#This Row],[NMOG Indi]]>0,Z47,AO47)) -> 0 | BA47: 2240 | BB47: 3155 | BC47: 3430 | BD47: 0 | BE47: 812 | BF47: 812 | BG47: 984 | BH47: 0 | BI47: 0 | BJ47: 0 | BK47: 0
A48: NAT|Communications | B48: 1|Departmental agencies (non-business entities) | C48: 1 | D48: Vote | E48: The Presidency | F48: 1 | G48: Administration | H48: 1 | I48: Management | J48: Transfers and subsidies | K48: Departmental agencies and accounts | L48: Departmental agencies (non-business entities) | M48: Departmental agencies (non-business entities) | N48: NAT | O48: Communications | P48: 0 | Q48: 36 | R48: 0 | S48: 38 | T48: 38 | U48: 38 | V48: 0 | W48: 40 | X48: 42 | Y48: 44 | Z48: 46 | AA48: 33 | AB48: =IFERROR(MATCH(ENE[[#This Row],[Type of change]],ChangeType,0),0) -> 0 | AP48: =IF(AE48<>0,AE48,IF(ENE[[#This Row],[NMOG Indi]]>0,P48,AE48)) -> 0 | AQ48: =IF(AF48<>0,AF48,IF(ENE[[#This Row],[NMOG Indi]]>0,Q48,AF48)) -> 0 | AR48: =IF(AG48<>0,AG48,IF(ENE[[#This Row],[NMOG Indi]]>0,R48,AG48)) -> 0 | AS48: =IF(AH48<>0,AH48,IF(ENE[[#This Row],[NMOG Indi]]>0,S48,AH48)) -> 0 | AT48: =IF(AI48<>0,AI48,IF(ENE[[#This Row],[NMOG Indi]]>0,T48,AI48)) -> 0 | AU48: =IF(AJ48<>0,AJ48,IF(ENE[[#This Row],[NMOG Indi]]>0,U48,AJ48)) -> 0 | AV48: =IF(AK48<>0,AK48,IF(ENE[[#This Row],[NMOG Indi]]>0,V48,AK48)) -> 0 | AW48: =IF(AL48<>0,AL48,IF(ENE[[#This Row],[NMOG Indi]]>0,W48,AL48)) -> 0 | AX48: =IF(AM48<>0,AM48,IF(ENE[[#This Row],[NMOG Indi]]>0,X48,AM48)) -> 0 | AY48: =IF(AN48<>0,AN48,IF(ENE[[#This Row],[NMOG Indi]]>0,Y48,AN48)) -> 0 | AZ48: =IF(AO48<>0,AO48,IF(ENE[[#This Row],[NMOG Indi]]>0,Z48,AO48)) -> 0 | BA48: 0 | BB48: 36 | BC48: 0 | BD48: 38 | BE48: 38 | BF48: 38 | BG48: 0 | BH48: 40 | BI48: 42 | BJ48: 44 | BK48: 46
A49: NAT|Public corporations and private enterprises | B49: 1|Other transfers to private enterprises | C49: 1 | D49: Vote | E49: The Presidency | F49: 1 | G49: Administration | H49: 1 | I49: Management | J49: Transfers and subsidies | K49: Public corporations and private enterprises | L49: Private enterprises | M49: Other transfers to private enterprises | N49: NAT | O49: Public corporations and private enterprises | P49: 42 | Q49: 0 | R49: 0 | S49: 0 | T49: 0 | U49: 0 | V49: 0 | W49: 0 | X49: 0 | Y49: 0 | Z49: 0 | AA49: 34 | AB49: =IFERROR(MATCH(ENE[[#This Row],[Type of change]],ChangeType,0),0) -> 0 | AP49: =IF(AE49<>0,AE49,IF(ENE[[#This Row],[NMOG Indi]]>0,P49,AE49)) -> 0 | AQ49: =IF(AF49<>0,AF49,IF(ENE[[#This Row],[NMOG Indi]]>0,Q49,AF49)) -> 0 | AR49: =IF(AG49<>0,AG49,IF(ENE[[#This Row],[NMOG Indi]]>0,R49,AG49)) -> 0 | AS49: =IF(AH49<>0,AH49,IF(ENE[[#This Row],[NMOG Indi]]>0,S49,AH49)) -> 0 | AT49: =IF(AI49<>0,AI49,IF(ENE[[#This Row],[NMOG Indi]]>0,T49,AI49)) -> 0 | AU49: =IF(AJ49<>0,AJ49,IF(ENE[[#This Row],[NMOG Indi]]>0,U49,AJ49)) -> 0 | AV49: =IF(AK49<>0,AK49,IF(ENE[[#This Row],[NMOG Indi]]>0,V49,AK49)) -> 0 | AW49: =IF(AL49<>0,AL49,IF(ENE[[#This Row],[NMOG Indi]]>0,W49,AL49)) -> 0 | AX49: =IF(AM49<>0,AM49,IF(ENE[[#This Row],[NMOG Indi]]>0,X49,AM49)) -> 0 | AY49: =IF(AN49<>0,AN49,IF(ENE[[#This Row],[NMOG Indi]]>0,Y49,AN49)) -> 0 | AZ49: =IF(AO49<>0,AO49,IF(ENE[[#This Row],[NMOG Indi]]>0,Z49,AO49)) -> 0 | BA49: 42 | BB49: 0 | BC49: 0 | BD49: 0 | BE49: 0 | BF49: 0 | BG49: 0 | BH49: 0 | BI49: 0 | BJ49: 0 | BK49: 0
A50: NAT|Thefts and losses | B50: 1|Payments for financial assets | C50: 1 | D50: Vote | E50: The Presidency | F50: 1 | G50: Administration | H50: 1 | I50: Management | J50: Payments for financial assets | K50: Payments for financial assets | L50: Payments for financial assets | M50: Payments for financial assets | N50: NAT | O50: Thefts and losses | P50: 799 | Q50: 0 | R50: 783 | S50: 0 | T50: 0 | U50: 0 | V50: 355 | W50: 0 | X50: 0 | Y50: 0 | Z50: 0 | AA50: 35 | AB50: =IFERROR(MATCH(ENE[[#This Row],[Type of change]],ChangeType,0),0) -> 0 | AP50: =IF(AE50<>0,AE50,IF(ENE[[#This Row],[NMOG Indi]]>0,P50,AE50)) -> 0 | AQ50: =IF(AF50<>0,AF50,IF(ENE[[#This Row],[NMOG Indi]]>0,Q50,AF50)) -> 0 | AR50: =IF(AG50<>0,AG50,IF(ENE[[#This Row],[NMOG Indi]]>0,R50,AG50)) -> 0 | AS50: =IF(AH50<>0,AH50,IF(ENE[[#This Row],[NMOG Indi]]>0,S50,AH50)) -> 0 | AT50: =IF(AI50<>0,AI50,IF(ENE[[#This Row],[NMOG Indi]]>0,T50,AI50)) -> 0 | AU50: =IF(AJ50<>0,AJ50,IF(ENE[[#This Row],[NMOG Indi]]>0,U50,AJ50)) -> 0 | AV50: =IF(AK50<>0,AK50,IF(ENE[[#This Row],[NMOG Indi]]>0,V50,AK50)) -> 0 | AW50: =IF(AL50<>0,AL50,IF(ENE[[#This Row],[NMOG Indi]]>0,W50,AL50)) -> 0 | AX50: =IF(AM50<>0,AM50,IF(ENE[[#This Row],[NMOG Indi]]>0,X50,AM50)) -> 0 | AY50: =IF(AN50<>0,AN50,IF(ENE[[#This Row],[NMOG Indi]]>0,Y50,AN50)) -> 0 | AZ50: =IF(AO50<>0,AO50,IF(ENE[[#This Row],[NMOG Indi]]>0,Z50,AO50)) -> 0 | BA50: 799 | BB50: 0 | BC50: 783 | BD50: 0 | BE50: 0 | BF50: 0 | BG50: 355 | BH50: 0 | BI50: 0 | BJ50: 0 | BK50: 0
A51: NAT|Empty | B51: 1|Salaries and wages | C51: 1 | D51: Vote | E51: The Presidency | F51: 1 | G51: Administration | H51: 2 | I51: Support Services to the President | J51: Current payments | K51: Compensation of employees | L51: Salaries and wages | M51: Salaries and wages | N51: NAT | O51: Non-transfer | P51: 39323 | Q51: 33800 | R51: 36930 | S51: 35645 | T51: 35036 | U51: 35036 | V51: 38980 | W51: 38121 | X51: 40707 | Y51: 43445 | Z51: 45057 | AA51: 36 | AB51: =IFERROR(MATCH(ENE[[#This Row],[Type of change]],ChangeType,0),0) -> 0 | AP51: =IF(AE51<>0,AE51,IF(ENE[[#This Row],[NMOG Indi]]>0,P51,AE51)) -> 0 | AQ51: =IF(AF51<>0,AF51,IF(ENE[[#This Row],[NMOG Indi]]>0,Q51,AF51)) -> 0 | AR51: =IF(AG51<>0,AG51,IF(ENE[[#This Row],[NMOG Indi]]>0,R51,AG51)) -> 0 | AS51: =IF(AH51<>0,AH51,IF(ENE[[#This Row],[NMOG Indi]]>0,S51,AH51)) -> 0 | AT51: =IF(AI51<>0,AI51,IF(ENE[[#This Row],[NMOG Indi]]>0,T51,AI51)) -> 0 | AU51: =IF(AJ51<>0,AJ51,IF(ENE[[#This Row],[NMOG Indi]]>0,U51,AJ51)) -> 0 | AV51: =IF(AK51<>0,AK51,IF(ENE[[#This Row],[NMOG Indi]]>0,V51,AK51)) -> 0 | AW51: =IF(AL51<>0,AL51,IF(ENE[[#This Row],[NMOG Indi]]>0,W51,AL51)) -> 0 | AX51: =IF(AM51<>0,AM51,IF(ENE[[#This Row],[NMOG Indi]]>0,X51,AM51)) -> 0 | AY51: =IF(AN51<>0,AN51,IF(ENE[[#This Row],[NMOG Indi]]>0,Y51,AN51)) -> 0 | AZ51: =IF(AO51<>0,AO51,IF(ENE[[#This Row],[NMOG Indi]]>0,Z51,AO51)) -> 0 | BA51: 39323 | BB51: 33800 | BC51: 36930 | BD51: 35645 | BE51: 35036 | BF51: 35036 | BG51: 38980 | BH51: 38121 | BI51: 40707 | BJ51: 43445 | BK51: 45057
A52: NAT|Empty | B52: 1|Social contributions | C52: 1 | D52: Vote | E52: The Presidency | F52: 1 | G52: Administration | H52: 2 | I52: Support Services to the President | J52: Current payments | K52: Compensation of employees | L52: Social contributions | M52: Social contributions | N52: NAT | O52: Non-transfer | P52: 3305 | Q52: 5488 | R52: 3182 | S52: 5943 | T52: 5943 | U52: 5943 | V52: 3186 | W52: 6395 | X52: 6875 | Y52: 7322 | Z52: 7595 | AA52: 37 | AB52: =IFERROR(MATCH(ENE[[#This Row],[Type of change]],ChangeType,0),0) -> 0 | AP52: =IF(AE52<>0,AE52,IF(ENE[[#This Row],[NMOG Indi]]>0,P52,AE52)) -> 0 | AQ52: =IF(AF52<>0,AF52,IF(ENE[[#This Row],[NMOG Indi]]>0,Q52,AF52)) -> 0 | AR52: =IF(AG52<>0,AG52,IF(ENE[[#This Row],[NMOG Indi]]>0,R52,AG52)) -> 0 | AS52: =IF(AH52<>0,AH52,IF(ENE[[#This Row],[NMOG Indi]]>0,S52,AH52)) -> 0 | AT52: =IF(AI52<>0,AI52,IF(ENE[[#This Row],[NMOG Indi]]>0,T52,AI52)) -> 0 | AU52: =IF(AJ52<>0,AJ52,IF(ENE[[#This Row],[NMOG Indi]]>0,U52,AJ52)) -> 0 | AV52: =IF(AK52<>0,AK52,IF(ENE[[#This Row],[NMOG Indi]]>0,V52,AK52)) -> 0 | AW52: =IF(AL52<>0,AL52,IF(ENE[[#This Row],[NMOG Indi]]>0,W52,AL52)) -> 0 | AX52: =IF(AM52<>0,AM52,IF(ENE[[#This Row],[NMOG Indi]]>0,X52,AM52)) -> 0 | AY52: =IF(AN52<>0,AN52,IF(ENE[[#This Row],[NMOG Indi]]>0,Y52,AN52)) -> 0 | AZ52: =IF(AO52<>0,AO52,IF(ENE[[#This Row],[NMOG Indi]]>0,Z52,AO52)) -> 0 | BA52: 3305 | BB52: 5488 | BC52: 3182 | BD52: 5943 | BE52: 5943 | BF52: 5943 | BG52: 3186 | BH52: 6395 | BI52: 6875 | BJ52: 7322 | BK52: 7595
A53: NAT|Empty | B53: 1|Administrative fees | C53: 1 | D53: Vote | E53: The Presidency | F53: 1 | G53: Administration | H53: 2 | I53: Support Services to the President | J53: Current payments | K53: Goods and services | L53: Administrative fees | M53: Administrative fees | N53: NAT | O53: Non-transfer | P53: 722 | Q53: 582 | R53: 696 | S53: 613 | T53: 613 | U53: 613 | V53: 397 | W53: 651 | X53: 687 | Y53: 725 | Z53: 751 | AA53: 38 | AB53: =IFERROR(MATCH(ENE[[#This Row],[Type of change]],ChangeType,0),0) -> 0 | AP53: =IF(AE53<>0,AE53,IF(ENE[[#This Row],[NMOG Indi]]>0,P53,AE53)) -> 0 | AQ53: =IF(AF53<>0,AF53,IF(ENE[[#This Row],[NMOG Indi]]>0,Q53,AF53)) -> 0 | AR53: =IF(AG53<>0,AG53,IF(ENE[[#This Row],[NMOG Indi]]>0,R53,AG53)) -> 0 | AS53: =IF(AH53<>0,AH53,IF(ENE[[#This Row],[NMOG Indi]]>0,S53,AH53)) -> 0 | AT53: =IF(AI53<>0,AI53,IF(ENE[[#This Row],[NMOG Indi]]>0,T53,AI53)) -> 0 | AU53: =IF(AJ53<>0,AJ53,IF(ENE[[#This Row],[NMOG Indi]]>0,U53,AJ53)) -> 0 | AV53: =IF(AK53<>0,AK53,IF(ENE[[#This Row],[NMOG Indi]]>0,V53,AK53)) -> 0 | AW53: =IF(AL53<>0,AL53,IF(ENE[[#This Row],[NMOG Indi]]>0,W53,AL53)) -> 0 | AX53: =IF(AM53<>0,AM53,IF(ENE[[#This Row],[NMOG Indi]]>0,X53,AM53)) -> 0 | AY53: =IF(AN53<>0,AN53,IF(ENE[[#This Row],[NMOG Indi]]>0,Y53,AN53)) -> 0 | AZ53: =IF(AO53<>0,AO53,IF(ENE[[#This Row],[NMOG Indi]]>0,Z53,AO53)) -> 0 | BA53: 722 | BB53: 582 | BC53: 696 | BD53: 613 | BE53: 613 | BF53: 613 | BG53: 397 | BH53: 651 | BI53: 687 | BJ53: 725 | BK53: 751
A54: NAT|Empty | B54: 1|Advertising | C54: 1 | D54: Vote | E54: The Presidency | F54: 1 | G54: Administration | H54: 2 | I54: Support Services to the President | J54: Current payments | K54: Goods and services | L54: Advertising | M54: Advertising | N54: NAT | O54: Non-transfer | P54: 26 | Q54: 131 | R54: 21 | S54: 131 | T54: 131 | U54: 131 | V54: 15 | W54: 138 | X54: 145 | Y54: 152 | Z54: 157 | AA54: 39 | AB54: =IFERROR(MATCH(ENE[[#This Row],[Type of change]],ChangeType,0),0) -> 0 | AP54: =IF(AE54<>0,AE54,IF(ENE[[#This Row],[NMOG Indi]]>0,P54,AE54)) -> 0 | AQ54: =IF(AF54<>0,AF54,IF(ENE[[#This Row],[NMOG Indi]]>0,Q54,AF54)) -> 0 | AR54: =IF(AG54<>0,AG54,IF(ENE[[#This Row],[NMOG Indi]]>0,R54,AG54)) -> 0 | AS54: =IF(AH54<>0,AH54,IF(ENE[[#This Row],[NMOG Indi]]>0,S54,AH54)) -> 0 | AT54: =IF(AI54<>0,AI54,IF(ENE[[#This Row],[NMOG Indi]]>0,T54,AI54)) -> 0 | AU54: =IF(AJ54<>0,AJ54,IF(ENE[[#This Row],[NMOG Indi]]>0,U54,AJ54)) -> 0 | AV54: =IF(AK54<>0,AK54,IF(ENE[[#This Row],[NMOG Indi]]>0,V54,AK54)) -> 0 | AW54: =IF(AL54<>0,AL54,IF(ENE[[#This Row],[NMOG Indi]]>0,W54,AL54)) -> 0 | AX54: =IF(AM54<>0,AM54,IF(ENE[[#This Row],[NMOG Indi]]>0,X54,AM54)) -> 0 | AY54: =IF(AN54<>0,AN54,IF(ENE[[#This Row],[NMOG Indi]]>0,Y54,AN54)) -> 0 | AZ54: =IF(AO54<>0,AO54,IF(ENE[[#This Row],[NMOG Indi]]>0,Z54,AO54)) -> 0 | BA54: 26 | BB54: 131 | BC54: 21 | BD54: 131 | BE54: 131 | BF54: 131 | BG54: 15 | BH54: 138 | BI54: 145 | BJ54: 152 | BK54: 157
A55: NAT|Empty | B55: 1|Agency and support/outsourced services | C55: 1 | D55: Vote | E55: The Presidency | F55: 1 | G55: Administration | H55: 2 | I55: Support Services to the President | J55: Current payments | K55: Goods and services | L55: Agency and support/outsourced services | M55: Agency and support/outsourced services | N55: NAT | O55: Non-transfer | P55: 0 | Q55: 1060 | R55: 0 | S55: 1000 | T55: 1000 | U55: 1000 | V55: 0 | W55: 1053 | X55: 1111 | Y55: 1172 | Z55: 1215 | AA55: 40 | AB55: =IFERROR(MATCH(ENE[[#This Row],[Type of change]],ChangeType,0),0) -> 0 | AP55: =IF(AE55<>0,AE55,IF(ENE[[#This Row],[NMOG Indi]]>0,P55,AE55)) -> 0 | AQ55: =IF(AF55<>0,AF55,IF(ENE[[#This Row],[NMOG Indi]]>0,Q55,AF55)) -> 0 | AR55: =IF(AG55<>0,AG55,IF(ENE[[#This Row],[NMOG Indi]]>0,R55,AG55)) -> 0 | AS55: =IF(AH55<>0,AH55,IF(ENE[[#This Row],[NMOG Indi]]>0,S55,AH55)) -> 0 | AT55: =IF(AI55<>0,AI55,IF(ENE[[#This Row],[NMOG Indi]]>0,T55,AI55)) -> 0 | AU55: =IF(AJ55<>0,AJ55,IF(ENE[[#This Row],[NMOG Indi]]>0,U55,AJ55)) -> 0 | AV55: =IF(AK55<>0,AK55,IF(ENE[[#This Row],[NMOG Indi]]>0,V55,AK55)) -> 0 | AW55: =IF(AL55<>0,AL55,IF(ENE[[#This Row],[NMOG Indi]]>0,W55,AL55)) -> 0 | AX55: =IF(AM55<>0,AM55,IF(ENE[[#This Row],[NMOG Indi]]>0,X55,AM55)) -> 0 | AY55: =IF(AN55<>0,AN55,IF(ENE[[#This Row],[NMOG Indi]]>0,Y55,AN55)) -> 0 | AZ55: =IF(AO55<>0,AO55,IF(ENE[[#This Row],[NMOG Indi]]>0,Z55,AO55)) -> 0 | BA55: 0 | BB55: 1060 | BC55: 0 | BD55: 1000 | BE55: 1000 | BF55: 1000 | BG55: 0 | BH55: 1053 | BI55: 1111 | BJ55: 1172 | BK55: 1215
A56: NAT|Empty | B56: 1|Catering: Departmental activities | C56: 1 | D56: Vote | E56: The Presidency | F56: 1 | G56: Administration | H56: 2 | I56: Support Services to the President | J56: Current payments | K56: Goods and services | L56: Catering: Departmental activities | M56: Catering: Departmental activities | N56: NAT | O56: Non-transfer | P56: 483 | Q56: 443 | R56: 228 | S56: 266 | T56: 266 | U56: 266 | V56: 145 | W56: 281 | X56: 297 | Y56: 313 | Z56: 324 | AA56: 41 | AB56: =IFERROR(MATCH(ENE[[#This Row],[Type of change]],ChangeType,0),0) -> 0 | AP56: =IF(AE56<>0,AE56,IF(ENE[[#This Row],[NMOG Indi]]>0,P56,AE56)) -> 0 | AQ56: =IF(AF56<>0,AF56,IF(ENE[[#This Row],[NMOG Indi]]>0,Q56,AF56)) -> 0 | AR56: =IF(AG56<>0,AG56,IF(ENE[[#This Row],[NMOG Indi]]>0,R56,AG56)) -> 0 | AS56: =IF(AH56<>0,AH56,IF(ENE[[#This Row],[NMOG Indi]]>0,S56,AH56)) -> 0 | AT56: =IF(AI56<>0,AI56,IF(ENE[[#This Row],[NMOG Indi]]>0,T56,AI56)) -> 0 | AU56: =IF(AJ56<>0,AJ56,IF(ENE[[#This Row],[NMOG Indi]]>0,U56,AJ56)) -> 0 | AV56: =IF(AK56<>0,AK56,IF(ENE[[#This Row],[NMOG Indi]]>0,V56,AK56)) -> 0 | AW56: =IF(AL56<>0,AL56,IF(ENE[[#This Row],[NMOG Indi]]>0,W56,AL56)) -> 0 | AX56: =IF(AM56<>0,AM56,IF(ENE[[#This Row],[NMOG Indi]]>0,X56,AM56)) -> 0 | AY56: =IF(AN56<>0,AN56,IF(ENE[[#This Row],[NMOG Indi]]>0,Y56,AN56)) -> 0 | AZ56: =IF(AO56<>0,AO56,IF(ENE[[#This Row],[NMOG Indi]]>0,Z56,AO56)) -> 0 | BA56: 483 | BB56: 443 | BC56: 228 | BD56: 266 | BE56: 266 | BF56: 266 | BG56: 145 | BH56: 281 | BI56: 297 | BJ56: 313 | BK56: 324
A57: NAT|Empty | B57: 1|Communication (G&S) | C57: 1 | D57: Vote | E57: The Presidency | F57: 1 | G57: Administration | H57: 2 | I57: Support Services to the President | J57: Current payments | K57: Goods and services | L57: Communication (G&S) | M57: Communication (G&S) | N57: NAT | O57: Non-transfer | P57: 941 | Q57: 1583 | R57: 355 | S57: 1348 | T57: 1348 | U57: 1348 | V57: 281 | W57: 1421 | X57: 1498 | Y57: 1578 | Z57: 1636 | AA57: 42 | AB57: =IFERROR(MATCH(ENE[[#This Row],[Type of change]],ChangeType,0),0) -> 0 | AP57: =IF(AE57<>0,AE57,IF(ENE[[#This Row],[NMOG Indi]]>0,P57,AE57)) -> 0 | AQ57: =IF(AF57<>0,AF57,IF(ENE[[#This Row],[NMOG Indi]]>0,Q57,AF57)) -> 0 | AR57: =IF(AG57<>0,AG57,IF(ENE[[#This Row],[NMOG Indi]]>0,R57,AG57)) -> 0 | AS57: =IF(AH57<>0,AH57,IF(ENE[[#This Row],[NMOG Indi]]>0,S57,AH57)) -> 0 | AT57: =IF(AI57<>0,AI57,IF(ENE[[#This Row],[NMOG Indi]]>0,T57,AI57)) -> 0 | AU57: =IF(AJ57<>0,AJ57,IF(ENE[[#This Row],[NMOG Indi]]>0,U57,AJ57)) -> 0 | AV57: =IF(AK57<>0,AK57,IF(ENE[[#This Row],[NMOG Indi]]>0,V57,AK57)) -> 0 | AW57: =IF(AL57<>0,AL57,IF(ENE[[#This Row],[NMOG Indi]]>0,W57,AL57)) -> 0 | AX57: =IF(AM57<>0,AM57,IF(ENE[[#This Row],[NMOG Indi]]>0,X57,AM57)) -> 0 | AY57: =IF(AN57<>0,AN57,IF(ENE[[#This Row],[NMOG Indi]]>0,Y57,AN57)) -> 0 | AZ57: =IF(AO57<>0,AO57,IF(ENE[[#This Row],[NMOG Indi]]>0,Z57,AO57)) -> 0 | BA57: 941 | BB57: 1583 | BC57: 355 | BD57: 1348 | BE57: 1348 | BF57: 1348 | BG57: 281 | BH57: 1421 | BI57: 1498 | BJ57: 1578 | BK57: 1636
A58: NAT|Empty | B58: 1|Consultants: Business and advisory services | C58: 1 | D58: Vote | E58: The Presidency | F58: 1 | G58: Administration | H58: 2 | I58: Support Services to the President | J58: Current payments | K58: Goods and services | L58: Consultants: Business and advisory services | M58: Consultants: Business and advisory services | N58: NAT | O58: Non-transfer | P58: 0 | Q58: 127 | R58: 0 | S58: 57 | T58: 57 | U58: 57 | V58: 0 | W58: 60 | X58: 63 | Y58: 66 | Z58: 69 | AA58: 43 | AB58: =IFERROR(MATCH(ENE[[#This Row],[Type of change]],ChangeType,0),0) -> 0 | AP58: =IF(AE58<>0,AE58,IF(ENE[[#This Row],[NMOG Indi]]>0,P58,AE58)) -> 0 | AQ58: =IF(AF58<>0,AF58,IF(ENE[[#This Row],[NMOG Indi]]>0,Q58,AF58)) -> 0 | AR58: =IF(AG58<>0,AG58,IF(ENE[[#This Row],[NMOG Indi]]>0,R58,AG58)) -> 0 | AS58: =IF(AH58<>0,AH58,IF(ENE[[#This Row],[NMOG Indi]]>0,S58,AH58)) -> 0 | AT58: =IF(AI58<>0,AI58,IF(ENE[[#This Row],[NMOG Indi]]>0,T58,AI58)) -> 0 | AU58: =IF(AJ58<>0,AJ58,IF(ENE[[#This Row],[NMOG Indi]]>0,U58,AJ58)) -> 0 | AV58: =IF(AK58<>0,AK58,IF(ENE[[#This Row],[NMOG Indi]]>0,V58,AK58)) -> 0 | AW58: =IF(AL58<>0,AL58,IF(ENE[[#This Row],[NMOG Indi]]>0,W58,AL58)) -> 0 | AX58: =IF(AM58<>0,AM58,IF(ENE[[#This Row],[NMOG Indi]]>0,X58,AM58)) -> 0 | AY58: =IF(AN58<>0,AN58,IF(ENE[[#This Row],[NMOG Indi]]>0,Y58,AN58)) -> 0 | AZ58: =IF(AO58<>0,AO58,IF(ENE[[#This Row],[NMOG Indi]]>0,Z58,AO58)) -> 0 | BA58: 0 | BB58: 127 | BC58: 0 | BD58: 57 | BE58: 57 | BF58: 57 | BG58: 0 | BH58: 60 | BI58: 63 | BJ58: 66 | BK58: 69
A59: NAT|Empty | B59: 1|Consumable supplies | C59: 1 | D59: Vote | E59: The Presidency | F59: 1 | G59: Administration | H59: 2 | I59: Support Services to the President | J59: Current payments | K59: Goods and services | L59: Consumable supplies | M59: Consumable supplies | N59: NAT | O59: Non-transfer | P59: 57 | Q59: 162 | R59: 36 | S59: 112 | T59: 112 | U59: 112 | V59: 115 | W59: 119 | X59: 126 | Y59: 133 | Z59: 137 | AA59: 44 | AB59: =IFERROR(MATCH(ENE[[#This Row],[Type of change]],ChangeType,0),0) -> 0 | AP59: =IF(AE59<>0,AE59,IF(ENE[[#This Row],[NMOG Indi]]>0,P59,AE59)) -> 0 | AQ59: =IF(AF59<>0,AF59,IF(ENE[[#This Row],[NMOG Indi]]>0,Q59,AF59)) -> 0 | AR59: =IF(AG59<>0,AG59,IF(ENE[[#This Row],[NMOG Indi]]>0,R59,AG59)) -> 0 | AS59: =IF(AH59<>0,AH59,IF(ENE[[#This Row],[NMOG Indi]]>0,S59,AH59)) -> 0 | AT59: =IF(AI59<>0,AI59,IF(ENE[[#This Row],[NMOG Indi]]>0,T59,AI59)) -> 0 | AU59: =IF(AJ59<>0,AJ59,IF(ENE[[#This Row],[NMOG Indi]]>0,U59,AJ59)) -> 0 | AV59: =IF(AK59<>0,AK59,IF(ENE[[#This Row],[NMOG Indi]]>0,V59,AK59)) -> 0 | AW59: =IF(AL59<>0,AL59,IF(ENE[[#This Row],[NMOG Indi]]>0,W59,AL59)) -> 0 | AX59: =IF(AM59<>0,AM59,IF(ENE[[#This Row],[NMOG Indi]]>0,X59,AM59)) -> 0 | AY59: =IF(AN59<>0,AN59,IF(ENE[[#This Row],[NMOG Indi]]>0,Y59,AN59)) -> 0 | AZ59: =IF(AO59<>0,AO59,IF(ENE[[#This Row],[NMOG Indi]]>0,Z59,AO59)) -> 0 | BA59: 57 | BB59: 162 | BC59: 36 | BD59: 112 | BE59: 112 | BF59: 112 | BG59: 115 | BH59: 119 | BI59: 126 | BJ59: 133 | BK59: 137
A60: NAT|Empty | B60: 1|Consumables: Stationery, printing and office supplies | C60: 1 | D60: Vote | E60: The Presidency | F60: 1 | G60: Administration | H60: 2 | I60: Support Services to the President | J60: Current payments | K60: Goods and services | L60: Consumables: Stationery, printing and office supplies | M60: Consumables: Stationery, printing and office supplies | N60: NAT | O60: Non-transfer | P60: 590 | Q60: 752 | R60: 214 | S60: 734 | T60: 658 | U60: 658 | V60: 240 | W60: 757 | X60: 800 | Y60: 845 | Z60: 877 | AA60: 45 | AB60: =IFERROR(MATCH(ENE[[#This Row],[Type of change]],ChangeType,0),0) -> 0 | AP60: =IF(AE60<>0,AE60,IF(ENE[[#This Row],[NMOG Indi]]>0,P60,AE60)) -> 0 | AQ60: =IF(AF60<>0,AF60,IF(ENE[[#This Row],[NMOG Indi]]>0,Q60,AF60)) -> 0 | AR60: =IF(AG60<>0,AG60,IF(ENE[[#This Row],[NMOG Indi]]>0,R60,AG60)) -> 0 | AS60: =IF(AH60<>0,AH60,IF(ENE[[#This Row],[NMOG Indi]]>0,S60,AH60)) -> 0 | AT60: =IF(AI60<>0,AI60,IF(ENE[[#This Row],[NMOG Indi]]>0,T60,AI60)) -> 0 | AU60: =IF(AJ60<>0,AJ60,IF(ENE[[#This Row],[NMOG Indi]]>0,U60,AJ60)) -> 0 | AV60: =IF(AK60<>0,AK60,IF(ENE[[#This Row],[NMOG Indi]]>0,V60,AK60)) -> 0 | AW60: =IF(AL60<>0,AL60,IF(ENE[[#This Row],[NMOG Indi]]>0,W60,AL60)) -> 0 | AX60: =IF(AM60<>0,AM60,IF(ENE[[#This Row],[NMOG Indi]]>0,X60,AM60)) -> 0 | AY60: =IF(AN60<>0,AN60,IF(ENE[[#This Row],[NMOG Indi]]>0,Y60,AN60)) -> 0 | AZ60: =IF(AO60<>0,AO60,IF(ENE[[#This Row],[NMOG Indi]]>0,Z60,AO60)) -> 0 | BA60: 590 | BB60: 752 | BC60: 214 | BD60: 734 | BE60: 658 | BF60: 658 | BG60: 240 | BH60: 757 | BI60: 800 | BJ60: 845 | BK60: 877
A61: NAT|Empty | B61: 1|Contractors | C61: 1 | D61: Vote | E61: The Presidency | F61: 1 | G61: Administration | H61: 2 | I61: Support Services to the President | J61: Current payments | K61: Goods and services | L61: Contractors | M61: Contractors | N61: NAT | O61: Non-transfer | P61: 21 | Q61: 101 | R61: 34 | S61: 17 | T61: 17 | U61: 17 | V61: 26 | W61: 18 | X61: 19 | Y61: 20 | Z61: 21 | AA61: 46 | AB61: =IFERROR(MATCH(ENE[[#This Row],[Type of change]],ChangeType,0),0) -> 0 | AP61: =IF(AE61<>0,AE61,IF(ENE[[#This Row],[NMOG Indi]]>0,P61,AE61)) -> 0 | AQ61: =IF(AF61<>0,AF61,IF(ENE[[#This Row],[NMOG Indi]]>0,Q61,AF61)) -> 0 | AR61: =IF(AG61<>0,AG61,IF(ENE[[#This Row],[NMOG Indi]]>0,R61,AG61)) -> 0 | AS61: =IF(AH61<>0,AH61,IF(ENE[[#This Row],[NMOG Indi]]>0,S61,AH61)) -> 0 | AT61: =IF(AI61<>0,AI61,IF(ENE[[#This Row],[NMOG Indi]]>0,T61,AI61)) -> 0 | AU61: =IF(AJ61<>0,AJ61,IF(ENE[[#This Row],[NMOG Indi]]>0,U61,AJ61)) -> 0 | AV61: =IF(AK61<>0,AK61,IF(ENE[[#This Row],[NMOG Indi]]>0,V61,AK61)) -> 0 | AW61: =IF(AL61<>0,AL61,IF(ENE[[#This Row],[NMOG Indi]]>0,W61,AL61)) -> 0 | AX61: =IF(AM61<>0,AM61,IF(ENE[[#This Row],[NMOG Indi]]>0,X61,AM61)) -> 0 | AY61: =IF(AN61<>0,AN61,IF(ENE[[#This Row],[NMOG Indi]]>0,Y61,AN61)) -> 0 | AZ61: =IF(AO61<>0,AO61,IF(ENE[[#This Row],[NMOG Indi]]>0,Z61,AO61)) -> 0 | BA61: 21 | BB61: 101 | BC61: 34 | BD61: 17 | BE61: 17 | BF61: 17 | BG61: 26 | BH61: 18 | BI61: 19 | BJ61: 20 | BK61: 21
A62: NAT|Empty | B62: 1|Fleet services (including government motor transport) | C62: 1 | D62: Vote | E62: The Presidency | F62: 1 | G62: Administration | H62: 2 | I62: Support Services to the President | J62: Current payments | K62: Goods and services | L62: Fleet services (including government motor transport) | M62: Fleet services (including government motor transport) | N62: NAT | O62: Non-transfer | P62: 237 | Q62: 251 | R62: 239 | S62: 264 | T62: 264 | U62: 264 | V62: 121 | W62: 278 | X62: 293 | Y62: 309 | Z62: 322 | AA62: 47 | AB62: =IFERROR(MATCH(ENE[[#This Row],[Type of change]],ChangeType,0),0) -> 0 | AP62: =IF(AE62<>0,AE62,IF(ENE[[#This Row],[NMOG Indi]]>0,P62,AE62)) -> 0 | AQ62: =IF(AF62<>0,AF62,IF(ENE[[#This Row],[NMOG Indi]]>0,Q62,AF62)) -> 0 | AR62: =IF(AG62<>0,AG62,IF(ENE[[#This Row],[NMOG Indi]]>0,R62,AG62)) -> 0 | AS62: =IF(AH62<>0,AH62,IF(ENE[[#This Row],[NMOG Indi]]>0,S62,AH62)) -> 0 | AT62: =IF(AI62<>0,AI62,IF(ENE[[#This Row],[NMOG Indi]]>0,T62,AI62)) -> 0 | AU62: =IF(AJ62<>0,AJ62,IF(ENE[[#This Row],[NMOG Indi]]>0,U62,AJ62)) -> 0 | AV62: =IF(AK62<>0,AK62,IF(ENE[[#This Row],[NMOG Indi]]>0,V62,AK62)) -> 0 | AW62: =IF(AL62<>0,AL62,IF(ENE[[#This Row],[NMOG Indi]]>0,W62,AL62)) -> 0 | AX62: =IF(AM62<>0,AM62,IF(ENE[[#This Row],[NMOG Indi]]>0,X62,AM62)) -> 0 | AY62: =IF(AN62<>0,AN62,IF(ENE[[#This Row],[NMOG Indi]]>0,Y62,AN62)) -> 0 | AZ62: =IF(AO62<>0,AO62,IF(ENE[[#This Row],[NMOG Indi]]>0,Z62,AO62)) -> 0 | BA62: 237 | BB62: 251 | BC62: 239 | BD62: 264 | BE62: 264 | BF62: 264 | BG62: 121 | BH62: 278 | BI62: 293 | BJ62: 309 | BK62: 322
A63: NAT|Empty | B63: 1|Minor Assets | C63: 1 | D63: Vote | E63: The Presidency | F63: 1 | G63: Administration | H63: 2 | I63: Support Services to the President | J63: Current payments | K63: Goods and services | L63: Minor Assets | M63: Minor Assets | N63: NAT | O63: Non-transfer | P63: 21 | Q63: 169 | R63: 5 | S63: 97 | T63: 97 | U63: 97 | V63: 17 | W63: 103 | X63: 109 | Y63: 115 | Z63: 118 | AA63: 48 | AB63: =IFERROR(MATCH(ENE[[#This Row],[Type of change]],ChangeType,0),0) -> 0 | AP63: =IF(AE63<>0,AE63,IF(ENE[[#This Row],[NMOG Indi]]>0,P63,AE63)) -> 0 | AQ63: =IF(AF63<>0,AF63,IF(ENE[[#This Row],[NMOG Indi]]>0,Q63,AF63)) -> 0 | AR63: =IF(AG63<>0,AG63,IF(ENE[[#This Row],[NMOG Indi]]>0,R63,AG63)) -> 0 | AS63: =IF(AH63<>0,AH63,IF(ENE[[#This Row],[NMOG Indi]]>0,S63,AH63)) -> 0 | AT63: =IF(AI63<>0,AI63,IF(ENE[[#This Row],[NMOG Indi]]>0,T63,AI63)) -> 0 | AU63: =IF(AJ63<>0,AJ63,IF(ENE[[#This Row],[NMOG Indi]]>0,U63,AJ63)) -> 0 | AV63: =IF(AK63<>0,AK63,IF(ENE[[#This Row],[NMOG Indi]]>0,V63,AK63)) -> 0 | AW63: =IF(AL63<>0,AL63,IF(ENE[[#This Row],[NMOG Indi]]>0,W63,AL63)) -> 0 | AX63: =IF(AM63<>0,AM63,IF(ENE[[#This Row],[NMOG Indi]]>0,X63,AM63)) -> 0 | AY63: =IF(AN63<>0,AN63,IF(ENE[[#This Row],[NMOG Indi]]>0,Y63,AN63)) -> 0 | AZ63: =IF(AO63<>0,AO63,IF(ENE[[#This Row],[NMOG Indi]]>0,Z63,AO63)) -> 0 | BA63: 21 | BB63: 169 | BC63: 5 | BD63: 97 | BE63: 97 | BF63: 97 | BG63: 17 | BH63: 103 | BI63: 109 | BJ63: 115 | BK63: 118
A64: NAT|Empty | B64: 1|Operating leases | C64: 1 | D64: Vote | E64: The Presidency | F64: 1 | G64: Administration | H64: 2 | I64: Support Services to the President | J64: Current payments | K64: Goods and services | L64: Operating leases | M64: Operating leases | N64: NAT | O64: Non-transfer | P64: 461 | Q64: 72 | R64: 518 | S64: 141 | T64: 141 | U64: 141 | V64: 640 | W64: 149 | X64: 157 | Y64: 165 | Z64: 171 | AA64: 49 | AB64: =IFERROR(MATCH(ENE[[#This Row],[Type of change]],ChangeType,0),0) -> 0 | AP64: =IF(AE64<>0,AE64,IF(ENE[[#This Row],[NMOG Indi]]>0,P64,AE64)) -> 0 | AQ64: =IF(AF64<>0,AF64,IF(ENE[[#This Row],[NMOG Indi]]>0,Q64,AF64)) -> 0 | AR64: =IF(AG64<>0,AG64,IF(ENE[[#This Row],[NMOG Indi]]>0,R64,AG64)) -> 0 | AS64: =IF(AH64<>0,AH64,IF(ENE[[#This Row],[NMOG Indi]]>0,S64,AH64)) -> 0 | AT64: =IF(AI64<>0,AI64,IF(ENE[[#This Row],[NMOG Indi]]>0,T64,AI64)) -> 0 | AU64: =IF(AJ64<>0,AJ64,IF(ENE[[#This Row],[NMOG Indi]]>0,U64,AJ64)) -> 0 | AV64: =IF(AK64<>0,AK64,IF(ENE[[#This Row],[NMOG Indi]]>0,V64,AK64)) -> 0 | AW64: =IF(AL64<>0,AL64,IF(ENE[[#This Row],[NMOG Indi]]>0,W64,AL64)) -> 0 | AX64: =IF(AM64<>0,AM64,IF(ENE[[#This Row],[NMOG Indi]]>0,X64,AM64)) -> 0 | AY64: =IF(AN64<>0,AN64,IF(ENE[[#This Row],[NMOG Indi]]>0,Y64,AN64)) -> 0 | AZ64: =IF(AO64<>0,AO64,IF(ENE[[#This Row],[NMOG Indi]]>0,Z64,AO64)) -> 0 | BA64: 461 | BB64: 72 | BC64: 518 | BD64: 141 | BE64: 141 | BF64: 141 | BG64: 640 | BH64: 149 | BI64: 157 | BJ64: 165 | BK64: 171
A65: NAT|Empty | B65: 1|Operating payments | C65: 1 | D65: Vote | E65: The Presidency | F65: 1 | G65: Administration | H65: 2 | I65: Support Services to the President | J65: Current payments | K65: Goods and services | L65: Operating payments | M65: Operating payments | N65: NAT | O65: Non-transfer | P65: 333 | Q65: 310 | R65: 81 | S65: 181 | T65: 181 | U65: 181 | V65: 0 | W65: 145 | X65: 153 | Y65: 161 | Z65: 167 | AA65: 50 | AB65: =IFERROR(MATCH(ENE[[#This Row],[Type of change]],ChangeType,0),0) -> 0 | AP65: =IF(AE65<>0,AE65,IF(ENE[[#This Row],[NMOG Indi]]>0,P65,AE65)) -> 0 | AQ65: =IF(AF65<>0,AF65,IF(ENE[[#This Row],[NMOG Indi]]>0,Q65,AF65)) -> 0 | AR65: =IF(AG65<>0,AG65,IF(ENE[[#This Row],[NMOG Indi]]>0,R65,AG65)) -> 0 | AS65: =IF(AH65<>0,AH65,IF(ENE[[#This Row],[NMOG Indi]]>0,S65,AH65)) -> 0 | AT65: =IF(AI65<>0,AI65,IF(ENE[[#This Row],[NMOG Indi]]>0,T65,AI65)) -> 0 | AU65: =IF(AJ65<>0,AJ65,IF(ENE[[#This Row],[NMOG Indi]]>0,U65,AJ65)) -> 0 | AV65: =IF(AK65<>0,AK65,IF(ENE[[#This Row],[NMOG Indi]]>0,V65,AK65)) -> 0 | AW65: =IF(AL65<>0,AL65,IF(ENE[[#This Row],[NMOG Indi]]>0,W65,AL65)) -> 0 | AX65: =IF(AM65<>0,AM65,IF(ENE[[#This Row],[NMOG Indi]]>0,X65,AM65)) -> 0 | AY65: =IF(AN65<>0,AN65,IF(ENE[[#This Row],[NMOG Indi]]>0,Y65,AN65)) -> 0 | AZ65: =IF(AO65<>0,AO65,IF(ENE[[#This Row],[NMOG Indi]]>0,Z65,AO65)) -> 0 | BA65: 333 | BB65: 310 | BC65: 81 | BD65: 181 | BE65: 181 | BF65: 181 | BG65: 0 | BH65: 145 | BI65: 153 | BJ65: 161 | BK65: 167
A66: NAT|Empty | B66: 1|Rental and hiring | C66: 1 | D66: Vote | E66: The Presidency | F66: 1 | G66: Administration | H66: 2 | I66: Support Services to the President | J66: Current payments | K66: Goods and services | L66: Rental and hiring | M66: Rental and hiring | N66: NAT | O66: Non-transfer | P66: 20 | Q66: 354 | R66: 0 | S66: 110 | T66: 110 | U66: 110 | V66: 33 | W66: 116 | X66: 123 | Y66: 130 | Z66: 134 | AA66: 51 | AB66: =IFERROR(MATCH(ENE[[#This Row],[Type of change]],ChangeType,0),0) -> 0 | AP66: =IF(AE66<>0,AE66,IF(ENE[[#This Row],[NMOG Indi]]>0,P66,AE66)) -> 0 | AQ66: =IF(AF66<>0,AF66,IF(ENE[[#This Row],[NMOG Indi]]>0,Q66,AF66)) -> 0 | AR66: =IF(AG66<>0,AG66,IF(ENE[[#This Row],[NMOG Indi]]>0,R66,AG66)) -> 0 | AS66: =IF(AH66<>0,AH66,IF(ENE[[#This Row],[NMOG Indi]]>0,S66,AH66)) -> 0 | AT66: =IF(AI66<>0,AI66,IF(ENE[[#This Row],[NMOG Indi]]>0,T66,AI66)) -> 0 | AU66: =IF(AJ66<>0,AJ66,IF(ENE[[#This Row],[NMOG Indi]]>0,U66,AJ66)) -> 0 | AV66: =IF(AK66<>0,AK66,IF(ENE[[#This Row],[NMOG Indi]]>0,V66,AK66)) -> 0 | AW66: =IF(AL66<>0,AL66,IF(ENE[[#This Row],[NMOG Indi]]>0,W66,AL66)) -> 0 | AX66: =IF(AM66<>0,AM66,IF(ENE[[#This Row],[NMOG Indi]]>0,X66,AM66)) -> 0 | AY66: =IF(AN66<>0,AN66,IF(ENE[[#This Row],[NMOG Indi]]>0,Y66,AN66)) -> 0 | AZ66: =IF(AO66<>0,AO66,IF(ENE[[#This Row],[NMOG Indi]]>0,Z66,AO66)) -> 0 | BA66: 20 | BB66: 354 | BC66: 0 | BD66: 110 | BE66: 110 | BF66: 110 | BG66: 33 | BH66: 116 | BI66: 123 | BJ66: 130 | BK66: 134
A67: NAT|Empty | B67: 1|Training and development | C67: 1 | D67: Vote | E67: The Presidency | F67: 1 | G67: Administration | H67: 2 | I67: Support Services to the President | J67: Current payments | K67: Goods and services | L67: Training and development | M67: Training and development | N67: NAT | O67: Non-transfer | P67: 0 | Q67: 0 | R67: 0 | S67: 0 | T67: 0 | U67: 0 | V67: 20113 | W67: 0 | X67: 0 | Y67: 0 | Z67: 0 | AA67: 52 | AB67: =IFERROR(MATCH(ENE[[#This Row],[Type of change]],ChangeType,0),0) -> 0 | AP67: =IF(AE67<>0,AE67,IF(ENE[[#This Row],[NMOG Indi]]>0,P67,AE67)) -> 0 | AQ67: =IF(AF67<>0,AF67,IF(ENE[[#This Row],[NMOG Indi]]>0,Q67,AF67)) -> 0 | AR67: =IF(AG67<>0,AG67,IF(ENE[[#This Row],[NMOG Indi]]>0,R67,AG67)) -> 0 | AS67: =IF(AH67<>0,AH67,IF(ENE[[#This Row],[NMOG Indi]]>0,S67,AH67)) -> 0 | AT67: =IF(AI67<>0,AI67,IF(ENE[[#This Row],[NMOG Indi]]>0,T67,AI67)) -> 0 | AU67: =IF(AJ67<>0,AJ67,IF(ENE[[#This Row],[NMOG Indi]]>0,U67,AJ67)) -> 0 | AV67: =IF(AK67<>0,AK67,IF(ENE[[#This Row],[NMOG Indi]]>0,V67,AK67)) -> 0 | AW67: =IF(AL67<>0,AL67,IF(ENE[[#This Row],[NMOG Indi]]>0,W67,AL67)) -> 0 | AX67: =IF(AM67<>0,AM67,IF(ENE[[#This Row],[NMOG Indi]]>0,X67,AM67)) -> 0 | AY67: =IF(AN67<>0,AN67,IF(ENE[[#This Row],[NMOG Indi]]>0,Y67,AN67)) -> 0 | AZ67: =IF(AO67<>0,AO67,IF(ENE[[#This Row],[NMOG Indi]]>0,Z67,AO67)) -> 0 | BA67: 0 | BB67: 0 | BC67: 0 | BD67: 0 | BE67: 0 | BF67: 0 | BG67: 20113 | BH67: 0 | BI67: 0 | BJ67: 0 | BK67: 0
A68: NAT|Empty | B68: 1|Travel and subsistence | C68: 1 | D68: Vote | E68: The Presidency | F68: 1 | G68: Administration | H68: 2 | I68: Support Services to the President | J68: Current payments | K68: Goods and services | L68: Travel and subsistence | M68: Travel and subsistence | N68: NAT | O68: Non-transfer | P68: 15256 | Q68: 15039 | R68: 13636 | S68: 18284 | T68: 18284 | U68: 18284 | V68: 0 | W68: 19327 | X68: 20386 | Y68: 21511 | Z68: 22311 | AA68: 53 | AB68: =IFERROR(MATCH(ENE[[#This Row],[Type of change]],ChangeType,0),0) -> 0 | AP68: =IF(AE68<>0,AE68,IF(ENE[[#This Row],[NMOG Indi]]>0,P68,AE68)) -> 0 | AQ68: =IF(AF68<>0,AF68,IF(ENE[[#This Row],[NMOG Indi]]>0,Q68,AF68)) -> 0 | AR68: =IF(AG68<>0,AG68,IF(ENE[[#This Row],[NMOG Indi]]>0,R68,AG68)) -> 0 | AS68: =IF(AH68<>0,AH68,IF(ENE[[#This Row],[NMOG Indi]]>0,S68,AH68)) -> 0 | AT68: =IF(AI68<>0,AI68,IF(ENE[[#This Row],[NMOG Indi]]>0,T68,AI68)) -> 0 | AU68: =IF(AJ68<>0,AJ68,IF(ENE[[#This Row],[NMOG Indi]]>0,U68,AJ68)) -> 0 | AV68: =IF(AK68<>0,AK68,IF(ENE[[#This Row],[NMOG Indi]]>0,V68,AK68)) -> 0 | AW68: =IF(AL68<>0,AL68,IF(ENE[[#This Row],[NMOG Indi]]>0,W68,AL68)) -> 0 | AX68: =IF(AM68<>0,AM68,IF(ENE[[#This Row],[NMOG Indi]]>0,X68,AM68)) -> 0 | AY68: =IF(AN68<>0,AN68,IF(ENE[[#This Row],[NMOG Indi]]>0,Y68,AN68)) -> 0 | AZ68: =IF(AO68<>0,AO68,IF(ENE[[#This Row],[NMOG Indi]]>0,Z68,AO68)) -> 0 | BA68: 15256 | BB68: 15039 | BC68: 13636 | BD68: 18284 | BE68: 18284 | BF68: 18284 | BG68: 0 | BH68: 19327 | BI68: 20386 | BJ68: 21511 | BK68: 22311
A69: NAT|Empty | B69: 1|Venues and facilities | C69: 1 | D69: Vote | E69: The Presidency | F69: 1 | G69: Administration | H69: 2 | I69: Support Services to the President | J69: Current payments | K69: Goods and services | L69: Venues and facilities | M69: Venues and facilities | N69: NAT | O69: Non-transfer | P69: 126 | Q69: 60 | R69: 7 | S69: 60 | T69: 60 | U69: 60 | V69: 101 | W69: 63 | X69: 66 | Y69: 70 | Z69: 73 | AA69: 54 | AB69: =IFERROR(MATCH(ENE[[#This Row],[Type of change]],ChangeType,0),0) -> 0 | AP69: =IF(AE69<>0,AE69,IF(ENE[[#This Row],[NMOG Indi]]>0,P69,AE69)) -> 0 | AQ69: =IF(AF69<>0,AF69,IF(ENE[[#This Row],[NMOG Indi]]>0,Q69,AF69)) -> 0 | AR69: =IF(AG69<>0,AG69,IF(ENE[[#This Row],[NMOG Indi]]>0,R69,AG69)) -> 0 | AS69: =IF(AH69<>0,AH69,IF(ENE[[#This Row],[NMOG Indi]]>0,S69,AH69)) -> 0 | AT69: =IF(AI69<>0,AI69,IF(ENE[[#This Row],[NMOG Indi]]>0,T69,AI69)) -> 0 | AU69: =IF(AJ69<>0,AJ69,IF(ENE[[#This Row],[NMOG Indi]]>0,U69,AJ69)) -> 0 | AV69: =IF(AK69<>0,AK69,IF(ENE[[#This Row],[NMOG Indi]]>0,V69,AK69)) -> 0 | AW69: =IF(AL69<>0,AL69,IF(ENE[[#This Row],[NMOG Indi]]>0,W69,AL69)) -> 0 | AX69: =IF(AM69<>0,AM69,IF(ENE[[#This Row],[NMOG Indi]]>0,X69,AM69)) -> 0 | AY69: =IF(AN69<>0,AN69,IF(ENE[[#This Row],[NMOG Indi]]>0,Y69,AN69)) -> 0 | AZ69: =IF(AO69<>0,AO69,IF(ENE[[#This Row],[NMOG Indi]]>0,Z69,AO69)) -> 0 | BA69: 126 | BB69: 60 | BC69: 7 | BD69: 60 | BE69: 60 | BF69: 60 | BG69: 101 | BH69: 63 | BI69: 66 | BJ69: 70 | BK69: 73
A70: NAT|Empty | B70: 1|Other machinery and equipment | C70: 1 | D70: Vote | E70: The Presidency | F70: 1 | G70: Administration | H70: 2 | I70: Support Services to the President | J70: Payments for capital assets | K70: Machinery and equipment | L70: Other machinery and equipment | M70: Other machinery and equipment | N70: NAT | O70: Non-transfer | P70: 875 | Q70: 851 | R70: 537 | S70: 689 | T70: 689 | U70: 689 | V70: 1138 | W70: 723 | X70: 754 | Y70: 795 | Z70: 840 | AA70: 55 | AB70: =IFERROR(MATCH(ENE[[#This Row],[Type of change]],ChangeType,0),0) -> 0 | AP70: =IF(AE70<>0,AE70,IF(ENE[[#This Row],[NMOG Indi]]>0,P70,AE70)) -> 0 | AQ70: =IF(AF70<>0,AF70,IF(ENE[[#This Row],[NMOG Indi]]>0,Q70,AF70)) -> 0 | AR70: =IF(AG70<>0,AG70,IF(ENE[[#This Row],[NMOG Indi]]>0,R70,AG70)) -> 0 | AS70: =IF(AH70<>0,AH70,IF(ENE[[#This Row],[NMOG Indi]]>0,S70,AH70)) -> 0 | AT70: =IF(AI70<>0,AI70,IF(ENE[[#This Row],[NMOG Indi]]>0,T70,AI70)) -> 0 | AU70: =IF(AJ70<>0,AJ70,IF(ENE[[#This Row],[NMOG Indi]]>0,U70,AJ70)) -> 0 | AV70: =IF(AK70<>0,AK70,IF(ENE[[#This Row],[NMOG Indi]]>0,V70,AK70)) -> 0 | AW70: =IF(AL70<>0,AL70,IF(ENE[[#This Row],[NMOG Indi]]>0,W70,AL70)) -> 0 | AX70: =IF(AM70<>0,AM70,IF(ENE[[#This Row],[NMOG Indi]]>0,X70,AM70)) -> 0 | AY70: =IF(AN70<>0,AN70,IF(ENE[[#This Row],[NMOG Indi]]>0,Y70,AN70)) -> 0 | AZ70: =IF(AO70<>0,AO70,IF(ENE[[#This Row],[NMOG Indi]]>0,Z70,AO70)) -> 0 | BA70: 875 | BB70: 851 | BC70: 537 | BD70: 689 | BE70: 689 | BF70: 689 | BG70: 1138 | BH70: 723 | BI70: 754 | BJ70: 795 | BK70: 840
A71: NAT|Employee social benefits | B71: 1|Other transfers to households | C71: 1 | D71: Vote | E71: The Presidency | F71: 1 | G71: Administration | H71: 2 | I71: Support Services to the President | J71: Transfers and subsidies | K71: Households | L71: Other transfers to households | M71: Other transfers to households | N71: NAT | O71: Employee social benefits | P71: 0 | Q71: 0 | R71: 0 | S71: 0 | T71: 0 | U71: 0 | V71: 0 | W71: 0 | X71: 0 | Y71: 0 | Z71: 0 | AA71: 56 | AB71: =IFERROR(MATCH(ENE[[#This Row],[Type of change]],ChangeType,0),0) -> 0 | AP71: =IF(AE71<>0,AE71,IF(ENE[[#This Row],[NMOG Indi]]>0,P71,AE71)) -> 0 | AQ71: =IF(AF71<>0,AF71,IF(ENE[[#This Row],[NMOG Indi]]>0,Q71,AF71)) -> 0 | AR71: =IF(AG71<>0,AG71,IF(ENE[[#This Row],[NMOG Indi]]>0,R71,AG71)) -> 0 | AS71: =IF(AH71<>0,AH71,IF(ENE[[#This Row],[NMOG Indi]]>0,S71,AH71)) -> 0 | AT71: =IF(AI71<>0,AI71,IF(ENE[[#This Row],[NMOG Indi]]>0,T71,AI71)) -> 0 | AU71: =IF(AJ71<>0,AJ71,IF(ENE[[#This Row],[NMOG Indi]]>0,U71,AJ71)) -> 0 | AV71: =IF(AK71<>0,AK71,IF(ENE[[#This Row],[NMOG Indi]]>0,V71,AK71)) -> 0 | AW71: =IF(AL71<>0,AL71,IF(ENE[[#This Row],[NMOG Indi]]>0,W71,AL71)) -> 0 | AX71: =IF(AM71<>0,AM71,IF(ENE[[#This Row],[NMOG Indi]]>0,X71,AM71)) -> 0 | AY71: =IF(AN71<>0,AN71,IF(ENE[[#This Row],[NMOG Indi]]>0,Y71,AN71)) -> 0 | AZ71: =IF(AO71<>0,AO71,IF(ENE[[#This Row],[NMOG Indi]]>0,Z71,AO71)) -> 0 | BA71: 0 | BB71: 0 | BC71: 0 | BD71: 0 | BE71: 0 | BF71: 0 | BG71: 0 | BH71: 0 | BI71: 0 | BJ71: 0 | BK71: 0
A72: NAT|Employee social benefits | B72: 1|Social benefits | C72: 1 | D72: Vote | E72: The Presidency | F72: 1 | G72: Administration | H72: 2 | I72: Support Services to the President | J72: Transfers and subsidies | K72: Households | L72: Social benefits | M72: Social benefits | N72: NAT | O72: Employee social benefits | P72: 43 | Q72: 460 | R72: 256 | S72: 0 | T72: 609 | U72: 609 | V72: 616 | W72: 0 | X72: 0 | Y72: 0 | Z72: 0 | AA72: 57 | AB72: =IFERROR(MATCH(ENE[[#This Row],[Type of change]],ChangeType,0),0) -> 0 | AP72: =IF(AE72<>0,AE72,IF(ENE[[#This Row],[NMOG Indi]]>0,P72,AE72)) -> 0 | AQ72: =IF(AF72<>0,AF72,IF(ENE[[#This Row],[NMOG Indi]]>0,Q72,AF72)) -> 0 | AR72: =IF(AG72<>0,AG72,IF(ENE[[#This Row],[NMOG Indi]]>0,R72,AG72)) -> 0 | AS72: =IF(AH72<>0,AH72,IF(ENE[[#This Row],[NMOG Indi]]>0,S72,AH72)) -> 0 | AT72: =IF(AI72<>0,AI72,IF(ENE[[#This Row],[NMOG Indi]]>0,T72,AI72)) -> 0 | AU72: =IF(AJ72<>0,AJ72,IF(ENE[[#This Row],[NMOG Indi]]>0,U72,AJ72)) -> 0 | AV72: =IF(AK72<>0,AK72,IF(ENE[[#This Row],[NMOG Indi]]>0,V72,AK72)) -> 0 | AW72: =IF(AL72<>0,AL72,IF(ENE[[#This Row],[NMOG Indi]]>0,W72,AL72)) -> 0 | AX72: =IF(AM72<>0,AM72,IF(ENE[[#This Row],[NMOG Indi]]>0,X72,AM72)) -> 0 | AY72: =IF(AN72<>0,AN72,IF(ENE[[#This Row],[NMOG Indi]]>0,Y72,AN72)) -> 0 | AZ72: =IF(AO72<>0,AO72,IF(ENE[[#This Row],[NMOG Indi]]>0,Z72,AO72)) -> 0 | BA72: 43 | BB72: 460 | BC72: 256 | BD72: 0 | BE72: 609 | BF72: 609 | BG72: 616 | BH72: 0 | BI72: 0 | BJ72: 0 | BK72: 0
A73: NAT|Thefts and losses | B73: 1|Payments for financial assets | C73: 1 | D73: Vote | E73: The Presidency | F73: 1 | G73: Administration | H73: 2 | I73: Support Services to the President | J73: Payments for financial assets | K73: Payments for financial assets | L73: Payments for financial assets | M73: Payments for financial assets | N73: NAT | O73: Thefts and losses | P73: 146 | Q73: 0 | R73: 93 | S73: 0 | T73: 0 | U73: 0 | V73: 177 | W73: 0 | X73: 0 | Y73: 0 | Z73: 0 | AA73: 58 | AB73: =IFERROR(MATCH(ENE[[#This Row],[Type of change]],ChangeType,0),0) -> 0 | AP73: =IF(AE73<>0,AE73,IF(ENE[[#This Row],[NMOG Indi]]>0,P73,AE73)) -> 0 | AQ73: =IF(AF73<>0,AF73,IF(ENE[[#This Row],[NMOG Indi]]>0,Q73,AF73)) -> 0 | AR73: =IF(AG73<>0,AG73,IF(ENE[[#This Row],[NMOG Indi]]>0,R73,AG73)) -> 0 | AS73: =IF(AH73<>0,AH73,IF(ENE[[#This Row],[NMOG Indi]]>0,S73,AH73)) -> 0 | AT73: =IF(AI73<>0,AI73,IF(ENE[[#This Row],[NMOG Indi]]>0,T73,AI73)) -> 0 | AU73: =IF(AJ73<>0,AJ73,IF(ENE[[#This Row],[NMOG Indi]]>0,U73,AJ73)) -> 0 | AV73: =IF(AK73<>0,AK73,IF(ENE[[#This Row],[NMOG Indi]]>0,V73,AK73)) -> 0 | AW73: =IF(AL73<>0,AL73,IF(ENE[[#This Row],[NMOG Indi]]>0,W73,AL73)) -> 0 | AX73: =IF(AM73<>0,AM73,IF(ENE[[#This Row],[NMOG Indi]]>0,X73,AM73)) -> 0 | AY73: =IF(AN73<>0,AN73,IF(ENE[[#This Row],[NMOG Indi]]>0,Y73,AN73)) -> 0 | AZ73: =IF(AO73<>0,AO73,IF(ENE[[#This Row],[NMOG Indi]]>0,Z73,AO73)) -> 0 | BA73: 146 | BB73: 0 | BC73: 93 | BD73: 0 | BE73: 0 | BF73: 0 | BG73: 177 | BH73: 0 | BI73: 0 | BJ73: 0 | BK73: 0
A74: NAT|Empty | B74: 1|Salaries and wages | C74: 1 | D74: Vote | E74: The Presidency | F74: 1 | G74: Administration | H74: 3 | I74: Support Services to the Deputy President | J74: Current payments | K74: Compensation of employees | L74: Salaries and wages | M74: Salaries and wages | N74: NAT | O74: Non-transfer | P74: 33162 | Q74: 32795 | R74: 32986 | S74: 34658 | T74: 34560 | U74: 34560 | V74: 26160 | W74: 37077 | X74: 39607 | Y74: 42267 | Z74: 43836 | AA74: 59 | AB74: =IFERROR(MATCH(ENE[[#This Row],[Type of change]],ChangeType,0),0) -> 0 | AP74: =IF(AE74<>0,AE74,IF(ENE[[#This Row],[NMOG Indi]]>0,P74,AE74)) -> 0 | AQ74: =IF(AF74<>0,AF74,IF(ENE[[#This Row],[NMOG Indi]]>0,Q74,AF74)) -> 0 | AR74: =IF(AG74<>0,AG74,IF(ENE[[#This Row],[NMOG Indi]]>0,R74,AG74)) -> 0 | AS74: =IF(AH74<>0,AH74,IF(ENE[[#This Row],[NMOG Indi]]>0,S74,AH74)) -> 0 | AT74: =IF(AI74<>0,AI74,IF(ENE[[#This Row],[NMOG Indi]]>0,T74,AI74)) -> 0 | AU74: =IF(AJ74<>0,AJ74,IF(ENE[[#This Row],[NMOG Indi]]>0,U74,AJ74)) -> 0 | AV74: =IF(AK74<>0,AK74,IF(ENE[[#This Row],[NMOG Indi]]>0,V74,AK74)) -> 0 | AW74: =IF(AL74<>0,AL74,IF(ENE[[#This Row],[NMOG Indi]]>0,W74,AL74)) -> 0 | AX74: =IF(AM74<>0,AM74,IF(ENE[[#This Row],[NMOG Indi]]>0,X74,AM74)) -> 0 | AY74: =IF(AN74<>0,AN74,IF(ENE[[#This Row],[NMOG Indi]]>0,Y74,AN74)) -> 0 | AZ74: =IF(AO74<>0,AO74,IF(ENE[[#This Row],[NMOG Indi]]>0,Z74,AO74)) -> 0 | BA74: 33162 | BB74: 32795 | BC74: 32986 | BD74: 34658 | BE74: 34560 | BF74: 34560 | BG74: 26160 | BH74: 37077 | BI74: 39607 | BJ74: 42267 | BK74: 43836
A75: NAT|Empty | B75: 1|Social contributions | C75: 1 | D75: Vote | E75: The Presidency | F75: 1 | G75: Administration | H75: 3 | I75: Support Services to the Deputy President | J75: Current payments | K75: Compensation of employees | L75: Social contributions | M75: Social contributions | N75: NAT | O75: Non-transfer | P75: 3063 | Q75: 3342 | R75: 3043 | S75: 3592 | T75: 3592 | U75: 3592 | V75: 2670 | W75: 3865 | X75: 4155 | Y75: 4425 | Z75: 4591 | AA75: 60 | AB75: =IFERROR(MATCH(ENE[[#This Row],[Type of change]],ChangeType,0),0) -> 0 | AP75: =IF(AE75<>0,AE75,IF(ENE[[#This Row],[NMOG Indi]]>0,P75,AE75)) -> 0 | AQ75: =IF(AF75<>0,AF75,IF(ENE[[#This Row],[NMOG Indi]]>0,Q75,AF75)) -> 0 | AR75: =IF(AG75<>0,AG75,IF(ENE[[#This Row],[NMOG Indi]]>0,R75,AG75)) -> 0 | AS75: =IF(AH75<>0,AH75,IF(ENE[[#This Row],[NMOG Indi]]>0,S75,AH75)) -> 0 | AT75: =IF(AI75<>0,AI75,IF(ENE[[#This Row],[NMOG Indi]]>0,T75,AI75)) -> 0 | AU75: =IF(AJ75<>0,AJ75,IF(ENE[[#This Row],[NMOG Indi]]>0,U75,AJ75)) -> 0 | AV75: =IF(AK75<>0,AK75,IF(ENE[[#This Row],[NMOG Indi]]>0,V75,AK75)) -> 0 | AW75: =IF(AL75<>0,AL75,IF(ENE[[#This Row],[NMOG Indi]]>0,W75,AL75)) -> 0 | AX75: =IF(AM75<>0,AM75,IF(ENE[[#This Row],[NMOG Indi]]>0,X75,AM75)) -> 0 | AY75: =IF(AN75<>0,AN75,IF(ENE[[#This Row],[NMOG Indi]]>0,Y75,AN75)) -> 0 | AZ75: =IF(AO75<>0,AO75,IF(ENE[[#This Row],[NMOG Indi]]>0,Z75,AO75)) -> 0 | BA75: 3063 | BB75: 3342 | BC75: 3043 | BD75: 3592 | BE75: 3592 | BF75: 3592 | BG75: 2670 | BH75: 3865 | BI75: 4155 | BJ75: 4425 | BK75: 4591
A76: NAT|Empty | B76: 1|Administrative fees | C76: 1 | D76: Vote | E76: The Presidency | F76: 1 | G76: Administration | H76: 3 | I76: Support Services to the Deputy President | J76: Current payments | K76: Goods and services | L76: Administrative fees | M76: Administrative fees | N76: NAT | O76: Non-transfer | P76: 412 | Q76: 67 | R76: 472 | S76: 149 | T76: 149 | U76: 149 | V76: 382 | W76: 188 | X76: 198 | Y76: 370 | Z76: 384 | AA76: 61 | AB76: =IFERROR(MATCH(ENE[[#This Row],[Type of change]],ChangeType,0),0) -> 0 | AP76: =IF(AE76<>0,AE76,IF(ENE[[#This Row],[NMOG Indi]]>0,P76,AE76)) -> 0 | AQ76: =IF(AF76<>0,AF76,IF(ENE[[#This Row],[NMOG Indi]]>0,Q76,AF76)) -> 0 | AR76: =IF(AG76<>0,AG76,IF(ENE[[#This Row],[NMOG Indi]]>0,R76,AG76)) -> 0 | AS76: =IF(AH76<>0,AH76,IF(ENE[[#This Row],[NMOG Indi]]>0,S76,AH76)) -> 0 | AT76: =IF(AI76<>0,AI76,IF(ENE[[#This Row],[NMOG Indi]]>0,T76,AI76)) -> 0 | AU76: =IF(AJ76<>0,AJ76,IF(ENE[[#This Row],[NMOG Indi]]>0,U76,AJ76)) -> 0 | AV76: =IF(AK76<>0,AK76,IF(ENE[[#This Row],[NMOG Indi]]>0,V76,AK76)) -> 0 | AW76: =IF(AL76<>0,AL76,IF(ENE[[#This Row],[NMOG Indi]]>0,W76,AL76)) -> 0 | AX76: =IF(AM76<>0,AM76,IF(ENE[[#This Row],[NMOG Indi]]>0,X76,AM76)) -> 0 | AY76: =IF(AN76<>0,AN76,IF(ENE[[#This Row],[NMOG Indi]]>0,Y76,AN76)) -> 0 | AZ76: =IF(AO76<>0,AO76,IF(ENE[[#This Row],[NMOG Indi]]>0,Z76,AO76)) -> 0 | BA76: 412 | BB76: 67 | BC76: 472 | BD76: 149 | BE76: 149 | BF76: 149 | BG76: 382 | BH76: 188 | BI76: 198 | BJ76: 370 | BK76: 384
A77: NAT|Empty | B77: 1|Catering: Departmental activities | C77: 1 | D77: Vote | E77: The Presidency | F77: 1 | G77: Administration | H77: 3 | I77: Support Services to the Deputy President | J77: Current payments | K77: Goods and services | L77: Catering: Departmental activities | M77: Catering: Departmental activities | N77: NAT | O77: Non-transfer | P77: 163 | Q77: 309 | R77: 61 | S77: 315 | T77: 315 | U77: 315 | V77: 141 | W77: 283 | X77: 297 | Y77: 345 | Z77: 357 | AA77: 62 | AB77: =IFERROR(MATCH(ENE[[#This Row],[Type of change]],ChangeType,0),0) -> 0 | AP77: =IF(AE77<>0,AE77,IF(ENE[[#This Row],[NMOG Indi]]>0,P77,AE77)) -> 0 | AQ77: =IF(AF77<>0,AF77,IF(ENE[[#This Row],[NMOG Indi]]>0,Q77,AF77)) -> 0 | AR77: =IF(AG77<>0,AG77,IF(ENE[[#This Row],[NMOG Indi]]>0,R77,AG77)) -> 0 | AS77: =IF(AH77<>0,AH77,IF(ENE[[#This Row],[NMOG Indi]]>0,S77,AH77)) -> 0 | AT77: =IF(AI77<>0,AI77,IF(ENE[[#This Row],[NMOG Indi]]>0,T77,AI77)) -> 0 | AU77: =IF(AJ77<>0,AJ77,IF(ENE[[#This Row],[NMOG Indi]]>0,U77,AJ77)) -> 0 | AV77: =IF(AK77<>0,AK77,IF(ENE[[#This Row],[NMOG Indi]]>0,V77,AK77)) -> 0 | AW77: =IF(AL77<>0,AL77,IF(ENE[[#This Row],[NMOG Indi]]>0,W77,AL77)) -> 0 | AX77: =IF(AM77<>0,AM77,IF(ENE[[#This Row],[NMOG Indi]]>0,X77,AM77)) -> 0 | AY77: =IF(AN77<>0,AN77,IF(ENE[[#This Row],[NMOG Indi]]>0,Y77,AN77)) -> 0 | AZ77: =IF(AO77<>0,AO77,IF(ENE[[#This Row],[NMOG Indi]]>0,Z77,AO77)) -> 0 | BA77: 163 | BB77: 309 | BC77: 61 | BD77: 315 | BE77: 315 | BF77: 315 | BG77: 141 | BH77: 283 | BI77: 297 | BJ77: 345 | BK77: 357
A78: NAT|Empty | B78: 1|Communication (G&S) | C78: 1 | D78: Vote | E78: The Presidency | F78: 1 | G78: Administration | H78: 3 | I78: Support Services to the Deputy President | J78: Current payments | K78: Goods and services | L78: Communication (G&S) | M78: Communication (G&S) | N78: NAT | O78: Non-transfer | P78: 363 | Q78: 1547 | R78: 68 | S78: 1586 | T78: 1586 | U78: 1586 | V78: 139 | W78: 1622 | X78: 1710 | Y78: 1505 | Z78: 1561 | AA78: 63 | AB78: =IFERROR(MATCH(ENE[[#This Row],[Type of change]],ChangeType,0),0) -> 0 | AP78: =IF(AE78<>0,AE78,IF(ENE[[#This Row],[NMOG Indi]]>0,P78,AE78)) -> 0 | AQ78: =IF(AF78<>0,AF78,IF(ENE[[#This Row],[NMOG Indi]]>0,Q78,AF78)) -> 0 | AR78: =IF(AG78<>0,AG78,IF(ENE[[#This Row],[NMOG Indi]]>0,R78,AG78)) -> 0 | AS78: =IF(AH78<>0,AH78,IF(ENE[[#This Row],[NMOG Indi]]>0,S78,AH78)) -> 0 | AT78: =IF(AI78<>0,AI78,IF(ENE[[#This Row],[NMOG Indi]]>0,T78,AI78)) -> 0 | AU78: =IF(AJ78<>0,AJ78,IF(ENE[[#This Row],[NMOG Indi]]>0,U78,AJ78)) -> 0 | AV78: =IF(AK78<>0,AK78,IF(ENE[[#This Row],[NMOG Indi]]>0,V78,AK78)) -> 0 | AW78: =IF(AL78<>0,AL78,IF(ENE[[#This Row],[NMOG Indi]]>0,W78,AL78)) -> 0 | AX78: =IF(AM78<>0,AM78,IF(ENE[[#This Row],[NMOG Indi]]>0,X78,AM78)) -> 0 | AY78: =IF(AN78<>0,AN78,IF(ENE[[#This Row],[NMOG Indi]]>0,Y78,AN78)) -> 0 | AZ78: =IF(AO78<>0,AO78,IF(ENE[[#This Row],[NMOG Indi]]>0,Z78,AO78)) -> 0 | BA78: 363 | BB78: 1547 | BC78: 68 | BD78: 1586 | BE78: 1586 | BF78: 1586 | BG78: 139 | BH78: 1622 | BI78: 1710 | BJ78: 1505 | BK78: 1561
A79: NAT|Empty | B79: 1|Consultants: Business and advisory services | C79: 1 | D79: Vote | E79: The Presidency | F79: 1 | G79: Administration | H79: 3 | I79: Support Services to the Deputy President | J79: Current payments | K79: Goods and services | L79: Consultants: Business and advisory services | M79: Consultants: Business and advisory services | N79: NAT | O79: Non-transfer | P79: 0 | Q79: 0 | R79: 0 | S79: 0 | T79: 0 | U79: 0 | V79: 0 | W79: 0 | X79: 0 | Y79: 0 | Z79: 0 | AA79: 64 | AB79: =IFERROR(MATCH(ENE[[#This Row],[Type of change]],ChangeType,0),0) -> 0 | AP79: =IF(AE79<>0,AE79,IF(ENE[[#This Row],[NMOG Indi]]>0,P79,AE79)) -> 0 | AQ79: =IF(AF79<>0,AF79,IF(ENE[[#This Row],[NMOG Indi]]>0,Q79,AF79)) -> 0 | AR79: =IF(AG79<>0,AG79,IF(ENE[[#This Row],[NMOG Indi]]>0,R79,AG79)) -> 0 | AS79: =IF(AH79<>0,AH79,IF(ENE[[#This Row],[NMOG Indi]]>0,S79,AH79)) -> 0 | AT79: =IF(AI79<>0,AI79,IF(ENE[[#This Row],[NMOG Indi]]>0,T79,AI79)) -> 0 | AU79: =IF(AJ79<>0,AJ79,IF(ENE[[#This Row],[NMOG Indi]]>0,U79,AJ79)) -> 0 | AV79: =IF(AK79<>0,AK79,IF(ENE[[#This Row],[NMOG Indi]]>0,V79,AK79)) -> 0 | AW79: =IF(AL79<>0,AL79,IF(ENE[[#This Row],[NMOG Indi]]>0,W79,AL79)) -> 0 | AX79: =IF(AM79<>0,AM79,IF(ENE[[#This Row],[NMOG Indi]]>0,X79,AM79)) -> 0 | AY79: =IF(AN79<>0,AN79,IF(ENE[[#This Row],[NMOG Indi]]>0,Y79,AN79)) -> 0 | AZ79: =IF(AO79<>0,AO79,IF(ENE[[#This Row],[NMOG Indi]]>0,Z79,AO79)) -> 0 | BA79: 0 | BB79: 0 | BC79: 0 | BD79: 0 | BE79: 0 | BF79: 0 | BG79: 0 | BH79: 0 | BI79: 0 | BJ79: 0 | BK79: =Z79-AZ79 -> 0
A80: NAT|Empty | B80: 1|Consumable supplies | C80: 1 | D80: Vote | E80: The Presidency | F80: 1 | G80: Administration | H80: 3 | I80: Support Services to the Deputy President | J80: Current payments | K80: Goods and services | L80: Consumable supplies | M80: Consumable supplies | N80: NAT | O80: Non-transfer | P80: 35 | Q80: 87 | R80: 17 | S80: 113 | T80: 113 | U80: 113 | V80: 50 | W80: 109 | X80: 115 | Y80: 270 | Z80: 280 | AA80: 65 | AB80: =IFERROR(MATCH(ENE[[#This Row],[Type of change]],ChangeType,0),0) -> 0 | AP80: =IF(AE80<>0,AE80,IF(ENE[[#This Row],[NMOG Indi]]>0,P80,AE80)) -> 0 | AQ80: =IF(AF80<>0,AF80,IF(ENE[[#This Row],[NMOG Indi]]>0,Q80,AF80)) -> 0 | AR80: =IF(AG80<>0,AG80,IF(ENE[[#This Row],[NMOG Indi]]>0,R80,AG80)) -> 0 | AS80: =IF(AH80<>0,AH80,IF(ENE[[#This Row],[NMOG Indi]]>0,S80,AH80)) -> 0 | AT80: =IF(AI80<>0,AI80,IF(ENE[[#This Row],[NMOG Indi]]>0,T80,AI80)) -> 0 | AU80: =IF(AJ80<>0,AJ80,IF(ENE[[#This Row],[NMOG Indi]]>0,U80,AJ80)) -> 0 | AV80: =IF(AK80<>0,AK80,IF(ENE[[#This Row],[NMOG Indi]]>0,V80,AK80)) -> 0 | AW80: =IF(AL80<>0,AL80,IF(ENE[[#This Row],[NMOG Indi]]>0,W80,AL80)) -> 0 | AX80: =IF(AM80<>0,AM80,IF(ENE[[#This Row],[NMOG Indi]]>0,X80,AM80)) -> 0 | AY80: =IF(AN80<>0,AN80,IF(ENE[[#This Row],[NMOG Indi]]>0,Y80,AN80)) -> 0 | AZ80: =IF(AO80<>0,AO80,IF(ENE[[#This Row],[NMOG Indi]]>0,Z80,AO80)) -> 0 | BA80: =P80-AP80 -> 35 | BB80: =Q80-AQ80 -> 87 | BC80: =R80-AR80 -> 17 | BD80: =S80-AS80 -> 113 | BE80: =T80-AT80 -> 113 | BF80: =U80-AU80 -> 113 | BG80: 50 | BH80: =W80-AW80 -> 109 | BI80: 115 | BJ80: 270 | BK80: 280
A81: NAT|Empty | B81: 1|Consumables: Stationery, printing and office supplies | C81: 1 | D81: Vote | E81: The Presidency | F81: 1 | G81: Administration | H81: 3 | I81: Support Services to the Deputy President | J81: Current payments | K81: Goods and services | L81: Consumables: Stationery, printing and office supplies | M81: Consumables: Stationery, printing and office supplies | N81: NAT | O81: Non-transfer | P81: 97 | Q81: 640 | R81: 363 | S81: 835 | T81: 835 | U81: 835 | V81: 101 | W81: 906 | X81: 956 | Y81: 1090 | Z81: 1130 | AA81: 66 | AB81: =IFERROR(MATCH(ENE[[#This Row],[Type of change]],ChangeType,0),0) -> 0 | AP81: =IF(AE81<>0,AE81,IF(ENE[[#This Row],[NMOG Indi]]>0,P81,AE81)) -> 0 | AQ81: =IF(AF81<>0,AF81,IF(ENE[[#This Row],[NMOG Indi]]>0,Q81,AF81)) -> 0 | AR81: =IF(AG81<>0,AG81,IF(ENE[[#This Row],[NMOG Indi]]>0,R81,AG81)) -> 0 | AS81: =IF(AH81<>0,AH81,IF(ENE[[#This Row],[NMOG Indi]]>0,S81,AH81)) -> 0 | AT81: =IF(AI81<>0,AI81,IF(ENE[[#This Row],[NMOG Indi]]>0,T81,AI81)) -> 0 | AU81: =IF(AJ81<>0,AJ81,IF(ENE[[#This Row],[NMOG Indi]]>0,U81,AJ81)) -> 0 | AV81: =IF(AK81<>0,AK81,IF(ENE[[#This Row],[NMOG Indi]]>0,V81,AK81)) -> 0 | AW81: =IF(AL81<>0,AL81,IF(ENE[[#This Row],[NMOG Indi]]>0,W81,AL81)) -> 0 | AX81: =IF(AM81<>0,AM81,IF(ENE[[#This Row],[NMOG Indi]]>0,X81,AM81)) -> 0 | AY81: =IF(AN81<>0,AN81,IF(ENE[[#This Row],[NMOG Indi]]>0,Y81,AN81)) -> 0 | AZ81: =IF(AO81<>0,AO81,IF(ENE[[#This Row],[NMOG Indi]]>0,Z81,AO81)) -> 0 | BA81: 97 | BB81: 640 | BC81: 363 | BD81: 835 | BE81: 835 | BF81: 835 | BG81: 101 | BH81: 906 | BI81: 956 | BJ81: 1090 | BK81: 1130
A82: NAT|Empty | B82: 1|Contractors | C82: 1 | D82: Vote | E82: The Presidency | F82: 1 | G82: Administration | H82: 3 | I82: Support Services to the Deputy President | J82: Current payments | K82: Goods and services | L82: Contractors | M82: Contractors | N82: NAT | O82: Non-transfer | P82: 12 | Q82: 113 | R82: 6 | S82: 76 | T82: 76 | U82: 76 | V82: 31 | W82: 61 | X82: 64 | Y82: 255 | Z82: 267 | AA82: 67 | AB82: =IFERROR(MATCH(ENE[[#This Row],[Type of change]],ChangeType,0),0) -> 0 | AP82: =IF(AE82<>0,AE82,IF(ENE[[#This Row],[NMOG Indi]]>0,P82,AE82)) -> 0 | AQ82: =IF(AF82<>0,AF82,IF(ENE[[#This Row],[NMOG Indi]]>0,Q82,AF82)) -> 0 | AR82: =IF(AG82<>0,AG82,IF(ENE[[#This Row],[NMOG Indi]]>0,R82,AG82)) -> 0 | AS82: =IF(AH82<>0,AH82,IF(ENE[[#This Row],[NMOG Indi]]>0,S82,AH82)) -> 0 | AT82: =IF(AI82<>0,AI82,IF(ENE[[#This Row],[NMOG Indi]]>0,T82,AI82)) -> 0 | AU82: =IF(AJ82<>0,AJ82,IF(ENE[[#This Row],[NMOG Indi]]>0,U82,AJ82)) -> 0 | AV82: =IF(AK82<>0,AK82,IF(ENE[[#This Row],[NMOG Indi]]>0,V82,AK82)) -> 0 | AW82: =IF(AL82<>0,AL82,IF(ENE[[#This Row],[NMOG Indi]]>0,W82,AL82)) -> 0 | AX82: =IF(AM82<>0,AM82,IF(ENE[[#This Row],[NMOG Indi]]>0,X82,AM82)) -> 0 | AY82: =IF(AN82<>0,AN82,IF(ENE[[#This Row],[NMOG Indi]]>0,Y82,AN82)) -> 0 | AZ82: =IF(AO82<>0,AO82,IF(ENE[[#This Row],[NMOG Indi]]>0,Z82,AO82)) -> 0 | BA82: 12 | BB82: 113 | BC82: 6 | BD82: 76 | BE82: 76 | BF82: 76 | BG82: 31 | BH82: 61 | BI82: 64 | BJ82: 255 | BK82: 267
A83: NAT|Empty | B83: 1|Entertainment | C83: 1 | D83: Vote | E83: The Presidency | F83: 1 | G83: Administration | H83: 3 | I83: Support Services to the Deputy President | J83: Current payments | K83: Goods and services | L83: Entertainment | M83: Entertainment | N83: NAT | O83: Non-transfer | P83: 0 | Q83: 92 | R83: 0 | S83: 94 | T83: 94 | U83: 94 | V83: 0 | W83: 93 | X83: 98 | Y83: 95 | Z83: 99 | AA83: 68 | AB83: =IFERROR(MATCH(ENE[[#This Row],[Type of change]],ChangeType,0),0) -> 0 | AP83: =IF(AE83<>0,AE83,IF(ENE[[#This Row],[NMOG Indi]]>0,P83,AE83)) -> 0 | AQ83: =IF(AF83<>0,AF83,IF(ENE[[#This Row],[NMOG Indi]]>0,Q83,AF83)) -> 0 | AR83: =IF(AG83<>0,AG83,IF(ENE[[#This Row],[NMOG Indi]]>0,R83,AG83)) -> 0 | AS83: =IF(AH83<>0,AH83,IF(ENE[[#This Row],[NMOG Indi]]>0,S83,AH83)) -> 0 | AT83: =IF(AI83<>0,AI83,IF(ENE[[#This Row],[NMOG Indi]]>0,T83,AI83)) -> 0 | AU83: =IF(AJ83<>0,AJ83,IF(ENE[[#This Row],[NMOG Indi]]>0,U83,AJ83)) -> 0 | AV83: =IF(AK83<>0,AK83,IF(ENE[[#This Row],[NMOG Indi]]>0,V83,AK83)) -> 0 | AW83: =IF(AL83<>0,AL83,IF(ENE[[#This Row],[NMOG Indi]]>0,W83,AL83)) -> 0 | AX83: =IF(AM83<>0,AM83,IF(ENE[[#This Row],[NMOG Indi]]>0,X83,AM83)) -> 0 | AY83: =IF(AN83<>0,AN83,IF(ENE[[#This Row],[NMOG Indi]]>0,Y83,AN83)) -> 0 | AZ83: =IF(AO83<>0,AO83,IF(ENE[[#This Row],[NMOG Indi]]>0,Z83,AO83)) -> 0 | BA83: 0 | BB83: 92 | BC83: 0 | BD83: 94 | BE83: 94 | BF83: 94 | BG83: 0 | BH83: 93 | BI83: 98 | BJ83: 95 | BK83: 99
A84: NAT|Empty | B84: 1|Fleet services (including government motor transport) | C84: 1 | D84: Vote | E84: The Presidency | F84: 1 | G84: Administration | H84: 3 | I84: Support Services to the Deputy President | J84: Current payments | K84: Goods and services | L84: Fleet services (including government motor transport) | M84: Fleet services (including government motor transport) | N84: NAT | O84: Non-transfer | P84: 204 | Q84: 118 | R84: 180 | S84: 167 | T84: 167 | U84: 167 | V84: 125 | W84: 174 | X84: 183 | Y84: 215 | Z84: 223 | AA84: 69 | AB84: =IFERROR(MATCH(ENE[[#This Row],[Type of change]],ChangeType,0),0) -> 0 | AP84: =IF(AE84<>0,AE84,IF(ENE[[#This Row],[NMOG Indi]]>0,P84,AE84)) -> 0 | AQ84: =IF(AF84<>0,AF84,IF(ENE[[#This Row],[NMOG Indi]]>0,Q84,AF84)) -> 0 | AR84: =IF(AG84<>0,AG84,IF(ENE[[#This Row],[NMOG Indi]]>0,R84,AG84)) -> 0 | AS84: =IF(AH84<>0,AH84,IF(ENE[[#This Row],[NMOG Indi]]>0,S84,AH84)) -> 0 | AT84: =IF(AI84<>0,AI84,IF(ENE[[#This Row],[NMOG Indi]]>0,T84,AI84)) -> 0 | AU84: =IF(AJ84<>0,AJ84,IF(ENE[[#This Row],[NMOG Indi]]>0,U84,AJ84)) -> 0 | AV84: =IF(AK84<>0,AK84,IF(ENE[[#This Row],[NMOG Indi]]>0,V84,AK84)) -> 0 | AW84: =IF(AL84<>0,AL84,IF(ENE[[#This Row],[NMOG Indi]]>0,W84,AL84)) -> 0 | AX84: =IF(AM84<>0,AM84,IF(ENE[[#This Row],[NMOG Indi]]>0,X84,AM84)) -> 0 | AY84: =IF(AN84<>0,AN84,IF(ENE[[#This Row],[NMOG Indi]]>0,Y84,AN84)) -> 0 | AZ84: =IF(AO84<>0,AO84,IF(ENE[[#This Row],[NMOG Indi]]>0,Z84,AO84)) -> 0 | BA84: 204 | BB84: 118 | BC84: 180 | BD84: 167 | BE84: 167 | BF84: 167 | BG84: 125 | BH84: 174 | BI84: 183 | BJ84: 215 | BK84: 223
A85: NAT|Empty | B85: 1|Minor Assets | C85: 1 | D85: Vote | E85: The Presidency | F85: 1 | G85: Administration | H85: 3 | I85: Support Services to the Deputy President | J85: Current payments | K85: Goods and services | L85: Minor Assets | M85: Minor Assets | N85: NAT | O85: Non-transfer | P85: 15 | Q85: 282 | R85: 7 | S85: 173 | T85: 173 | U85: 173 | V85: 20 | W85: 114 | X85: 110 | Y85: 645 | Z85: 668 | AA85: 70 | AB85: =IFERROR(MATCH(ENE[[#This Row],[Type of change]],ChangeType,0),0) -> 0 | AP85: =IF(AE85<>0,AE85,IF(ENE[[#This Row],[NMOG Indi]]>0,P85,AE85)) -> 0 | AQ85: =IF(AF85<>0,AF85,IF(ENE[[#This Row],[NMOG Indi]]>0,Q85,AF85)) -> 0 | AR85: =IF(AG85<>0,AG85,IF(ENE[[#This Row],[NMOG Indi]]>0,R85,AG85)) -> 0 | AS85: =IF(AH85<>0,AH85,IF(ENE[[#This Row],[NMOG Indi]]>0,S85,AH85)) -> 0 | AT85: =IF(AI85<>0,AI85,IF(ENE[[#This Row],[NMOG Indi]]>0,T85,AI85)) -> 0 | AU85: =IF(AJ85<>0,AJ85,IF(ENE[[#This Row],[NMOG Indi]]>0,U85,AJ85)) -> 0 | AV85: =IF(AK85<>0,AK85,IF(ENE[[#This Row],[NMOG Indi]]>0,V85,AK85)) -> 0 | AW85: =IF(AL85<>0,AL85,IF(ENE[[#This Row],[NMOG Indi]]>0,W85,AL85)) -> 0 | AX85: =IF(AM85<>0,AM85,IF(ENE[[#This Row],[NMOG Indi]]>0,X85,AM85)) -> 0 | AY85: =IF(AN85<>0,AN85,IF(ENE[[#This Row],[NMOG Indi]]>0,Y85,AN85)) -> 0 | AZ85: =IF(AO85<>0,AO85,IF(ENE[[#This Row],[NMOG Indi]]>0,Z85,AO85)) -> 0 | BA85: 15 | BB85: 282 | BC85: 7 | BD85: 173 | BE85: 173 | BF85: 173 | BG85: 20 | BH85: 114 | BI85: 110 | BJ85: 645 | BK85: 668
A86: NAT|Empty | B86: 1|Operating leases | C86: 1 | D86: Vote | E86: The Presidency | F86: 1 | G86: Administration | H86: 3 | I86: Support Services to the Deputy President | J86: Current payments | K86: Goods and services | L86: Operating leases | M86: Operating leases | N86: NAT | O86: Non-transfer | P86: 442 | Q86: 365 | R86: 309 | S86: 422 | T86: 422 | U86: 422 | V86: 361 | W86: 510 | X86: 538 | Y86: 603 | Z86: 625 | AA86: 71 | AB86: =IFERROR(MATCH(ENE[[#This Row],[Type of change]],ChangeType,0),0) -> 0 | AP86: =IF(AE86<>0,AE86,IF(ENE[[#This Row],[NMOG Indi]]>0,P86,AE86)) -> 0 | AQ86: =IF(AF86<>0,AF86,IF(ENE[[#This Row],[NMOG Indi]]>0,Q86,AF86)) -> 0 | AR86: =IF(AG86<>0,AG86,IF(ENE[[#This Row],[NMOG Indi]]>0,R86,AG86)) -> 0 | AS86: =IF(AH86<>0,AH86,IF(ENE[[#This Row],[NMOG Indi]]>0,S86,AH86)) -> 0 | AT86: =IF(AI86<>0,AI86,IF(ENE[[#This Row],[NMOG Indi]]>0,T86,AI86)) -> 0 | AU86: =IF(AJ86<>0,AJ86,IF(ENE[[#This Row],[NMOG Indi]]>0,U86,AJ86)) -> 0 | AV86: =IF(AK86<>0,AK86,IF(ENE[[#This Row],[NMOG Indi]]>0,V86,AK86)) -> 0 | AW86: =IF(AL86<>0,AL86,IF(ENE[[#This Row],[NMOG Indi]]>0,W86,AL86)) -> 0 | AX86: =IF(AM86<>0,AM86,IF(ENE[[#This Row],[NMOG Indi]]>0,X86,AM86)) -> 0 | AY86: =IF(AN86<>0,AN86,IF(ENE[[#This Row],[NMOG Indi]]>0,Y86,AN86)) -> 0 | AZ86: =IF(AO86<>0,AO86,IF(ENE[[#This Row],[NMOG Indi]]>0,Z86,AO86)) -> 0 | BA86: 442 | BB86: 365 | BC86: 309 | BD86: 422 | BE86: 422 | BF86: 422 | BG86: 361 | BH86: 510 | BI86: 538 | BJ86: 603 | BK86: 625
A87: NAT|Empty | B87: 1|Operating payments | C87: 1 | D87: Vote | E87: The Presidency | F87: 1 | G87: Administration | H87: 3 | I87: Support Services to the Deputy President | J87: Current payments | K87: Goods and services | L87: Operating payments | M87: Operating payments | N87: NAT | O87: Non-transfer | P87: 73 | Q87: 46 | R87: 58 | S87: 57 | T87: 57 | U87: 57 | V87: 18 | W87: 20 | X87: 21 | Y87: 35 | Z87: 37 | AA87: 72 | AB87: =IFERROR(MATCH(ENE[[#This Row],[Type of change]],ChangeType,0),0) -> 0 | AP87: =IF(AE87<>0,AE87,IF(ENE[[#This Row],[NMOG Indi]]>0,P87,AE87)) -> 0 | AQ87: =IF(AF87<>0,AF87,IF(ENE[[#This Row],[NMOG Indi]]>0,Q87,AF87)) -> 0 | AR87: =IF(AG87<>0,AG87,IF(ENE[[#This Row],[NMOG Indi]]>0,R87,AG87)) -> 0 | AS87: =IF(AH87<>0,AH87,IF(ENE[[#This Row],[NMOG Indi]]>0,S87,AH87)) -> 0 | AT87: =IF(AI87<>0,AI87,IF(ENE[[#This Row],[NMOG Indi]]>0,T87,AI87)) -> 0 | AU87: =IF(AJ87<>0,AJ87,IF(ENE[[#This Row],[NMOG Indi]]>0,U87,AJ87)) -> 0 | AV87: =IF(AK87<>0,AK87,IF(ENE[[#This Row],[NMOG Indi]]>0,V87,AK87)) -> 0 | AW87: =IF(AL87<>0,AL87,IF(ENE[[#This Row],[NMOG Indi]]>0,W87,AL87)) -> 0 | AX87: =IF(AM87<>0,AM87,IF(ENE[[#This Row],[NMOG Indi]]>0,X87,AM87)) -> 0 | AY87: =IF(AN87<>0,AN87,IF(ENE[[#This Row],[NMOG Indi]]>0,Y87,AN87)) -> 0 | AZ87: =IF(AO87<>0,AO87,IF(ENE[[#This Row],[NMOG Indi]]>0,Z87,AO87)) -> 0 | BA87: 73 | BB87: 46 | BC87: 58 | BD87: 57 | BE87: 57 | BF87: 57 | BG87: 18 | BH87: 20 | BI87: 21 | BJ87: 35 | BK87: 37
A88: NAT|Empty | B88: 1|Rental and hiring | C88: 1 | D88: Vote | E88: The Presidency | F88: 1 | G88: Administration | H88: 3 | I88: Support Services to the Deputy President | J88: Current payments | K88: Goods and services | L88: Rental and hiring | M88: Rental and hiring | N88: NAT | O88: Non-transfer | P88: 223 | Q88: 24 | R88: 0 | S88: 18 | T88: 18 | U88: 18 | V88: 344 | W88: 26 | X88: 27 | Y88: 290 | Z88: 304 | AA88: 73 | AB88: =IFERROR(MATCH(ENE[[#This Row],[Type of change]],ChangeType,0),0) -> 0 | AP88: =IF(AE88<>0,AE88,IF(ENE[[#This Row],[NMOG Indi]]>0,P88,AE88)) -> 0 | AQ88: =IF(AF88<>0,AF88,IF(ENE[[#This Row],[NMOG Indi]]>0,Q88,AF88)) -> 0 | AR88: =IF(AG88<>0,AG88,IF(ENE[[#This Row],[NMOG Indi]]>0,R88,AG88)) -> 0 | AS88: =IF(AH88<>0,AH88,IF(ENE[[#This Row],[NMOG Indi]]>0,S88,AH88)) -> 0 | AT88: =IF(AI88<>0,AI88,IF(ENE[[#This Row],[NMOG Indi]]>0,T88,AI88)) -> 0 | AU88: =IF(AJ88<>0,AJ88,IF(ENE[[#This Row],[NMOG Indi]]>0,U88,AJ88)) -> 0 | AV88: =IF(AK88<>0,AK88,IF(ENE[[#This Row],[NMOG Indi]]>0,V88,AK88)) -> 0 | AW88: =IF(AL88<>0,AL88,IF(ENE[[#This Row],[NMOG Indi]]>0,W88,AL88)) -> 0 | AX88: =IF(AM88<>0,AM88,IF(ENE[[#This Row],[NMOG Indi]]>0,X88,AM88)) -> 0 | AY88: =IF(AN88<>0,AN88,IF(ENE[[#This Row],[NMOG Indi]]>0,Y88,AN88)) -> 0 | AZ88: =IF(AO88<>0,AO88,IF(ENE[[#This Row],[NMOG Indi]]>0,Z88,AO88)) -> 0 | BA88: 223 | BB88: 24 | BC88: 0 | BD88: 18 | BE88: 18 | BF88: 18 | BG88: 344 | BH88: 26 | BI88: 27 | BJ88: 290 | BK88: 304
A89: NAT|Empty | B89: 1|Training and development | C89: 1 | D89: Vote | E89: The Presidency | F89: 1 | G89: Administration | H89: 3 | I89: Support Services to the Deputy President | J89: Current payments | K89: Goods and services | L89: Training and development | M89: Training and development | N89: NAT | O89: Non-transfer | P89: 0 | Q89: 0 | R89: 0 | S89: 121 | T89: 121 | U89: 121 | V89: 12087 | W89: 0 | X89: 0 | Y89: 0 | Z89: 0 | AA89: 74 | AB89: =IFERROR(MATCH(ENE[[#This Row],[Type of change]],ChangeType,0),0) -> 0 | AP89: =IF(AE89<>0,AE89,IF(ENE[[#This Row],[NMOG Indi]]>0,P89,AE89)) -> 0 | AQ89: =IF(AF89<>0,AF89,IF(ENE[[#This Row],[NMOG Indi]]>0,Q89,AF89)) -> 0 | AR89: =IF(AG89<>0,AG89,IF(ENE[[#This Row],[NMOG Indi]]>0,R89,AG89)) -> 0 | AS89: =IF(AH89<>0,AH89,IF(ENE[[#This Row],[NMOG Indi]]>0,S89,AH89)) -> 0 | AT89: =IF(AI89<>0,AI89,IF(ENE[[#This Row],[NMOG Indi]]>0,T89,AI89)) -> 0 | AU89: =IF(AJ89<>0,AJ89,IF(ENE[[#This Row],[NMOG Indi]]>0,U89,AJ89)) -> 0 | AV89: =IF(AK89<>0,AK89,IF(ENE[[#This Row],[NMOG Indi]]>0,V89,AK89)) -> 0 | AW89: =IF(AL89<>0,AL89,IF(ENE[[#This Row],[NMOG Indi]]>0,W89,AL89)) -> 0 | AX89: =IF(AM89<>0,AM89,IF(ENE[[#This Row],[NMOG Indi]]>0,X89,AM89)) -> 0 | AY89: =IF(AN89<>0,AN89,IF(ENE[[#This Row],[NMOG Indi]]>0,Y89,AN89)) -> 0 | AZ89: =IF(AO89<>0,AO89,IF(ENE[[#This Row],[NMOG Indi]]>0,Z89,AO89)) -> 0 | BA89: 0 | BB89: 0 | BC89: 0 | BD89: 121 | BE89: 121 | BF89: 121 | BG89: 12087 | BH89: 0 | BI89: 0 | BJ89: 0 | BK89: 0
A90: NAT|Empty | B90: 1|Travel and subsistence | C90: 1 | D90: Vote | E90: The Presidency | F90: 1 | G90: Administration | H90: 3 | I90: Support Services to the Deputy President | J90: Current payments | K90: Goods and services | L90: Travel and subsistence | M90: Travel and subsistence | N90: NAT | O90: Non-transfer | P90: 8758 | Q90: 10705 | R90: 7493 | S90: 11726 | T90: 11726 | U90: 11726 | V90: 0 | W90: 12652 | X90: 13352 | Y90: 12861 | Z90: 13338 | AA90: 75 | AB90: =IFERROR(MATCH(ENE[[#This Row],[Type of change]],ChangeType,0),0) -> 0 | AP90: =IF(AE90<>0,AE90,IF(ENE[[#This Row],[NMOG Indi]]>0,P90,AE90)) -> 0 | AQ90: =IF(AF90<>0,AF90,IF(ENE[[#This Row],[NMOG Indi]]>0,Q90,AF90)) -> 0 | AR90: =IF(AG90<>0,AG90,IF(ENE[[#This Row],[NMOG Indi]]>0,R90,AG90)) -> 0 | AS90: =IF(AH90<>0,AH90,IF(ENE[[#This Row],[NMOG Indi]]>0,S90,AH90)) -> 0 | AT90: =IF(AI90<>0,AI90,IF(ENE[[#This Row],[NMOG Indi]]>0,T90,AI90)) -> 0 | AU90: =IF(AJ90<>0,AJ90,IF(ENE[[#This Row],[NMOG Indi]]>0,U90,AJ90)) -> 0 | AV90: =IF(AK90<>0,AK90,IF(ENE[[#This Row],[NMOG Indi]]>0,V90,AK90)) -> 0 | AW90: =IF(AL90<>0,AL90,IF(ENE[[#This Row],[NMOG Indi]]>0,W90,AL90)) -> 0 | AX90: =IF(AM90<>0,AM90,IF(ENE[[#This Row],[NMOG Indi]]>0,X90,AM90)) -> 0 | AY90: =IF(AN90<>0,AN90,IF(ENE[[#This Row],[NMOG Indi]]>0,Y90,AN90)) -> 0 | AZ90: =IF(AO90<>0,AO90,IF(ENE[[#This Row],[NMOG Indi]]>0,Z90,AO90)) -> 0 | BA90: 8758 | BB90: 10705 | BC90: 7493 | BD90: 11726 | BE90: 11726 | BF90: 11726 | BG90: 0 | BH90: 12652 | BI90: 13352 | BJ90: 12861 | BK90: 13338
A91: NAT|Empty | B91: 1|Venues and facilities | C91: 1 | D91: Vote | E91: The Presidency | F91: 1 | G91: Administration | H91: 3 | I91: Support Services to the Deputy President | J91: Current payments | K91: Goods and services | L91: Venues and facilities | M91: Venues and facilities | N91: NAT | O91: Non-transfer | P91: 210 | Q91: 239 | R91: 0 | S91: 120 | T91: 120 | U91: 120 | V91: 40 | W91: 80 | X91: 84 | Y91: 150 | Z91: 157 | AA91: 76 | AB91: =IFERROR(MATCH(ENE[[#This Row],[Type of change]],ChangeType,0),0) -> 0 | AP91: =IF(AE91<>0,AE91,IF(ENE[[#This Row],[NMOG Indi]]>0,P91,AE91)) -> 0 | AQ91: =IF(AF91<>0,AF91,IF(ENE[[#This Row],[NMOG Indi]]>0,Q91,AF91)) -> 0 | AR91: =IF(AG91<>0,AG91,IF(ENE[[#This Row],[NMOG Indi]]>0,R91,AG91)) -> 0 | AS91: =IF(AH91<>0,AH91,IF(ENE[[#This Row],[NMOG Indi]]>0,S91,AH91)) -> 0 | AT91: =IF(AI91<>0,AI91,IF(ENE[[#This Row],[NMOG Indi]]>0,T91,AI91)) -> 0 | AU91: =IF(AJ91<>0,AJ91,IF(ENE[[#This Row],[NMOG Indi]]>0,U91,AJ91)) -> 0 | AV91: =IF(AK91<>0,AK91,IF(ENE[[#This Row],[NMOG Indi]]>0,V91,AK91)) -> 0 | AW91: =IF(AL91<>0,AL91,IF(ENE[[#This Row],[NMOG Indi]]>0,W91,AL91)) -> 0 | AX91: =IF(AM91<>0,AM91,IF(ENE[[#This Row],[NMOG Indi]]>0,X91,AM91)) -> 0 | AY91: =IF(AN91<>0,AN91,IF(ENE[[#This Row],[NMOG Indi]]>0,Y91,AN91)) -> 0 | AZ91: =IF(AO91<>0,AO91,IF(ENE[[#This Row],[NMOG Indi]]>0,Z91,AO91)) -> 0 | BA91: 210 | BB91: 239 | BC91: 0 | BD91: 120 | BE91: 120 | BF91: 120 | BG91: 40 | BH91: 80 | BI91: 84 | BJ91: 150 | BK91: 157
A92: NAT|Empty | B92: 1|Other machinery and equipment | C92: 1 | D92: Vote | E92: The Presidency | F92: 1 | G92: Administration | H92: 3 | I92: Support Services to the Deputy President | J92: Payments for capital assets | K92: Machinery and equipment | L92: Other machinery and equipment | M92: Other machinery and equipment | N92: NAT | O92: Non-transfer | P92: 583 | Q92: 834 | R92: 303 | S92: 649 | T92: 649 | U92: 649 | V92: 799 | W92: 681 | X92: 710 | Y92: 749 | Z92: 791 | AA92: 77 | AB92: =IFERROR(MATCH(ENE[[#This Row],[Type of change]],ChangeType,0),0) -> 0 | AP92: =IF(AE92<>0,AE92,IF(ENE[[#This Row],[NMOG Indi]]>0,P92,AE92)) -> 0 | AQ92: =IF(AF92<>0,AF92,IF(ENE[[#This Row],[NMOG Indi]]>0,Q92,AF92)) -> 0 | AR92: =IF(AG92<>0,AG92,IF(ENE[[#This Row],[NMOG Indi]]>0,R92,AG92)) -> 0 | AS92: =IF(AH92<>0,AH92,IF(ENE[[#This Row],[NMOG Indi]]>0,S92,AH92)) -> 0 | AT92: =IF(AI92<>0,AI92,IF(ENE[[#This Row],[NMOG Indi]]>0,T92,AI92)) -> 0 | AU92: =IF(AJ92<>0,AJ92,IF(ENE[[#This Row],[NMOG Indi]]>0,U92,AJ92)) -> 0 | AV92: =IF(AK92<>0,AK92,IF(ENE[[#This Row],[NMOG Indi]]>0,V92,AK92)) -> 0 | AW92: =IF(AL92<>0,AL92,IF(ENE[[#This Row],[NMOG Indi]]>0,W92,AL92)) -> 0 | AX92: =IF(AM92<>0,AM92,IF(ENE[[#This Row],[NMOG Indi]]>0,X92,AM92)) -> 0 | AY92: =IF(AN92<>0,AN92,IF(ENE[[#This Row],[NMOG Indi]]>0,Y92,AN92)) -> 0 | AZ92: =IF(AO92<>0,AO92,IF(ENE[[#This Row],[NMOG Indi]]>0,Z92,AO92)) -> 0 | BA92: 583 | BB92: 834 | BC92: 303 | BD92: 649 | BE92: 649 | BF92: 649 | BG92: 799 | BH92: 681 | BI92: 710 | BJ92: 749 | BK92: 791
A93: NAT|Employee social benefits | B93: 1|Social benefits | C93: 1 | D93: Vote | E93: The Presidency | F93: 1 | G93: Administration | H93: 3 | I93: Support Services to the Deputy President | J93: Transfers and subsidies | K93: Households | L93: Social benefits | M93: Social benefits | N93: NAT | O93: Employee social benefits | P93: 120 | Q93: 1215 | R93: 1095 | S93: 0 | T93: 98 | U93: 98 | V93: 68 | W93: 0 | X93: 0 | Y93: 0 | Z93: 0 | AA93: 78 | AB93: =IFERROR(MATCH(ENE[[#This Row],[Type of change]],ChangeType,0),0) -> 0 | AP93: =IF(AE93<>0,AE93,IF(ENE[[#This Row],[NMOG Indi]]>0,P93,AE93)) -> 0 | AQ93: =IF(AF93<>0,AF93,IF(ENE[[#This Row],[NMOG Indi]]>0,Q93,AF93)) -> 0 | AR93: =IF(AG93<>0,AG93,IF(ENE[[#This Row],[NMOG Indi]]>0,R93,AG93)) -> 0 | AS93: =IF(AH93<>0,AH93,IF(ENE[[#This Row],[NMOG Indi]]>0,S93,AH93)) -> 0 | AT93: =IF(AI93<>0,AI93,IF(ENE[[#This Row],[NMOG Indi]]>0,T93,AI93)) -> 0 | AU93: =IF(AJ93<>0,AJ93,IF(ENE[[#This Row],[NMOG Indi]]>0,U93,AJ93)) -> 0 | AV93: =IF(AK93<>0,AK93,IF(ENE[[#This Row],[NMOG Indi]]>0,V93,AK93)) -> 0 | AW93: =IF(AL93<>0,AL93,IF(ENE[[#This Row],[NMOG Indi]]>0,W93,AL93)) -> 0 | AX93: =IF(AM93<>0,AM93,IF(ENE[[#This Row],[NMOG Indi]]>0,X93,AM93)) -> 0 | AY93: =IF(AN93<>0,AN93,IF(ENE[[#This Row],[NMOG Indi]]>0,Y93,AN93)) -> 0 | AZ93: =IF(AO93<>0,AO93,IF(ENE[[#This Row],[NMOG Indi]]>0,Z93,AO93)) -> 0 | BA93: 120 | BB93: 1215 | BC93: 1095 | BD93: 0 | BE93: 98 | BF93: 98 | BG93: 68 | BH93: 0 | BI93: 0 | BJ93: 0 | BK93: 0
A94: NAT|Thefts and losses | B94: 1|Payments for financial assets | C94: 1 | D94: Vote | E94: The Presidency | F94: 1 | G94: Administration | H94: 3 | I94: Support Services to the Deputy President | J94: Payments for financial assets | K94: Payments for financial assets | L94: Payments for financial assets | M94: Payments for financial assets | N94: NAT | O94: Thefts and losses | P94: 36 | Q94: 0 | R94: 14 | S94: 0 | T94: 0 | U94: 0 | V94: 40 | W94: 0 | X94: 0 | Y94: 0 | Z94: 0 | AA94: 79 | AB94: =IFERROR(MATCH(ENE[[#This Row],[Type of change]],ChangeType,0),0) -> 0 | AP94: =IF(AE94<>0,AE94,IF(ENE[[#This Row],[NMOG Indi]]>0,P94,AE94)) -> 0 | AQ94: =IF(AF94<>0,AF94,IF(ENE[[#This Row],[NMOG Indi]]>0,Q94,AF94)) -> 0 | AR94: =IF(AG94<>0,AG94,IF(ENE[[#This Row],[NMOG Indi]]>0,R94,AG94)) -> 0 | AS94: =IF(AH94<>0,AH94,IF(ENE[[#This Row],[NMOG Indi]]>0,S94,AH94)) -> 0 | AT94: =IF(AI94<>0,AI94,IF(ENE[[#This Row],[NMOG Indi]]>0,T94,AI94)) -> 0 | AU94: =IF(AJ94<>0,AJ94,IF(ENE[[#This Row],[NMOG Indi]]>0,U94,AJ94)) -> 0 | AV94: =IF(AK94<>0,AK94,IF(ENE[[#This Row],[NMOG Indi]]>0,V94,AK94)) -> 0 | AW94: =IF(AL94<>0,AL94,IF(ENE[[#This Row],[NMOG Indi]]>0,W94,AL94)) -> 0 | AX94: =IF(AM94<>0,AM94,IF(ENE[[#This Row],[NMOG Indi]]>0,X94,AM94)) -> 0 | AY94: =IF(AN94<>0,AN94,IF(ENE[[#This Row],[NMOG Indi]]>0,Y94,AN94)) -> 0 | AZ94: =IF(AO94<>0,AO94,IF(ENE[[#This Row],[NMOG Indi]]>0,Z94,AO94)) -> 0 | BA94: 36 | BB94: 0 | BC94: 14 | BD94: 0 | BE94: 0 | BF94: 0 | BG94: 40 | BH94: 0 | BI94: 0 | BJ94: 0 | BK94: 0
A95: NAT|Empty | B95: 1|Salaries and wages | C95: 1 | D95: Vote | E95: The Presidency | F95: 2 | G95: Executive Support | H95: 1 | I95: Cabinet Services | J95: Current payments | K95: Compensation of employees | L95: Salaries and wages | M95: Salaries and wages | N95: NAT | O95: Non-transfer | P95: 12766 | Q95: 14179 | R95: 11890 | S95: 15158 | T95: 15158 | U95: 12588 | V95: 12768 | W95: 23552 | X95: 24626 | Y95: 26610 | Z95: 27599 | AA95: 80 | AB95: =IFERROR(MATCH(ENE[[#This Row],[Type of change]],ChangeType,0),0) -> 0 | AP95: =IF(AE95<>0,AE95,IF(ENE[[#This Row],[NMOG Indi]]>0,P95,AE95)) -> 0 | AQ95: =IF(AF95<>0,AF95,IF(ENE[[#This Row],[NMOG Indi]]>0,Q95,AF95)) -> 0 | AR95: =IF(AG95<>0,AG95,IF(ENE[[#This Row],[NMOG Indi]]>0,R95,AG95)) -> 0 | AS95: =IF(AH95<>0,AH95,IF(ENE[[#This Row],[NMOG Indi]]>0,S95,AH95)) -> 0 | AT95: =IF(AI95<>0,AI95,IF(ENE[[#This Row],[NMOG Indi]]>0,T95,AI95)) -> 0 | AU95: =IF(AJ95<>0,AJ95,IF(ENE[[#This Row],[NMOG Indi]]>0,U95,AJ95)) -> 0 | AV95: =IF(AK95<>0,AK95,IF(ENE[[#This Row],[NMOG Indi]]>0,V95,AK95)) -> 0 | AW95: =IF(AL95<>0,AL95,IF(ENE[[#This Row],[NMOG Indi]]>0,W95,AL95)) -> 0 | AX95: =IF(AM95<>0,AM95,IF(ENE[[#This Row],[NMOG Indi]]>0,X95,AM95)) -> 0 | AY95: =IF(AN95<>0,AN95,IF(ENE[[#This Row],[NMOG Indi]]>0,Y95,AN95)) -> 0 | AZ95: =IF(AO95<>0,AO95,IF(ENE[[#This Row],[NMOG Indi]]>0,Z95,AO95)) -> 0 | BA95: 12766 | BB95: 14179 | BC95: 11890 | BD95: 15158 | BE95: 15158 | BF95: 12588 | BG95: 12768 | BH95: 23552 | BI95: 24626 | BJ95: 26610 | BK95: 27599
A96: NAT|Empty | B96: 1|Social contributions | C96: 1 | D96: Vote | E96: The Presidency | F96: 2 | G96: Executive Support | H96: 1 | I96: Cabinet Services | J96: Current payments | K96: Compensation of employees | L96: Social contributions | M96: Social contributions | N96: NAT | O96: Non-transfer | P96: 1521 | Q96: 1964 | R96: 1424 | S96: 2074 | T96: 2074 | U96: 2074 | V96: 1515 | W96: 3458 | X96: 3626 | Y96: 3921 | Z96: 4067 | AA96: 81 | AB96: =IFERROR(MATCH(ENE[[#This Row],[Type of change]],ChangeType,0),0) -> 0 | AP96: =IF(AE96<>0,AE96,IF(ENE[[#This Row],[NMOG Indi]]>0,P96,AE96)) -> 0 | AQ96: =IF(AF96<>0,AF96,IF(ENE[[#This Row],[NMOG Indi]]>0,Q96,AF96)) -> 0 | AR96: =IF(AG96<>0,AG96,IF(ENE[[#This Row],[NMOG Indi]]>0,R96,AG96)) -> 0 | AS96: =IF(AH96<>0,AH96,IF(ENE[[#This Row],[NMOG Indi]]>0,S96,AH96)) -> 0 | AT96: =IF(AI96<>0,AI96,IF(ENE[[#This Row],[NMOG Indi]]>0,T96,AI96)) -> 0 | AU96: =IF(AJ96<>0,AJ96,IF(ENE[[#This Row],[NMOG Indi]]>0,U96,AJ96)) -> 0 | AV96: =IF(AK96<>0,AK96,IF(ENE[[#This Row],[NMOG Indi]]>0,V96,AK96)) -> 0 | AW96: =IF(AL96<>0,AL96,IF(ENE[[#This Row],[NMOG Indi]]>0,W96,AL96)) -> 0 | AX96: =IF(AM96<>0,AM96,IF(ENE[[#This Row],[NMOG Indi]]>0,X96,AM96)) -> 0 | AY96: =IF(AN96<>0,AN96,IF(ENE[[#This Row],[NMOG Indi]]>0,Y96,AN96)) -> 0 | AZ96: =IF(AO96<>0,AO96,IF(ENE[[#This Row],[NMOG Indi]]>0,Z96,AO96)) -> 0 | BA96: 1521 | BB96: 1964 | BC96: 1424 | BD96: 2074 | BE96: 2074 | BF96: 2074 | BG96: 1515 | BH96: 3458 | BI96: 3626 | BJ96: 3921 | BK96: 4067
A97: NAT|Empty | B97: 1|Administrative fees | C97: 1 | D97: Vote | E97: The Presidency | F97: 2 | G97: Executive Support | H97: 1 | I97: Cabinet Services | J97: Current payments | K97: Goods and services | L97: Administrative fees | M97: Administrative fees | N97: NAT | O97: Non-transfer | P97: 81 | Q97: 0 | R97: 108 | S97: 0 | T97: 0 | U97: 0 | V97: 88 | W97: 0 | X97: 0 | Y97: 0 | Z97: 0 | AA97: 82 | AB97: =IFERROR(MATCH(ENE[[#This Row],[Type of change]],ChangeType,0),0) -> 0 | AP97: =IF(AE97<>0,AE97,IF(ENE[[#This Row],[NMOG Indi]]>0,P97,AE97)) -> 0 | AQ97: =IF(AF97<>0,AF97,IF(ENE[[#This Row],[NMOG Indi]]>0,Q97,AF97)) -> 0 | AR97: =IF(AG97<>0,AG97,IF(ENE[[#This Row],[NMOG Indi]]>0,R97,AG97)) -> 0 | AS97: =IF(AH97<>0,AH97,IF(ENE[[#This Row],[NMOG Indi]]>0,S97,AH97)) -> 0 | AT97: =IF(AI97<>0,AI97,IF(ENE[[#This Row],[NMOG Indi]]>0,T97,AI97)) -> 0 | AU97: =IF(AJ97<>0,AJ97,IF(ENE[[#This Row],[NMOG Indi]]>0,U97,AJ97)) -> 0 | AV97: =IF(AK97<>0,AK97,IF(ENE[[#This Row],[NMOG Indi]]>0,V97,AK97)) -> 0 | AW97: =IF(AL97<>0,AL97,IF(ENE[[#This Row],[NMOG Indi]]>0,W97,AL97)) -> 0 | AX97: =IF(AM97<>0,AM97,IF(ENE[[#This Row],[NMOG Indi]]>0,X97,AM97)) -> 0 | AY97: =IF(AN97<>0,AN97,IF(ENE[[#This Row],[NMOG Indi]]>0,Y97,AN97)) -> 0 | AZ97: =IF(AO97<>0,AO97,IF(ENE[[#This Row],[NMOG Indi]]>0,Z97,AO97)) -> 0 | BA97: 81 | BB97: 0 | BC97: 108 | BD97: 0 | BE97: 0 | BF97: 0 | BG97: 88 | BH97: 0 | BI97: 0 | BJ97: 0 | BK97: 0
A98: NAT|Empty | B98: 1|Catering: Departmental activities | C98: 1 | D98: Vote | E98: The Presidency | F98: 2 | G98: Executive Support | H98: 1 | I98: Cabinet Services | J98: Current payments | K98: Goods and services | L98: Catering: Departmental activities | M98: Catering: Departmental activities | N98: NAT | O98: Non-transfer | P98: 1472 | Q98: 1372 | R98: 1973 | S98: 1425 | T98: 1425 | U98: 1425 | V98: 2044 | W98: 2165 | X98: 2190 | Y98: 1891 | Z98: 1962 | AA98: 83 | AB98: =IFERROR(MATCH(ENE[[#This Row],[Type of change]],ChangeType,0),0) -> 0 | AP98: =IF(AE98<>0,AE98,IF(ENE[[#This Row],[NMOG Indi]]>0,P98,AE98)) -> 0 | AQ98: =IF(AF98<>0,AF98,IF(ENE[[#This Row],[NMOG Indi]]>0,Q98,AF98)) -> 0 | AR98: =IF(AG98<>0,AG98,IF(ENE[[#This Row],[NMOG Indi]]>0,R98,AG98)) -> 0 | AS98: =IF(AH98<>0,AH98,IF(ENE[[#This Row],[NMOG Indi]]>0,S98,AH98)) -> 0 | AT98: =IF(AI98<>0,AI98,IF(ENE[[#This Row],[NMOG Indi]]>0,T98,AI98)) -> 0 | AU98: =IF(AJ98<>0,AJ98,IF(ENE[[#This Row],[NMOG Indi]]>0,U98,AJ98)) -> 0 | AV98: =IF(AK98<>0,AK98,IF(ENE[[#This Row],[NMOG Indi]]>0,V98,AK98)) -> 0 | AW98: =IF(AL98<>0,AL98,IF(ENE[[#This Row],[NMOG Indi]]>0,W98,AL98)) -> 0 | AX98: =IF(AM98<>0,AM98,IF(ENE[[#This Row],[NMOG Indi]]>0,X98,AM98)) -> 0 | AY98: =IF(AN98<>0,AN98,IF(ENE[[#This Row],[NMOG Indi]]>0,Y98,AN98)) -> 0 | AZ98: =IF(AO98<>0,AO98,IF(ENE[[#This Row],[NMOG Indi]]>0,Z98,AO98)) -> 0 | BA98: 1472 | BB98: 1372 | BC98: 1973 | BD98: 1425 | BE98: 1425 | BF98: 1425 | BG98: 2044 | BH98: 2165 | BI98: 2190 | BJ98: 1891 | BK98: 1962
A99: NAT|Empty | B99: 1|Communication (G&S) | C99: 1 | D99: Vote | E99: The Presidency | F99: 2 | G99: Executive Support | H99: 1 | I99: Cabinet Services | J99: Current payments | K99: Goods and services | L99: Communication (G&S) | M99: Communication (G&S) | N99: NAT | O99: Non-transfer | P99: 78 | Q99: 125 | R99: 25 | S99: 129 | T99: 129 | U99: 129 | V99: 17 | W99: 637 | X99: 696 | Y99: 251 | Z99: 262 | AA99: 84 | AB99: =IFERROR(MATCH(ENE[[#This Row],[Type of change]],ChangeType,0),0) -> 0 | AP99: =IF(AE99<>0,AE99,IF(ENE[[#This Row],[NMOG Indi]]>0,P99,AE99)) -> 0 | AQ99: =IF(AF99<>0,AF99,IF(ENE[[#This Row],[NMOG Indi]]>0,Q99,AF99)) -> 0 | AR99: =IF(AG99<>0,AG99,IF(ENE[[#This Row],[NMOG Indi]]>0,R99,AG99)) -> 0 | AS99: =IF(AH99<>0,AH99,IF(ENE[[#This Row],[NMOG Indi]]>0,S99,AH99)) -> 0 | AT99: =IF(AI99<>0,AI99,IF(ENE[[#This Row],[NMOG Indi]]>0,T99,AI99)) -> 0 | AU99: =IF(AJ99<>0,AJ99,IF(ENE[[#This Row],[NMOG Indi]]>0,U99,AJ99)) -> 0 | AV99: =IF(AK99<>0,AK99,IF(ENE[[#This Row],[NMOG Indi]]>0,V99,AK99)) -> 0 | AW99: =IF(AL99<>0,AL99,IF(ENE[[#This Row],[NMOG Indi]]>0,W99,AL99)) -> 0 | AX99: =IF(AM99<>0,AM99,IF(ENE[[#This Row],[NMOG Indi]]>0,X99,AM99)) -> 0 | AY99: =IF(AN99<>0,AN99,IF(ENE[[#This Row],[NMOG Indi]]>0,Y99,AN99)) -> 0 | AZ99: =IF(AO99<>0,AO99,IF(ENE[[#This Row],[NMOG Indi]]>0,Z99,AO99)) -> 0 | BA99: 78 | BB99: 125 | BC99: 25 | BD99: 129 | BE99: 129 | BF99: 129 | BG99: 17 | BH99: 637 | BI99: 696 | BJ99: 251 | BK99: 262
A100: NAT|Empty | B100: 1|Computer services | C100: 1 | D100: Vote | E100: The Presidency | F100: 2 | G100: Executive Support | H100: 1 | I100: Cabinet Services | J100: Current payments | K100: Goods and services | L100: Computer services | M100: Computer services | N100: NAT | O100: Non-transfer | P100: 8488 | Q100: 22730 | R100: 22089 | S100: 25098 | T100: 23957 | U100: 23957 | V100: 25 | W100: 26467 | X100: 33045 | Y100: 29487 | Z100: 30592 | AA100: 85 | AB100: =IFERROR(MATCH(ENE[[#This Row],[Type of change]],ChangeType,0),0) -> 0 | AP100: =IF(AE100<>0,AE100,IF(ENE[[#This Row],[NMOG Indi]]>0,P100,AE100)) -> 0 | AQ100: =IF(AF100<>0,AF100,IF(ENE[[#This Row],[NMOG Indi]]>0,Q100,AF100)) -> 0 | AR100: =IF(AG100<>0,AG100,IF(ENE[[#This Row],[NMOG Indi]]>0,R100,AG100)) -> 0 | AS100: =IF(AH100<>0,AH100,IF(ENE[[#This Row],[NMOG Indi]]>0,S100,AH100)) -> 0 | AT100: =IF(AI100<>0,AI100,IF(ENE[[#This Row],[NMOG Indi]]>0,T100,AI100)) -> 0 | AU100: =IF(AJ100<>0,AJ100,IF(ENE[[#This Row],[NMOG Indi]]>0,U100,AJ100)) -> 0 | AV100: =IF(AK100<>0,AK100,IF(ENE[[#This Row],[NMOG Indi]]>0,V100,AK100)) -> 0 | AW100: =IF(AL100<>0,AL100,IF(ENE[[#This Row],[NMOG Indi]]>0,W100,AL100)) -> 0 | AX100: =IF(AM100<>0,AM100,IF(ENE[[#This Row],[NMOG Indi]]>0,X100,AM100)) -> 0 | AY100: =IF(AN100<>0,AN100,IF(ENE[[#This Row],[NMOG Indi]]>0,Y100,AN100)) -> 0 | AZ100: =IF(AO100<>0,AO100,IF(ENE[[#This Row],[NMOG Indi]]>0,Z100,AO100)) -> 0 | BA100: 8488 | BB100: 22730 | BC100: 22089 | BD100: 25098 | BE100: 23957 | BF100: 23957 | BG100: 25 | BH100: 26467 | BI100: 33045 | BJ100: 29487 | BK100: 30592
A101: NAT|Empty | B101: 1|Consultants: Business and advisory services | C101: 1 | D101: Vote | E101: The Presidency | F101: 2 | G101: Executive Support | H101: 1 | I101: Cabinet Services | J101: Current payments | K101: Goods and services | L101: Consultants: Business and advisory services | M101: Consultants: Business and advisory services | N101: NAT | O101: Non-transfer | P101: 0 | Q101: 0 | R101: 0 | S101: 0 | T101: 0 | U101: 0 | V101: 0 | W101: 765 | X101: 765 | Y101: 300 | Z101: 312 | AA101: 86 | AB101: =IFERROR(MATCH(ENE[[#This Row],[Type of change]],ChangeType,0),0) -> 0 | AP101: =IF(AE101<>0,AE101,IF(ENE[[#This Row],[NMOG Indi]]>0,P101,AE101)) -> 0 | AQ101: =IF(AF101<>0,AF101,IF(ENE[[#This Row],[NMOG Indi]]>0,Q101,AF101)) -> 0 | AR101: =IF(AG101<>0,AG101,IF(ENE[[#This Row],[NMOG Indi]]>0,R101,AG101)) -> 0 | AS101: =IF(AH101<>0,AH101,IF(ENE[[#This Row],[NMOG Indi]]>0,S101,AH101)) -> 0 | AT101: =IF(AI101<>0,AI101,IF(ENE[[#This Row],[NMOG Indi]]>0,T101,AI101)) -> 0 | AU101: =IF(AJ101<>0,AJ101,IF(ENE[[#This Row],[NMOG Indi]]>0,U101,AJ101)) -> 0 | AV101: =IF(AK101<>0,AK101,IF(ENE[[#This Row],[NMOG Indi]]>0,V101,AK101)) -> 0 | AW101: =IF(AL101<>0,AL101,IF(ENE[[#This Row],[NMOG Indi]]>0,W101,AL101)) -> 0 | AX101: =IF(AM101<>0,AM101,IF(ENE[[#This Row],[NMOG Indi]]>0,X101,AM101)) -> 0 | AY101: =IF(AN101<>0,AN101,IF(ENE[[#This Row],[NMOG Indi]]>0,Y101,AN101)) -> 0 | AZ101: =IF(AO101<>0,AO101,IF(ENE[[#This Row],[NMOG Indi]]>0,Z101,AO101)) -> 0 | BA101: 0 | BB101: 0 | BC101: 0 | BD101: 0 | BE101: 0 | BF101: 0 | BG101: 0 | BH101: 765 | BI101: 765 | BJ101: 300 | BK101: 312
A102: NAT|Empty | B102: 1|Consumable supplies | C102: 1 | D102: Vote | E102: The Presidency | F102: 2 | G102: Executive Support | H102: 1 | I102: Cabinet Services | J102: Current payments | K102: Goods and services | L102: Consumable supplies | M102: Consumable supplies | N102: NAT | O102: Non-transfer | P102: 8 | Q102: 27 | R102: 7 | S102: 28 | T102: 28 | U102: 28 | V102: 26 | W102: 31 | X102: 33 | Y102: 34 | Z102: 36 | AA102: 87 | AB102: =IFERROR(MATCH(ENE[[#This Row],[Type of change]],ChangeType,0),0) -> 0 | AP102: =IF(AE102<>0,AE102,IF(ENE[[#This Row],[NMOG Indi]]>0,P102,AE102)) -> 0 | AQ102: =IF(AF102<>0,AF102,IF(ENE[[#This Row],[NMOG Indi]]>0,Q102,AF102)) -> 0 | AR102: =IF(AG102<>0,AG102,IF(ENE[[#This Row],[NMOG Indi]]>0,R102,AG102)) -> 0 | AS102: =IF(AH102<>0,AH102,IF(ENE[[#This Row],[NMOG Indi]]>0,S102,AH102)) -> 0 | AT102: =IF(AI102<>0,AI102,IF(ENE[[#This Row],[NMOG Indi]]>0,T102,AI102)) -> 0 | AU102: =IF(AJ102<>0,AJ102,IF(ENE[[#This Row],[NMOG Indi]]>0,U102,AJ102)) -> 0 | AV102: =IF(AK102<>0,AK102,IF(ENE[[#This Row],[NMOG Indi]]>0,V102,AK102)) -> 0 | AW102: =IF(AL102<>0,AL102,IF(ENE[[#This Row],[NMOG Indi]]>0,W102,AL102)) -> 0 | AX102: =IF(AM102<>0,AM102,IF(ENE[[#This Row],[NMOG Indi]]>0,X102,AM102)) -> 0 | AY102: =IF(AN102<>0,AN102,IF(ENE[[#This Row],[NMOG Indi]]>0,Y102,AN102)) -> 0 | AZ102: =IF(AO102<>0,AO102,IF(ENE[[#This Row],[NMOG Indi]]>0,Z102,AO102)) -> 0 | BA102: 8 | BB102: 27 | BC102: 7 | BD102: 28 | BE102: 28 | BF102: 28 | BG102: 26 | BH102: 31 | BI102: 33 | BJ102: 34 | BK102: 36
A103: NAT|Empty | B103: 1|Consumables: Stationery, printing and office supplies | C103: 1 | D103: Vote | E103: The Presidency | F103: 2 | G103: Executive Support | H103: 1 | I103: Cabinet Services | J103: Current payments | K103: Goods and services | L103: Consumables: Stationery, printing and office supplies | M103: Consumables: Stationery, printing and office supplies | N103: NAT | O103: Non-transfer | P103: 122 | Q103: 145 | R103: 11 | S103: 155 | T103: 155 | U103: 155 | V103: 100 | W103: 363 | X103: 372 | Y103: 382 | Z103: 396 | AA103: 88 | AB103: =IFERROR(MATCH(ENE[[#This Row],[Type of change]],ChangeType,0),0) -> 0 | AP103: =IF(AE103<>0,AE103,IF(ENE[[#This Row],[NMOG Indi]]>0,P103,AE103)) -> 0 | AQ103: =IF(AF103<>0,AF103,IF(ENE[[#This Row],[NMOG Indi]]>0,Q103,AF103)) -> 0 | AR103: =IF(AG103<>0,AG103,IF(ENE[[#This Row],[NMOG Indi]]>0,R103,AG103)) -> 0 | AS103: =IF(AH103<>0,AH103,IF(ENE[[#This Row],[NMOG Indi]]>0,S103,AH103)) -> 0 | AT103: =IF(AI103<>0,AI103,IF(ENE[[#This Row],[NMOG Indi]]>0,T103,AI103)) -> 0 | AU103: =IF(AJ103<>0,AJ103,IF(ENE[[#This Row],[NMOG Indi]]>0,U103,AJ103)) -> 0 | AV103: =IF(AK103<>0,AK103,IF(ENE[[#This Row],[NMOG Indi]]>0,V103,AK103)) -> 0 | AW103: =IF(AL103<>0,AL103,IF(ENE[[#This Row],[NMOG Indi]]>0,W103,AL103)) -> 0 | AX103: =IF(AM103<>0,AM103,IF(ENE[[#This Row],[NMOG Indi]]>0,X103,AM103)) -> 0 | AY103: =IF(AN103<>0,AN103,IF(ENE[[#This Row],[NMOG Indi]]>0,Y103,AN103)) -> 0 | AZ103: =IF(AO103<>0,AO103,IF(ENE[[#This Row],[NMOG Indi]]>0,Z103,AO103)) -> 0 | BA103: 122 | BB103: 145 | BC103: 11 | BD103: 155 | BE103: 155 | BF103: 155 | BG103: 100 | BH103: 363 | BI103: 372 | BJ103: 382 | BK103: 396
A104: NAT|Empty | B104: 1|Contractors | C104: 1 | D104: Vote | E104: The Presidency | F104: 2 | G104: Executive Support | H104: 1 | I104: Cabinet Services | J104: Current payments | K104: Goods and services | L104: Contractors | M104: Contractors | N104: NAT | O104: Non-transfer | P104: 26 | Q104: 50 | R104: 2 | S104: 59 | T104: 59 | U104: 59 | V104: 17 | W104: 18 | X104: 18 | Y104: 19 | Z104: 20 | AA104: 89 | AB104: =IFERROR(MATCH(ENE[[#This Row],[Type of change]],ChangeType,0),0) -> 0 | AP104: =IF(AE104<>0,AE104,IF(ENE[[#This Row],[NMOG Indi]]>0,P104,AE104)) -> 0 | AQ104: =IF(AF104<>0,AF104,IF(ENE[[#This Row],[NMOG Indi]]>0,Q104,AF104)) -> 0 | AR104: =IF(AG104<>0,AG104,IF(ENE[[#This Row],[NMOG Indi]]>0,R104,AG104)) -> 0 | AS104: =IF(AH104<>0,AH104,IF(ENE[[#This Row],[NMOG Indi]]>0,S104,AH104)) -> 0 | AT104: =IF(AI104<>0,AI104,IF(ENE[[#This Row],[NMOG Indi]]>0,T104,AI104)) -> 0 | AU104: =IF(AJ104<>0,AJ104,IF(ENE[[#This Row],[NMOG Indi]]>0,U104,AJ104)) -> 0 | AV104: =IF(AK104<>0,AK104,IF(ENE[[#This Row],[NMOG Indi]]>0,V104,AK104)) -> 0 | AW104: =IF(AL104<>0,AL104,IF(ENE[[#This Row],[NMOG Indi]]>0,W104,AL104)) -> 0 | AX104: =IF(AM104<>0,AM104,IF(ENE[[#This Row],[NMOG Indi]]>0,X104,AM104)) -> 0 | AY104: =IF(AN104<>0,AN104,IF(ENE[[#This Row],[NMOG Indi]]>0,Y104,AN104)) -> 0 | AZ104: =IF(AO104<>0,AO104,IF(ENE[[#This Row],[NMOG Indi]]>0,Z104,AO104)) -> 0 | BA104: 26 | BB104: 50 | BC104: 2 | BD104: 59 | BE104: 59 | BF104: 59 | BG104: 17 | BH104: 18 | BI104: 18 | BJ104: 19 | BK104: 20
A105: NAT|Empty | B105: 1|Entertainment | C105: 1 | D105: Vote | E105: The Presidency | F105: 2 | G105: Executive Support | H105: 1 | I105: Cabinet Services | J105: Current payments | K105: Goods and services | L105: Entertainment | M105: Entertainment | N105: NAT | O105: Non-transfer | P105: 0 | Q105: 0 | R105: 0 | S105: 6 | T105: 6 | U105: 6 | V105: 0 | W105: 6 | X105: 6 | Y105: 6 | Z105: 6 | AA105: 90 | AB105: =IFERROR(MATCH(ENE[[#This Row],[Type of change]],ChangeType,0),0) -> 0 | AP105: =IF(AE105<>0,AE105,IF(ENE[[#This Row],[NMOG Indi]]>0,P105,AE105)) -> 0 | AQ105: =IF(AF105<>0,AF105,IF(ENE[[#This Row],[NMOG Indi]]>0,Q105,AF105)) -> 0 | AR105: =IF(AG105<>0,AG105,IF(ENE[[#This Row],[NMOG Indi]]>0,R105,AG105)) -> 0 | AS105: =IF(AH105<>0,AH105,IF(ENE[[#This Row],[NMOG Indi]]>0,S105,AH105)) -> 0 | AT105: =IF(AI105<>0,AI105,IF(ENE[[#This Row],[NMOG Indi]]>0,T105,AI105)) -> 0 | AU105: =IF(AJ105<>0,AJ105,IF(ENE[[#This Row],[NMOG Indi]]>0,U105,AJ105)) -> 0 | AV105: =IF(AK105<>0,AK105,IF(ENE[[#This Row],[NMOG Indi]]>0,V105,AK105)) -> 0 | AW105: =IF(AL105<>0,AL105,IF(ENE[[#This Row],[NMOG Indi]]>0,W105,AL105)) -> 0 | AX105: =IF(AM105<>0,AM105,IF(ENE[[#This Row],[NMOG Indi]]>0,X105,AM105)) -> 0 | AY105: =IF(AN105<>0,AN105,IF(ENE[[#This Row],[NMOG Indi]]>0,Y105,AN105)) -> 0 | AZ105: =IF(AO105<>0,AO105,IF(ENE[[#This Row],[NMOG Indi]]>0,Z105,AO105)) -> 0 | BA105: 0 | BB105: 0 | BC105: 0 | BD105: 6 | BE105: 6 | BF105: 6 | BG105: 0 | BH105: 6 | BI105: 6 | BJ105: 6 | BK105: 6
A106: NAT|Empty | B106: 1|Fleet services (including government motor transport) | C106: 1 | D106: Vote | E106: The Presidency | F106: 2 | G106: Executive Support | H106: 1 | I106: Cabinet Services | J106: Current payments | K106: Goods and services | L106: Fleet services (including government motor transport) | M106: Fleet services (including government motor transport) | N106: NAT | O106: Non-transfer | P106: 40 | Q106: 0 | R106: 33 | S106: 0 | T106: 0 | U106: 0 | V106: 14 | W106: 0 | X106: 0 | Y106: 0 | Z106: 0 | AA106: 91 | AB106: =IFERROR(MATCH(ENE[[#This Row],[Type of change]],ChangeType,0),0) -> 0 | AP106: =IF(AE106<>0,AE106,IF(ENE[[#This Row],[NMOG Indi]]>0,P106,AE106)) -> 0 | AQ106: =IF(AF106<>0,AF106,IF(ENE[[#This Row],[NMOG Indi]]>0,Q106,AF106)) -> 0 | AR106: =IF(AG106<>0,AG106,IF(ENE[[#This Row],[NMOG Indi]]>0,R106,AG106)) -> 0 | AS106: =IF(AH106<>0,AH106,IF(ENE[[#This Row],[NMOG Indi]]>0,S106,AH106)) -> 0 | AT106: =IF(AI106<>0,AI106,IF(ENE[[#This Row],[NMOG Indi]]>0,T106,AI106)) -> 0 | AU106: =IF(AJ106<>0,AJ106,IF(ENE[[#This Row],[NMOG Indi]]>0,U106,AJ106)) -> 0 | AV106: =IF(AK106<>0,AK106,IF(ENE[[#This Row],[NMOG Indi]]>0,V106,AK106)) -> 0 | AW106: =IF(AL106<>0,AL106,IF(ENE[[#This Row],[NMOG Indi]]>0,W106,AL106)) -> 0 | AX106: =IF(AM106<>0,AM106,IF(ENE[[#This Row],[NMOG Indi]]>0,X106,AM106)) -> 0 | AY106: =IF(AN106<>0,AN106,IF(ENE[[#This Row],[NMOG Indi]]>0,Y106,AN106)) -> 0 | AZ106: =IF(AO106<>0,AO106,IF(ENE[[#This Row],[NMOG Indi]]>0,Z106,AO106)) -> 0 | BA106: 40 | BB106: 0 | BC106: 33 | BD106: 0 | BE106: 0 | BF106: 0 | BG106: 14 | BH106: 0 | BI106: 0 | BJ106: 0 | BK106: 0
A107: NAT|Empty | B107: 1|Minor Assets | C107: 1 | D107: Vote | E107: The Presidency | F107: 2 | G107: Executive Support | H107: 1 | I107: Cabinet Services | J107: Current payments | K107: Goods and services | L107: Minor Assets | M107: Minor Assets | N107: NAT | O107: Non-transfer | P107: 9 | Q107: 3 | R107: 7 | S107: 10 | T107: 10 | U107: 10 | V107: 2 | W107: 10 | X107: 10 | Y107: 10 | Z107: 10 | AA107: 92 | AB107: =IFERROR(MATCH(ENE[[#This Row],[Type of change]],ChangeType,0),0) -> 0 | AP107: =IF(AE107<>0,AE107,IF(ENE[[#This Row],[NMOG Indi]]>0,P107,AE107)) -> 0 | AQ107: =IF(AF107<>0,AF107,IF(ENE[[#This Row],[NMOG Indi]]>0,Q107,AF107)) -> 0 | AR107: =IF(AG107<>0,AG107,IF(ENE[[#This Row],[NMOG Indi]]>0,R107,AG107)) -> 0 | AS107: =IF(AH107<>0,AH107,IF(ENE[[#This Row],[NMOG Indi]]>0,S107,AH107)) -> 0 | AT107: =IF(AI107<>0,AI107,IF(ENE[[#This Row],[NMOG Indi]]>0,T107,AI107)) -> 0 | AU107: =IF(AJ107<>0,AJ107,IF(ENE[[#This Row],[NMOG Indi]]>0,U107,AJ107)) -> 0 | AV107: =IF(AK107<>0,AK107,IF(ENE[[#This Row],[NMOG Indi]]>0,V107,AK107)) -> 0 | AW107: =IF(AL107<>0,AL107,IF(ENE[[#This Row],[NMOG Indi]]>0,W107,AL107)) -> 0 | AX107: =IF(AM107<>0,AM107,IF(ENE[[#This Row],[NMOG Indi]]>0,X107,AM107)) -> 0 | AY107: =IF(AN107<>0,AN107,IF(ENE[[#This Row],[NMOG Indi]]>0,Y107,AN107)) -> 0 | AZ107: =IF(AO107<>0,AO107,IF(ENE[[#This Row],[NMOG Indi]]>0,Z107,AO107)) -> 0 | BA107: 9 | BB107: 3 | BC107: 7 | BD107: 10 | BE107: 10 | BF107: 10 | BG107: 2 | BH107: 10 | BI107: 10 | BJ107: 10 | BK107: 10
A108: NAT|Empty | B108: 1|Operating leases | C108: 1 | D108: Vote | E108: The Presidency | F108: 2 | G108: Executive Support | H108: 1 | I108: Cabinet Services | J108: Current payments | K108: Goods and services | L108: Operating leases | M108: Operating leases | N108: NAT | O108: Non-transfer | P108: 132 | Q108: 2 | R108: 268 | S108: 2 | T108: 2 | U108: 2 | V108: 847 | W108: 2 | X108: 2 | Y108: 2 | Z108: 2 | AA108: 93 | AB108: =IFERROR(MATCH(ENE[[#This Row],[Type of change]],ChangeType,0),0) -> 0 | AP108: =IF(AE108<>0,AE108,IF(ENE[[#This Row],[NMOG Indi]]>0,P108,AE108)) -> 0 | AQ108: =IF(AF108<>0,AF108,IF(ENE[[#This Row],[NMOG Indi]]>0,Q108,AF108)) -> 0 | AR108: =IF(AG108<>0,AG108,IF(ENE[[#This Row],[NMOG Indi]]>0,R108,AG108)) -> 0 | AS108: =IF(AH108<>0,AH108,IF(ENE[[#This Row],[NMOG Indi]]>0,S108,AH108)) -> 0 | AT108: =IF(AI108<>0,AI108,IF(ENE[[#This Row],[NMOG Indi]]>0,T108,AI108)) -> 0 | AU108: =IF(AJ108<>0,AJ108,IF(ENE[[#This Row],[NMOG Indi]]>0,U108,AJ108)) -> 0 | AV108: =IF(AK108<>0,AK108,IF(ENE[[#This Row],[NMOG Indi]]>0,V108,AK108)) -> 0 | AW108: =IF(AL108<>0,AL108,IF(ENE[[#This Row],[NMOG Indi]]>0,W108,AL108)) -> 0 | AX108: =IF(AM108<>0,AM108,IF(ENE[[#This Row],[NMOG Indi]]>0,X108,AM108)) -> 0 | AY108: =IF(AN108<>0,AN108,IF(ENE[[#This Row],[NMOG Indi]]>0,Y108,AN108)) -> 0 | AZ108: =IF(AO108<>0,AO108,IF(ENE[[#This Row],[NMOG Indi]]>0,Z108,AO108)) -> 0 | BA108: 132 | BB108: 2 | BC108: 268 | BD108: 2 | BE108: 2 | BF108: 2 | BG108: 847 | BH108: 2 | BI108: 2 | BJ108: 2 | BK108: 2
A109: NAT|Empty | B109: 1|Operating payments | C109: 1 | D109: Vote | E109: The Presidency | F109: 2 | G109: Executive Support | H109: 1 | I109: Cabinet Services | J109: Current payments | K109: Goods and services | L109: Operating payments | M109: Operating payments | N109: NAT | O109: Non-transfer | P109: 256 | Q109: 424 | R109: 268 | S109: 594 | T109: 594 | U109: 594 | V109: 0 | W109: 727 | X109: 763 | Y109: 899 | Z109: 932 | AA109: 94 | AB109: =IFERROR(MATCH(ENE[[#This Row],[Type of change]],ChangeType,0),0) -> 0 | AP109: =IF(AE109<>0,AE109,IF(ENE[[#This Row],[NMOG Indi]]>0,P109,AE109)) -> 0 | AQ109: =IF(AF109<>0,AF109,IF(ENE[[#This Row],[NMOG Indi]]>0,Q109,AF109)) -> 0 | AR109: =IF(AG109<>0,AG109,IF(ENE[[#This Row],[NMOG Indi]]>0,R109,AG109)) -> 0 | AS109: =IF(AH109<>0,AH109,IF(ENE[[#This Row],[NMOG Indi]]>0,S109,AH109)) -> 0 | AT109: =IF(AI109<>0,AI109,IF(ENE[[#This Row],[NMOG Indi]]>0,T109,AI109)) -> 0 | AU109: =IF(AJ109<>0,AJ109,IF(ENE[[#This Row],[NMOG Indi]]>0,U109,AJ109)) -> 0 | AV109: =IF(AK109<>0,AK109,IF(ENE[[#This Row],[NMOG Indi]]>0,V109,AK109)) -> 0 | AW109: =IF(AL109<>0,AL109,IF(ENE[[#This Row],[NMOG Indi]]>0,W109,AL109)) -> 0 | AX109: =IF(AM109<>0,AM109,IF(ENE[[#This Row],[NMOG Indi]]>0,X109,AM109)) -> 0 | AY109: =IF(AN109<>0,AN109,IF(ENE[[#This Row],[NMOG Indi]]>0,Y109,AN109)) -> 0 | AZ109: =IF(AO109<>0,AO109,IF(ENE[[#This Row],[NMOG Indi]]>0,Z109,AO109)) -> 0 | BA109: 256 | BB109: 424 | BC109: 268 | BD109: 594 | BE109: 594 | BF109: 594 | BG109: 0 | BH109: 727 | BI109: 763 | BJ109: 899 | BK109: 932
A110: NAT|Empty | B110: 1|Rental and hiring | C110: 1 | D110: Vote | E110: The Presidency | F110: 2 | G110: Executive Support | H110: 1 | I110: Cabinet Services | J110: Current payments | K110: Goods and services | L110: Rental and hiring | M110: Rental and hiring | N110: NAT | O110: Non-transfer | P110: 35 | Q110: 63 | R110: 60 | S110: 65 | T110: 65 | U110: 65 | V110: 118 | W110: 69 | X110: 73 | Y110: 77 | Z110: 81 | AA110: 95 | AB110: =IFERROR(MATCH(ENE[[#This Row],[Type of change]],ChangeType,0),0) -> 0 | AP110: =IF(AE110<>0,AE110,IF(ENE[[#This Row],[NMOG Indi]]>0,P110,AE110)) -> 0 | AQ110: =IF(AF110<>0,AF110,IF(ENE[[#This Row],[NMOG Indi]]>0,Q110,AF110)) -> 0 | AR110: =IF(AG110<>0,AG110,IF(ENE[[#This Row],[NMOG Indi]]>0,R110,AG110)) -> 0 | AS110: =IF(AH110<>0,AH110,IF(ENE[[#This Row],[NMOG Indi]]>0,S110,AH110)) -> 0 | AT110: =IF(AI110<>0,AI110,IF(ENE[[#This Row],[NMOG Indi]]>0,T110,AI110)) -> 0 | AU110: =IF(AJ110<>0,AJ110,IF(ENE[[#This Row],[NMOG Indi]]>0,U110,AJ110)) -> 0 | AV110: =IF(AK110<>0,AK110,IF(ENE[[#This Row],[NMOG Indi]]>0,V110,AK110)) -> 0 | AW110: =IF(AL110<>0,AL110,IF(ENE[[#This Row],[NMOG Indi]]>0,W110,AL110)) -> 0 | AX110: =IF(AM110<>0,AM110,IF(ENE[[#This Row],[NMOG Indi]]>0,X110,AM110)) -> 0 | AY110: =IF(AN110<>0,AN110,IF(ENE[[#This Row],[NMOG Indi]]>0,Y110,AN110)) -> 0 | AZ110: =IF(AO110<>0,AO110,IF(ENE[[#This Row],[NMOG Indi]]>0,Z110,AO110)) -> 0 | BA110: 35 | BB110: 63 | BC110: 60 | BD110: 65 | BE110: 65 | BF110: 65 | BG110: 118 | BH110: 69 | BI110: 73 | BJ110: 77 | BK110: 81
A111: NAT|Empty | B111: 1|Travel and subsistence | C111: 1 | D111: Vote | E111: The Presidency | F111: 2 | G111: Executive Support | H111: 1 | I111: Cabinet Services | J111: Current payments | K111: Goods and services | L111: Travel and subsistence | M111: Travel and subsistence | N111: NAT | O111: Non-transfer | P111: 1587 | Q111: 2874 | R111: 1525 | S111: 3158 | T111: 3158 | U111: 3158 | V111: 0 | W111: 7174 | X111: 8746 | Y111: 6483 | Z111: 6732 | AA111: 96 | AB111: =IFERROR(MATCH(ENE[[#This Row],[Type of change]],ChangeType,0),0) -> 0 | AP111: =IF(AE111<>0,AE111,IF(ENE[[#This Row],[NMOG Indi]]>0,P111,AE111)) -> 0 | AQ111: =IF(AF111<>0,AF111,IF(ENE[[#This Row],[NMOG Indi]]>0,Q111,AF111)) -> 0 | AR111: =IF(AG111<>0,AG111,IF(ENE[[#This Row],[NMOG Indi]]>0,R111,AG111)) -> 0 | AS111: =IF(AH111<>0,AH111,IF(ENE[[#This Row],[NMOG Indi]]>0,S111,AH111)) -> 0 | AT111: =IF(AI111<>0,AI111,IF(ENE[[#This Row],[NMOG Indi]]>0,T111,AI111)) -> 0 | AU111: =IF(AJ111<>0,AJ111,IF(ENE[[#This Row],[NMOG Indi]]>0,U111,AJ111)) -> 0 | AV111: =IF(AK111<>0,AK111,IF(ENE[[#This Row],[NMOG Indi]]>0,V111,AK111)) -> 0 | AW111: =IF(AL111<>0,AL111,IF(ENE[[#This Row],[NMOG Indi]]>0,W111,AL111)) -> 0 | AX111: =IF(AM111<>0,AM111,IF(ENE[[#This Row],[NMOG Indi]]>0,X111,AM111)) -> 0 | AY111: =IF(AN111<>0,AN111,IF(ENE[[#This Row],[NMOG Indi]]>0,Y111,AN111)) -> 0 | AZ111: =IF(AO111<>0,AO111,IF(ENE[[#This Row],[NMOG Indi]]>0,Z111,AO111)) -> 0 | BA111: 1587 | BB111: 2874 | BC111: 1525 | BD111: 3158 | BE111: 3158 | BF111: 3158 | BG111: 0 | BH111: 7174 | BI111: 8746 | BJ111: 6483 | BK111: 6732
A112: NAT|Empty | B112: 1|Venues and facilities | C112: 1 | D112: Vote | E112: The Presidency | F112: 2 | G112: Executive Support | H112: 1 | I112: Cabinet Services | J112: Current payments | K112: Goods and services | L112: Venues and facilities | M112: Venues and facilities | N112: NAT | O112: Non-transfer | P112: 0 | Q112: 444 | R112: 0 | S112: 461 | T112: 461 | U112: 461 | V112: 304 | W112: 487 | X112: 514 | Y112: 518 | Z112: 536 | AA112: 97 | AB112: =IFERROR(MATCH(ENE[[#This Row],[Type of change]],ChangeType,0),0) -> 0 | AP112: =IF(AE112<>0,AE112,IF(ENE[[#This Row],[NMOG Indi]]>0,P112,AE112)) -> 0 | AQ112: =IF(AF112<>0,AF112,IF(ENE[[#This Row],[NMOG Indi]]>0,Q112,AF112)) -> 0 | AR112: =IF(AG112<>0,AG112,IF(ENE[[#This Row],[NMOG Indi]]>0,R112,AG112)) -> 0 | AS112: =IF(AH112<>0,AH112,IF(ENE[[#This Row],[NMOG Indi]]>0,S112,AH112)) -> 0 | AT112: =IF(AI112<>0,AI112,IF(ENE[[#This Row],[NMOG Indi]]>0,T112,AI112)) -> 0 | AU112: =IF(AJ112<>0,AJ112,IF(ENE[[#This Row],[NMOG Indi]]>0,U112,AJ112)) -> 0 | AV112: =IF(AK112<>0,AK112,IF(ENE[[#This Row],[NMOG Indi]]>0,V112,AK112)) -> 0 | AW112: =IF(AL112<>0,AL112,IF(ENE[[#This Row],[NMOG Indi]]>0,W112,AL112)) -> 0 | AX112: =IF(AM112<>0,AM112,IF(ENE[[#This Row],[NMOG Indi]]>0,X112,AM112)) -> 0 | AY112: =IF(AN112<>0,AN112,IF(ENE[[#This Row],[NMOG Indi]]>0,Y112,AN112)) -> 0 | AZ112: =IF(AO112<>0,AO112,IF(ENE[[#This Row],[NMOG Indi]]>0,Z112,AO112)) -> 0 | BA112: 0 | BB112: 444 | BC112: 0 | BD112: 461 | BE112: 461 | BF112: 461 | BG112: 304 | BH112: 487 | BI112: 514 | BJ112: 518 | BK112: 536
A113: NAT|Empty | B113: 1|Other machinery and equipment | C113: 1 | D113: Vote | E113: The Presidency | F113: 2 | G113: Executive Support | H113: 1 | I113: Cabinet Services | J113: Payments for capital assets | K113: Machinery and equipment | L113: Other machinery and equipment | M113: Other machinery and equipment | N113: NAT | O113: Non-transfer | P113: 407 | Q113: 1117 | R113: 103 | S113: 1155 | T113: 1155 | U113: 1155 | V113: 244 | W113: 1317 | X113: 1386 | Y113: 1462 | Z113: 1546 | AA113: 98 | AB113: =IFERROR(MATCH(ENE[[#This Row],[Type of change]],ChangeType,0),0) -> 0 | AP113: =IF(AE113<>0,AE113,IF(ENE[[#This Row],[NMOG Indi]]>0,P113,AE113)) -> 0 | AQ113: =IF(AF113<>0,AF113,IF(ENE[[#This Row],[NMOG Indi]]>0,Q113,AF113)) -> 0 | AR113: =IF(AG113<>0,AG113,IF(ENE[[#This Row],[NMOG Indi]]>0,R113,AG113)) -> 0 | AS113: =IF(AH113<>0,AH113,IF(ENE[[#This Row],[NMOG Indi]]>0,S113,AH113)) -> 0 | AT113: =IF(AI113<>0,AI113,IF(ENE[[#This Row],[NMOG Indi]]>0,T113,AI113)) -> 0 | AU113: =IF(AJ113<>0,AJ113,IF(ENE[[#This Row],[NMOG Indi]]>0,U113,AJ113)) -> 0 | AV113: =IF(AK113<>0,AK113,IF(ENE[[#This Row],[NMOG Indi]]>0,V113,AK113)) -> 0 | AW113: =IF(AL113<>0,AL113,IF(ENE[[#This Row],[NMOG Indi]]>0,W113,AL113)) -> 0 | AX113: =IF(AM113<>0,AM113,IF(ENE[[#This Row],[NMOG Indi]]>0,X113,AM113)) -> 0 | AY113: =IF(AN113<>0,AN113,IF(ENE[[#This Row],[NMOG Indi]]>0,Y113,AN113)) -> 0 | AZ113: =IF(AO113<>0,AO113,IF(ENE[[#This Row],[NMOG Indi]]>0,Z113,AO113)) -> 0 | BA113: 407 | BB113: 1117 | BC113: 103 | BD113: 1155 | BE113: 1155 | BF113: 1155 | BG113: 244 | BH113: 1317 | BI113: 1386 | BJ113: 1462 | BK113: 1546
A114: NAT|Employee social benefits | B114: 1|Social benefits | C114: 1 | D114: Vote | E114: The Presidency | F114: 2 | G114: Executive Support | H114: 1 | I114: Cabinet Services | J114: Transfers and subsidies | K114: Households | L114: Social benefits | M114: Social benefits | N114: NAT | O114: Employee social benefits | P114: 591 | Q114: 1320 | R114: 1326 | S114: 0 | T114: 0 | U114: 0 | V114: 0 | W114: 0 | X114: 0 | Y114: 0 | Z114: 0 | AA114: 99 | AB114: =IFERROR(MATCH(ENE[[#This Row],[Type of change]],ChangeType,0),0) -> 0 | AP114: =IF(AE114<>0,AE114,IF(ENE[[#This Row],[NMOG Indi]]>0,P114,AE114)) -> 0 | AQ114: =IF(AF114<>0,AF114,IF(ENE[[#This Row],[NMOG Indi]]>0,Q114,AF114)) -> 0 | AR114: =IF(AG114<>0,AG114,IF(ENE[[#This Row],[NMOG Indi]]>0,R114,AG114)) -> 0 | AS114: =IF(AH114<>0,AH114,IF(ENE[[#This Row],[NMOG Indi]]>0,S114,AH114)) -> 0 | AT114: =IF(AI114<>0,AI114,IF(ENE[[#This Row],[NMOG Indi]]>0,T114,AI114)) -> 0 | AU114: =IF(AJ114<>0,AJ114,IF(ENE[[#This Row],[NMOG Indi]]>0,U114,AJ114)) -> 0 | AV114: =IF(AK114<>0,AK114,IF(ENE[[#This Row],[NMOG Indi]]>0,V114,AK114)) -> 0 | AW114: =IF(AL114<>0,AL114,IF(ENE[[#This Row],[NMOG Indi]]>0,W114,AL114)) -> 0 | AX114: =IF(AM114<>0,AM114,IF(ENE[[#This Row],[NMOG Indi]]>0,X114,AM114)) -> 0 | AY114: =IF(AN114<>0,AN114,IF(ENE[[#This Row],[NMOG Indi]]>0,Y114,AN114)) -> 0 | AZ114: =IF(AO114<>0,AO114,IF(ENE[[#This Row],[NMOG Indi]]>0,Z114,AO114)) -> 0 | BA114: 591 | BB114: 1320 | BC114: 1326 | BD114: 0 | BE114: 0 | BF114: 0 | BG114: 0 | BH114: 0 | BI114: 0 | BJ114: 0 | BK114: 0
A115: NAT|Thefts and losses | B115: 1|Payments for financial assets | C115: 1 | D115: Vote | E115: The Presidency | F115: 2 | G115: Executive Support | H115: 1 | I115: Cabinet Services | J115: Payments for financial assets | K115: Payments for financial assets | L115: Payments for financial assets | M115: Payments for financial assets | N115: NAT | O115: Thefts and losses | P115: 5 | Q115: 0 | R115: 282 | S115: 0 | T115: 0 | U115: 0 | V115: 4 | W115: 0 | X115: 0 | Y115: 0 | Z115: 0 | AA115: 100 | AB115: =IFERROR(MATCH(ENE[[#This Row],[Type of change]],ChangeType,0),0) -> 0 | AP115: =IF(AE115<>0,AE115,IF(ENE[[#This Row],[NMOG Indi]]>0,P115,AE115)) -> 0 | AQ115: =IF(AF115<>0,AF115,IF(ENE[[#This Row],[NMOG Indi]]>0,Q115,AF115)) -> 0 | AR115: =IF(AG115<>0,AG115,IF(ENE[[#This Row],[NMOG Indi]]>0,R115,AG115)) -> 0 | AS115: =IF(AH115<>0,AH115,IF(ENE[[#This Row],[NMOG Indi]]>0,S115,AH115)) -> 0 | AT115: =IF(AI115<>0,AI115,IF(ENE[[#This Row],[NMOG Indi]]>0,T115,AI115)) -> 0 | AU115: =IF(AJ115<>0,AJ115,IF(ENE[[#This Row],[NMOG Indi]]>0,U115,AJ115)) -> 0 | AV115: =IF(AK115<>0,AK115,IF(ENE[[#This Row],[NMOG Indi]]>0,V115,AK115)) -> 0 | AW115: =IF(AL115<>0,AL115,IF(ENE[[#This Row],[NMOG Indi]]>0,W115,AL115)) -> 0 | AX115: =IF(AM115<>0,AM115,IF(ENE[[#This Row],[NMOG Indi]]>0,X115,AM115)) -> 0 | AY115: =IF(AN115<>0,AN115,IF(ENE[[#This Row],[NMOG Indi]]>0,Y115,AN115)) -> 0 | AZ115: =IF(AO115<>0,AO115,IF(ENE[[#This Row],[NMOG Indi]]>0,Z115,AO115)) -> 0 | BA115: 5 | BB115: 0 | BC115: 282 | BD115: 0 | BE115: 0 | BF115: 0 | BG115: 4 | BH115: 0 | BI115: 0 | BJ115: 0 | BK115: 0
A116: NAT|Empty | B116: 1|Salaries and wages | C116: 1 | D116: Vote | E116: The Presidency | F116: 16 | G116: Direct charge against the National Revenue Fund | H116: 1 | I116: Salary of the president | J116: Current payments | K116: Compensation of employees | L116: Salaries and wages | M116: Salaries and wages | N116: NAT | O116: Non-transfer | P116: 2996 | Q116: 3438 | R116: 3106 | S116: 3637 | T116: 3637 | U116: 3637 | V116: 0 | W116: 3893 | X116: 4160 | Y116: 4438 | Z116: 4603 | AA116: 101 | AB116: =IFERROR(MATCH(ENE[[#This Row],[Type of change]],ChangeType,0),0) -> 0 | AP116: =IF(AE116<>0,AE116,IF(ENE[[#This Row],[NMOG Indi]]>0,P116,AE116)) -> 0 | AQ116: =IF(AF116<>0,AF116,IF(ENE[[#This Row],[NMOG Indi]]>0,Q116,AF116)) -> 0 | AR116: =IF(AG116<>0,AG116,IF(ENE[[#This Row],[NMOG Indi]]>0,R116,AG116)) -> 0 | AS116: =IF(AH116<>0,AH116,IF(ENE[[#This Row],[NMOG Indi]]>0,S116,AH116)) -> 0 | AT116: =IF(AI116<>0,AI116,IF(ENE[[#This Row],[NMOG Indi]]>0,T116,AI116)) -> 0 | AU116: =IF(AJ116<>0,AJ116,IF(ENE[[#This Row],[NMOG Indi]]>0,U116,AJ116)) -> 0 | AV116: =IF(AK116<>0,AK116,IF(ENE[[#This Row],[NMOG Indi]]>0,V116,AK116)) -> 0 | AW116: =IF(AL116<>0,AL116,IF(ENE[[#This Row],[NMOG Indi]]>0,W116,AL116)) -> 0 | AX116: =IF(AM116<>0,AM116,IF(ENE[[#This Row],[NMOG Indi]]>0,X116,AM116)) -> 0 | AY116: =IF(AN116<>0,AN116,IF(ENE[[#This Row],[NMOG Indi]]>0,Y116,AN116)) -> 0 | AZ116: =IF(AO116<>0,AO116,IF(ENE[[#This Row],[NMOG Indi]]>0,Z116,AO116)) -> 0 | BA116: 2996 | BB116: 3438 | BC116: 3106 | BD116: 3637 | BE116: 3637 | BF116: 3637 | BG116: 0 | BH116: 3893 | BI116: 4160 | BJ116: 4438 | BK116: 4603
A117: NAT|Empty | B117: 1|Salaries and wages | C117: 1 | D117: Vote | E117: The Presidency | F117: 16 | G117: Direct charge against the National Revenue Fund | H117: 2 | I117: Salary of the deputy president | J117: Current payments | K117: Compensation of employees | L117: Salaries and wages | M117: Salaries and wages | N117: NAT | O117: Non-transfer | P117: 2350 | Q117: 2935 | R117: 2191 | S117: 3105 | T117: 3105 | U117: 3105 | V117: 0 | W117: 3324 | X117: 3553 | Y117: 3790 | Z117: 3932 | AA117: 102 | AB117: =IFERROR(MATCH(ENE[[#This Row],[Type of change]],ChangeType,0),0) -> 0 | AP117: =IF(AE117<>0,AE117,IF(ENE[[#This Row],[NMOG Indi]]>0,P117,AE117)) -> 0 | AQ117: =IF(AF117<>0,AF117,IF(ENE[[#This Row],[NMOG Indi]]>0,Q117,AF117)) -> 0 | AR117: =IF(AG117<>0,AG117,IF(ENE[[#This Row],[NMOG Indi]]>0,R117,AG117)) -> 0 | AS117: =IF(AH117<>0,AH117,IF(ENE[[#This Row],[NMOG Indi]]>0,S117,AH117)) -> 0 | AT117: =IF(AI117<>0,AI117,IF(ENE[[#This Row],[NMOG Indi]]>0,T117,AI117)) -> 0 | AU117: =IF(AJ117<>0,AJ117,IF(ENE[[#This Row],[NMOG Indi]]>0,U117,AJ117)) -> 0 | AV117: =IF(AK117<>0,AK117,IF(ENE[[#This Row],[NMOG Indi]]>0,V117,AK117)) -> 0 | AW117: =IF(AL117<>0,AL117,IF(ENE[[#This Row],[NMOG Indi]]>0,W117,AL117)) -> 0 | AX117: =IF(AM117<>0,AM117,IF(ENE[[#This Row],[NMOG Indi]]>0,X117,AM117)) -> 0 | AY117: =IF(AN117<>0,AN117,IF(ENE[[#This Row],[NMOG Indi]]>0,Y117,AN117)) -> 0 | AZ117: =IF(AO117<>0,AO117,IF(ENE[[#This Row],[NMOG Indi]]>0,Z117,AO117)) -> 0 | BA117: 2350 | BB117: 2935 | BC117: 2191 | BD117: 3105 | BE117: 3105 | BF117: 3105 | BG117: 0 | BH117: 3324 | BI117: 3553 | BJ117: 3790 | BK117: 3932
A118: NAT|Empty | B118: 1|Social contributions | C118: 1 | D118: Vote | E118: The Presidency | F118: 16 | G118: Direct charge against the National Revenue Fund | H118: 2 | I118: Salary of the deputy president | J118: Current payments | K118: Compensation of employees | L118: Social contributions | M118: Social contributions | N118: NAT | O118: Non-transfer | P118: 367 | Q118: 0 | R118: 415 | S118: 0 | T118: 0 | U118: 0 | V118: 0 | W118: 0 | X118: 0 | Y118: 0 | Z118: 0 | AA118: 103 | AB118: =IFERROR(MATCH(ENE[[#This Row],[Type of change]],ChangeType,0),0) -> 0 | AP118: =IF(AE118<>0,AE118,IF(ENE[[#This Row],[NMOG Indi]]>0,P118,AE118)) -> 0 | AQ118: =IF(AF118<>0,AF118,IF(ENE[[#This Row],[NMOG Indi]]>0,Q118,AF118)) -> 0 | AR118: =IF(AG118<>0,AG118,IF(ENE[[#This Row],[NMOG Indi]]>0,R118,AG118)) -> 0 | AS118: =IF(AH118<>0,AH118,IF(ENE[[#This Row],[NMOG Indi]]>0,S118,AH118)) -> 0 | AT118: =IF(AI118<>0,AI118,IF(ENE[[#This Row],[NMOG Indi]]>0,T118,AI118)) -> 0 | AU118: =IF(AJ118<>0,AJ118,IF(ENE[[#This Row],[NMOG Indi]]>0,U118,AJ118)) -> 0 | AV118: =IF(AK118<>0,AK118,IF(ENE[[#This Row],[NMOG Indi]]>0,V118,AK118)) -> 0 | AW118: =IF(AL118<>0,AL118,IF(ENE[[#This Row],[NMOG Indi]]>0,W118,AL118)) -> 0 | AX118: =IF(AM118<>0,AM118,IF(ENE[[#This Row],[NMOG Indi]]>0,X118,AM118)) -> 0 | AY118: =IF(AN118<>0,AN118,IF(ENE[[#This Row],[NMOG Indi]]>0,Y118,AN118)) -> 0 | AZ118: =IF(AO118<>0,AO118,IF(ENE[[#This Row],[NMOG Indi]]>0,Z118,AO118)) -> 0 | BA118: 367 | BB118: 0 | BC118: 415 | BD118: 0 | BE118: 0 | BF118: 0 | BG118: 0 | BH118: 0 | BI118: 0 | BJ118: 0 | BK118: 0
A119: NAT|Empty | B119: 2|Salaries and wages | C119: 2 | D119: Vote | E119: Parliament | F119: 1 | G119: Strategic Leadership and Governance | H119: 1 | I119: Office of the Speaker | J119: Current payments | K119: Compensation of employees | L119: Salaries and wages | M119: Salaries and wages | N119: NAT | O119: Non-transfer | P119: 33326 | Q119: 27933 | R119: 27933 | S119: 40292 | T119: 40292 | U119: 40292 | V119: 40292 | W119: 29943 | X119: 32985 | Y119: 36016 | Z119: 37361 | AA119: 104 | AB119: =IFERROR(MATCH(ENE[[#This Row],[Type of change]],ChangeType,0),0) -> 0 | AP119: =IF(AE119<>0,AE119,IF(ENE[[#This Row],[NMOG Indi]]>0,P119,AE119)) -> 0 | AQ119: =IF(AF119<>0,AF119,IF(ENE[[#This Row],[NMOG Indi]]>0,Q119,AF119)) -> 0 | AR119: =IF(AG119<>0,AG119,IF(ENE[[#This Row],[NMOG Indi]]>0,R119,AG119)) -> 0 | AS119: =IF(AH119<>0,AH119,IF(ENE[[#This Row],[NMOG Indi]]>0,S119,AH119)) -> 0 | AT119: =IF(AI119<>0,AI119,IF(ENE[[#This Row],[NMOG Indi]]>0,T119,AI119)) -> 0 | AU119: =IF(AJ119<>0,AJ119,IF(ENE[[#This Row],[NMOG Indi]]>0,U119,AJ119)) -> 0 | AV119: =IF(AK119<>0,AK119,IF(ENE[[#This Row],[NMOG Indi]]>0,V119,AK119)) -> 0 | AW119: =IF(AL119<>0,AL119,IF(ENE[[#This Row],[NMOG Indi]]>0,W119,AL119)) -> 0 | AX119: =IF(AM119<>0,AM119,IF(ENE[[#This Row],[NMOG Indi]]>0,X119,AM119)) -> 0 | AY119: =IF(AN119<>0,AN119,IF(ENE[[#This Row],[NMOG Indi]]>0,Y119,AN119)) -> 0 | AZ119: =IF(AO119<>0,AO119,IF(ENE[[#This Row],[NMOG Indi]]>0,Z119,AO119)) -> 0 | BA119: 33326 | BB119: 27933 | BC119: 27933 | BD119: 40292 | BE119: 40292 | BF119: 40292 | BG119: 40292 | BH119: 29943 | BI119: 32985 | BJ119: 36016 | BK119: 37361
A120: NAT|Empty | B120: 2|Agency and support/outsourced services | C120: 2 | D120: Vote | E120: Parliament | F120: 1 | G120: Strategic Leadership and Governance | H120: 1 | I120: Office of the Speaker | J120: Current payments | K120: Goods and services | L120: Agency and support/outsourced services | M120: Agency and support/outsourced services | N120: NAT | O120: Non-transfer | P120: 0 | Q120: 293 | R120: 293 | S120: 310 | T120: 310 | U120: 310 | V120: 310 | W120: 0 | X120: 18 | Y120: 214 | Z120: 224 | AA120: 105 | AB120: =IFERROR(MATCH(ENE[[#This Row],[Type of change]],ChangeType,0),0) -> 0 | AP120: =IF(AE120<>0,AE120,IF(ENE[[#This Row],[NMOG Indi]]>0,P120,AE120)) -> 0 | AQ120: =IF(AF120<>0,AF120,IF(ENE[[#This Row],[NMOG Indi]]>0,Q120,AF120)) -> 0 | AR120: =IF(AG120<>0,AG120,IF(ENE[[#This Row],[NMOG Indi]]>0,R120,AG120)) -> 0 | AS120: =IF(AH120<>0,AH120,IF(ENE[[#This Row],[NMOG Indi]]>0,S120,AH120)) -> 0 | AT120: =IF(AI120<>0,AI120,IF(ENE[[#This Row],[NMOG Indi]]>0,T120,AI120)) -> 0 | AU120: =IF(AJ120<>0,AJ120,IF(ENE[[#This Row],[NMOG Indi]]>0,U120,AJ120)) -> 0 | AV120: =IF(AK120<>0,AK120,IF(ENE[[#This Row],[NMOG Indi]]>0,V120,AK120)) -> 0 | AW120: =IF(AL120<>0,AL120,IF(ENE[[#This Row],[NMOG Indi]]>0,W120,AL120)) -> 0 | AX120: =IF(AM120<>0,AM120,IF(ENE[[#This Row],[NMOG Indi]]>0,X120,AM120)) -> 0 | AY120: =IF(AN120<>0,AN120,IF(ENE[[#This Row],[NMOG Indi]]>0,Y120,AN120)) -> 0 | AZ120: =IF(AO120<>0,AO120,IF(ENE[[#This Row],[NMOG Indi]]>0,Z120,AO120)) -> 0 | BA120: 0 | BB120: 293 | BC120: 293 | BD120: 310 | BE120: 310 | BF120: 310 | BG120: 310 | BH120: 0 | BI120: 18 | BJ120: 214 | BK120: 224
A121: NAT|Empty | B121: 2|Catering: Departmental activities | C121: 2 | D121: Vote | E121: Parliament | F121: 1 | G121: Strategic Leadership and Governance | H121: 1 | I121: Office of the Speaker | J121: Current payments | K121: Goods and services | L121: Catering: Departmental activities | M121: Catering: Departmental activities | N121: NAT | O121: Non-transfer | P121: 176 | Q121: 0 | R121: 0 | S121: 0 | T121: 0 | U121: 0 | V121: 0 | W121: 234 | X121: -160 | Y121: 0 | Z121: 0 | AA121: 106 | AB121: =IFERROR(MATCH(ENE[[#This Row],[Type of change]],ChangeType,0),0) -> 0 | AP121: =IF(AE121<>0,AE121,IF(ENE[[#This Row],[NMOG Indi]]>0,P121,AE121)) -> 0 | AQ121: =IF(AF121<>0,AF121,IF(ENE[[#This Row],[NMOG Indi]]>0,Q121,AF121)) -> 0 | AR121: =IF(AG121<>0,AG121,IF(ENE[[#This Row],[NMOG Indi]]>0,R121,AG121)) -> 0 | AS121: =IF(AH121<>0,AH121,IF(ENE[[#This Row],[NMOG Indi]]>0,S121,AH121)) -> 0 | AT121: =IF(AI121<>0,AI121,IF(ENE[[#This Row],[NMOG Indi]]>0,T121,AI121)) -> 0 | AU121: =IF(AJ121<>0,AJ121,IF(ENE[[#This Row],[NMOG Indi]]>0,U121,AJ121)) -> 0 | AV121: =IF(AK121<>0,AK121,IF(ENE[[#This Row],[NMOG Indi]]>0,V121,AK121)) -> 0 | AW121: =IF(AL121<>0,AL121,IF(ENE[[#This Row],[NMOG Indi]]>0,W121,AL121)) -> 0 | AX121: =IF(AM121<>0,AM121,IF(ENE[[#This Row],[NMOG Indi]]>0,X121,AM121)) -> 0 | AY121: =IF(AN121<>0,AN121,IF(ENE[[#This Row],[NMOG Indi]]>0,Y121,AN121)) -> 0 | AZ121: =IF(AO121<>0,AO121,IF(ENE[[#This Row],[NMOG Indi]]>0,Z121,AO121)) -> 0 | BA121: 176 | BB121: 0 | BC121: 0 | BD121: 0 | BE121: 0 | BF121: 0 | BG121: 0 | BH121: 234 | BI121: -160 | BJ121: 0 | BK121: 0
A122: NAT|Empty | B122: 2|Communication (G&S) | C122: 2 | D122: Vote | E122: Parliament | F122: 1 | G122: Strategic Leadership and Governance | H122: 1 | I122: Office of the Speaker | J122: Current payments | K122: Goods and services | L122: Communication (G&S) | M122: Communication (G&S) | N122: NAT | O122: Non-transfer | P122: 2002 | Q122: 2353 | R122: 2353 | S122: 2489 | T122: 2489 | U122: 2489 | V122: 2489 | W122: 3128 | X122: 2773 | Y122: 1946 | Z122: 2021 | AA122: 107 | AB122: =IFERROR(MATCH(ENE[[#This Row],[Type of change]],ChangeType,0),0) -> 0 | AP122: =IF(AE122<>0,AE122,IF(ENE[[#This Row],[NMOG Indi]]>0,P122,AE122)) -> 0 | AQ122: =IF(AF122<>0,AF122,IF(ENE[[#This Row],[NMOG Indi]]>0,Q122,AF122)) -> 0 | AR122: =IF(AG122<>0,AG122,IF(ENE[[#This Row],[NMOG Indi]]>0,R122,AG122)) -> 0 | AS122: =IF(AH122<>0,AH122,IF(ENE[[#This Row],[NMOG Indi]]>0,S122,AH122)) -> 0 | AT122: =IF(AI122<>0,AI122,IF(ENE[[#This Row],[NMOG Indi]]>0,T122,AI122)) -> 0 | AU122: =IF(AJ122<>0,AJ122,IF(ENE[[#This Row],[NMOG Indi]]>0,U122,AJ122)) -> 0 | AV122: =IF(AK122<>0,AK122,IF(ENE[[#This Row],[NMOG Indi]]>0,V122,AK122)) -> 0 | AW122: =IF(AL122<>0,AL122,IF(ENE[[#This Row],[NMOG Indi]]>0,W122,AL122)) -> 0 | AX122: =IF(AM122<>0,AM122,IF(ENE[[#This Row],[NMOG Indi]]>0,X122,AM122)) -> 0 | AY122: =IF(AN122<>0,AN122,IF(ENE[[#This Row],[NMOG Indi]]>0,Y122,AN122)) -> 0 | AZ122: =IF(AO122<>0,AO122,IF(ENE[[#This Row],[NMOG Indi]]>0,Z122,AO122)) -> 0 | BA122: 2002 | BB122: 2353 | BC122: 2353 | BD122: 2489 | BE122: 2489 | BF122: 2489 | BG122: 2489 | BH122: 3128 | BI122: 2773 | BJ122: 1946 | BK122: 2021
A123: NAT|Empty | B123: 2|Computer services | C123: 2 | D123: Vote | E123: Parliament | F123: 1 | G123: Strategic Leadership and Governance | H123: 1 | I123: Office of the Speaker | J123: Current payments | K123: Goods and services | L123: Computer services | M123: Computer services | N123: NAT | O123: Non-transfer | P123: 203 | Q123: 107 | R123: 107 | S123: 113 | T123: 113 | U123: 113 | V123: 113 | W123: 119 | X123: 126 | Y123: 133 | Z123: 137 | AA123: 108 | AB123: =IFERROR(MATCH(ENE[[#This Row],[Type of change]],ChangeType,0),0) -> 0 | AP123: =IF(AE123<>0,AE123,IF(ENE[[#This Row],[NMOG Indi]]>0,P123,AE123)) -> 0 | AQ123: =IF(AF123<>0,AF123,IF(ENE[[#This Row],[NMOG Indi]]>0,Q123,AF123)) -> 0 | AR123: =IF(AG123<>0,AG123,IF(ENE[[#This Row],[NMOG Indi]]>0,R123,AG123)) -> 0 | AS123: =IF(AH123<>0,AH123,IF(ENE[[#This Row],[NMOG Indi]]>0,S123,AH123)) -> 0 | AT123: =IF(AI123<>0,AI123,IF(ENE[[#This Row],[NMOG Indi]]>0,T123,AI123)) -> 0 | AU123: =IF(AJ123<>0,AJ123,IF(ENE[[#This Row],[NMOG Indi]]>0,U123,AJ123)) -> 0 | AV123: =IF(AK123<>0,AK123,IF(ENE[[#This Row],[NMOG Indi]]>0,V123,AK123)) -> 0 | AW123: =IF(AL123<>0,AL123,IF(ENE[[#This Row],[NMOG Indi]]>0,W123,AL123)) -> 0 | AX123: =IF(AM123<>0,AM123,IF(ENE[[#This Row],[NMOG Indi]]>0,X123,AM123)) -> 0 | AY123: =IF(AN123<>0,AN123,IF(ENE[[#This Row],[NMOG Indi]]>0,Y123,AN123)) -> 0 | AZ123: =IF(AO123<>0,AO123,IF(ENE[[#This Row],[NMOG Indi]]>0,Z123,AO123)) -> 0 | BA123: 203 | BB123: 107 | BC123: 107 | BD123: 113 | BE123: 113 | BF123: 113 | BG123: 113 | BH123: 119 | BI123: 126 | BJ123: 133 | BK123: 137
A124: NAT|Empty | B124: 2|Consultants: Business and advisory services | C124: 2 | D124: Vote | E124: Parliament | F124: 1 | G124: Strategic Leadership and Governance | H124: 1 | I124: Office of the Speaker | J124: Current payments | K124: Goods and services | L124: Consultants: Business and advisory services | M124: Consultants: Business and advisory services | N124: NAT | O124: Non-transfer | P124: 1009 | Q124: 2190 | R124: 2190 | S124: 2317 | T124: 2317 | U124: 2317 | V124: 2317 | W124: 447 | X124: 542 | Y124: 841 | Z124: 873 | AA124: 109 | AB124: =IFERROR(MATCH(ENE[[#This Row],[Type of change]],ChangeType,0),0) -> 0 | AP124: =IF(AE124<>0,AE124,IF(ENE[[#This Row],[NMOG Indi]]>0,P124,AE124)) -> 0 | AQ124: =IF(AF124<>0,AF124,IF(ENE[[#This Row],[NMOG Indi]]>0,Q124,AF124)) -> 0 | AR124: =IF(AG124<>0,AG124,IF(ENE[[#This Row],[NMOG Indi]]>0,R124,AG124)) -> 0 | AS124: =IF(AH124<>0,AH124,IF(ENE[[#This Row],[NMOG Indi]]>0,S124,AH124)) -> 0 | AT124: =IF(AI124<>0,AI124,IF(ENE[[#This Row],[NMOG Indi]]>0,T124,AI124)) -> 0 | AU124: =IF(AJ124<>0,AJ124,IF(ENE[[#This Row],[NMOG Indi]]>0,U124,AJ124)) -> 0 | AV124: =IF(AK124<>0,AK124,IF(ENE[[#This Row],[NMOG Indi]]>0,V124,AK124)) -> 0 | AW124: =IF(AL124<>0,AL124,IF(ENE[[#This Row],[NMOG Indi]]>0,W124,AL124)) -> 0 | AX124: =IF(AM124<>0,AM124,IF(ENE[[#This Row],[NMOG Indi]]>0,X124,AM124)) -> 0 | AY124: =IF(AN124<>0,AN124,IF(ENE[[#This Row],[NMOG Indi]]>0,Y124,AN124)) -> 0 | AZ124: =IF(AO124<>0,AO124,IF(ENE[[#This Row],[NMOG Indi]]>0,Z124,AO124)) -> 0 | BA124: 1009 | BB124: 2190 | BC124: 2190 | BD124: 2317 | BE124: 2317 | BF124: 2317 | BG124: 2317 | BH124: 447 | BI124: 542 | BJ124: 841 | BK124: 873
A125: NAT|Empty | B125: 2|Consumables: Stationery, printing and office supplies | C125: 2 | D125: Vote | E125: Parliament | F125: 1 | G125: Strategic Leadership and Governance | H125: 1 | I125: Office of the Speaker | J125: Current payments | K125: Goods and services | L125: Consumables: Stationery, printing and office supplies | M125: Consumables: Stationery, printing and office supplies | N125: NAT | O125: Non-transfer | P125: 190 | Q125: 410 | R125: 410 | S125: 434 | T125: 434 | U125: 434 | V125: 434 | W125: 458 | X125: 483 | Y125: 510 | Z125: 530 | AA125: 110 | AB125: =IFERROR(MATCH(ENE[[#This Row],[Type of change]],ChangeType,0),0) -> 0 | AP125: =IF(AE125<>0,AE125,IF(ENE[[#This Row],[NMOG Indi]]>0,P125,AE125)) -> 0 | AQ125: =IF(AF125<>0,AF125,IF(ENE[[#This Row],[NMOG Indi]]>0,Q125,AF125)) -> 0 | AR125: =IF(AG125<>0,AG125,IF(ENE[[#This Row],[NMOG Indi]]>0,R125,AG125)) -> 0 | AS125: =IF(AH125<>0,AH125,IF(ENE[[#This Row],[NMOG Indi]]>0,S125,AH125)) -> 0 | AT125: =IF(AI125<>0,AI125,IF(ENE[[#This Row],[NMOG Indi]]>0,T125,AI125)) -> 0 | AU125: =IF(AJ125<>0,AJ125,IF(ENE[[#This Row],[NMOG Indi]]>0,U125,AJ125)) -> 0 | AV125: =IF(AK125<>0,AK125,IF(ENE[[#This Row],[NMOG Indi]]>0,V125,AK125)) -> 0 | AW125: =IF(AL125<>0,AL125,IF(ENE[[#This Row],[NMOG Indi]]>0,W125,AL125)) -> 0 | AX125: =IF(AM125<>0,AM125,IF(ENE[[#This Row],[NMOG Indi]]>0,X125,AM125)) -> 0 | AY125: =IF(AN125<>0,AN125,IF(ENE[[#This Row],[NMOG Indi]]>0,Y125,AN125)) -> 0 | AZ125: =IF(AO125<>0,AO125,IF(ENE[[#This Row],[NMOG Indi]]>0,Z125,AO125)) -> 0 | BA125: 190 | BB125: 410 | BC125: 410 | BD125: 434 | BE125: 434 | BF125: 434 | BG125: 434 | BH125: 458 | BI125: 483 | BJ125: 510 | BK125: 530
A126: NAT|Empty | B126: 2|Contractors | C126: 2 | D126: Vote | E126: Parliament | F126: 1 | G126: Strategic Leadership and Governance | H126: 1 | I126: Office of the Speaker | J126: Current payments | K126: Goods and services | L126: Contractors | M126: Contractors | N126: NAT | O126: Non-transfer | P126: 16 | Q126: 883 | R126: 883 | S126: 934 | T126: 934 | U126: 934 | V126: 934 | W126: 186 | X126: 240 | Y126: 828 | Z126: 863 | AA126: 111 | AB126: =IFERROR(MATCH(ENE[[#This Row],[Type of change]],ChangeType,0),0) -> 0 | AP126: =IF(AE126<>0,AE126,IF(ENE[[#This Row],[NMOG Indi]]>0,P126,AE126)) -> 0 | AQ126: =IF(AF126<>0,AF126,IF(ENE[[#This Row],[NMOG Indi]]>0,Q126,AF126)) -> 0 | AR126: =IF(AG126<>0,AG126,IF(ENE[[#This Row],[NMOG Indi]]>0,R126,AG126)) -> 0 | AS126: =IF(AH126<>0,AH126,IF(ENE[[#This Row],[NMOG Indi]]>0,S126,AH126)) -> 0 | AT126: =IF(AI126<>0,AI126,IF(ENE[[#This Row],[NMOG Indi]]>0,T126,AI126)) -> 0 | AU126: =IF(AJ126<>0,AJ126,IF(ENE[[#This Row],[NMOG Indi]]>0,U126,AJ126)) -> 0 | AV126: =IF(AK126<>0,AK126,IF(ENE[[#This Row],[NMOG Indi]]>0,V126,AK126)) -> 0 | AW126: =IF(AL126<>0,AL126,IF(ENE[[#This Row],[NMOG Indi]]>0,W126,AL126)) -> 0 | AX126: =IF(AM126<>0,AM126,IF(ENE[[#This Row],[NMOG Indi]]>0,X126,AM126)) -> 0 | AY126: =IF(AN126<>0,AN126,IF(ENE[[#This Row],[NMOG Indi]]>0,Y126,AN126)) -> 0 | AZ126: =IF(AO126<>0,AO126,IF(ENE[[#This Row],[NMOG Indi]]>0,Z126,AO126)) -> 0 | BA126: 16 | BB126: 883 | BC126: 883 | BD126: 934 | BE126: 934 | BF126: 934 | BG126: 934 | BH126: 186 | BI126: 240 | BJ126: 828 | BK126: 863
A127: NAT|Empty | B127: 2|Entertainment | C127: 2 | D127: Vote | E127: Parliament | F127: 1 | G127: Strategic Leadership and Governance | H127: 1 | I127: Office of the Speaker | J127: Current payments | K127: Goods and services | L127: Entertainment | M127: Entertainment | N127: NAT | O127: Non-transfer | P127: 0 | Q127: 375 | R127: 375 | S127: 397 | T127: 397 | U127: 397 | V127: 397 | W127: 419 | X127: 442 | Y127: 266 | Z127: 276 | AA127: 112 | AB127: =IFERROR(MATCH(ENE[[#This Row],[Type of change]],ChangeType,0),0) -> 0 | AP127: =IF(AE127<>0,AE127,IF(ENE[[#This Row],[NMOG Indi]]>0,P127,AE127)) -> 0 | AQ127: =IF(AF127<>0,AF127,IF(ENE[[#This Row],[NMOG Indi]]>0,Q127,AF127)) -> 0 | AR127: =IF(AG127<>0,AG127,IF(ENE[[#This Row],[NMOG Indi]]>0,R127,AG127)) -> 0 | AS127: =IF(AH127<>0,AH127,IF(ENE[[#This Row],[NMOG Indi]]>0,S127,AH127)) -> 0 | AT127: =IF(AI127<>0,AI127,IF(ENE[[#This Row],[NMOG Indi]]>0,T127,AI127)) -> 0 | AU127: =IF(AJ127<>0,AJ127,IF(ENE[[#This Row],[NMOG Indi]]>0,U127,AJ127)) -> 0 | AV127: =IF(AK127<>0,AK127,IF(ENE[[#This Row],[NMOG Indi]]>0,V127,AK127)) -> 0 | AW127: =IF(AL127<>0,AL127,IF(ENE[[#This Row],[NMOG Indi]]>0,W127,AL127)) -> 0 | AX127: =IF(AM127<>0,AM127,IF(ENE[[#This Row],[NMOG Indi]]>0,X127,AM127)) -> 0 | AY127: =IF(AN127<>0,AN127,IF(ENE[[#This Row],[NMOG Indi]]>0,Y127,AN127)) -> 0 | AZ127: =IF(AO127<>0,AO127,IF(ENE[[#This Row],[NMOG Indi]]>0,Z127,AO127)) -> 0 | BA127: 0 | BB127: 375 | BC127: 375 | BD127: 397 | BE127: 397 | BF127: 397 | BG127: 397 | BH127: 419 | BI127: 442 | BJ127: 266 | BK127: 276
A128: NAT|Empty | B128: 2|Minor Assets | C128: 2 | D128: Vote | E128: Parliament | F128: 1 | G128: Strategic Leadership and Governance | H128: 1 | I128: Office of the Speaker | J128: Current payments | K128: Goods and services | L128: Minor Assets | M128: Minor Assets | N128: NAT | O128: Non-transfer | P128: 0 | Q128: 294 | R128: 294 | S128: 316 | T128: 316 | U128: 316 | V128: 316 | W128: 0 | X128: 18 | Y128: 0 | Z128: 0 | AA128: 113 | AB128: =IFERROR(MATCH(ENE[[#This Row],[Type of change]],ChangeType,0),0) -> 0 | AP128: =IF(AE128<>0,AE128,IF(ENE[[#This Row],[NMOG Indi]]>0,P128,AE128)) -> 0 | AQ128: =IF(AF128<>0,AF128,IF(ENE[[#This Row],[NMOG Indi]]>0,Q128,AF128)) -> 0 | AR128: =IF(AG128<>0,AG128,IF(ENE[[#This Row],[NMOG Indi]]>0,R128,AG128)) -> 0 | AS128: =IF(AH128<>0,AH128,IF(ENE[[#This Row],[NMOG Indi]]>0,S128,AH128)) -> 0 | AT128: =IF(AI128<>0,AI128,IF(ENE[[#This Row],[NMOG Indi]]>0,T128,AI128)) -> 0 | AU128: =IF(AJ128<>0,AJ128,IF(ENE[[#This Row],[NMOG Indi]]>0,U128,AJ128)) -> 0 | AV128: =IF(AK128<>0,AK128,IF(ENE[[#This Row],[NMOG Indi]]>0,V128,AK128)) -> 0 | AW128: =IF(AL128<>0,AL128,IF(ENE[[#This Row],[NMOG Indi]]>0,W128,AL128)) -> 0 | AX128: =IF(AM128<>0,AM128,IF(ENE[[#This Row],[NMOG Indi]]>0,X128,AM128)) -> 0 | AY128: =IF(AN128<>0,AN128,IF(ENE[[#This Row],[NMOG Indi]]>0,Y128,AN128)) -> 0 | AZ128: =IF(AO128<>0,AO128,IF(ENE[[#This Row],[NMOG Indi]]>0,Z128,AO128)) -> 0 | BA128: 0 | BB128: 294 | BC128: 294 | BD128: 316 | BE128: 316 | BF128: 316 | BG128: 316 | BH128: 0 | BI128: 18 | BJ128: 0 | BK128: 0
A129: NAT|Empty | B129: 2|Operating leases | C129: 2 | D129: Vote | E129: Parliament | F129: 1 | G129: Strategic Leadership and Governance | H129: 1 | I129: Office of the Speaker | J129: Current payments | K129: Goods and services | L129: Operating leases | M129: Operating leases | N129: NAT | O129: Non-transfer | P129: 0 | Q129: 170 | R129: 170 | S129: 180 | T129: 180 | U129: 180 | V129: 180 | W129: 0 | X129: 10 | Y129: 0 | Z129: 0 | AA129: 114 | AB129: =IFERROR(MATCH(ENE[[#This Row],[Type of change]],ChangeType,0),0) -> 0 | AP129: =IF(AE129<>0,AE129,IF(ENE[[#This Row],[NMOG Indi]]>0,P129,AE129)) -> 0 | AQ129: =IF(AF129<>0,AF129,IF(ENE[[#This Row],[NMOG Indi]]>0,Q129,AF129)) -> 0 | AR129: =IF(AG129<>0,AG129,IF(ENE[[#This Row],[NMOG Indi]]>0,R129,AG129)) -> 0 | AS129: =IF(AH129<>0,AH129,IF(ENE[[#This Row],[NMOG Indi]]>0,S129,AH129)) -> 0 | AT129: =IF(AI129<>0,AI129,IF(ENE[[#This Row],[NMOG Indi]]>0,T129,AI129)) -> 0 | AU129: =IF(AJ129<>0,AJ129,IF(ENE[[#This Row],[NMOG Indi]]>0,U129,AJ129)) -> 0 | AV129: =IF(AK129<>0,AK129,IF(ENE[[#This Row],[NMOG Indi]]>0,V129,AK129)) -> 0 | AW129: =IF(AL129<>0,AL129,IF(ENE[[#This Row],[NMOG Indi]]>0,W129,AL129)) -> 0 | AX129: =IF(AM129<>0,AM129,IF(ENE[[#This Row],[NMOG Indi]]>0,X129,AM129)) -> 0 | AY129: =IF(AN129<>0,AN129,IF(ENE[[#This Row],[NMOG Indi]]>0,Y129,AN129)) -> 0 | AZ129: =IF(AO129<>0,AO129,IF(ENE[[#This Row],[NMOG Indi]]>0,Z129,AO129)) -> 0 | BA129: 0 | BB129: 170 | BC129: 170 | BD129: 180 | BE129: 180 | BF129: 180 | BG129: 180 | BH129: 0 | BI129: 10 | BJ129: 0 | BK129: 0
A130: NAT|Empty | B130: 2|Operating payments | C130: 2 | D130: Vote | E130: Parliament | F130: 1 | G130: Strategic Leadership and Governance | H130: 1 | I130: Office of the Speaker | J130: Current payments | K130: Goods and services | L130: Operating payments | M130: Operating payments | N130: NAT | O130: Non-transfer | P130: 0 | Q130: 269 | R130: 269 | S130: 765 | T130: 765 | U130: 765 | V130: 352 | W130: 1682 | X130: 6193 | Y130: 900 | Z130: 937 | AA130: 115 | AB130: =IFERROR(MATCH(ENE[[#This Row],[Type of change]],ChangeType,0),0) -> 0 | AP130: =IF(AE130<>0,AE130,IF(ENE[[#This Row],[NMOG Indi]]>0,P130,AE130)) -> 0 | AQ130: =IF(AF130<>0,AF130,IF(ENE[[#This Row],[NMOG Indi]]>0,Q130,AF130)) -> 0 | AR130: =IF(AG130<>0,AG130,IF(ENE[[#This Row],[NMOG Indi]]>0,R130,AG130)) -> 0 | AS130: =IF(AH130<>0,AH130,IF(ENE[[#This Row],[NMOG Indi]]>0,S130,AH130)) -> 0 | AT130: =IF(AI130<>0,AI130,IF(ENE[[#This Row],[NMOG Indi]]>0,T130,AI130)) -> 0 | AU130: =IF(AJ130<>0,AJ130,IF(ENE[[#This Row],[NMOG Indi]]>0,U130,AJ130)) -> 0 | AV130: =IF(AK130<>0,AK130,IF(ENE[[#This Row],[NMOG Indi]]>0,V130,AK130)) -> 0 | AW130: =IF(AL130<>0,AL130,IF(ENE[[#This Row],[NMOG Indi]]>0,W130,AL130)) -> 0 | AX130: =IF(AM130<>0,AM130,IF(ENE[[#This Row],[NMOG Indi]]>0,X130,AM130)) -> 0 | AY130: =IF(AN130<>0,AN130,IF(ENE[[#This Row],[NMOG Indi]]>0,Y130,AN130)) -> 0 | AZ130: =IF(AO130<>0,AO130,IF(ENE[[#This Row],[NMOG Indi]]>0,Z130,AO130)) -> 0 | BA130: 0 | BB130: 269 | BC130: 269 | BD130: 765 | BE130: 765 | BF130: 765 | BG130: 352 | BH130: 1682 | BI130: 6193 | BJ130: 900 | BK130: 937
A131: NAT|Empty | B131: 2|Rental and hiring | C131: 2 | D131: Vote | E131: Parliament | F131: 1 | G131: Strategic Leadership and Governance | H131: 1 | I131: Office of the Speaker | J131: Current payments | K131: Goods and services | L131: Rental and hiring | M131: Rental and hiring | N131: NAT | O131: Non-transfer | P131: 136 | Q131: 0 | R131: 0 | S131: 0 | T131: 0 | U131: 0 | V131: 0 | W131: 0 | X131: 0 | Y131: 0 | Z131: 0 | AA131: 116 | AB131: =IFERROR(MATCH(ENE[[#This Row],[Type of change]],ChangeType,0),0) -> 0 | AP131: =IF(AE131<>0,AE131,IF(ENE[[#This Row],[NMOG Indi]]>0,P131,AE131)) -> 0 | AQ131: =IF(AF131<>0,AF131,IF(ENE[[#This Row],[NMOG Indi]]>0,Q131,AF131)) -> 0 | AR131: =IF(AG131<>0,AG131,IF(ENE[[#This Row],[NMOG Indi]]>0,R131,AG131)) -> 0 | AS131: =IF(AH131<>0,AH131,IF(ENE[[#This Row],[NMOG Indi]]>0,S131,AH131)) -> 0 | AT131: =IF(AI131<>0,AI131,IF(ENE[[#This Row],[NMOG Indi]]>0,T131,AI131)) -> 0 | AU131: =IF(AJ131<>0,AJ131,IF(ENE[[#This Row],[NMOG Indi]]>0,U131,AJ131)) -> 0 | AV131: =IF(AK131<>0,AK131,IF(ENE[[#This Row],[NMOG Indi]]>0,V131,AK131)) -> 0 | AW131: =IF(AL131<>0,AL131,IF(ENE[[#This Row],[NMOG Indi]]>0,W131,AL131)) -> 0 | AX131: =IF(AM131<>0,AM131,IF(ENE[[#This Row],[NMOG Indi]]>0,X131,AM131)) -> 0 | AY131: =IF(AN131<>0,AN131,IF(ENE[[#This Row],[NMOG Indi]]>0,Y131,AN131)) -> 0 | AZ131: =IF(AO131<>0,AO131,IF(ENE[[#This Row],[NMOG Indi]]>0,Z131,AO131)) -> 0 | BA131: 136 | BB131: 0 | BC131: 0 | BD131: 0 | BE131: 0 | BF131: 0 | BG131: 0 | BH131: 0 | BI131: 0 | BJ131: 0 | BK131: 0
A132: NAT|Empty | B132: 2|Training and development | C132: 2 | D132: Vote | E132: Parliament | F132: 1 | G132: Strategic Leadership and Governance | H132: 1 | I132: Office of the Speaker | J132: Current payments | K132: Goods and services | L132: Training and development | M132: Training and development | N132: NAT | O132: Non-transfer | P132: 0 | Q132: 333 | R132: 333 | S132: 352 | T132: 352 | U132: 352 | V132: 3249 | W132: 372 | X132: 392 | Y132: 414 | Z132: 430 | AA132: 117 | AB132: =IFERROR(MATCH(ENE[[#This Row],[Type of change]],ChangeType,0),0) -> 0 | AP132: =IF(AE132<>0,AE132,IF(ENE[[#This Row],[NMOG Indi]]>0,P132,AE132)) -> 0 | AQ132: =IF(AF132<>0,AF132,IF(ENE[[#This Row],[NMOG Indi]]>0,Q132,AF132)) -> 0 | AR132: =IF(AG132<>0,AG132,IF(ENE[[#This Row],[NMOG Indi]]>0,R132,AG132)) -> 0 | AS132: =IF(AH132<>0,AH132,IF(ENE[[#This Row],[NMOG Indi]]>0,S132,AH132)) -> 0 | AT132: =IF(AI132<>0,AI132,IF(ENE[[#This Row],[NMOG Indi]]>0,T132,AI132)) -> 0 | AU132: =IF(AJ132<>0,AJ132,IF(ENE[[#This Row],[NMOG Indi]]>0,U132,AJ132)) -> 0 | AV132: =IF(AK132<>0,AK132,IF(ENE[[#This Row],[NMOG Indi]]>0,V132,AK132)) -> 0 | AW132: =IF(AL132<>0,AL132,IF(ENE[[#This Row],[NMOG Indi]]>0,W132,AL132)) -> 0 | AX132: =IF(AM132<>0,AM132,IF(ENE[[#This Row],[NMOG Indi]]>0,X132,AM132)) -> 0 | AY132: =IF(AN132<>0,AN132,IF(ENE[[#This Row],[NMOG Indi]]>0,Y132,AN132)) -> 0 | AZ132: =IF(AO132<>0,AO132,IF(ENE[[#This Row],[NMOG Indi]]>0,Z132,AO132)) -> 0 | BA132: 0 | BB132: 333 | BC132: 333 | BD132: 352 | BE132: 352 | BF132: 352 | BG132: 3249 | BH132: 372 | BI132: 392 | BJ132: 414 | BK132: 430
A133: NAT|Empty | B133: 2|Travel and subsistence | C133: 2 | D133: Vote | E133: Parliament | F133: 1 | G133: Strategic Leadership and Governance | H133: 1 | I133: Office of the Speaker | J133: Current payments | K133: Goods and services | L133: Travel and subsistence | M133: Travel and subsistence | N133: NAT | O133: Non-transfer | P133: 7813 | Q133: 3500 | R133: 3500 | S133: 3249 | T133: 3249 | U133: 3249 | V133: 0 | W133: 7706 | X133: 4275 | Y133: 10397 | Z133: 10813 | AA133: 118 | AB133: =IFERROR(MATCH(ENE[[#This Row],[Type of change]],ChangeType,0),0) -> 0 | AP133: =IF(AE133<>0,AE133,IF(ENE[[#This Row],[NMOG Indi]]>0,P133,AE133)) -> 0 | AQ133: =IF(AF133<>0,AF133,IF(ENE[[#This Row],[NMOG Indi]]>0,Q133,AF133)) -> 0 | AR133: =IF(AG133<>0,AG133,IF(ENE[[#This Row],[NMOG Indi]]>0,R133,AG133)) -> 0 | AS133: =IF(AH133<>0,AH133,IF(ENE[[#This Row],[NMOG Indi]]>0,S133,AH133)) -> 0 | AT133: =IF(AI133<>0,AI133,IF(ENE[[#This Row],[NMOG Indi]]>0,T133,AI133)) -> 0 | AU133: =IF(AJ133<>0,AJ133,IF(ENE[[#This Row],[NMOG Indi]]>0,U133,AJ133)) -> 0 | AV133: =IF(AK133<>0,AK133,IF(ENE[[#This Row],[NMOG Indi]]>0,V133,AK133)) -> 0 | AW133: =IF(AL133<>0,AL133,IF(ENE[[#This Row],[NMOG Indi]]>0,W133,AL133)) -> 0 | AX133: =IF(AM133<>0,AM133,IF(ENE[[#This Row],[NMOG Indi]]>0,X133,AM133)) -> 0 | AY133: =IF(AN133<>0,AN133,IF(ENE[[#This Row],[NMOG Indi]]>0,Y133,AN133)) -> 0 | AZ133: =IF(AO133<>0,AO133,IF(ENE[[#This Row],[NMOG Indi]]>0,Z133,AO133)) -> 0 | BA133: 7813 | BB133: 3500 | BC133: 3500 | BD133: 3249 | BE133: 3249 | BF133: 3249 | BG133: 0 | BH133: 7706 | BI133: 4275 | BJ133: 10397 | BK133: 10813
A134: NAT|Empty | B134: 2|Other machinery and equipment | C134: 2 | D134: Vote | E134: Parliament | F134: 1 | G134: Strategic Leadership and Governance | H134: 1 | I134: Office of the Speaker | J134: Payments for capital assets | K134: Machinery and equipment | L134: Other machinery and equipment | M134: Other machinery and equipment | N134: NAT | O134: Non-transfer | P134: 32 | Q134: 292 | R134: 292 | S134: 309 | T134: 309 | U134: 309 | V134: 309 | W134: 26 | X134: 28 | Y134: 30 | Z134: 32 | AA134: 119 | AB134: =IFERROR(MATCH(ENE[[#This Row],[Type of change]],ChangeType,0),0) -> 0 | AP134: =IF(AE134<>0,AE134,IF(ENE[[#This Row],[NMOG Indi]]>0,P134,AE134)) -> 0 | AQ134: =IF(AF134<>0,AF134,IF(ENE[[#This Row],[NMOG Indi]]>0,Q134,AF134)) -> 0 | AR134: =IF(AG134<>0,AG134,IF(ENE[[#This Row],[NMOG Indi]]>0,R134,AG134)) -> 0 | AS134: =IF(AH134<>0,AH134,IF(ENE[[#This Row],[NMOG Indi]]>0,S134,AH134)) -> 0 | AT134: =IF(AI134<>0,AI134,IF(ENE[[#This Row],[NMOG Indi]]>0,T134,AI134)) -> 0 | AU134: =IF(AJ134<>0,AJ134,IF(ENE[[#This Row],[NMOG Indi]]>0,U134,AJ134)) -> 0 | AV134: =IF(AK134<>0,AK134,IF(ENE[[#This Row],[NMOG Indi]]>0,V134,AK134)) -> 0 | AW134: =IF(AL134<>0,AL134,IF(ENE[[#This Row],[NMOG Indi]]>0,W134,AL134)) -> 0 | AX134: =IF(AM134<>0,AM134,IF(ENE[[#This Row],[NMOG Indi]]>0,X134,AM134)) -> 0 | AY134: =IF(AN134<>0,AN134,IF(ENE[[#This Row],[NMOG Indi]]>0,Y134,AN134)) -> 0 | AZ134: =IF(AO134<>0,AO134,IF(ENE[[#This Row],[NMOG Indi]]>0,Z134,AO134)) -> 0 | BA134: 32 | BB134: 292 | BC134: 292 | BD134: 309 | BE134: 309 | BF134: 309 | BG134: 309 | BH134: 26 | BI134: 28 | BJ134: 30 | BK134: 32
A135: NAT|Empty | B135: 2|Salaries and wages | C135: 2 | D135: Vote | E135: Parliament | F135: 1 | G135: Strategic Leadership and Governance | H135: 2 | I135: Office of the Chairperson | J135: Current payments | K135: Compensation of employees | L135: Salaries and wages | M135: Salaries and wages | N135: NAT | O135: Non-transfer | P135: 27837 | Q135: 16946 | R135: 16946 | S135: 28668 | T135: 28668 | U135: 28668 | V135: 28668 | W135: 26815 | X135: 29479 | Y135: 31811 | Z135: 32996 | AA135: 120 | AB135: =IFERROR(MATCH(ENE[[#This Row],[Type of change]],ChangeType,0),0) -> 0 | AP135: =IF(AE135<>0,AE135,IF(ENE[[#This Row],[NMOG Indi]]>0,P135,AE135)) -> 0 | AQ135: =IF(AF135<>0,AF135,IF(ENE[[#This Row],[NMOG Indi]]>0,Q135,AF135)) -> 0 | AR135: =IF(AG135<>0,AG135,IF(ENE[[#This Row],[NMOG Indi]]>0,R135,AG135)) -> 0 | AS135: =IF(AH135<>0,AH135,IF(ENE[[#This Row],[NMOG Indi]]>0,S135,AH135)) -> 0 | AT135: =IF(AI135<>0,AI135,IF(ENE[[#This Row],[NMOG Indi]]>0,T135,AI135)) -> 0 | AU135: =IF(AJ135<>0,AJ135,IF(ENE[[#This Row],[NMOG Indi]]>0,U135,AJ135)) -> 0 | AV135: =IF(AK135<>0,AK135,IF(ENE[[#This Row],[NMOG Indi]]>0,V135,AK135)) -> 0 | AW135: =IF(AL135<>0,AL135,IF(ENE[[#This Row],[NMOG Indi]]>0,W135,AL135)) -> 0 | AX135: =IF(AM135<>0,AM135,IF(ENE[[#This Row],[NMOG Indi]]>0,X135,AM135)) -> 0 | AY135: =IF(AN135<>0,AN135,IF(ENE[[#This Row],[NMOG Indi]]>0,Y135,AN135)) -> 0 | AZ135: =IF(AO135<>0,AO135,IF(ENE[[#This Row],[NMOG Indi]]>0,Z135,AO135)) -> 0 | BA135: 27837 | BB135: 16946 | BC135: 16946 | BD135: 28668 | BE135: 28668 | BF135: 28668 | BG135: 28668 | BH135: 26815 | BI135: 29479 | BJ135: 31811 | BK135: 32996
A136: NAT|Empty | B136: 2|Audit costs: External | C136: 2 | D136: Vote | E136: Parliament | F136: 1 | G136: Strategic Leadership and Governance | H136: 2 | I136: Office of the Chairperson | J136: Current payments | K136: Goods and services | L136: Audit costs: External | M136: Audit costs: External | N136: NAT | O136: Non-transfer | P136: 0 | Q136: 35 | R136: 35 | S136: 37 | T136: 37 | U136: 37 | V136: 37 | W136: 39 | X136: 1 | Y136: -1 | Z136: -1 | AA136: 121 | AB136: =IFERROR(MATCH(ENE[[#This Row],[Type of change]],ChangeType,0),0) -> 0 | AP136: =IF(AE136<>0,AE136,IF(ENE[[#This Row],[NMOG Indi]]>0,P136,AE136)) -> 0 | AQ136: =IF(AF136<>0,AF136,IF(ENE[[#This Row],[NMOG Indi]]>0,Q136,AF136)) -> 0 | AR136: =IF(AG136<>0,AG136,IF(ENE[[#This Row],[NMOG Indi]]>0,R136,AG136)) -> 0 | AS136: =IF(AH136<>0,AH136,IF(ENE[[#This Row],[NMOG Indi]]>0,S136,AH136)) -> 0 | AT136: =IF(AI136<>0,AI136,IF(ENE[[#This Row],[NMOG Indi]]>0,T136,AI136)) -> 0 | AU136: =IF(AJ136<>0,AJ136,IF(ENE[[#This Row],[NMOG Indi]]>0,U136,AJ136)) -> 0 | AV136: =IF(AK136<>0,AK136,IF(ENE[[#This Row],[NMOG Indi]]>0,V136,AK136)) -> 0 | AW136: =IF(AL136<>0,AL136,IF(ENE[[#This Row],[NMOG Indi]]>0,W136,AL136)) -> 0 | AX136: =IF(AM136<>0,AM136,IF(ENE[[#This Row],[NMOG Indi]]>0,X136,AM136)) -> 0 | AY136: =IF(AN136<>0,AN136,IF(ENE[[#This Row],[NMOG Indi]]>0,Y136,AN136)) -> 0 | AZ136: =IF(AO136<>0,AO136,IF(ENE[[#This Row],[NMOG Indi]]>0,Z136,AO136)) -> 0 | BA136: 0 | BB136: 35 | BC136: 35 | BD136: 37 | BE136: 37 | BF136: 37 | BG136: 37 | BH136: 39 | BI136: 1 | BJ136: -1 | BK136: -1
A137: NAT|Empty | B137: 2|Catering: Departmental activities | C137: 2 | D137: Vote | E137: Parliament | F137: 1 | G137: Strategic Leadership and Governance | H137: 2 | I137: Office of the Chairperson | J137: Current payments | K137: Goods and services | L137: Catering: Departmental activities | M137: Catering: Departmental activities | N137: NAT | O137: Non-transfer | P137: 160 | Q137: 0 | R137: 0 | S137: 0 | T137: 0 | U137: 0 | V137: 0 | W137: 0 | X137: 0 | Y137: 0 | Z137: 0 | AA137: 122 | AB137: =IFERROR(MATCH(ENE[[#This Row],[Type of change]],ChangeType,0),0) -> 0 | AP137: =IF(AE137<>0,AE137,IF(ENE[[#This Row],[NMOG Indi]]>0,P137,AE137)) -> 0 | AQ137: =IF(AF137<>0,AF137,IF(ENE[[#This Row],[NMOG Indi]]>0,Q137,AF137)) -> 0 | AR137: =IF(AG137<>0,AG137,IF(ENE[[#This Row],[NMOG Indi]]>0,R137,AG137)) -> 0 | AS137: =IF(AH137<>0,AH137,IF(ENE[[#This Row],[NMOG Indi]]>0,S137,AH137)) -> 0 | AT137: =IF(AI137<>0,AI137,IF(ENE[[#This Row],[NMOG Indi]]>0,T137,AI137)) -> 0 | AU137: =IF(AJ137<>0,AJ137,IF(ENE[[#This Row],[NMOG Indi]]>0,U137,AJ137)) -> 0 | AV137: =IF(AK137<>0,AK137,IF(ENE[[#This Row],[NMOG Indi]]>0,V137,AK137)) -> 0 | AW137: =IF(AL137<>0,AL137,IF(ENE[[#This Row],[NMOG Indi]]>0,W137,AL137)) -> 0 | AX137: =IF(AM137<>0,AM137,IF(ENE[[#This Row],[NMOG Indi]]>0,X137,AM137)) -> 0 | AY137: =IF(AN137<>0,AN137,IF(ENE[[#This Row],[NMOG Indi]]>0,Y137,AN137)) -> 0 | AZ137: =IF(AO137<>0,AO137,IF(ENE[[#This Row],[NMOG Indi]]>0,Z137,AO137)) -> 0 | BA137: 160 | BB137: 0 | BC137: 0 | BD137: 0 | BE137: 0 | BF137: 0 | BG137: 0 | BH137: 0 | BI137: 0 | BJ137: 0 | BK137: 0
A138: NAT|Empty | B138: 2|Communication (G&S) | C138: 2 | D138: Vote | E138: Parliament | F138: 1 | G138: Strategic Leadership and Governance | H138: 2 | I138: Office of the Chairperson | J138: Current payments | K138: Goods and services | L138: Communication (G&S) | M138: Communication (G&S) | N138: NAT | O138: Non-transfer | P138: 612 | Q138: 1046 | R138: 1046 | S138: 1107 | T138: 1107 | U138: 1107 | V138: 1107 | W138: 669 | X138: 564 | Y138: 1301 | Z138: 1352 | AA138: 123 | AB138: =IFERROR(MATCH(ENE[[#This Row],[Type of change]],ChangeType,0),0) -> 0 | AP138: =IF(AE138<>0,AE138,IF(ENE[[#This Row],[NMOG Indi]]>0,P138,AE138)) -> 0 | AQ138: =IF(AF138<>0,AF138,IF(ENE[[#This Row],[NMOG Indi]]>0,Q138,AF138)) -> 0 | AR138: =IF(AG138<>0,AG138,IF(ENE[[#This Row],[NMOG Indi]]>0,R138,AG138)) -> 0 | AS138: =IF(AH138<>0,AH138,IF(ENE[[#This Row],[NMOG Indi]]>0,S138,AH138)) -> 0 | AT138: =IF(AI138<>0,AI138,IF(ENE[[#This Row],[NMOG Indi]]>0,T138,AI138)) -> 0 | AU138: =IF(AJ138<>0,AJ138,IF(ENE[[#This Row],[NMOG Indi]]>0,U138,AJ138)) -> 0 | AV138: =IF(AK138<>0,AK138,IF(ENE[[#This Row],[NMOG Indi]]>0,V138,AK138)) -> 0 | AW138: =IF(AL138<>0,AL138,IF(ENE[[#This Row],[NMOG Indi]]>0,W138,AL138)) -> 0 | AX138: =IF(AM138<>0,AM138,IF(ENE[[#This Row],[NMOG Indi]]>0,X138,AM138)) -> 0 | AY138: =IF(AN138<>0,AN138,IF(ENE[[#This Row],[NMOG Indi]]>0,Y138,AN138)) -> 0 | AZ138: =IF(AO138<>0,AO138,IF(ENE[[#This Row],[NMOG Indi]]>0,Z138,AO138)) -> 0 | BA138: 612 | BB138: 1046 | BC138: 1046 | BD138: 1107 | BE138: 1107 | BF138: 1107 | BG138: 1107 | BH138: 669 | BI138: 564 | BJ138: 1301 | BK138: 1352
A139: NAT|Empty | B139: 2|Computer services | C139: 2 | D139: Vote | E139: Parliament | F139: 1 | G139: Strategic Leadership and Governance | H139: 2 | I139: Office of the Chairperson | J139: Current payments | K139: Goods and services | L139: Computer services | M139: Computer services | N139: NAT | O139: Non-transfer | P139: 150 | Q139: 0 | R139: 0 | S139: 0 | T139: 0 | U139: 0 | V139: 0 | W139: 0 | X139: 0 | Y139: 0 | Z139: 0 | AA139: 124 | AB139: =IFERROR(MATCH(ENE[[#This Row],[Type of change]],ChangeType,0),0) -> 0 | AP139: =IF(AE139<>0,AE139,IF(ENE[[#This Row],[NMOG Indi]]>0,P139,AE139)) -> 0 | AQ139: =IF(AF139<>0,AF139,IF(ENE[[#This Row],[NMOG Indi]]>0,Q139,AF139)) -> 0 | AR139: =IF(AG139<>0,AG139,IF(ENE[[#This Row],[NMOG Indi]]>0,R139,AG139)) -> 0 | AS139: =IF(AH139<>0,AH139,IF(ENE[[#This Row],[NMOG Indi]]>0,S139,AH139)) -> 0 | AT139: =IF(AI139<>0,AI139,IF(ENE[[#This Row],[NMOG Indi]]>0,T139,AI139)) -> 0 | AU139: =IF(AJ139<>0,AJ139,IF(ENE[[#This Row],[NMOG Indi]]>0,U139,AJ139)) -> 0 | AV139: =IF(AK139<>0,AK139,IF(ENE[[#This Row],[NMOG Indi]]>0,V139,AK139)) -> 0 | AW139: =IF(AL139<>0,AL139,IF(ENE[[#This Row],[NMOG Indi]]>0,W139,AL139)) -> 0 | AX139: =IF(AM139<>0,AM139,IF(ENE[[#This Row],[NMOG Indi]]>0,X139,AM139)) -> 0 | AY139: =IF(AN139<>0,AN139,IF(ENE[[#This Row],[NMOG Indi]]>0,Y139,AN139)) -> 0 | AZ139: =IF(AO139<>0,AO139,IF(ENE[[#This Row],[NMOG Indi]]>0,Z139,AO139)) -> 0 | BA139: 150 | BB139: 0 | BC139: 0 | BD139: 0 | BE139: 0 | BF139: 0 | BG139: 0 | BH139: 0 | BI139: 0 | BJ139: 0 | BK139: 0
A140: NAT|Empty | B140: 2|Consumables: Stationery, printing and office supplies | C140: 2 | D140: Vote | E140: Parliament | F140: 1 | G140: Strategic Leadership and Governance | H140: 2 | I140: Office of the Chairperson | J140: Current payments | K140: Goods and services | L140: Consumables: Stationery, printing and office supplies | M140: Consumables: Stationery, printing and office supplies | N140: NAT | O140: Non-transfer | P140: 170 | Q140: 0 | R140: 0 | S140: 0 | T140: 0 | U140: 0 | V140: 0 | W140: 0 | X140: 0 | Y140: 0 | Z140: 0 | AA140: 125 | AB140: =IFERROR(MATCH(ENE[[#This Row],[Type of change]],ChangeType,0),0) -> 0 | AP140: =IF(AE140<>0,AE140,IF(ENE[[#This Row],[NMOG Indi]]>0,P140,AE140)) -> 0 | AQ140: =IF(AF140<>0,AF140,IF(ENE[[#This Row],[NMOG Indi]]>0,Q140,AF140)) -> 0 | AR140: =IF(AG140<>0,AG140,IF(ENE[[#This Row],[NMOG Indi]]>0,R140,AG140)) -> 0 | AS140: =IF(AH140<>0,AH140,IF(ENE[[#This Row],[NMOG Indi]]>0,S140,AH140)) -> 0 | AT140: =IF(AI140<>0,AI140,IF(ENE[[#This Row],[NMOG Indi]]>0,T140,AI140)) -> 0 | AU140: =IF(AJ140<>0,AJ140,IF(ENE[[#This Row],[NMOG Indi]]>0,U140,AJ140)) -> 0 | AV140: =IF(AK140<>0,AK140,IF(ENE[[#This Row],[NMOG Indi]]>0,V140,AK140)) -> 0 | AW140: =IF(AL140<>0,AL140,IF(ENE[[#This Row],[NMOG Indi]]>0,W140,AL140)) -> 0 | AX140: =IF(AM140<>0,AM140,IF(ENE[[#This Row],[NMOG Indi]]>0,X140,AM140)) -> 0 | AY140: =IF(AN140<>0,AN140,IF(ENE[[#This Row],[NMOG Indi]]>0,Y140,AN140)) -> 0 | AZ140: =IF(AO140<>0,AO140,IF(ENE[[#This Row],[NMOG Indi]]>0,Z140,AO140)) -> 0 | BA140: 170 | BB140: 0 | BC140: 0 | BD140: 0 | BE140: 0 | BF140: 0 | BG140: 0 | BH140: 0 | BI140: 0 | BJ140: 0 | BK140: 0
A141: NAT|Empty | B141: 2|Contractors | C141: 2 | D141: Vote | E141: Parliament | F141: 1 | G141: Strategic Leadership and Governance | H141: 2 | I141: Office of the Chairperson | J141: Current payments | K141: Goods and services | L141: Contractors | M141: Contractors | N141: NAT | O141: Non-transfer | P141: 0 | Q141: 84 | R141: 84 | S141: 89 | T141: 89 | U141: 89 | V141: 89 | W141: 94 | X141: 5 | Y141: 104 | Z141: 109 | AA141: 126 | AB141: =IFERROR(MATCH(ENE[[#This Row],[Type of change]],ChangeType,0),0) -> 0 | AP141: =IF(AE141<>0,AE141,IF(ENE[[#This Row],[NMOG Indi]]>0,P141,AE141)) -> 0 | AQ141: =IF(AF141<>0,AF141,IF(ENE[[#This Row],[NMOG Indi]]>0,Q141,AF141)) -> 0 | AR141: =IF(AG141<>0,AG141,IF(ENE[[#This Row],[NMOG Indi]]>0,R141,AG141)) -> 0 | AS141: =IF(AH141<>0,AH141,IF(ENE[[#This Row],[NMOG Indi]]>0,S141,AH141)) -> 0 | AT141: =IF(AI141<>0,AI141,IF(ENE[[#This Row],[NMOG Indi]]>0,T141,AI141)) -> 0 | AU141: =IF(AJ141<>0,AJ141,IF(ENE[[#This Row],[NMOG Indi]]>0,U141,AJ141)) -> 0 | AV141: =IF(AK141<>0,AK141,IF(ENE[[#This Row],[NMOG Indi]]>0,V141,AK141)) -> 0 | AW141: =IF(AL141<>0,AL141,IF(ENE[[#This Row],[NMOG Indi]]>0,W141,AL141)) -> 0 | AX141: =IF(AM141<>0,AM141,IF(ENE[[#This Row],[NMOG Indi]]>0,X141,AM141)) -> 0 | AY141: =IF(AN141<>0,AN141,IF(ENE[[#This Row],[NMOG Indi]]>0,Y141,AN141)) -> 0 | AZ141: =IF(AO141<>0,AO141,IF(ENE[[#This Row],[NMOG Indi]]>0,Z141,AO141)) -> 0 | BA141: 0 | BB141: 84 | BC141: 84 | BD141: 89 | BE141: 89 | BF141: 89 | BG141: 89 | BH141: 94 | BI141: 5 | BJ141: 104 | BK141: 109
A142: NAT|Empty | B142: 2|Entertainment | C142: 2 | D142: Vote | E142: Parliament | F142: 1 | G142: Strategic Leadership and Governance | H142: 2 | I142: Office of the Chairperson | J142: Current payments | K142: Goods and services | L142: Entertainment | M142: Entertainment | N142: NAT | O142: Non-transfer | P142: 0 | Q142: 240 | R142: 240 | S142: 254 | T142: 254 | U142: 254 | V142: 254 | W142: 268 | X142: 15 | Y142: 299 | Z142: 313 | AA142: 127 | AB142: =IFERROR(MATCH(ENE[[#This Row],[Type of change]],ChangeType,0),0) -> 0 | AP142: =IF(AE142<>0,AE142,IF(ENE[[#This Row],[NMOG Indi]]>0,P142,AE142)) -> 0 | AQ142: =IF(AF142<>0,AF142,IF(ENE[[#This Row],[NMOG Indi]]>0,Q142,AF142)) -> 0 | AR142: =IF(AG142<>0,AG142,IF(ENE[[#This Row],[NMOG Indi]]>0,R142,AG142)) -> 0 | AS142: =IF(AH142<>0,AH142,IF(ENE[[#This Row],[NMOG Indi]]>0,S142,AH142)) -> 0 | AT142: =IF(AI142<>0,AI142,IF(ENE[[#This Row],[NMOG Indi]]>0,T142,AI142)) -> 0 | AU142: =IF(AJ142<>0,AJ142,IF(ENE[[#This Row],[NMOG Indi]]>0,U142,AJ142)) -> 0 | AV142: =IF(AK142<>0,AK142,IF(ENE[[#This Row],[NMOG Indi]]>0,V142,AK142)) -> 0 | AW142: =IF(AL142<>0,AL142,IF(ENE[[#This Row],[NMOG Indi]]>0,W142,AL142)) -> 0 | AX142: =IF(AM142<>0,AM142,IF(ENE[[#This Row],[NMOG Indi]]>0,X142,AM142)) -> 0 | AY142: =IF(AN142<>0,AN142,IF(ENE[[#This Row],[NMOG Indi]]>0,Y142,AN142)) -> 0 | AZ142: =IF(AO142<>0,AO142,IF(ENE[[#This Row],[NMOG Indi]]>0,Z142,AO142)) -> 0 | BA142: 0 | BB142: 240 | BC142: 240 | BD142: 254 | BE142: 254 | BF142: 254 | BG142: 254 | BH142: 268 | BI142: 15 | BJ142: 299 | BK142: 313
A143: NAT|Empty | B143: 2|Operating leases | C143: 2 | D143: Vote | E143: Parliament | F143: 1 | G143: Strategic Leadership and Governance | H143: 2 | I143: Office of the Chairperson | J143: Current payments | K143: Goods and services | L143: Operating leases | M143: Operating leases | N143: NAT | O143: Non-transfer | P143: 0 | Q143: 253 | R143: 253 | S143: 268 | T143: 268 | U143: 268 | V143: 268 | W143: 283 | X143: 16 | Y143: 315 | Z143: 330 | AA143: 128 | AB143: =IFERROR(MATCH(ENE[[#This Row],[Type of change]],ChangeType,0),0) -> 0 | AP143: =IF(AE143<>0,AE143,IF(ENE[[#This Row],[NMOG Indi]]>0,P143,AE143)) -> 0 | AQ143: =IF(AF143<>0,AF143,IF(ENE[[#This Row],[NMOG Indi]]>0,Q143,AF143)) -> 0 | AR143: =IF(AG143<>0,AG143,IF(ENE[[#This Row],[NMOG Indi]]>0,R143,AG143)) -> 0 | AS143: =IF(AH143<>0,AH143,IF(ENE[[#This Row],[NMOG Indi]]>0,S143,AH143)) -> 0 | AT143: =IF(AI143<>0,AI143,IF(ENE[[#This Row],[NMOG Indi]]>0,T143,AI143)) -> 0 | AU143: =IF(AJ143<>0,AJ143,IF(ENE[[#This Row],[NMOG Indi]]>0,U143,AJ143)) -> 0 | AV143: =IF(AK143<>0,AK143,IF(ENE[[#This Row],[NMOG Indi]]>0,V143,AK143)) -> 0 | AW143: =IF(AL143<>0,AL143,IF(ENE[[#This Row],[NMOG Indi]]>0,W143,AL143)) -> 0 | AX143: =IF(AM143<>0,AM143,IF(ENE[[#This Row],[NMOG Indi]]>0,X143,AM143)) -> 0 | AY143: =IF(AN143<>0,AN143,IF(ENE[[#This Row],[NMOG Indi]]>0,Y143,AN143)) -> 0 | AZ143: =IF(AO143<>0,AO143,IF(ENE[[#This Row],[NMOG Indi]]>0,Z143,AO143)) -> 0 | BA143: 0 | BB143: 253 | BC143: 253 | BD143: 268 | BE143: 268 | BF143: 268 | BG143: 268 | BH143: 283 | BI143: 16 | BJ143: 315 | BK143: =Z143-AZ143 -> 330
A144: NAT|Empty | B144: 2|Operating payments | C144: 2 | D144: Vote | E144: Parliament | F144: 1 | G144: Strategic Leadership and Governance | H144: 2 | I144: Office of the Chairperson | J144: Current payments | K144: Goods and services | L144: Operating payments | M144: Operating payments | N144: NAT | O144: Non-transfer | P144: 0 | Q144: 1448 | R144: 1448 | S144: 606 | T144: 606 | U144: 606 | V144: 0 | W144: 639 | X144: 35 | Y144: 711 | Z144: 745 | AA144: 129 | AB144: =IFERROR(MATCH(ENE[[#This Row],[Type of change]],ChangeType,0),0) -> 0 | AP144: =IF(AE144<>0,AE144,IF(ENE[[#This Row],[NMOG Indi]]>0,P144,AE144)) -> 0 | AQ144: =IF(AF144<>0,AF144,IF(ENE[[#This Row],[NMOG Indi]]>0,Q144,AF144)) -> 0 | AR144: =IF(AG144<>0,AG144,IF(ENE[[#This Row],[NMOG Indi]]>0,R144,AG144)) -> 0 | AS144: =IF(AH144<>0,AH144,IF(ENE[[#This Row],[NMOG Indi]]>0,S144,AH144)) -> 0 | AT144: =IF(AI144<>0,AI144,IF(ENE[[#This Row],[NMOG Indi]]>0,T144,AI144)) -> 0 | AU144: =IF(AJ144<>0,AJ144,IF(ENE[[#This Row],[NMOG Indi]]>0,U144,AJ144)) -> 0 | AV144: =IF(AK144<>0,AK144,IF(ENE[[#This Row],[NMOG Indi]]>0,V144,AK144)) -> 0 | AW144: =IF(AL144<>0,AL144,IF(ENE[[#This Row],[NMOG Indi]]>0,W144,AL144)) -> 0 | AX144: =IF(AM144<>0,AM144,IF(ENE[[#This Row],[NMOG Indi]]>0,X144,AM144)) -> 0 | AY144: =IF(AN144<>0,AN144,IF(ENE[[#This Row],[NMOG Indi]]>0,Y144,AN144)) -> 0 | AZ144: =IF(AO144<>0,AO144,IF(ENE[[#This Row],[NMOG Indi]]>0,Z144,AO144)) -> 0 | BA144: =P144-AP144 -> 0 | BB144: =Q144-AQ144 -> 1448 | BC144: =R144-AR144 -> 1448 | BD144: =S144-AS144 -> 606 | BE144: =T144-AT144 -> 606 | BF144: =U144-AU144 -> 606 | BG144: 0 | BH144: =W144-AW144 -> 639 | BI144: 35 | BJ144: 711 | BK144: 745
A145: NAT|Empty | B145: 2|Property payments | C145: 2 | D145: Vote | E145: Parliament | F145: 1 | G145: Strategic Leadership and Governance | H145: 2 | I145: Office of the Chairperson | J145: Current payments | K145: Goods and services | L145: Property payments | M145: Property payments | N145: NAT | O145: Non-transfer | P145: 0 | Q145: 77 | R145: 77 | S145: 81 | T145: 81 | U145: 81 | V145: 0 | W145: 86 | X145: 177 | Y145: 96 | Z145: 100 | AA145: 130 | AB145: =IFERROR(MATCH(ENE[[#This Row],[Type of change]],ChangeType,0),0) -> 0 | AP145: =IF(AE145<>0,AE145,IF(ENE[[#This Row],[NMOG Indi]]>0,P145,AE145)) -> 0 | AQ145: =IF(AF145<>0,AF145,IF(ENE[[#This Row],[NMOG Indi]]>0,Q145,AF145)) -> 0 | AR145: =IF(AG145<>0,AG145,IF(ENE[[#This Row],[NMOG Indi]]>0,R145,AG145)) -> 0 | AS145: =IF(AH145<>0,AH145,IF(ENE[[#This Row],[NMOG Indi]]>0,S145,AH145)) -> 0 | AT145: =IF(AI145<>0,AI145,IF(ENE[[#This Row],[NMOG Indi]]>0,T145,AI145)) -> 0 | AU145: =IF(AJ145<>0,AJ145,IF(ENE[[#This Row],[NMOG Indi]]>0,U145,AJ145)) -> 0 | AV145: =IF(AK145<>0,AK145,IF(ENE[[#This Row],[NMOG Indi]]>0,V145,AK145)) -> 0 | AW145: =IF(AL145<>0,AL145,IF(ENE[[#This Row],[NMOG Indi]]>0,W145,AL145)) -> 0 | AX145: =IF(AM145<>0,AM145,IF(ENE[[#This Row],[NMOG Indi]]>0,X145,AM145)) -> 0 | AY145: =IF(AN145<>0,AN145,IF(ENE[[#This Row],[NMOG Indi]]>0,Y145,AN145)) -> 0 | AZ145: =IF(AO145<>0,AO145,IF(ENE[[#This Row],[NMOG Indi]]>0,Z145,AO145)) -> 0 | BA145: 0 | BB145: 77 | BC145: 77 | BD145: 81 | BE145: 81 | BF145: 81 | BG145: 0 | BH145: 86 | BI145: 177 | BJ145: 96 | BK145: 100
A146: NAT|Empty | B146: 2|Rental and hiring | C146: 2 | D146: Vote | E146: Parliament | F146: 1 | G146: Strategic Leadership and Governance | H146: 2 | I146: Office of the Chairperson | J146: Current payments | K146: Goods and services | L146: Rental and hiring | M146: Rental and hiring | N146: NAT | O146: Non-transfer | P146: 79 | Q146: 0 | R146: 0 | S146: 0 | T146: 0 | U146: 0 | V146: 0 | W146: 0 | X146: 0 | Y146: 0 | Z146: 0 | AA146: 131 | AB146: =IFERROR(MATCH(ENE[[#This Row],[Type of change]],ChangeType,0),0) -> 0 | AP146: =IF(AE146<>0,AE146,IF(ENE[[#This Row],[NMOG Indi]]>0,P146,AE146)) -> 0 | AQ146: =IF(AF146<>0,AF146,IF(ENE[[#This Row],[NMOG Indi]]>0,Q146,AF146)) -> 0 | AR146: =IF(AG146<>0,AG146,IF(ENE[[#This Row],[NMOG Indi]]>0,R146,AG146)) -> 0 | AS146: =IF(AH146<>0,AH146,IF(ENE[[#This Row],[NMOG Indi]]>0,S146,AH146)) -> 0 | AT146: =IF(AI146<>0,AI146,IF(ENE[[#This Row],[NMOG Indi]]>0,T146,AI146)) -> 0 | AU146: =IF(AJ146<>0,AJ146,IF(ENE[[#This Row],[NMOG Indi]]>0,U146,AJ146)) -> 0 | AV146: =IF(AK146<>0,AK146,IF(ENE[[#This Row],[NMOG Indi]]>0,V146,AK146)) -> 0 | AW146: =IF(AL146<>0,AL146,IF(ENE[[#This Row],[NMOG Indi]]>0,W146,AL146)) -> 0 | AX146: =IF(AM146<>0,AM146,IF(ENE[[#This Row],[NMOG Indi]]>0,X146,AM146)) -> 0 | AY146: =IF(AN146<>0,AN146,IF(ENE[[#This Row],[NMOG Indi]]>0,Y146,AN146)) -> 0 | AZ146: =IF(AO146<>0,AO146,IF(ENE[[#This Row],[NMOG Indi]]>0,Z146,AO146)) -> 0 | BA146: 79 | BB146: 0 | BC146: 0 | BD146: 0 | BE146: 0 | BF146: 0 | BG146: 0 | BH146: 0 | BI146: 0 | BJ146: 0 | BK146: 0
A147: NAT|Empty | B147: 2|Training and development | C147: 2 | D147: Vote | E147: Parliament | F147: 1 | G147: Strategic Leadership and Governance | H147: 2 | I147: Office of the Chairperson | J147: Current payments | K147: Goods and services | L147: Training and development | M147: Training and development | N147: NAT | O147: Non-transfer | P147: 48 | Q147: 0 | R147: 0 | S147: 0 | T147: 0 | U147: 0 | V147: 13241 | W147: 0 | X147: 0 | Y147: 0 | Z147: 0 | AA147: 132 | AB147: =IFERROR(MATCH(ENE[[#This Row],[Type of change]],ChangeType,0),0) -> 0 | AP147: =IF(AE147<>0,AE147,IF(ENE[[#This Row],[NMOG Indi]]>0,P147,AE147)) -> 0 | AQ147: =IF(AF147<>0,AF147,IF(ENE[[#This Row],[NMOG Indi]]>0,Q147,AF147)) -> 0 | AR147: =IF(AG147<>0,AG147,IF(ENE[[#This Row],[NMOG Indi]]>0,R147,AG147)) -> 0 | AS147: =IF(AH147<>0,AH147,IF(ENE[[#This Row],[NMOG Indi]]>0,S147,AH147)) -> 0 | AT147: =IF(AI147<>0,AI147,IF(ENE[[#This Row],[NMOG Indi]]>0,T147,AI147)) -> 0 | AU147: =IF(AJ147<>0,AJ147,IF(ENE[[#This Row],[NMOG Indi]]>0,U147,AJ147)) -> 0 | AV147: =IF(AK147<>0,AK147,IF(ENE[[#This Row],[NMOG Indi]]>0,V147,AK147)) -> 0 | AW147: =IF(AL147<>0,AL147,IF(ENE[[#This Row],[NMOG Indi]]>0,W147,AL147)) -> 0 | AX147: =IF(AM147<>0,AM147,IF(ENE[[#This Row],[NMOG Indi]]>0,X147,AM147)) -> 0 | AY147: =IF(AN147<>0,AN147,IF(ENE[[#This Row],[NMOG Indi]]>0,Y147,AN147)) -> 0 | AZ147: =IF(AO147<>0,AO147,IF(ENE[[#This Row],[NMOG Indi]]>0,Z147,AO147)) -> 0 | BA147: 48 | BB147: 0 | BC147: 0 | BD147: 0 | BE147: 0 | BF147: 0 | BG147: 13241 | BH147: 0 | BI147: 0 | BJ147: 0 | BK147: 0
A148: NAT|Empty | B148: 2|Travel and subsistence | C148: 2 | D148: Vote | E148: Parliament | F148: 1 | G148: Strategic Leadership and Governance | H148: 2 | I148: Office of the Chairperson | J148: Current payments | K148: Goods and services | L148: Travel and subsistence | M148: Travel and subsistence | N148: NAT | O148: Non-transfer | P148: 7654 | Q148: 11550 | R148: 11550 | S148: 13241 | T148: 13241 | U148: 13241 | V148: 0 | W148: 10485 | X148: 12308 | Y148: 11620 | Z148: 12052 | AA148: 133 | AB148: =IFERROR(MATCH(ENE[[#This Row],[Type of change]],ChangeType,0),0) -> 0 | AP148: =IF(AE148<>0,AE148,IF(ENE[[#This Row],[NMOG Indi]]>0,P148,AE148)) -> 0 | AQ148: =IF(AF148<>0,AF148,IF(ENE[[#This Row],[NMOG Indi]]>0,Q148,AF148)) -> 0 | AR148: =IF(AG148<>0,AG148,IF(ENE[[#This Row],[NMOG Indi]]>0,R148,AG148)) -> 0 | AS148: =IF(AH148<>0,AH148,IF(ENE[[#This Row],[NMOG Indi]]>0,S148,AH148)) -> 0 | AT148: =IF(AI148<>0,AI148,IF(ENE[[#This Row],[NMOG Indi]]>0,T148,AI148)) -> 0 | AU148: =IF(AJ148<>0,AJ148,IF(ENE[[#This Row],[NMOG Indi]]>0,U148,AJ148)) -> 0 | AV148: =IF(AK148<>0,AK148,IF(ENE[[#This Row],[NMOG Indi]]>0,V148,AK148)) -> 0 | AW148: =IF(AL148<>0,AL148,IF(ENE[[#This Row],[NMOG Indi]]>0,W148,AL148)) -> 0 | AX148: =IF(AM148<>0,AM148,IF(ENE[[#This Row],[NMOG Indi]]>0,X148,AM148)) -> 0 | AY148: =IF(AN148<>0,AN148,IF(ENE[[#This Row],[NMOG Indi]]>0,Y148,AN148)) -> 0 | AZ148: =IF(AO148<>0,AO148,IF(ENE[[#This Row],[NMOG Indi]]>0,Z148,AO148)) -> 0 | BA148: 7654 | BB148: 11550 | BC148: 11550 | BD148: 13241 | BE148: 13241 | BF148: 13241 | BG148: 0 | BH148: 10485 | BI148: 12308 | BJ148: 11620 | BK148: 12052
A149: NAT|Empty | B149: 2|Other machinery and equipment | C149: 2 | D149: Vote | E149: Parliament | F149: 1 | G149: Strategic Leadership and Governance | H149: 2 | I149: Office of the Chairperson | J149: Payments for capital assets | K149: Machinery and equipment | L149: Other machinery and equipment | M149: Other machinery and equipment | N149: NAT | O149: Non-transfer | P149: 80 | Q149: 112 | R149: 112 | S149: 118 | T149: 118 | U149: 118 | V149: 118 | W149: 45 | X149: 48 | Y149: 51 | Z149: 54 | AA149: 134 | AB149: =IFERROR(MATCH(ENE[[#This Row],[Type of change]],ChangeType,0),0) -> 0 | AP149: =IF(AE149<>0,AE149,IF(ENE[[#This Row],[NMOG Indi]]>0,P149,AE149)) -> 0 | AQ149: =IF(AF149<>0,AF149,IF(ENE[[#This Row],[NMOG Indi]]>0,Q149,AF149)) -> 0 | AR149: =IF(AG149<>0,AG149,IF(ENE[[#This Row],[NMOG Indi]]>0,R149,AG149)) -> 0 | AS149: =IF(AH149<>0,AH149,IF(ENE[[#This Row],[NMOG Indi]]>0,S149,AH149)) -> 0 | AT149: =IF(AI149<>0,AI149,IF(ENE[[#This Row],[NMOG Indi]]>0,T149,AI149)) -> 0 | AU149: =IF(AJ149<>0,AJ149,IF(ENE[[#This Row],[NMOG Indi]]>0,U149,AJ149)) -> 0 | AV149: =IF(AK149<>0,AK149,IF(ENE[[#This Row],[NMOG Indi]]>0,V149,AK149)) -> 0 | AW149: =IF(AL149<>0,AL149,IF(ENE[[#This Row],[NMOG Indi]]>0,W149,AL149)) -> 0 | AX149: =IF(AM149<>0,AM149,IF(ENE[[#This Row],[NMOG Indi]]>0,X149,AM149)) -> 0 | AY149: =IF(AN149<>0,AN149,IF(ENE[[#This Row],[NMOG Indi]]>0,Y149,AN149)) -> 0 | AZ149: =IF(AO149<>0,AO149,IF(ENE[[#This Row],[NMOG Indi]]>0,Z149,AO149)) -> 0 | BA149: 80 | BB149: 112 | BC149: 112 | BD149: 118 | BE149: 118 | BF149: 118 | BG149: 118 | BH149: 45 | BI149: 48 | BJ149: 51 | BK149: 54
A150: NAT|Empty | B150: 2|Salaries and wages | C150: 2 | D150: Vote | E150: Parliament | F150: 1 | G150: Strategic Leadership and Governance | H150: 3 | I150: Treasury Advise Office | J150: Current payments | K150: Compensation of employees | L150: Salaries and wages | M150: Salaries and wages | N150: NAT | O150: Non-transfer | P150: 0 | Q150: 0 | R150: 0 | S150: 0 | T150: 0 | U150: 0 | V150: 0 | W150: 2721 | X150: 2989 | Y150: 3228 | Z150: 3349 | AA150: 135 | AB150: =IFERROR(MATCH(ENE[[#This Row],[Type of change]],ChangeType,0),0) -> 0 | AP150: =IF(AE150<>0,AE150,IF(ENE[[#This Row],[NMOG Indi]]>0,P150,AE150)) -> 0 | AQ150: =IF(AF150<>0,AF150,IF(ENE[[#This Row],[NMOG Indi]]>0,Q150,AF150)) -> 0 | AR150: =IF(AG150<>0,AG150,IF(ENE[[#This Row],[NMOG Indi]]>0,R150,AG150)) -> 0 | AS150: =IF(AH150<>0,AH150,IF(ENE[[#This Row],[NMOG Indi]]>0,S150,AH150)) -> 0 | AT150: =IF(AI150<>0,AI150,IF(ENE[[#This Row],[NMOG Indi]]>0,T150,AI150)) -> 0 | AU150: =IF(AJ150<>0,AJ150,IF(ENE[[#This Row],[NMOG Indi]]>0,U150,AJ150)) -> 0 | AV150: =IF(AK150<>0,AK150,IF(ENE[[#This Row],[NMOG Indi]]>0,V150,AK150)) -> 0 | AW150: =IF(AL150<>0,AL150,IF(ENE[[#This Row],[NMOG Indi]]>0,W150,AL150)) -> 0 | AX150: =IF(AM150<>0,AM150,IF(ENE[[#This Row],[NMOG Indi]]>0,X150,AM150)) -> 0 | AY150: =IF(AN150<>0,AN150,IF(ENE[[#This Row],[NMOG Indi]]>0,Y150,AN150)) -> 0 | AZ150: =IF(AO150<>0,AO150,IF(ENE[[#This Row],[NMOG Indi]]>0,Z150,AO150)) -> 0 | BA150: 0 | BB150: 0 | BC150: 0 | BD150: 0 | BE150: 0 | BF150: 0 | BG150: 0 | BH150: 2721 | BI150: 2989 | BJ150: 3228 | BK150: 3349
A151: NAT|Empty | B151: 2|Agency and support/outsourced services | C151: 2 | D151: Vote | E151: Parliament | F151: 1 | G151: Strategic Leadership and Governance | H151: 3 | I151: Treasury Advise Office | J151: Current payments | K151: Goods and services | L151: Agency and support/outsourced services | M151: Agency and support/outsourced services | N151: NAT | O151: Non-transfer | P151: 0 | Q151: 0 | R151: 0 | S151: 0 | T151: 0 | U151: 0 | V151: 0 | W151: 39 | X151: 41 | Y151: 43 | Z151: 45 | AA151: 136 | AB151: =IFERROR(MATCH(ENE[[#This Row],[Type of change]],ChangeType,0),0) -> 0 | AP151: =IF(AE151<>0,AE151,IF(ENE[[#This Row],[NMOG Indi]]>0,P151,AE151)) -> 0 | AQ151: =IF(AF151<>0,AF151,IF(ENE[[#This Row],[NMOG Indi]]>0,Q151,AF151)) -> 0 | AR151: =IF(AG151<>0,AG151,IF(ENE[[#This Row],[NMOG Indi]]>0,R151,AG151)) -> 0 | AS151: =IF(AH151<>0,AH151,IF(ENE[[#This Row],[NMOG Indi]]>0,S151,AH151)) -> 0 | AT151: =IF(AI151<>0,AI151,IF(ENE[[#This Row],[NMOG Indi]]>0,T151,AI151)) -> 0 | AU151: =IF(AJ151<>0,AJ151,IF(ENE[[#This Row],[NMOG Indi]]>0,U151,AJ151)) -> 0 | AV151: =IF(AK151<>0,AK151,IF(ENE[[#This Row],[NMOG Indi]]>0,V151,AK151)) -> 0 | AW151: =IF(AL151<>0,AL151,IF(ENE[[#This Row],[NMOG Indi]]>0,W151,AL151)) -> 0 | AX151: =IF(AM151<>0,AM151,IF(ENE[[#This Row],[NMOG Indi]]>0,X151,AM151)) -> 0 | AY151: =IF(AN151<>0,AN151,IF(ENE[[#This Row],[NMOG Indi]]>0,Y151,AN151)) -> 0 | AZ151: =IF(AO151<>0,AO151,IF(ENE[[#This Row],[NMOG Indi]]>0,Z151,AO151)) -> 0 | BA151: 0 | BB151: 0 | BC151: 0 | BD151: 0 | BE151: 0 | BF151: 0 | BG151: 0 | BH151: 39 | BI151: 41 | BJ151: 43 | BK151: 45
A152: NAT|Empty | B152: 2|Catering: Departmental activities | C152: 2 | D152: Vote | E152: Parliament | F152: 1 | G152: Strategic Leadership and Governance | H152: 3 | I152: Treasury Advise Office | J152: Current payments | K152: Goods and services | L152: Catering: Departmental activities | M152: Catering: Departmental activities | N152: NAT | O152: Non-transfer | P152: 0 | Q152: 0 | R152: 0 | S152: 0 | T152: 0 | U152: 0 | V152: 0 | W152: 86 | X152: 91 | Y152: 96 | Z152: 101 | AA152: 137 | AB152: =IFERROR(MATCH(ENE[[#This Row],[Type of change]],ChangeType,0),0) -> 0 | AP152: =IF(AE152<>0,AE152,IF(ENE[[#This Row],[NMOG Indi]]>0,P152,AE152)) -> 0 | AQ152: =IF(AF152<>0,AF152,IF(ENE[[#This Row],[NMOG Indi]]>0,Q152,AF152)) -> 0 | AR152: =IF(AG152<>0,AG152,IF(ENE[[#This Row],[NMOG Indi]]>0,R152,AG152)) -> 0 | AS152: =IF(AH152<>0,AH152,IF(ENE[[#This Row],[NMOG Indi]]>0,S152,AH152)) -> 0 | AT152: =IF(AI152<>0,AI152,IF(ENE[[#This Row],[NMOG Indi]]>0,T152,AI152)) -> 0 | AU152: =IF(AJ152<>0,AJ152,IF(ENE[[#This Row],[NMOG Indi]]>0,U152,AJ152)) -> 0 | AV152: =IF(AK152<>0,AK152,IF(ENE[[#This Row],[NMOG Indi]]>0,V152,AK152)) -> 0 | AW152: =IF(AL152<>0,AL152,IF(ENE[[#This Row],[NMOG Indi]]>0,W152,AL152)) -> 0 | AX152: =IF(AM152<>0,AM152,IF(ENE[[#This Row],[NMOG Indi]]>0,X152,AM152)) -> 0 | AY152: =IF(AN152<>0,AN152,IF(ENE[[#This Row],[NMOG Indi]]>0,Y152,AN152)) -> 0 | AZ152: =IF(AO152<>0,AO152,IF(ENE[[#This Row],[NMOG Indi]]>0,Z152,AO152)) -> 0 | BA152: 0 | BB152: 0 | BC152: 0 | BD152: 0 | BE152: 0 | BF152: 0 | BG152: 0 | BH152: 86 | BI152: 91 | BJ152: 96 | BK152: 101
A153: NAT|Empty | B153: 2|Communication (G&S) | C153: 2 | D153: Vote | E153: Parliament | F153: 1 | G153: Strategic Leadership and Governance | H153: 3 | I153: Treasury Advise Office | J153: Current payments | K153: Goods and services | L153: Communication (G&S) | M153: Communication (G&S) | N153: NAT | O153: Non-transfer | P153: 0 | Q153: 0 | R153: 0 | S153: 0 | T153: 0 | U153: 0 | V153: 0 | W153: 167 | X153: 177 | Y153: 187 | Z153: 194 | AA153: 138 | AB153: =IFERROR(MATCH(ENE[[#This Row],[Type of change]],ChangeType,0),0) -> 0 | AP153: =IF(AE153<>0,AE153,IF(ENE[[#This Row],[NMOG Indi]]>0,P153,AE153)) -> 0 | AQ153: =IF(AF153<>0,AF153,IF(ENE[[#This Row],[NMOG Indi]]>0,Q153,AF153)) -> 0 | AR153: =IF(AG153<>0,AG153,IF(ENE[[#This Row],[NMOG Indi]]>0,R153,AG153)) -> 0 | AS153: =IF(AH153<>0,AH153,IF(ENE[[#This Row],[NMOG Indi]]>0,S153,AH153)) -> 0 | AT153: =IF(AI153<>0,AI153,IF(ENE[[#This Row],[NMOG Indi]]>0,T153,AI153)) -> 0 | AU153: =IF(AJ153<>0,AJ153,IF(ENE[[#This Row],[NMOG Indi]]>0,U153,AJ153)) -> 0 | AV153: =IF(AK153<>0,AK153,IF(ENE[[#This Row],[NMOG Indi]]>0,V153,AK153)) -> 0 | AW153: =IF(AL153<>0,AL153,IF(ENE[[#This Row],[NMOG Indi]]>0,W153,AL153)) -> 0 | AX153: =IF(AM153<>0,AM153,IF(ENE[[#This Row],[NMOG Indi]]>0,X153,AM153)) -> 0 | AY153: =IF(AN153<>0,AN153,IF(ENE[[#This Row],[NMOG Indi]]>0,Y153,AN153)) -> 0 | AZ153: =IF(AO153<>0,AO153,IF(ENE[[#This Row],[NMOG Indi]]>0,Z153,AO153)) -> 0 | BA153: 0 | BB153: 0 | BC153: 0 | BD153: 0 | BE153: 0 | BF153: 0 | BG153: 0 | BH153: 167 | BI153: 177 | BJ153: 187 | BK153: 194
A154: NAT|Empty | B154: 2|Consultants: Business and advisory services | C154: 2 | D154: Vote | E154: Parliament | F154: 1 | G154: Strategic Leadership and Governance | H154: 3 | I154: Treasury Advise Office | J154: Current payments | K154: Goods and services | L154: Consultants: Business and advisory services | M154: Consultants: Business and advisory services | N154: NAT | O154: Non-transfer | P154: 0 | Q154: 0 | R154: 0 | S154: 0 | T154: 0 | U154: 0 | V154: 0 | W154: 75 | X154: 80 | Y154: 84 | Z154: 88 | AA154: 139 | AB154: =IFERROR(MATCH(ENE[[#This Row],[Type of change]],ChangeType,0),0) -> 0 | AP154: =IF(AE154<>0,AE154,IF(ENE[[#This Row],[NMOG Indi]]>0,P154,AE154)) -> 0 | AQ154: =IF(AF154<>0,AF154,IF(ENE[[#This Row],[NMOG Indi]]>0,Q154,AF154)) -> 0 | AR154: =IF(AG154<>0,AG154,IF(ENE[[#This Row],[NMOG Indi]]>0,R154,AG154)) -> 0 | AS154: =IF(AH154<>0,AH154,IF(ENE[[#This Row],[NMOG Indi]]>0,S154,AH154)) -> 0 | AT154: =IF(AI154<>0,AI154,IF(ENE[[#This Row],[NMOG Indi]]>0,T154,AI154)) -> 0 | AU154: =IF(AJ154<>0,AJ154,IF(ENE[[#This Row],[NMOG Indi]]>0,U154,AJ154)) -> 0 | AV154: =IF(AK154<>0,AK154,IF(ENE[[#This Row],[NMOG Indi]]>0,V154,AK154)) -> 0 | AW154: =IF(AL154<>0,AL154,IF(ENE[[#This Row],[NMOG Indi]]>0,W154,AL154)) -> 0 | AX154: =IF(AM154<>0,AM154,IF(ENE[[#This Row],[NMOG Indi]]>0,X154,AM154)) -> 0 | AY154: =IF(AN154<>0,AN154,IF(ENE[[#This Row],[NMOG Indi]]>0,Y154,AN154)) -> 0 | AZ154: =IF(AO154<>0,AO154,IF(ENE[[#This Row],[NMOG Indi]]>0,Z154,AO154)) -> 0 | BA154: 0 | BB154: 0 | BC154: 0 | BD154: 0 | BE154: 0 | BF154: 0 | BG154: 0 | BH154: 75 | BI154: 80 | BJ154: 84 | BK154: 88
A155: NAT|Empty | B155: 2|Consumables: Stationery, printing and office supplies | C155: 2 | D155: Vote | E155: Parliament | F155: 1 | G155: Strategic Leadership and Governance | H155: 3 | I155: Treasury Advise Office | J155: Current payments | K155: Goods and services | L155: Consumables: Stationery, printing and office supplies | M155: Consumables: Stationery, printing and office supplies | N155: NAT | O155: Non-transfer | P155: 0 | Q155: 0 | R155: 0 | S155: 0 | T155: 0 | U155: 0 | V155: 0 | W155: 79 | X155: 85 | Y155: 89 | Z155: 93 | AA155: 140 | AB155: =IFERROR(MATCH(ENE[[#This Row],[Type of change]],ChangeType,0),0) -> 0 | AP155: =IF(AE155<>0,AE155,IF(ENE[[#This Row],[NMOG Indi]]>0,P155,AE155)) -> 0 | AQ155: =IF(AF155<>0,AF155,IF(ENE[[#This Row],[NMOG Indi]]>0,Q155,AF155)) -> 0 | AR155: =IF(AG155<>0,AG155,IF(ENE[[#This Row],[NMOG Indi]]>0,R155,AG155)) -> 0 | AS155: =IF(AH155<>0,AH155,IF(ENE[[#This Row],[NMOG Indi]]>0,S155,AH155)) -> 0 | AT155: =IF(AI155<>0,AI155,IF(ENE[[#This Row],[NMOG Indi]]>0,T155,AI155)) -> 0 | AU155: =IF(AJ155<>0,AJ155,IF(ENE[[#This Row],[NMOG Indi]]>0,U155,AJ155)) -> 0 | AV155: =IF(AK155<>0,AK155,IF(ENE[[#This Row],[NMOG Indi]]>0,V155,AK155)) -> 0 | AW155: =IF(AL155<>0,AL155,IF(ENE[[#This Row],[NMOG Indi]]>0,W155,AL155)) -> 0 | AX155: =IF(AM155<>0,AM155,IF(ENE[[#This Row],[NMOG Indi]]>0,X155,AM155)) -> 0 | AY155: =IF(AN155<>0,AN155,IF(ENE[[#This Row],[NMOG Indi]]>0,Y155,AN155)) -> 0 | AZ155: =IF(AO155<>0,AO155,IF(ENE[[#This Row],[NMOG Indi]]>0,Z155,AO155)) -> 0 | BA155: 0 | BB155: 0 | BC155: 0 | BD155: 0 | BE155: 0 | BF155: 0 | BG155: 0 | BH155: 79 | BI155: 85 | BJ155: 89 | BK155: 93
A156: NAT|Empty | B156: 2|Contractors | C156: 2 | D156: Vote | E156: Parliament | F156: 1 | G156: Strategic Leadership and Governance | H156: 3 | I156: Treasury Advise Office | J156: Current payments | K156: Goods and services | L156: Contractors | M156: Contractors | N156: NAT | O156: Non-transfer | P156: 0 | Q156: 0 | R156: 0 | S156: 0 | T156: 0 | U156: 0 | V156: 0 | W156: 83 | X156: 88 | Y156: 93 | Z156: 97 | AA156: 141 | AB156: =IFERROR(MATCH(ENE[[#This Row],[Type of change]],ChangeType,0),0) -> 0 | AP156: =IF(AE156<>0,AE156,IF(ENE[[#This Row],[NMOG Indi]]>0,P156,AE156)) -> 0 | AQ156: =IF(AF156<>0,AF156,IF(ENE[[#This Row],[NMOG Indi]]>0,Q156,AF156)) -> 0 | AR156: =IF(AG156<>0,AG156,IF(ENE[[#This Row],[NMOG Indi]]>0,R156,AG156)) -> 0 | AS156: =IF(AH156<>0,AH156,IF(ENE[[#This Row],[NMOG Indi]]>0,S156,AH156)) -> 0 | AT156: =IF(AI156<>0,AI156,IF(ENE[[#This Row],[NMOG Indi]]>0,T156,AI156)) -> 0 | AU156: =IF(AJ156<>0,AJ156,IF(ENE[[#This Row],[NMOG Indi]]>0,U156,AJ156)) -> 0 | AV156: =IF(AK156<>0,AK156,IF(ENE[[#This Row],[NMOG Indi]]>0,V156,AK156)) -> 0 | AW156: =IF(AL156<>0,AL156,IF(ENE[[#This Row],[NMOG Indi]]>0,W156,AL156)) -> 0 | AX156: =IF(AM156<>0,AM156,IF(ENE[[#This Row],[NMOG Indi]]>0,X156,AM156)) -> 0 | AY156: =IF(AN156<>0,AN156,IF(ENE[[#This Row],[NMOG Indi]]>0,Y156,AN156)) -> 0 | AZ156: =IF(AO156<>0,AO156,IF(ENE[[#This Row],[NMOG Indi]]>0,Z156,AO156)) -> 0 | BA156: 0 | BB156: 0 | BC156: 0 | BD156: 0 | BE156: 0 | BF156: 0 | BG156: 0 | BH156: 83 | BI156: 88 | BJ156: 93 | BK156: 97
A157: NAT|Empty | B157: 2|Operating payments | C157: 2 | D157: Vote | E157: Parliament | F157: 1 | G157: Strategic Leadership and Governance | H157: 3 | I157: Treasury Advise Office | J157: Current payments | K157: Goods and services | L157: Operating payments | M157: Operating payments | N157: NAT | O157: Non-transfer | P157: 0 | Q157: 0 | R157: 0 | S157: 0 | T157: 0 | U157: 0 | V157: 0 | W157: 82 | X157: 87 | Y157: 92 | Z157: 96 | AA157: 142 | AB157: =IFERROR(MATCH(ENE[[#This Row],[Type of change]],ChangeType,0),0) -> 0 | AP157: =IF(AE157<>0,AE157,IF(ENE[[#This Row],[NMOG Indi]]>0,P157,AE157)) -> 0 | AQ157: =IF(AF157<>0,AF157,IF(ENE[[#This Row],[NMOG Indi]]>0,Q157,AF157)) -> 0 | AR157: =IF(AG157<>0,AG157,IF(ENE[[#This Row],[NMOG Indi]]>0,R157,AG157)) -> 0 | AS157: =IF(AH157<>0,AH157,IF(ENE[[#This Row],[NMOG Indi]]>0,S157,AH157)) -> 0 | AT157: =IF(AI157<>0,AI157,IF(ENE[[#This Row],[NMOG Indi]]>0,T157,AI157)) -> 0 | AU157: =IF(AJ157<>0,AJ157,IF(ENE[[#This Row],[NMOG Indi]]>0,U157,AJ157)) -> 0 | AV157: =IF(AK157<>0,AK157,IF(ENE[[#This Row],[NMOG Indi]]>0,V157,AK157)) -> 0 | AW157: =IF(AL157<>0,AL157,IF(ENE[[#This Row],[NMOG Indi]]>0,W157,AL157)) -> 0 | AX157: =IF(AM157<>0,AM157,IF(ENE[[#This Row],[NMOG Indi]]>0,X157,AM157)) -> 0 | AY157: =IF(AN157<>0,AN157,IF(ENE[[#This Row],[NMOG Indi]]>0,Y157,AN157)) -> 0 | AZ157: =IF(AO157<>0,AO157,IF(ENE[[#This Row],[NMOG Indi]]>0,Z157,AO157)) -> 0 | BA157: 0 | BB157: 0 | BC157: 0 | BD157: 0 | BE157: 0 | BF157: 0 | BG157: 0 | BH157: 82 | BI157: 87 | BJ157: 92 | BK157: 96
A158: NAT|Empty | B158: 2|Rental and hiring | C158: 2 | D158: Vote | E158: Parliament | F158: 1 | G158: Strategic Leadership and Governance | H158: 3 | I158: Treasury Advise Office | J158: Current payments | K158: Goods and services | L158: Rental and hiring | M158: Rental and hiring | N158: NAT | O158: Non-transfer | P158: 0 | Q158: 0 | R158: 0 | S158: 0 | T158: 0 | U158: 0 | V158: 0 | W158: 88 | X158: 93 | Y158: 98 | Z158: 103 | AA158: 143 | AB158: =IFERROR(MATCH(ENE[[#This Row],[Type of change]],ChangeType,0),0) -> 0 | AP158: =IF(AE158<>0,AE158,IF(ENE[[#This Row],[NMOG Indi]]>0,P158,AE158)) -> 0 | AQ158: =IF(AF158<>0,AF158,IF(ENE[[#This Row],[NMOG Indi]]>0,Q158,AF158)) -> 0 | AR158: =IF(AG158<>0,AG158,IF(ENE[[#This Row],[NMOG Indi]]>0,R158,AG158)) -> 0 | AS158: =IF(AH158<>0,AH158,IF(ENE[[#This Row],[NMOG Indi]]>0,S158,AH158)) -> 0 | AT158: =IF(AI158<>0,AI158,IF(ENE[[#This Row],[NMOG Indi]]>0,T158,AI158)) -> 0 | AU158: =IF(AJ158<>0,AJ158,IF(ENE[[#This Row],[NMOG Indi]]>0,U158,AJ158)) -> 0 | AV158: =IF(AK158<>0,AK158,IF(ENE[[#This Row],[NMOG Indi]]>0,V158,AK158)) -> 0 | AW158: =IF(AL158<>0,AL158,IF(ENE[[#This Row],[NMOG Indi]]>0,W158,AL158)) -> 0 | AX158: =IF(AM158<>0,AM158,IF(ENE[[#This Row],[NMOG Indi]]>0,X158,AM158)) -> 0 | AY158: =IF(AN158<>0,AN158,IF(ENE[[#This Row],[NMOG Indi]]>0,Y158,AN158)) -> 0 | AZ158: =IF(AO158<>0,AO158,IF(ENE[[#This Row],[NMOG Indi]]>0,Z158,AO158)) -> 0 | BA158: 0 | BB158: 0 | BC158: 0 | BD158: 0 | BE158: 0 | BF158: 0 | BG158: 0 | BH158: 88 | BI158: 93 | BJ158: 98 | BK158: 103
A159: NAT|Empty | B159: 2|Training and development | C159: 2 | D159: Vote | E159: Parliament | F159: 1 | G159: Strategic Leadership and Governance | H159: 3 | I159: Treasury Advise Office | J159: Current payments | K159: Goods and services | L159: Training and development | M159: Training and development | N159: NAT | O159: Non-transfer | P159: 0 | Q159: 0 | R159: 0 | S159: 0 | T159: 0 | U159: 0 | V159: 0 | W159: 90 | X159: 95 | Y159: 100 | Z159: 105 | AA159: 144 | AB159: =IFERROR(MATCH(ENE[[#This Row],[Type of change]],ChangeType,0),0) -> 0 | AP159: =IF(AE159<>0,AE159,IF(ENE[[#This Row],[NMOG Indi]]>0,P159,AE159)) -> 0 | AQ159: =IF(AF159<>0,AF159,IF(ENE[[#This Row],[NMOG Indi]]>0,Q159,AF159)) -> 0 | AR159: =IF(AG159<>0,AG159,IF(ENE[[#This Row],[NMOG Indi]]>0,R159,AG159)) -> 0 | AS159: =IF(AH159<>0,AH159,IF(ENE[[#This Row],[NMOG Indi]]>0,S159,AH159)) -> 0 | AT159: =IF(AI159<>0,AI159,IF(ENE[[#This Row],[NMOG Indi]]>0,T159,AI159)) -> 0 | AU159: =IF(AJ159<>0,AJ159,IF(ENE[[#This Row],[NMOG Indi]]>0,U159,AJ159)) -> 0 | AV159: =IF(AK159<>0,AK159,IF(ENE[[#This Row],[NMOG Indi]]>0,V159,AK159)) -> 0 | AW159: =IF(AL159<>0,AL159,IF(ENE[[#This Row],[NMOG Indi]]>0,W159,AL159)) -> 0 | AX159: =IF(AM159<>0,AM159,IF(ENE[[#This Row],[NMOG Indi]]>0,X159,AM159)) -> 0 | AY159: =IF(AN159<>0,AN159,IF(ENE[[#This Row],[NMOG Indi]]>0,Y159,AN159)) -> 0 | AZ159: =IF(AO159<>0,AO159,IF(ENE[[#This Row],[NMOG Indi]]>0,Z159,AO159)) -> 0 | BA159: 0 | BB159: 0 | BC159: 0 | BD159: 0 | BE159: 0 | BF159: 0 | BG159: 0 | BH159: 90 | BI159: 95 | BJ159: 100 | BK159: 105
